Workbook

Sheet Intro
G2: Electricity Transmission Network Service Provider
H3: Post-Tax Revenue Model
K4: Version: | L4: 3
K5: Date: | L5: January 2015
B8: Introduction | J8: Electricity Transmission Module
C13: This model illustrates the basic elements of the AER's building block calculation and produces associated X factors to determine the maximum allowed revenue (revenue cap) form of control.
C14: Building block revenues and cash flows are modelled in nominal terms unless specified otherwise.
C16: INSTRUCTIONS FOR USE
C17: The full PTRM handbook is available on the AER website at http://www.aer.gov.au/node/27616
C19: 1. Prior to the commencement of the regulatory control period
C21: 1a. Fill out input cells on the 'DMS Input' sheet. These input cells are highlighted blue.
C22: This provides information on the service provider submitting the PTRM and the context for the PTRM preparation.
C23: This information also controls the automatic import of the PTRM into the AER's Data Management System (DMS).
C25: 1b. Fill out input cells on the 'PTRM Input' sheet. These input cells are highlighted blue.
C26: This provides the data for the PTRM calculations.
C27: In general, input expenditure data should be valued in real dollar terms of the year indicated, as at the end of that year.
C28: Units and basis for entry are specified where required for each data table.
C29: Review any cautions (which are generated based on data entered) before continuing.
C31: 1c. Determine the maximum allowed revenue (smoothed revenue) using the 'X factors' sheet
C32: Clause 6A.5.3(b)(5) requires that the CPI–X method is to be applied in escalating the MAR for each year of a regulatory control period.
C33: This sheet provides for the calculation of X factors under a revenue cap form of control.
C34: The X factor values may differ for each year of the regulatory control period but must be set such that the NPV of annual MARs (smoothed) is equal to the NPV of the annual building block revenue requirements (unsmoothed) for that period.
C35: This sheet provides input cells for each X factor and contains macro buttons which should be used to goal seek an X factor value for a specific year to equate the NPVs of smoothed and unsmoothed revenues.
C37: 2. Within the regulatory control period when updating the annual return on debt
C39: 2a. Update input cells on the 'DMS Input' sheet. These input cells are highlighted blue.
C40: Check that the contact details are still current and describe the new amendment.
C42: 2b. Update input cells on the 'PTRM Input' sheet. These input cells are highlighted blue.
C43: In general, the only row that should be changed is the Trailing Average Portfolio Return on Debt (row 430).
C44: The basis for updating the annual return on debt will be in accordance with the relevant regulatory decision prior to the commencement of the period.
C46: 2c. Determine the maximum allowed revenue (smoothed revenue) using the 'X factors' sheet
C47: Indicate the year of the annual debt update (cell F21) to ensure the correct content-sensitive cautions are displayed.
C48: Enter new X factors for this year (and potentially later years within the regulatory control period) in order to equate the NPVs of smoothed and unsmoothed revenues.
C49: The macro buttons should be used to goal seek the X factor for these specific years.
C50: Note that X factors for earlier years within the regulatory control period should not be changed.
C53: VERSION RECORD
C55: Version | D55: Date | F55: Description
C56: 1 | D56: September 2007 | F56: Initial model
C58: 2 | D58: December 2010 | F58: Modified input section to allow opening regulatory asset base to be based on as-commissioned capex (instead of as-incurred)
F59: Adjusted depreciation calculation formula in the RAB roll forward
F60: Added equity raising costs calculations and summary tables
C62: 3 | D62: January 2015 | F62: Allowed time-varying return on debt, and revenue revisions for annual return on debt update
F63: Explicitly recognised revenue adjustments in building block calculations
F64: Incorporated equity raising costs calculations into automatic smoothing process
F65: Revised and expanded summary tables and reporting
F66: Standardised many elements with distribution PTRM
F67: Enabled automatic import into AER DMS

Sheet DMS input
B2: =$C$16&" - DMS Input"&" - TNSP PTRM - version "&Intro!$L$4 -> TasNetworks - DMS Input - TNSP PTRM - version 3 | G2: Input cells are in blue
B6: This sheet requests information that allows the AER to automatically import the PTRM into our data management system (DMS).
B7: This sheet's metadata relates to the business and context for the PTRM (rather than the PTRM itself).
B8: Some of this data is automatically populated based on data entered on the PTRM input sheet. Only change blue input cells.
B9: Some rows are hidden. To facilitate the automatic import, please do not delete or add rows on this sheet.
B10: Throughout the rest of the workbook, defined name ranges are used to identify data that is imported into the DMS.
B12: Entity details
B14: Trading name | C14: TasNetworks
B15: ACN / ABN | C15: 24167357299
B16: Business short name | C16: TasNetworks
B18: Business address | C18: Address 1 | E18: 1-7 Maria Street
D19: Address 2
C20: Suburb | E20: Lenah Valley
D21: State | E21: Tas | F21: Postcode | G21: 7008
B23: Postal address | C23: Address 1 | E23: PO Box 606
D24: Address 2
C25: Suburb | E25: Moonah
D26: State | E26: Tas | F26: Postcode | G26: 7009
B29: Contact name/s | C29: Shaun Leaman | F29: John Sayers
B30: Contact phone/s | C30: 362716301 | F30: 362716469
B31: Contact email address/s | C31: shaun.leaman@tasnetworks.com.au | F31: john.sayers@tasnetworks.com.au
B33: Regulatory process details
B35: Forthcoming regulatory control period | C35: ='PTRM input'!G60 -> 2019-20 | D35: =IF(COUNTA($C35:C35)>='PTRM input'!$R$7,"",'PTRM input'!H60) -> 2020-21 | E35: =IF(COUNTA($C35:D35)>='PTRM input'!$R$7,"",'PTRM input'!I60) -> 2021-22 | F35: =IF(COUNTA($C35:E35)>='PTRM input'!$R$7,"",'PTRM input'!J60) -> 2022-23 | G35: =IF(COUNTA($C35:F35)>='PTRM input'!$R$7,"",'PTRM input'!K60) -> 2023-24 | H35: =IF(COUNTA($C35:G35)>='PTRM input'!$R$7,"",'PTRM input'!L60) ->  | I35: =IF(COUNTA($C35:H35)>='PTRM input'!$R$7,"",'PTRM input'!M60) ->  | J35: =IF(COUNTA($C35:I35)>='PTRM input'!$R$7,"",'PTRM input'!N60) ->  | K35: =IF(COUNTA($C35:J35)>='PTRM input'!$R$7,"",'PTRM input'!O60) ->  | L35: =IF(COUNTA($C35:K35)>='PTRM input'!$R$7,"",'PTRM input'!P40) -> 
C36: ='PTRM input'!F448 -> 2018-19
B38: Current regulatory control period
B41: Previous regulatory control period
B44: Sector | C44: Electricity
B45: Segment | C45: Transmission
B46: Source | C46: Draft decision
B47: Regulatory Year Ending | C47: =LEFT('X factors'!$F$21,2)&RIGHT('X factors'!$F$21,2) -> 2020
B48: Reporting Period Type | C48: =IF(LEN(C35)=4,"Calendar",IF(LEN(C35)=7,"Financial","Other")) -> Financial
B49: RIN or Model Type | C49: PTRM
B50: Security Classification | C50: Public
B51: Data quality (Actual, estimate, consolidated) | C51: Consolidated
B52: Model response - version no.
B53: Amended model submission - reason
B54: Model template - version no. | C54: 3
B55: $ real | C55: ='PTRM input'!F448 -> 2018-19
B56: Form of control | C56: Revenue Cap

Sheet PTRM input
E2: ='DMS input'!$C$16&" - PTRM Input"&" - TNSP PTRM - version "&Intro!$L$4 -> TasNetworks - PTRM Input - TNSP PTRM - version 3 | I2: Input cells are in blue | K2: 1 | L2: AER amendments
E5: ="Opening Regulatory Asset Base and Opening Tax Asset Base for "&Q7&" ($m Nominal)" -> Opening Regulatory Asset Base and Opening Tax Asset Base for 2019-20 ($m Nominal)
G6: Asset Class Name | J6: Opening Asset Value (Partially As Incurred) | K6: Opening Asset Value (As Commissioned) | L6: Average Remaining Life (Year) | M6: Standard Life (Year) | N6: Opening Tax Asset Value | O6: Average Tax Remaining Life (Year) | P6: Tax Standard Life (Year) | Q6: Base Regulatory Year | R6: Length of Regulatory Control Period (Year)
E7: Asset Class 1 | G7: Transmission Lines and Cables | J7: 241.0931388 | K7: 241.0931388 | L7: n/a | M7: n/a | N7: 167.026124 | O7: n/a | P7: n/a | Q7: 2019-20 | R7: 5
E8: Asset Class 2 | G8: Transmission Substations | J8: 303.9623555 | K8: 303.9623555 | L8: n/a | M8: n/a | N8: 220.8495569 | O8: n/a | P8: n/a
E9: Asset Class 3 | G9: Protection and Control | J9: -0.2671468617 | K9: -0.2671468617 | L9: n/a | M9: n/a | N9: 0 | O9: n/a | P9: n/a
E10: Asset Class 4 | G10: Refurbishment | J10: -0.1055671846 | K10: -0.1055671846 | L10: n/a | M10: n/a | N10: 0.09623456006 | O10: n/a | P10: n/a
E11: Asset Class 5 | G11: Other | J11: -0.007794384797 | K11: -0.007794384797 | L11: n/a | M11: n/a | N11: 0 | O11: n/a | P11: n/a
E12: Asset Class 6 | G12: Other - IT | J12: -0.107377018 | K12: -0.107377018 | L12: n/a | M12: n/a | N12: -2.220446049e-16 | O12: n/a | P12: n/a
E13: Asset Class 7 | G13: Other - General | J13: -0.02427919882 | K13: -0.02427919882 | L13: n/a | M13: n/a | N13: 0 | O13: n/a | P13: n/a
E14: Asset Class 8 | G14: Other - Buildings | J14: 23.66603638 | K14: 23.66603638 | L14: n/a | M14: n/a | N14: 17.7306518 | O14: n/a | P14: n/a
E15: Asset Class 9 | G15: Land and Easements | J15: 110.8722971 | K15: 110.8722971 | L15: n/a | M15: n/a | N15: 75.29865189 | O15: n/a | P15: n/a
E16: Asset Class 10 | G16: Transmission line assets - long life (60) | J16: 229.7548517 | K16: 236.3219916 | L16: n/a | M16: 60 | N16: 200.6769227 | O16: n/a | P16: 60
E17: Asset Class 11 | G17: Transmission line assets - medium life (45) | J17: 40.00154181 | K17: 17.10534765 | L17: n/a | M17: 45 | N17: 16.67906109 | O17: n/a | P17: 45
E18: Asset Class 12 | G18: Transmission line assets - short life (10) | J18: 26.69739417 | K18: 14.7362051 | L18: n/a | M18: 10 | N18: 13.40180437 | O18: n/a | P18: 10
E19: Asset Class 13 | G19: Substation assets - long life (60) | J19: 84.22362157 | K19: 75.1185605 | L19: n/a | M19: 60 | N19: 64.7965605 | O19: n/a | P19: 60
E20: Asset Class 14 | G20: Substation assets - medium life (45) | J20: 206.0184656 | K20: 241.6100823 | L20: n/a | M20: 45 | N20: 208.0661724 | O20: n/a | P20: 45
E21: Asset Class 15 | G21: Substation assets - short life (15) | J21: 17.86078802 | K21: 18.70290529 | L21: n/a | M21: 15 | N21: 16.42130812 | O21: n/a | P21: 15
E22: Asset Class 16 | G22: Protection and control - short life (15) | J22: 89.57283685 | K22: 84.27144426 | L22: n/a | M22: 15 | N22: 75.85527135 | O22: n/a | P22: 15
E23: Asset Class 17 | G23: Protection and control - short life (4) | J23: 0.05645722672 | K23: 0.1624709756 | L23: n/a | M23: 4 | N23: 0.08188400924 | O23: n/a | P23: 4
E24: Asset Class 18 | G24: Transmission operations - short life (10) | J24: 31.08756781 | K24: 28.13853536 | L24: n/a | M24: 10 | N24: 25.80373244 | O24: n/a | P24: 10
E25: Asset Class 19 | G25: Transmission operations - short life (4) | J25: -0.4648226411 | K25: 1.690062925 | L25: n/a | M25: 4 | N25: 1.051806486 | O25: n/a | P25: 4
E26: Asset Class 20 | G26: Other - medium life (40) | J26: 34.69067755 | K26: 30.26080247 | L26: n/a | M26: 40 | N26: 25.21675533 | O26: n/a | P26: 40
E27: Asset Class 21 | G27: Other - short life (9) | J27: 7.590952152 | K27: 4.454215067 | L27: n/a | M27: 9 | N27: 4.526799063 | O27: n/a | P27: 9
E28: Asset Class 22 | G28: Other - short life (4) | J28: 7.366822157 | K28: 2.787778255 | L28: n/a | M28: 4 | N28: 11.61099167 | O28: n/a | P28: 4
E29: Asset Class 23 | G29: Land and Easements | J29: 7.443174991 | K29: 4.897011008 | L29: n/a | M29: n/a | N29: 4.15912425 | O29: n/a | P29: n/a
E30: Asset Class 24 | G30: Communication assets - long life (45) | J30: 0.0096173842 | K30: 0.02657676247 | L30: n/a | M30: 45 | N30: 0.04778232301 | O30: n/a | P30: 45
E31: Asset Class 25 | G31: Communication assets - medium life (10) | J31: -2.428060108 | K31: 0.3413840109 | L31: n/a | M31: 10 | N31: 2.105835114 | O31: n/a | P31: 10
E32: Asset Class 26 | G32: Communication assets - short life (5) | J32: 0.4239044474 | K32: 0.4111520454 | L32: n/a | M32: 5 | N32: 3.226030668 | O32: n/a | P32: 5
E33: Asset Class 27
E34: Asset Class 28
E35: Asset Class 29
E36: Asset Class 30
E37: Asset Class 31
E38: Asset Class 32
E39: Asset Class 33
E40: Asset Class 34
E41: Asset Class 35
E42: Asset Class 36
E43: Asset Class 37
E44: Asset Class 38
E45: Asset Class 39
E46: Asset Class 40
E47: Asset Class 41
E48: Asset Class 42
E49: Asset Class 43
E50: Asset Class 44
E51: Asset Class 45
E52: Asset Class 46
E53: Asset Class 47
E54: Asset Class 48
E55: Asset Class 49
E56: Asset Class 50 | G56: Equity raising costs | J56: 0.4222386785 | K56: 0.4210677746 | L56: n/a | M56: n/a | N56: 0 | O56: n/a | P56: n/a
E57: Total | J57: =SUM(J7:J56) -> 1459.409692 | K57: =SUM(K7:K56) -> 1440.539256 | N57: =SUM(N7:N56) -> 1154.729061
E59: ="Forecast Capital Expenditure – As Incurred ($m Real "&$F$448&")" -> Forecast Capital Expenditure – As Incurred ($m Real 2018-19)
E60: Year | G60: =Q7 -> 2019-20 | H60: =(LEFT(G60,4)+1&IF(MID(G60,5,1)="","","-"&TEXT(MOD(MID(G60,6,2)+1,100),"00"))) -> 2020-21 | I60: 2021-22 | J60: 2022-23 | K60: 2023-24 | L60: 2024-25 | M60: 2025-26 | N60: 2026-27 | O60: 2027-28 | P60: 2028-29
E61: =Asset1 -> Transmission Lines and Cables
E62: =Asset2 -> Transmission Substations
E63: =Asset3 -> Protection and Control
E64: =Asset4 -> Refurbishment
E65: =Asset5 -> Other
E66: =Asset6 -> Other - IT
E67: =Asset7 -> Other - General
E68: =Asset8 -> Other - Buildings
E69: =Asset9 -> Land and Easements
E70: =Asset10 -> Transmission line assets - long life (60) | G70: 4.584809291 | H70: 3.446686062 | I70: 5.061859874 | J70: 4.307429338 | K70: 3.574379617
E71: =Asset11 -> Transmission line assets - medium life (45) | G71: 4.027596753 | H71: 3.02779477 | I71: 4.446669229 | J71: 3.783928036 | K71: 3.139969152
E72: =Asset12 -> Transmission line assets - short life (10) | G72: 0.5615733634 | H72: 0.4221695956 | I72: 0.6200052159 | J72: 0.5275982986 | K72: 0.4378102243
E73: =Asset13 -> Substation assets - long life (60) | G73: 1.350527247 | H73: 7.057381134 | I73: 5.70477648 | J73: 2.263722559 | K73: 2.298562224
E74: =Asset14 -> Substation assets - medium life (45) | G74: 3.121629517 | H74: 16.09078028 | I74: 12.89593794 | J74: 5.290801477 | K74: 5.375977739
E75: =Asset15 -> Substation assets - short life (15) | G75: 0.2106597614 | H75: 1.297999131 | I75: 0.9613484346 | J75: 0.4132679608 | K75: 0.4194654432
E76: =Asset16 -> Protection and control - short life (15) | G76: 9.631090714 | H76: 12.97814246 | I76: 11.73620633 | J76: 10.19362087 | K76: 10.01932704
E77: =Asset17 -> Protection and control - short life (4) | G77: 0 | H77: 0 | I77: 0 | J77: 0 | K77: 0
E78: =Asset18 -> Transmission operations - short life (10) | G78: 0 | H78: 0 | I78: 0 | J78: 0 | K78: 0
E79: =Asset19 -> Transmission operations - short life (4) | G79: 0 | H79: 0 | I79: 0 | J79: 0 | K79: 0
E80: =Asset20 -> Other - medium life (40) | G80: 1.141619175 | H80: 1.312280237 | I80: 0.5529963206 | J80: 0.3590785943 | K80: 0.1526058941
E81: =Asset21 -> Other - short life (9) | G81: 0.7740591456 | H81: 1.374899775 | I81: 1.561046882 | J81: 0.9518175149 | K81: 1.145383348
E82: =Asset22 -> Other - short life (4) | G82: 4.105262501 | H82: 5.453952906 | I82: 3.955197717 | J82: 3.443158481 | K82: 2.636872731
E83: =Asset23 -> Land and Easements | G83: 0.1317475139 | H83: 0.6239900495 | I83: 0.7203891232 | J83: 1.074221991 | K83: 0.7013957777
E84: =Asset24 -> Communication assets - long life (45) | G84: 0.7164822136 | H84: 1.691447642 | I84: 2.087342667 | J84: 0.8397167751 | K84: 0.2042041758
E85: =Asset25 -> Communication assets - medium life (10) | G85: 5.680544199 | H85: 2.56819601 | I85: 3.546732268 | J85: 3.151460633 | K85: 5.379087606
E86: =Asset26 -> Communication assets - short life (5) | G86: 0.5618732852 | H86: 0.3085347805 | I86: 0.9680372334 | J86: 0.7594214133 | K86: 0.6687204905
E87: =Asset27 -> 0 | G87: 0 | H87: 0 | I87: 0 | J87: 0 | K87: 0
E88: =Asset28 -> 0
E89: =Asset29 -> 0
E90: =Asset30 -> 0
E91: =Asset31 -> 0
E92: =Asset32 -> 0
E93: =Asset33 -> 0
E94: =Asset34 -> 0
E95: =Asset35 -> 0
E96: =Asset36 -> 0
E97: =Asset37 -> 0
E98: =Asset38 -> 0
E99: =Asset39 -> 0
E100: =Asset40 -> 0
E101: =Asset41 -> 0
E102: =Asset42 -> 0
E103: =Asset43 -> 0
E104: =Asset44 -> 0
E105: =Asset45 -> 0
E106: =Asset46 -> 0
E107: =Asset47 -> 0
E108: =Asset48 -> 0
E109: =Asset49 -> 0
E110: =Asset50 -> Equity raising costs | G110: 0
E111: Total | G111: =SUM(G61:G110) -> 36.59947468 | H111: 57.65425482 | I111: 54.81854572 | J111: 37.35924394 | K111: 36.15376147 | L111: 0 | M111: 0 | N111: 0 | O111: 0 | P111: 0
Q112: =SUM(OFFSET(G111,0,0,1,$R$7)) -> 222.5852806
E113: ="Forecast Asset Disposal – As Incurred ($m Real "&$F$448&")" -> Forecast Asset Disposal – As Incurred ($m Real 2018-19)
E114: Year | G114: =G60 -> 2019-20 | H114: 2020-21 | I114: 2021-22 | J114: 2022-23 | K114: 2023-24 | L114: 2024-25 | M114: 2025-26 | N114: 2026-27 | O114: 2027-28 | P114: 2028-29
E115: =Asset1 -> Transmission Lines and Cables
E116: =Asset2 -> Transmission Substations
E117: =Asset3 -> Protection and Control
E118: =Asset4 -> Refurbishment
E119: =Asset5 -> Other
E120: =Asset6 -> Other - IT
E121: =Asset7 -> Other - General
E122: =Asset8 -> Other - Buildings
E123: =Asset9 -> Land and Easements
E124: =Asset10 -> Transmission line assets - long life (60) | G124: 0 | H124: 0 | I124: 0 | J124: 0 | K124: 0
E125: =Asset11 -> Transmission line assets - medium life (45) | G125: 0 | H125: 0 | I125: 0 | J125: 0 | K125: 0
E126: =Asset12 -> Transmission line assets - short life (10) | G126: 0 | H126: 0 | I126: 0 | J126: 0 | K126: 0
E127: =Asset13 -> Substation assets - long life (60) | G127: 0 | H127: 0 | I127: 0 | J127: 0 | K127: 0
E128: =Asset14 -> Substation assets - medium life (45) | G128: 0 | H128: 0 | I128: 0 | J128: 0 | K128: 0
E129: =Asset15 -> Substation assets - short life (15) | G129: 0 | H129: 0 | I129: 0 | J129: 0 | K129: 0
E130: =Asset16 -> Protection and control - short life (15) | G130: 0 | H130: 0 | I130: 0 | J130: 0 | K130: 0
E131: =Asset17 -> Protection and control - short life (4) | G131: 0 | H131: 0 | I131: 0 | J131: 0 | K131: 0
E132: =Asset18 -> Transmission operations - short life (10) | G132: 0 | H132: 0 | I132: 0 | J132: 0 | K132: 0
E133: =Asset19 -> Transmission operations - short life (4) | G133: 0 | H133: 0 | I133: 0 | J133: 0 | K133: 0
E134: =Asset20 -> Other - medium life (40) | G134: 0 | H134: 0 | I134: 0 | J134: 0 | K134: 0
E135: =Asset21 -> Other - short life (9) | G135: 0 | H135: 0 | I135: 0 | J135: 0 | K135: 0
E136: =Asset22 -> Other - short life (4) | G136: 0 | H136: 0 | I136: 0 | J136: 0 | K136: 0
E137: =Asset23 -> Land and Easements | G137: 0 | H137: 0 | I137: 0 | J137: 0 | K137: 0
E138: =Asset24 -> Communication assets - long life (45) | G138: 0 | H138: 0 | I138: 0 | J138: 0 | K138: 0
E139: =Asset25 -> Communication assets - medium life (10) | G139: 0 | H139: 0 | I139: 0 | J139: 0 | K139: 0
E140: =Asset26 -> Communication assets - short life (5) | G140: 0 | H140: 0 | I140: 0 | J140: 0 | K140: 0
E141: =Asset27 -> 0 | G141: 0 | H141: 0 | I141: 0 | J141: 0 | K141: 0
E142: =Asset28 -> 0
E143: =Asset29 -> 0
E144: =Asset30 -> 0
E145: =Asset31 -> 0
E146: =Asset32 -> 0
E147: =Asset33 -> 0
E148: =Asset34 -> 0
E149: =Asset35 -> 0
E150: =Asset36 -> 0
E151: =Asset37 -> 0
E152: =Asset38 -> 0
E153: =Asset39 -> 0
E154: =Asset40 -> 0
E155: =Asset41 -> 0
E156: =Asset42 -> 0
E157: =Asset43 -> 0
E158: =Asset44 -> 0
E159: =Asset45 -> 0
E160: =Asset46 -> 0
E161: =Asset47 -> 0
E162: =Asset48 -> 0
E163: =Asset49 -> 0
E164: =Asset50 -> Equity raising costs
E165: Total | G165: =SUM(G115:G164) -> 0 | H165: 0 | I165: 0 | J165: 0 | K165: 0 | L165: 0 | M165: 0 | N165: 0 | O165: 0 | P165: 0
Q166: =SUM(OFFSET(G165,0,0,1,$R$7)) -> 0
E167: ="Forecast Net Capital Expenditure – As Incurred ($m Real "&$F$448&")" -> Forecast Net Capital Expenditure – As Incurred ($m Real 2018-19)
E168: Year | G168: =G60 -> 2019-20 | H168: 2020-21 | I168: 2021-22 | J168: 2022-23 | K168: 2023-24 | L168: 2024-25 | M168: 2025-26 | N168: 2026-27 | O168: 2027-28 | P168: 2028-29
E169: =Asset1 -> Transmission Lines and Cables | G169: =G61-G115 -> 0 | H169: 0 | I169: 0 | J169: 0 | K169: 0 | L169: 0 | M169: 0 | N169: 0 | O169: 0 | P169: 0
E170: =Asset2 -> Transmission Substations | G170: 0 | H170: 0 | I170: 0 | J170: 0 | K170: 0 | L170: 0 | M170: 0 | N170: 0 | O170: 0 | P170: 0
E171: =Asset3 -> Protection and Control | G171: 0 | H171: 0 | I171: 0 | J171: 0 | K171: 0 | L171: 0 | M171: 0 | N171: 0 | O171: 0 | P171: 0
E172: =Asset4 -> Refurbishment | G172: 0 | H172: 0 | I172: 0 | J172: 0 | K172: 0 | L172: 0 | M172: 0 | N172: 0 | O172: 0 | P172: 0
E173: =Asset5 -> Other | G173: 0 | H173: 0 | I173: 0 | J173: 0 | K173: 0 | L173: 0 | M173: 0 | N173: 0 | O173: 0 | P173: 0
E174: =Asset6 -> Other - IT | G174: 0 | H174: 0 | I174: 0 | J174: 0 | K174: 0 | L174: 0 | M174: 0 | N174: 0 | O174: 0 | P174: 0
E175: =Asset7 -> Other - General | G175: 0 | H175: 0 | I175: 0 | J175: 0 | K175: 0 | L175: 0 | M175: 0 | N175: 0 | O175: 0 | P175: 0
E176: =Asset8 -> Other - Buildings | G176: 0 | H176: 0 | I176: 0 | J176: 0 | K176: 0 | L176: 0 | M176: 0 | N176: 0 | O176: 0 | P176: 0
E177: =Asset9 -> Land and Easements | G177: 0 | H177: 0 | I177: 0 | J177: 0 | K177: 0 | L177: 0 | M177: 0 | N177: 0 | O177: 0 | P177: 0
E178: =Asset10 -> Transmission line assets - long life (60) | G178: 4.584809291 | H178: 3.446686062 | I178: 5.061859874 | J178: 4.307429338 | K178: 3.574379617 | L178: 0 | M178: 0 | N178: 0 | O178: 0 | P178: 0
E179: =Asset11 -> Transmission line assets - medium life (45) | G179: 4.027596753 | H179: 3.02779477 | I179: 4.446669229 | J179: 3.783928036 | K179: 3.139969152 | L179: 0 | M179: 0 | N179: 0 | O179: 0 | P179: 0
E180: =Asset12 -> Transmission line assets - short life (10) | G180: 0.5615733634 | H180: 0.4221695956 | I180: 0.6200052159 | J180: 0.5275982986 | K180: 0.4378102243 | L180: 0 | M180: 0 | N180: 0 | O180: 0 | P180: 0
E181: =Asset13 -> Substation assets - long life (60) | G181: 1.350527247 | H181: 7.057381134 | I181: 5.70477648 | J181: 2.263722559 | K181: 2.298562224 | L181: 0 | M181: 0 | N181: 0 | O181: 0 | P181: 0
E182: =Asset14 -> Substation assets - medium life (45) | G182: 3.121629517 | H182: 16.09078028 | I182: 12.89593794 | J182: 5.290801477 | K182: 5.375977739 | L182: 0 | M182: 0 | N182: 0 | O182: 0 | P182: 0
E183: =Asset15 -> Substation assets - short life (15) | G183: 0.2106597614 | H183: 1.297999131 | I183: 0.9613484346 | J183: 0.4132679608 | K183: 0.4194654432 | L183: 0 | M183: 0 | N183: 0 | O183: 0 | P183: 0
E184: =Asset16 -> Protection and control - short life (15) | G184: 9.631090714 | H184: 12.97814246 | I184: 11.73620633 | J184: 10.19362087 | K184: 10.01932704 | L184: 0 | M184: 0 | N184: 0 | O184: 0 | P184: 0
E185: =Asset17 -> Protection and control - short life (4) | G185: =G77-G131 -> 0 | H185: 0 | I185: 0 | J185: 0 | K185: 0 | L185: 0 | M185: 0 | N185: 0 | O185: 0 | P185: 0
E186: =Asset18 -> Transmission operations - short life (10) | G186: 0 | H186: 0 | I186: 0 | J186: 0 | K186: 0 | L186: 0 | M186: 0 | N186: 0 | O186: 0 | P186: 0
E187: =Asset19 -> Transmission operations - short life (4) | G187: 0 | H187: 0 | I187: 0 | J187: 0 | K187: 0 | L187: 0 | M187: 0 | N187: 0 | O187: 0 | P187: 0
E188: =Asset20 -> Other - medium life (40) | G188: 1.141619175 | H188: 1.312280237 | I188: 0.5529963206 | J188: 0.3590785943 | K188: 0.1526058941 | L188: 0 | M188: 0 | N188: 0 | O188: 0 | P188: 0
E189: =Asset21 -> Other - short life (9) | G189: 0.7740591456 | H189: 1.374899775 | I189: 1.561046882 | J189: 0.9518175149 | K189: 1.145383348 | L189: 0 | M189: 0 | N189: 0 | O189: 0 | P189: 0
E190: =Asset22 -> Other - short life (4) | G190: 4.105262501 | H190: 5.453952906 | I190: 3.955197717 | J190: 3.443158481 | K190: 2.636872731 | L190: 0 | M190: 0 | N190: 0 | O190: 0 | P190: 0
E191: =Asset23 -> Land and Easements | G191: 0.1317475139 | H191: 0.6239900495 | I191: 0.7203891232 | J191: 1.074221991 | K191: 0.7013957777 | L191: 0 | M191: 0 | N191: 0 | O191: 0 | P191: 0
E192: =Asset24 -> Communication assets - long life (45) | G192: 0.7164822136 | H192: 1.691447642 | I192: 2.087342667 | J192: 0.8397167751 | K192: 0.2042041758 | L192: 0 | M192: 0 | N192: 0 | O192: 0 | P192: 0
E193: =Asset25 -> Communication assets - medium life (10) | G193: 5.680544199 | H193: 2.56819601 | I193: 3.546732268 | J193: 3.151460633 | K193: 5.379087606 | L193: 0 | M193: 0 | N193: 0 | O193: 0 | P193: 0
E194: =Asset26 -> Communication assets - short life (5) | G194: 0.5618732852 | H194: 0.3085347805 | I194: 0.9680372334 | J194: 0.7594214133 | K194: 0.6687204905 | L194: 0 | M194: 0 | N194: 0 | O194: 0 | P194: 0
E195: =Asset27 -> 0 | G195: 0 | H195: 0 | I195: 0 | J195: 0 | K195: 0 | L195: 0 | M195: 0 | N195: 0 | O195: 0 | P195: 0
E196: =Asset28 -> 0 | G196: 0 | H196: 0 | I196: 0 | J196: 0 | K196: 0 | L196: 0 | M196: 0 | N196: 0 | O196: 0 | P196: 0
E197: =Asset29 -> 0 | G197: 0 | H197: 0 | I197: 0 | J197: 0 | K197: 0 | L197: 0 | M197: 0 | N197: 0 | O197: 0 | P197: 0
E198: =Asset30 -> 0 | G198: 0 | H198: 0 | I198: 0 | J198: 0 | K198: 0 | L198: 0 | M198: 0 | N198: 0 | O198: 0 | P198: 0
E199: =Asset31 -> 0 | G199: 0 | H199: 0 | I199: 0 | J199: 0 | K199: 0 | L199: 0 | M199: 0 | N199: 0 | O199: 0 | P199: 0
E200: =Asset32 -> 0 | G200: 0 | H200: 0 | I200: 0 | J200: 0 | K200: 0 | L200: 0 | M200: 0 | N200: 0 | O200: 0 | P200: 0
E201: =Asset33 -> 0 | G201: =G93-G147 -> 0 | H201: 0 | I201: 0 | J201: 0 | K201: 0 | L201: 0 | M201: 0 | N201: 0 | O201: 0 | P201: 0
E202: =Asset34 -> 0 | G202: 0 | H202: 0 | I202: 0 | J202: 0 | K202: 0 | L202: 0 | M202: 0 | N202: 0 | O202: 0 | P202: 0
E203: =Asset35 -> 0 | G203: 0 | H203: 0 | I203: 0 | J203: 0 | K203: 0 | L203: 0 | M203: 0 | N203: 0 | O203: 0 | P203: 0
E204: =Asset36 -> 0 | G204: 0 | H204: 0 | I204: 0 | J204: 0 | K204: 0 | L204: 0 | M204: 0 | N204: 0 | O204: 0 | P204: 0
... 223 more rows

Sheet WACC
B2: ='DMS input'!$C$16&" - Cost of Capital Parameters"&" - TNSP PTRM - version "&Intro!$L$4 -> TasNetworks - Cost of Capital Parameters - TNSP PTRM - version 3
B4: Year | G4: ='PTRM input'!G60 -> 2019-20 | H4: ='PTRM input'!H60 -> 2020-21 | I4: ='PTRM input'!I60 -> 2021-22 | J4: ='PTRM input'!J60 -> 2022-23 | K4: ='PTRM input'!K60 -> 2023-24 | L4: ='PTRM input'!L60 -> 2024-25 | M4: ='PTRM input'!M60 -> 2025-26 | N4: ='PTRM input'!N60 -> 2026-27 | O4: ='PTRM input'!O60 -> 2027-28 | P4: ='PTRM input'!P60 -> 2028-29 | R4: Final decision checks
R5: This column contains calculations that presume a constant WACC. They are therefore to be used at the start of the regulatory control period (prior to any annual debt updates).
B6: Inflation Rate | D6: f | F6: Constant | G6: =f -> 0.02449951148 | H6: 0.02449951148 | I6: 0.02449951148 | J6: 0.02449951148 | K6: 0.02449951148 | L6: 0.02449951148 | M6: 0.02449951148 | N6: 0.02449951148 | O6: 0.02449951148 | P6: 0.02449951148
B7: Value of Imputation Credits (gamma) | D7: γ | F7: Constant | G7: =g -> 0.5 | H7: 0.5 | I7: 0.5 | J7: 0.5 | K7: 0.5 | L7: 0.5 | M7: 0.5 | N7: 0.5 | O7: 0.5 | P7: 0.5
B8: Proportion of Equity Funding | D8: E/V | F8: Constant | G8: =1-G9 -> 0.4 | H8: =1-H9 -> 0.4 | I8: 0.4 | J8: 0.4 | K8: 0.4 | L8: 0.4 | M8: 0.4 | N8: 0.4 | O8: 0.4 | P8: 0.4
B9: Proportion of Debt Funding | D9: D/V | F9: Constant | G9: =Dv -> 0.6 | H9: =Dv -> 0.6 | I9: 0.6 | J9: 0.6 | K9: 0.6 | L9: 0.6 | M9: 0.6 | N9: 0.6 | O9: 0.6 | P9: 0.6
B10: Post-tax Nominal Return on Equity | D10: Re | F10: Constant | G10: ='PTRM input'!$G$425 -> 0.063 | H10: ='PTRM input'!$G$425 -> 0.063 | I10: ='PTRM input'!$G$425 -> 0.063 | J10: ='PTRM input'!$G$425 -> 0.063 | K10: ='PTRM input'!$G$425 -> 0.063 | L10: ='PTRM input'!$G$425 -> 0.063 | M10: ='PTRM input'!$G$425 -> 0.063 | N10: ='PTRM input'!$G$425 -> 0.063 | O10: ='PTRM input'!$G$425 -> 0.063 | P10: ='PTRM input'!$G$425 -> 0.063 | R10: =Analysis!$E$110 -> 0.063
B11: Post-tax Real Return on Equity | D11: Rre | F11: Constant | G11: =(1+G10)/(1+G6)-1 -> 0.03757980174 | H11: 0.03757980174 | I11: 0.03757980174 | J11: 0.03757980174 | K11: 0.03757980174 | L11: 0.03757980174 | M11: 0.03757980174 | N11: 0.03757980174 | O11: 0.03757980174 | P11: 0.03757980174 | R11: =Analysis!$E$114 -> 0.03757980175
B13: Corporate Tax Rate | D13: T | F13: Varying | G13: ='PTRM input'!G417 -> 0.3 | H13: =IF(OR(ISBLANK('PTRM input'!H417),'PTRM input'!H417=0),G13,'PTRM input'!H417) -> 0.3 | I13: =IF(OR(ISBLANK('PTRM input'!I417),'PTRM input'!I417=0),H13,'PTRM input'!I417) -> 0.3 | J13: =IF(OR(ISBLANK('PTRM input'!J417),'PTRM input'!J417=0),I13,'PTRM input'!J417) -> 0.3 | K13: =IF(OR(ISBLANK('PTRM input'!K417),'PTRM input'!K417=0),J13,'PTRM input'!K417) -> 0.3 | L13: =IF(OR(ISBLANK('PTRM input'!L417),'PTRM input'!L417=0),K13,'PTRM input'!L417) -> 0.3 | M13: =IF(OR(ISBLANK('PTRM input'!M417),'PTRM input'!M417=0),L13,'PTRM input'!M417) -> 0.3 | N13: =IF(OR(ISBLANK('PTRM input'!N417),'PTRM input'!N417=0),M13,'PTRM input'!N417) -> 0.3 | O13: =IF(OR(ISBLANK('PTRM input'!O417),'PTRM input'!O417=0),N13,'PTRM input'!O417) -> 0.3 | P13: =IF(OR(ISBLANK('PTRM input'!P417),'PTRM input'!P417=0),O13,'PTRM input'!P417) -> 0.3
B14: Nominal Pre-tax Return on Debt | D14: Rd | F14: Varying | G14: ='PTRM input'!G430 -> 0.05417505408 | H14: =IF(OR(ISBLANK('PTRM input'!H430),'PTRM input'!H430=0),G14,'PTRM input'!H430) -> 0.05417505408 | I14: =IF(OR(ISBLANK('PTRM input'!I430),'PTRM input'!I430=0),H14,'PTRM input'!I430) -> 0.05417505408 | J14: =IF(OR(ISBLANK('PTRM input'!J430),'PTRM input'!J430=0),I14,'PTRM input'!J430) -> 0.05417505408 | K14: =IF(OR(ISBLANK('PTRM input'!K430),'PTRM input'!K430=0),J14,'PTRM input'!K430) -> 0.05417505408 | L14: =IF(OR(ISBLANK('PTRM input'!L430),'PTRM input'!L430=0),K14,'PTRM input'!L430) -> 0.05417505408 | M14: =IF(OR(ISBLANK('PTRM input'!M430),'PTRM input'!M430=0),L14,'PTRM input'!M430) -> 0.05417505408 | N14: =IF(OR(ISBLANK('PTRM input'!N430),'PTRM input'!N430=0),M14,'PTRM input'!N430) -> 0.05417505408 | O14: =IF(OR(ISBLANK('PTRM input'!O430),'PTRM input'!O430=0),N14,'PTRM input'!O430) -> 0.05417505408 | P14: =IF(OR(ISBLANK('PTRM input'!P430),'PTRM input'!P430=0),O14,'PTRM input'!P430) -> 0.05417505408
B15: Real Pre-tax Return on Debt | D15: Rrd | F15: Varying | G15: =(1+G14)/(1+G6)-1 -> 0.02896589239 | H15: 0.02896589239 | I15: 0.02896589239 | J15: 0.02896589239 | K15: 0.02896589239 | L15: 0.02896589239 | M15: 0.02896589239 | N15: 0.02896589239 | O15: 0.02896589239 | P15: 0.02896589239
G17: Formula approximations of WACC | R17: Cashflow derivations of WACC
B18: Nominal Vanilla WACC | F18: Varying | G18: =G8*G10+G9*G14 -> 0.05770503245 | H18: 0.05770503245 | I18: 0.05770503245 | J18: 0.05770503245 | K18: 0.05770503245 | L18: 0.05770503245 | M18: 0.05770503245 | N18: 0.05770503245 | O18: 0.05770503245 | P18: 0.05770503245 | R18: =Analysis!$E$125 -> 0.05770503245
B19: Real Vanilla WACC | F19: Varying | G19: =G8*G11+G9*G15 -> 0.03241145613 | H19: 0.03241145613 | I19: 0.03241145613 | J19: 0.03241145613 | K19: 0.03241145613 | L19: 0.03241145613 | M19: 0.03241145613 | N19: 0.03241145613 | O19: 0.03241145613 | P19: 0.03241145613 | R19: =Analysis!$E$126 -> 0.03241145613
B20: Post-tax Nominal WACC | F20: Varying | G20: =G10*G8+G14*G9*(1-G28*(1-G7)) -> 0.05282927758 | H20: =H10*H8+H14*H9*(1-H28*(1-H7)) -> 0.05282927758 | I20: 0.05282927758 | J20: 0.05282927758 | K20: 0.05282927758 | L20: 0.05282927758 | M20: 0.05282927758 | N20: 0.05282927758 | O20: 0.05282927758 | P20: 0.05282927758 | R20: =Analysis!$E$122 -> 0.05466770075
B21: Post-tax Real WACC | F21: Varying | G21: =(1+G20)/(1+G6)-1 -> 0.0276522983 | H21: 0.0276522983 | I21: 0.0276522983 | J21: 0.0276522983 | K21: 0.0276522983 | L21: 0.0276522983 | M21: 0.0276522983 | N21: 0.0276522983 | O21: 0.0276522983 | P21: 0.0276522983 | R21: =Analysis!$E$124 -> 0.02944675809
B22: Pre-tax Nominal WACC | F22: Varying | G22: =G10*(1/(1-G27*(1-G7)))*G8+G14*G9 -> 0.06064923548 | H22: 0.06064923548 | I22: 0.06064923548 | J22: 0.06064923548 | K22: 0.06064923548 | L22: 0.06064923548 | M22: 0.06064923548 | N22: 0.06064923548 | O22: 0.06064923548 | P22: 0.06064923548 | R22: =Analysis!$E$121 -> 0.06066254877
B23: Pre-tax Real WACC | F23: Varying | G23: =(1+G22)/(1+G6)-1 -> 0.03528525255 | H23: 0.03528525255 | I23: 0.03528525255 | J23: 0.03528525255 | K23: 0.03528525255 | L23: 0.03528525255 | M23: 0.03528525255 | N23: 0.03528525255 | O23: 0.03528525255 | P23: 0.03528525255 | R23: =Analysis!$E$123 -> 0.03529824747
B24: Nominal Tax Allowance | F24: Varying | G24: =G22-G20 -> 0.007819957893 | H24: =H22-H20 -> 0.007819957893 | I24: 0.007819957893 | J24: 0.007819957893 | K24: 0.007819957893 | L24: 0.007819957893 | M24: 0.007819957893 | N24: 0.007819957893 | O24: 0.007819957893 | P24: 0.007819957893 | R24: =$R$22-$R$20 -> 0.005994848013
B25: Real Tax Allowance | F25: Varying | G25: =G23-G21 -> 0.007632954243 | H25: =H23-H21 -> 0.007632954243 | I25: 0.007632954243 | J25: 0.007632954243 | K25: 0.007632954243 | L25: 0.007632954243 | M25: 0.007632954243 | N25: 0.007632954243 | O25: 0.007632954243 | P25: 0.007632954243 | R25: =$R$23-$R$21 -> 0.005851489381
B27: Effective Tax Rate for Equity (from relevant cashflows) | D27: Te | G27: 0.2092226966 | H27: =$G27 -> 0.2092226966 | I27: =$G27 -> 0.2092226966 | J27: 0.2092226966 | K27: 0.2092226966 | L27: 0.2092226966 | M27: 0.2092226966 | N27: 0.2092226966 | O27: 0.2092226966 | P27: 0.2092226966 | R27: =Analysis!$D$108 -> 0.2092226966
B28: Effective Tax Rate for Debt (effective debt shield) | D28: Td | G28: 0.3 | H28: =$G28 -> 0.3 | I28: 0.3 | J28: 0.3 | K28: 0.3 | L28: 0.3 | M28: 0.3 | N28: 0.3 | O28: 0.3 | P28: 0.3 | R28: =Analysis!$D$119 -> 0.3
H30: At the start of the regulatory control period, use this button to copy across the cashflow-calculated Te and Td.
H31: However, these calculations presume a constant WACC so Te/Td should not be updated during a regulatory control period
H32: when annually updating the return on debt - just use the same Te/Td from the final decision.
G34: Numbers in White cells are calculated on this sheet from input parameters.
G35: Numbers in Orange cells are transferred from relevant sheets

Sheet Assets
B2: ='DMS input'!$C$16&" - Asset Roll Forward"&" - TNSP PTRM - version "&Intro!$L$4 -> TasNetworks - Asset Roll Forward - TNSP PTRM - version 3
F3: 0 | G3: =F3+1 -> 1 | H3: 2 | I3: 3 | J3: 4 | K3: 5 | L3: 6 | M3: 7 | N3: 8 | O3: 9 | P3: 10 | Q3: 11 | R3: 12 | S3: 13 | T3: 14 | U3: 15 | V3: 16 | W3: 17 | X3: 18 | Y3: 19 | Z3: 20 | AA3: 21 | AB3: 22 | AC3: 23 | AD3: 24 | AE3: 25 | AF3: 26 | AG3: 27 | AH3: 28 | AI3: 29 | AJ3: 30 | AK3: 31 | AL3: 32 | AM3: =AL3+1 -> 33 | AN3: 34 | AO3: 35 | AP3: 36 | AQ3: 37 | AR3: 38 | AS3: 39 | AT3: 40 | AU3: 41 | AV3: 42 | AW3: 43 | AX3: 44 | AY3: 45 | AZ3: 46 | BA3: 47 | BB3: 48 | BC3: 49 | BD3: 50 | BE3: 51 | BF3: 52 | BG3: 53 | BH3: 54 | BI3: 55
B4: Year | F4: ='PTRM input'!F448 -> 2018-19 | G4: ='PTRM input'!G448 -> 2019-20 | H4: ='PTRM input'!H448 -> 2020-21 | I4: ='PTRM input'!I448 -> 2021-22 | J4: ='PTRM input'!J448 -> 2022-23 | K4: ='PTRM input'!K448 -> 2023-24 | L4: ='PTRM input'!L448 -> 2024-25 | M4: ='PTRM input'!M448 -> 2025-26 | N4: ='PTRM input'!N448 -> 2026-27 | O4: ='PTRM input'!O448 -> 2027-28 | P4: ='PTRM input'!P448 -> 2028-29 | Q4: =(LEFT(P4,4)+1&IF(MID(P4,5,1)="","","-"&TEXT(MID(P4,6,2)+1,"00"))) -> 2029-30 | R4: =(LEFT(Q4,4)+1&IF(MID(Q4,5,1)="","","-"&TEXT(MID(Q4,6,2)+1,"00"))) -> 2030-31 | S4: 2031-32 | T4: 2032-33 | U4: 2033-34 | V4: 2034-35 | W4: 2035-36 | X4: 2036-37 | Y4: 2037-38 | Z4: 2038-39 | AA4: 2039-40 | AB4: 2040-41 | AC4: 2041-42 | AD4: 2042-43 | AE4: 2043-44 | AF4: 2044-45 | AG4: 2045-46 | AH4: 2046-47 | AI4: 2047-48 | AJ4: 2048-49 | AK4: 2049-50 | AL4: 2050-51 | AM4: 2051-52 | AN4: 2052-53 | AO4: 2053-54 | AP4: 2054-55 | AQ4: 2055-56 | AR4: 2056-57 | AS4: 2057-58 | AT4: 2058-59 | AU4: 2059-60 | AV4: 2060-61 | AW4: 2061-62 | AX4: 2062-63 | AY4: 2063-64 | AZ4: 2064-65 | BA4: 2065-66 | BB4: 2066-67 | BC4: 2067-68 | BD4: 2068-69 | BE4: 2069-70 | BF4: 2070-71 | BG4: 2071-72 | BH4: 2072-73 | BI4: 2073-74
B6: Inflation Assumption (CPI % increase) | D6: =f -> 0.02449951148 | G6: =$D$6 -> 0.02449951148 | H6: =$D$6 -> 0.02449951148 | I6: 0.02449951148 | J6: 0.02449951148 | K6: 0.02449951148 | L6: 0.02449951148 | M6: 0.02449951148 | N6: 0.02449951148 | O6: 0.02449951148 | P6: 0.02449951148 | Q6: 0.02449951148 | R6: 0.02449951148 | S6: 0.02449951148 | T6: 0.02449951148 | U6: 0.02449951148 | V6: 0.02449951148 | W6: 0.02449951148 | X6: 0.02449951148 | Y6: 0.02449951148 | Z6: 0.02449951148 | AA6: 0.02449951148 | AB6: 0.02449951148 | AC6: 0.02449951148 | AD6: 0.02449951148 | AE6: 0.02449951148 | AF6: 0.02449951148 | AG6: 0.02449951148 | AH6: 0.02449951148 | AI6: 0.02449951148 | AJ6: 0.02449951148 | AK6: 0.02449951148 | AL6: 0.02449951148 | AM6: 0.02449951148 | AN6: 0.02449951148 | AO6: 0.02449951148 | AP6: 0.02449951148 | AQ6: 0.02449951148 | AR6: 0.02449951148 | AS6: 0.02449951148 | AT6: 0.02449951148 | AU6: 0.02449951148 | AV6: 0.02449951148 | AW6: 0.02449951148 | AX6: 0.02449951148 | AY6: 0.02449951148 | AZ6: 0.02449951148 | BA6: 0.02449951148 | BB6: 0.02449951148 | BC6: 0.02449951148 | BD6: 0.02449951148 | BE6: 0.02449951148 | BF6: 0.02449951148 | BG6: 0.02449951148 | BH6: 0.02449951148 | BI6: 0.02449951148
B7: Cumulative Inflation Index (CPI end period) | F7: 1 | G7: =F7*(1+G6) -> 1.024499511 | H7: =G7*(1+H6) -> 1.049599249 | I7: =H7*(1+I6) -> 1.075313918 | J7: =I7*(1+J6) -> 1.101658584 | K7: 1.128648681 | L7: 1.156300022 | M7: 1.184628808 | N7: 1.213651635 | O7: 1.243385507 | P7: =O7*(1+P6) -> 1.273847844 | Q7: 1.305056494 | R7: 1.337029741 | S7: 1.369786316 | T7: 1.403345412 | U7: 1.437726689 | V7: 1.47295029 | W7: 1.509036853 | X7: 1.546007519 | Y7: 1.583883948 | Z7: 1.622688331 | AA7: 1.662443402 | AB7: 1.703172453 | AC7: 1.744899346 | AD7: 1.787648528 | AE7: 1.831445043 | AF7: 1.876314552 | AG7: 1.922283342 | AH7: 1.969378345 | AI7: 2.017627152 | AJ7: 2.067058032 | AK7: 2.117699944 | AL7: 2.169582558 | AM7: 2.222736271 | AN7: 2.277192224 | AO7: 2.332982321 | AP7: 2.390139248 | AQ7: 2.448696492 | AR7: 2.50868836 | AS7: 2.570149999 | AT7: 2.633117418 | AU7: 2.697627509 | AV7: 2.763718065 | AW7: 2.831427807 | AX7: 2.900796405 | AY7: 2.9718645 | AZ7: 3.044673729 | BA7: 3.119266748 | BB7: 3.195687259 | BC7: 3.273980036 | BD7: 3.354190947 | BE7: 3.436366987 | BF7: 3.520556299 | BG7: 3.606808209 | BH7: 3.695173248 | BI7: 3.785703187
B9: Opening Regulatory Asset Base (RAB) | F9: =RAB -> 1459.409692
B10: Real Net Capital Expenditure (capex) | G10: =SUM(G11:G60) -> 37.18786618 | H10: =SUM(H11:H60) -> 58.58113352 | I10: 55.69983613 | J10: 37.95984986 | K10: 36.73498745 | L10: =SUM(L11:L60) -> 0 | M10: 0 | N10: 0 | O10: 0 | P10: 0
C11: =Asset1 -> Transmission Lines and Cables | G11: ='PTRM input'!G169*(1+rvanilla01)^0.5 -> 0 | H11: ='PTRM input'!H169*(1+rvanilla02)^0.5 -> 0 | I11: ='PTRM input'!I169*(1+rvanilla03)^0.5 -> 0 | J11: ='PTRM input'!J169*(1+rvanilla04)^0.5 -> 0 | K11: ='PTRM input'!K169*(1+rvanilla05)^0.5 -> 0 | L11: ='PTRM input'!L169*(1+rvanilla06)^0.5 -> 0 | M11: ='PTRM input'!M169*(1+rvanilla07)^0.5 -> 0 | N11: ='PTRM input'!N169*(1+rvanilla08)^0.5 -> 0 | O11: ='PTRM input'!O169*(1+rvanilla09)^0.5 -> 0 | P11: ='PTRM input'!P169*(1+rvanilla10)^0.5 -> 0
C12: =Asset2 -> Transmission Substations | G12: ='PTRM input'!G170*(1+rvanilla01)^0.5 -> 0 | H12: ='PTRM input'!H170*(1+rvanilla02)^0.5 -> 0 | I12: ='PTRM input'!I170*(1+rvanilla03)^0.5 -> 0 | J12: ='PTRM input'!J170*(1+rvanilla04)^0.5 -> 0 | K12: ='PTRM input'!K170*(1+rvanilla05)^0.5 -> 0 | L12: ='PTRM input'!L170*(1+rvanilla06)^0.5 -> 0 | M12: ='PTRM input'!M170*(1+rvanilla07)^0.5 -> 0 | N12: ='PTRM input'!N170*(1+rvanilla08)^0.5 -> 0 | O12: ='PTRM input'!O170*(1+rvanilla09)^0.5 -> 0 | P12: ='PTRM input'!P170*(1+rvanilla10)^0.5 -> 0
C13: =Asset3 -> Protection and Control | G13: ='PTRM input'!G171*(1+rvanilla01)^0.5 -> 0 | H13: ='PTRM input'!H171*(1+rvanilla02)^0.5 -> 0 | I13: ='PTRM input'!I171*(1+rvanilla03)^0.5 -> 0 | J13: ='PTRM input'!J171*(1+rvanilla04)^0.5 -> 0 | K13: ='PTRM input'!K171*(1+rvanilla05)^0.5 -> 0 | L13: ='PTRM input'!L171*(1+rvanilla06)^0.5 -> 0 | M13: ='PTRM input'!M171*(1+rvanilla07)^0.5 -> 0 | N13: ='PTRM input'!N171*(1+rvanilla08)^0.5 -> 0 | O13: ='PTRM input'!O171*(1+rvanilla09)^0.5 -> 0 | P13: ='PTRM input'!P171*(1+rvanilla10)^0.5 -> 0
C14: =Asset4 -> Refurbishment | G14: ='PTRM input'!G172*(1+rvanilla01)^0.5 -> 0 | H14: ='PTRM input'!H172*(1+rvanilla02)^0.5 -> 0 | I14: ='PTRM input'!I172*(1+rvanilla03)^0.5 -> 0 | J14: ='PTRM input'!J172*(1+rvanilla04)^0.5 -> 0 | K14: ='PTRM input'!K172*(1+rvanilla05)^0.5 -> 0 | L14: ='PTRM input'!L172*(1+rvanilla06)^0.5 -> 0 | M14: ='PTRM input'!M172*(1+rvanilla07)^0.5 -> 0 | N14: ='PTRM input'!N172*(1+rvanilla08)^0.5 -> 0 | O14: ='PTRM input'!O172*(1+rvanilla09)^0.5 -> 0 | P14: ='PTRM input'!P172*(1+rvanilla10)^0.5 -> 0
C15: =Asset5 -> Other | G15: ='PTRM input'!G173*(1+rvanilla01)^0.5 -> 0 | H15: ='PTRM input'!H173*(1+rvanilla02)^0.5 -> 0 | I15: ='PTRM input'!I173*(1+rvanilla03)^0.5 -> 0 | J15: ='PTRM input'!J173*(1+rvanilla04)^0.5 -> 0 | K15: ='PTRM input'!K173*(1+rvanilla05)^0.5 -> 0 | L15: ='PTRM input'!L173*(1+rvanilla06)^0.5 -> 0 | M15: ='PTRM input'!M173*(1+rvanilla07)^0.5 -> 0 | N15: ='PTRM input'!N173*(1+rvanilla08)^0.5 -> 0 | O15: ='PTRM input'!O173*(1+rvanilla09)^0.5 -> 0 | P15: ='PTRM input'!P173*(1+rvanilla10)^0.5 -> 0
C16: =Asset6 -> Other - IT | G16: ='PTRM input'!G174*(1+rvanilla01)^0.5 -> 0 | H16: ='PTRM input'!H174*(1+rvanilla02)^0.5 -> 0 | I16: ='PTRM input'!I174*(1+rvanilla03)^0.5 -> 0 | J16: ='PTRM input'!J174*(1+rvanilla04)^0.5 -> 0 | K16: ='PTRM input'!K174*(1+rvanilla05)^0.5 -> 0 | L16: ='PTRM input'!L174*(1+rvanilla06)^0.5 -> 0 | M16: ='PTRM input'!M174*(1+rvanilla07)^0.5 -> 0 | N16: ='PTRM input'!N174*(1+rvanilla08)^0.5 -> 0 | O16: ='PTRM input'!O174*(1+rvanilla09)^0.5 -> 0 | P16: ='PTRM input'!P174*(1+rvanilla10)^0.5 -> 0
C17: =Asset7 -> Other - General | G17: ='PTRM input'!G175*(1+rvanilla01)^0.5 -> 0 | H17: ='PTRM input'!H175*(1+rvanilla02)^0.5 -> 0 | I17: ='PTRM input'!I175*(1+rvanilla03)^0.5 -> 0 | J17: ='PTRM input'!J175*(1+rvanilla04)^0.5 -> 0 | K17: ='PTRM input'!K175*(1+rvanilla05)^0.5 -> 0 | L17: ='PTRM input'!L175*(1+rvanilla06)^0.5 -> 0 | M17: ='PTRM input'!M175*(1+rvanilla07)^0.5 -> 0 | N17: ='PTRM input'!N175*(1+rvanilla08)^0.5 -> 0 | O17: ='PTRM input'!O175*(1+rvanilla09)^0.5 -> 0 | P17: ='PTRM input'!P175*(1+rvanilla10)^0.5 -> 0
C18: =Asset8 -> Other - Buildings | G18: ='PTRM input'!G176*(1+rvanilla01)^0.5 -> 0 | H18: ='PTRM input'!H176*(1+rvanilla02)^0.5 -> 0 | I18: ='PTRM input'!I176*(1+rvanilla03)^0.5 -> 0 | J18: ='PTRM input'!J176*(1+rvanilla04)^0.5 -> 0 | K18: ='PTRM input'!K176*(1+rvanilla05)^0.5 -> 0 | L18: ='PTRM input'!L176*(1+rvanilla06)^0.5 -> 0 | M18: ='PTRM input'!M176*(1+rvanilla07)^0.5 -> 0 | N18: ='PTRM input'!N176*(1+rvanilla08)^0.5 -> 0 | O18: ='PTRM input'!O176*(1+rvanilla09)^0.5 -> 0 | P18: ='PTRM input'!P176*(1+rvanilla10)^0.5 -> 0
C19: =Asset9 -> Land and Easements | G19: ='PTRM input'!G177*(1+rvanilla01)^0.5 -> 0 | H19: ='PTRM input'!H177*(1+rvanilla02)^0.5 -> 0 | I19: ='PTRM input'!I177*(1+rvanilla03)^0.5 -> 0 | J19: ='PTRM input'!J177*(1+rvanilla04)^0.5 -> 0 | K19: ='PTRM input'!K177*(1+rvanilla05)^0.5 -> 0 | L19: ='PTRM input'!L177*(1+rvanilla06)^0.5 -> 0 | M19: ='PTRM input'!M177*(1+rvanilla07)^0.5 -> 0 | N19: ='PTRM input'!N177*(1+rvanilla08)^0.5 -> 0 | O19: ='PTRM input'!O177*(1+rvanilla09)^0.5 -> 0 | P19: ='PTRM input'!P177*(1+rvanilla10)^0.5 -> 0
C20: =Asset10 -> Transmission line assets - long life (60) | G20: ='PTRM input'!G178*(1+rvanilla01)^0.5 -> 4.658516983 | H20: ='PTRM input'!H178*(1+rvanilla02)^0.5 -> 3.502096714 | I20: ='PTRM input'!I178*(1+rvanilla03)^0.5 -> 5.14323687 | J20: ='PTRM input'!J178*(1+rvanilla04)^0.5 -> 4.376677731 | K20: ='PTRM input'!K178*(1+rvanilla05)^0.5 -> 3.631843135 | L20: ='PTRM input'!L178*(1+rvanilla06)^0.5 -> 0 | M20: ='PTRM input'!M178*(1+rvanilla07)^0.5 -> 0 | N20: ='PTRM input'!N178*(1+rvanilla08)^0.5 -> 0 | O20: ='PTRM input'!O178*(1+rvanilla09)^0.5 -> 0 | P20: ='PTRM input'!P178*(1+rvanilla10)^0.5 -> 0
C21: =Asset11 -> Transmission line assets - medium life (45) | G21: ='PTRM input'!G179*(1+rvanilla01)^0.5 -> 4.092346417 | H21: ='PTRM input'!H179*(1+rvanilla02)^0.5 -> 3.076471116 | I21: ='PTRM input'!I179*(1+rvanilla03)^0.5 -> 4.518156111 | J21: ='PTRM input'!J179*(1+rvanilla04)^0.5 -> 3.844760359 | K21: ='PTRM input'!K179*(1+rvanilla05)^0.5 -> 3.19044887 | L21: ='PTRM input'!L179*(1+rvanilla06)^0.5 -> 0 | M21: ='PTRM input'!M179*(1+rvanilla07)^0.5 -> 0 | N21: ='PTRM input'!N179*(1+rvanilla08)^0.5 -> 0 | O21: ='PTRM input'!O179*(1+rvanilla09)^0.5 -> 0 | P21: ='PTRM input'!P179*(1+rvanilla10)^0.5 -> 0
C22: =Asset12 -> Transmission line assets - short life (10) | G22: ='PTRM input'!G180*(1+rvanilla01)^0.5 -> 0.5706014982 | H22: ='PTRM input'!H180*(1+rvanilla02)^0.5 -> 0.4289566056 | I22: ='PTRM input'!I180*(1+rvanilla03)^0.5 -> 0.6299727305 | J22: ='PTRM input'!J180*(1+rvanilla04)^0.5 -> 0.5360802332 | K22: ='PTRM input'!K180*(1+rvanilla05)^0.5 -> 0.4448486808 | L22: ='PTRM input'!L180*(1+rvanilla06)^0.5 -> 0 | M22: ='PTRM input'!M180*(1+rvanilla07)^0.5 -> 0 | N22: ='PTRM input'!N180*(1+rvanilla08)^0.5 -> 0 | O22: ='PTRM input'!O180*(1+rvanilla09)^0.5 -> 0 | P22: ='PTRM input'!P180*(1+rvanilla10)^0.5 -> 0
C23: =Asset13 -> Substation assets - long life (60) | G23: ='PTRM input'!G181*(1+rvanilla01)^0.5 -> 1.372239 | H23: ='PTRM input'!H181*(1+rvanilla02)^0.5 -> 7.17083913 | I23: ='PTRM input'!I181*(1+rvanilla03)^0.5 -> 5.796489326 | J23: ='PTRM input'!J181*(1+rvanilla04)^0.5 -> 2.300115297 | K23: ='PTRM input'!K181*(1+rvanilla05)^0.5 -> 2.335515062 | L23: ='PTRM input'!L181*(1+rvanilla06)^0.5 -> 0 | M23: ='PTRM input'!M181*(1+rvanilla07)^0.5 -> 0 | N23: ='PTRM input'!N181*(1+rvanilla08)^0.5 -> 0 | O23: ='PTRM input'!O181*(1+rvanilla09)^0.5 -> 0 | P23: ='PTRM input'!P181*(1+rvanilla10)^0.5 -> 0
C24: =Asset14 -> Substation assets - medium life (45) | G24: ='PTRM input'!G182*(1+rvanilla01)^0.5 -> 3.171814398 | H24: ='PTRM input'!H182*(1+rvanilla02)^0.5 -> 16.34946372 | I24: ='PTRM input'!I182*(1+rvanilla03)^0.5 -> 13.1032595 | J24: ='PTRM input'!J182*(1+rvanilla04)^0.5 -> 5.375859053 | K24: ='PTRM input'!K182*(1+rvanilla05)^0.5 -> 5.462404651 | L24: ='PTRM input'!L182*(1+rvanilla06)^0.5 -> 0 | M24: ='PTRM input'!M182*(1+rvanilla07)^0.5 -> 0 | N24: ='PTRM input'!N182*(1+rvanilla08)^0.5 -> 0 | O24: ='PTRM input'!O182*(1+rvanilla09)^0.5 -> 0 | P24: ='PTRM input'!P182*(1+rvanilla10)^0.5 -> 0
C25: =Asset15 -> Substation assets - short life (15) | G25: ='PTRM input'!G183*(1+rvanilla01)^0.5 -> 0.2140464333 | H25: ='PTRM input'!H183*(1+rvanilla02)^0.5 -> 1.318866416 | I25: ='PTRM input'!I183*(1+rvanilla03)^0.5 -> 0.9768035538 | J25: ='PTRM input'!J183*(1+rvanilla04)^0.5 -> 0.4199118636 | K25: ='PTRM input'!K183*(1+rvanilla05)^0.5 -> 0.4262089798 | L25: ='PTRM input'!L183*(1+rvanilla06)^0.5 -> 0 | M25: ='PTRM input'!M183*(1+rvanilla07)^0.5 -> 0 | N25: ='PTRM input'!N183*(1+rvanilla08)^0.5 -> 0 | O25: ='PTRM input'!O183*(1+rvanilla09)^0.5 -> 0 | P25: ='PTRM input'!P183*(1+rvanilla10)^0.5 -> 0
C26: =Asset16 -> Protection and control - short life (15) | G26: ='PTRM input'!G184*(1+rvanilla01)^0.5 -> 9.785924955 | H26: ='PTRM input'!H184*(1+rvanilla02)^0.5 -> 13.18678558 | I26: ='PTRM input'!I184*(1+rvanilla03)^0.5 -> 11.92488346 | J26: ='PTRM input'!J184*(1+rvanilla04)^0.5 -> 10.35749862 | K26: ='PTRM input'!K184*(1+rvanilla05)^0.5 -> 10.18040277 | L26: ='PTRM input'!L184*(1+rvanilla06)^0.5 -> 0 | M26: ='PTRM input'!M184*(1+rvanilla07)^0.5 -> 0 | N26: ='PTRM input'!N184*(1+rvanilla08)^0.5 -> 0 | O26: ='PTRM input'!O184*(1+rvanilla09)^0.5 -> 0 | P26: ='PTRM input'!P184*(1+rvanilla10)^0.5 -> 0
C27: =Asset17 -> Protection and control - short life (4) | G27: ='PTRM input'!G185*(1+rvanilla01)^0.5 -> 0 | H27: ='PTRM input'!H185*(1+rvanilla02)^0.5 -> 0 | I27: ='PTRM input'!I185*(1+rvanilla03)^0.5 -> 0 | J27: ='PTRM input'!J185*(1+rvanilla04)^0.5 -> 0 | K27: ='PTRM input'!K185*(1+rvanilla05)^0.5 -> 0 | L27: ='PTRM input'!L185*(1+rvanilla06)^0.5 -> 0 | M27: ='PTRM input'!M185*(1+rvanilla07)^0.5 -> 0 | N27: ='PTRM input'!N185*(1+rvanilla08)^0.5 -> 0 | O27: ='PTRM input'!O185*(1+rvanilla09)^0.5 -> 0 | P27: ='PTRM input'!P185*(1+rvanilla10)^0.5 -> 0
C28: =Asset18 -> Transmission operations - short life (10) | G28: ='PTRM input'!G186*(1+rvanilla01)^0.5 -> 0 | H28: ='PTRM input'!H186*(1+rvanilla02)^0.5 -> 0 | I28: ='PTRM input'!I186*(1+rvanilla03)^0.5 -> 0 | J28: ='PTRM input'!J186*(1+rvanilla04)^0.5 -> 0 | K28: ='PTRM input'!K186*(1+rvanilla05)^0.5 -> 0 | L28: ='PTRM input'!L186*(1+rvanilla06)^0.5 -> 0 | M28: ='PTRM input'!M186*(1+rvanilla07)^0.5 -> 0 | N28: ='PTRM input'!N186*(1+rvanilla08)^0.5 -> 0 | O28: ='PTRM input'!O186*(1+rvanilla09)^0.5 -> 0 | P28: ='PTRM input'!P186*(1+rvanilla10)^0.5 -> 0
C29: =Asset19 -> Transmission operations - short life (4) | G29: ='PTRM input'!G187*(1+rvanilla01)^0.5 -> 0 | H29: ='PTRM input'!H187*(1+rvanilla02)^0.5 -> 0 | I29: ='PTRM input'!I187*(1+rvanilla03)^0.5 -> 0 | J29: ='PTRM input'!J187*(1+rvanilla04)^0.5 -> 0 | K29: ='PTRM input'!K187*(1+rvanilla05)^0.5 -> 0 | L29: ='PTRM input'!L187*(1+rvanilla06)^0.5 -> 0 | M29: ='PTRM input'!M187*(1+rvanilla07)^0.5 -> 0 | N29: ='PTRM input'!N187*(1+rvanilla08)^0.5 -> 0 | O29: ='PTRM input'!O187*(1+rvanilla09)^0.5 -> 0 | P29: ='PTRM input'!P187*(1+rvanilla10)^0.5 -> 0
C30: =Asset20 -> Other - medium life (40) | G30: ='PTRM input'!G188*(1+rvanilla01)^0.5 -> 1.159972417 | H30: ='PTRM input'!H188*(1+rvanilla02)^0.5 -> 1.333377112 | I30: ='PTRM input'!I188*(1+rvanilla03)^0.5 -> 0.5618865666 | J30: ='PTRM input'!J188*(1+rvanilla04)^0.5 -> 0.3648513218 | K30: ='PTRM input'!K188*(1+rvanilla05)^0.5 -> 0.155059263 | L30: ='PTRM input'!L188*(1+rvanilla06)^0.5 -> 0 | M30: ='PTRM input'!M188*(1+rvanilla07)^0.5 -> 0 | N30: ='PTRM input'!N188*(1+rvanilla08)^0.5 -> 0 | O30: ='PTRM input'!O188*(1+rvanilla09)^0.5 -> 0 | P30: ='PTRM input'!P188*(1+rvanilla10)^0.5 -> 0
C31: =Asset21 -> Other - short life (9) | G31: ='PTRM input'!G189*(1+rvanilla01)^0.5 -> 0.7865033083 | H31: ='PTRM input'!H189*(1+rvanilla02)^0.5 -> 1.397003353 | I31: ='PTRM input'!I189*(1+rvanilla03)^0.5 -> 1.586143054 | J31: ='PTRM input'!J189*(1+rvanilla04)^0.5 -> 0.9671194103 | K31: ='PTRM input'!K189*(1+rvanilla05)^0.5 -> 1.163797105 | L31: ='PTRM input'!L189*(1+rvanilla06)^0.5 -> 0 | M31: ='PTRM input'!M189*(1+rvanilla07)^0.5 -> 0 | N31: ='PTRM input'!N189*(1+rvanilla08)^0.5 -> 0 | O31: ='PTRM input'!O189*(1+rvanilla09)^0.5 -> 0 | P31: ='PTRM input'!P189*(1+rvanilla10)^0.5 -> 0
C32: =Asset22 -> Other - short life (4) | G32: ='PTRM input'!G190*(1+rvanilla01)^0.5 -> 4.171260758 | H32: ='PTRM input'!H190*(1+rvanilla02)^0.5 -> 5.541633386 | I32: ='PTRM input'!I190*(1+rvanilla03)^0.5 -> 4.018783458 | J32: ='PTRM input'!J190*(1+rvanilla04)^0.5 -> 3.498512422 | K32: ='PTRM input'!K190*(1+rvanilla05)^0.5 -> 2.679264418 | L32: ='PTRM input'!L190*(1+rvanilla06)^0.5 -> 0 | M32: ='PTRM input'!M190*(1+rvanilla07)^0.5 -> 0 | N32: ='PTRM input'!N190*(1+rvanilla08)^0.5 -> 0 | O32: ='PTRM input'!O190*(1+rvanilla09)^0.5 -> 0 | P32: ='PTRM input'!P190*(1+rvanilla10)^0.5 -> 0
C33: =Asset23 -> Land and Easements | G33: ='PTRM input'!G191*(1+rvanilla01)^0.5 -> 0.1338655529 | H33: ='PTRM input'!H191*(1+rvanilla02)^0.5 -> 0.6340216262 | I33: ='PTRM input'!I191*(1+rvanilla03)^0.5 -> 0.7319704597 | J33: ='PTRM input'!J191*(1+rvanilla04)^0.5 -> 1.091491722 | K33: ='PTRM input'!K191*(1+rvanilla05)^0.5 -> 0.7126717677 | L33: ='PTRM input'!L191*(1+rvanilla06)^0.5 -> 0 | M33: ='PTRM input'!M191*(1+rvanilla07)^0.5 -> 0 | N33: ='PTRM input'!N191*(1+rvanilla08)^0.5 -> 0 | O33: ='PTRM input'!O191*(1+rvanilla09)^0.5 -> 0 | P33: ='PTRM input'!P191*(1+rvanilla10)^0.5 -> 0
C34: =Asset24 -> Communication assets - long life (45) | G34: ='PTRM input'!G192*(1+rvanilla01)^0.5 -> 0.7280007407 | H34: ='PTRM input'!H192*(1+rvanilla02)^0.5 -> 1.718640201 | I34: ='PTRM input'!I192*(1+rvanilla03)^0.5 -> 2.120899834 | J34: ='PTRM input'!J192*(1+rvanilla04)^0.5 -> 0.8532164828 | K34: ='PTRM input'!K192*(1+rvanilla05)^0.5 -> 0.2074870644 | L34: ='PTRM input'!L192*(1+rvanilla06)^0.5 -> 0 | M34: ='PTRM input'!M192*(1+rvanilla07)^0.5 -> 0 | N34: ='PTRM input'!N192*(1+rvanilla08)^0.5 -> 0 | O34: ='PTRM input'!O192*(1+rvanilla09)^0.5 -> 0 | P34: ='PTRM input'!P192*(1+rvanilla10)^0.5 -> 0
C35: =Asset25 -> Communication assets - medium life (10) | G35: ='PTRM input'!G193*(1+rvanilla01)^0.5 -> 5.771867474 | H35: ='PTRM input'!H193*(1+rvanilla02)^0.5 -> 2.609483616 | I35: ='PTRM input'!I193*(1+rvanilla03)^0.5 -> 3.603751313 | J35: ='PTRM input'!J193*(1+rvanilla04)^0.5 -> 3.202125093 | K35: ='PTRM input'!K193*(1+rvanilla05)^0.5 -> 5.465564513 | L35: ='PTRM input'!L193*(1+rvanilla06)^0.5 -> 0 | M35: ='PTRM input'!M193*(1+rvanilla07)^0.5 -> 0 | N35: ='PTRM input'!N193*(1+rvanilla08)^0.5 -> 0 | O35: ='PTRM input'!O193*(1+rvanilla09)^0.5 -> 0 | P35: ='PTRM input'!P193*(1+rvanilla10)^0.5 -> 0
C36: =Asset26 -> Communication assets - short life (5) | G36: ='PTRM input'!G194*(1+rvanilla01)^0.5 -> 0.5709062417 | H36: ='PTRM input'!H194*(1+rvanilla02)^0.5 -> 0.3134949402 | I36: ='PTRM input'!I194*(1+rvanilla03)^0.5 -> 0.9835998851 | J36: ='PTRM input'!J194*(1+rvanilla04)^0.5 -> 0.7716302525 | K36: ='PTRM input'!K194*(1+rvanilla05)^0.5 -> 0.6794711763 | L36: ='PTRM input'!L194*(1+rvanilla06)^0.5 -> 0 | M36: ='PTRM input'!M194*(1+rvanilla07)^0.5 -> 0 | N36: ='PTRM input'!N194*(1+rvanilla08)^0.5 -> 0 | O36: ='PTRM input'!O194*(1+rvanilla09)^0.5 -> 0 | P36: ='PTRM input'!P194*(1+rvanilla10)^0.5 -> 0
C37: =Asset27 -> 0 | G37: ='PTRM input'!G195*(1+rvanilla01)^0.5 -> 0 | H37: ='PTRM input'!H195*(1+rvanilla02)^0.5 -> 0 | I37: ='PTRM input'!I195*(1+rvanilla03)^0.5 -> 0 | J37: ='PTRM input'!J195*(1+rvanilla04)^0.5 -> 0 | K37: ='PTRM input'!K195*(1+rvanilla05)^0.5 -> 0 | L37: ='PTRM input'!L195*(1+rvanilla06)^0.5 -> 0 | M37: ='PTRM input'!M195*(1+rvanilla07)^0.5 -> 0 | N37: ='PTRM input'!N195*(1+rvanilla08)^0.5 -> 0 | O37: ='PTRM input'!O195*(1+rvanilla09)^0.5 -> 0 | P37: ='PTRM input'!P195*(1+rvanilla10)^0.5 -> 0
C38: =Asset28 -> 0 | G38: ='PTRM input'!G196*(1+rvanilla01)^0.5 -> 0 | H38: ='PTRM input'!H196*(1+rvanilla02)^0.5 -> 0 | I38: ='PTRM input'!I196*(1+rvanilla03)^0.5 -> 0 | J38: ='PTRM input'!J196*(1+rvanilla04)^0.5 -> 0 | K38: ='PTRM input'!K196*(1+rvanilla05)^0.5 -> 0 | L38: ='PTRM input'!L196*(1+rvanilla06)^0.5 -> 0 | M38: ='PTRM input'!M196*(1+rvanilla07)^0.5 -> 0 | N38: ='PTRM input'!N196*(1+rvanilla08)^0.5 -> 0 | O38: ='PTRM input'!O196*(1+rvanilla09)^0.5 -> 0 | P38: ='PTRM input'!P196*(1+rvanilla10)^0.5 -> 0
C39: =Asset29 -> 0 | G39: ='PTRM input'!G197*(1+rvanilla01)^0.5 -> 0 | H39: ='PTRM input'!H197*(1+rvanilla02)^0.5 -> 0 | I39: ='PTRM input'!I197*(1+rvanilla03)^0.5 -> 0 | J39: ='PTRM input'!J197*(1+rvanilla04)^0.5 -> 0 | K39: ='PTRM input'!K197*(1+rvanilla05)^0.5 -> 0 | L39: ='PTRM input'!L197*(1+rvanilla06)^0.5 -> 0 | M39: ='PTRM input'!M197*(1+rvanilla07)^0.5 -> 0 | N39: ='PTRM input'!N197*(1+rvanilla08)^0.5 -> 0 | O39: ='PTRM input'!O197*(1+rvanilla09)^0.5 -> 0 | P39: ='PTRM input'!P197*(1+rvanilla10)^0.5 -> 0
C40: =Asset30 -> 0 | G40: ='PTRM input'!G198*(1+rvanilla01)^0.5 -> 0 | H40: ='PTRM input'!H198*(1+rvanilla02)^0.5 -> 0 | I40: ='PTRM input'!I198*(1+rvanilla03)^0.5 -> 0 | J40: ='PTRM input'!J198*(1+rvanilla04)^0.5 -> 0 | K40: ='PTRM input'!K198*(1+rvanilla05)^0.5 -> 0 | L40: ='PTRM input'!L198*(1+rvanilla06)^0.5 -> 0 | M40: ='PTRM input'!M198*(1+rvanilla07)^0.5 -> 0 | N40: ='PTRM input'!N198*(1+rvanilla08)^0.5 -> 0 | O40: ='PTRM input'!O198*(1+rvanilla09)^0.5 -> 0 | P40: ='PTRM input'!P198*(1+rvanilla10)^0.5 -> 0
C41: =Asset31 -> 0 | G41: ='PTRM input'!G199*(1+rvanilla01)^0.5 -> 0 | H41: ='PTRM input'!H199*(1+rvanilla02)^0.5 -> 0 | I41: ='PTRM input'!I199*(1+rvanilla03)^0.5 -> 0 | J41: ='PTRM input'!J199*(1+rvanilla04)^0.5 -> 0 | K41: ='PTRM input'!K199*(1+rvanilla05)^0.5 -> 0 | L41: ='PTRM input'!L199*(1+rvanilla06)^0.5 -> 0 | M41: ='PTRM input'!M199*(1+rvanilla07)^0.5 -> 0 | N41: ='PTRM input'!N199*(1+rvanilla08)^0.5 -> 0 | O41: ='PTRM input'!O199*(1+rvanilla09)^0.5 -> 0 | P41: ='PTRM input'!P199*(1+rvanilla10)^0.5 -> 0
C42: =Asset32 -> 0 | G42: ='PTRM input'!G200*(1+rvanilla01)^0.5 -> 0 | H42: ='PTRM input'!H200*(1+rvanilla02)^0.5 -> 0 | I42: ='PTRM input'!I200*(1+rvanilla03)^0.5 -> 0 | J42: ='PTRM input'!J200*(1+rvanilla04)^0.5 -> 0 | K42: ='PTRM input'!K200*(1+rvanilla05)^0.5 -> 0 | L42: ='PTRM input'!L200*(1+rvanilla06)^0.5 -> 0 | M42: ='PTRM input'!M200*(1+rvanilla07)^0.5 -> 0 | N42: ='PTRM input'!N200*(1+rvanilla08)^0.5 -> 0 | O42: ='PTRM input'!O200*(1+rvanilla09)^0.5 -> 0 | P42: ='PTRM input'!P200*(1+rvanilla10)^0.5 -> 0
C43: =Asset33 -> 0 | G43: ='PTRM input'!G201*(1+rvanilla01)^0.5 -> 0 | H43: ='PTRM input'!H201*(1+rvanilla02)^0.5 -> 0 | I43: ='PTRM input'!I201*(1+rvanilla03)^0.5 -> 0 | J43: ='PTRM input'!J201*(1+rvanilla04)^0.5 -> 0 | K43: ='PTRM input'!K201*(1+rvanilla05)^0.5 -> 0 | L43: ='PTRM input'!L201*(1+rvanilla06)^0.5 -> 0 | M43: ='PTRM input'!M201*(1+rvanilla07)^0.5 -> 0 | N43: ='PTRM input'!N201*(1+rvanilla08)^0.5 -> 0 | O43: ='PTRM input'!O201*(1+rvanilla09)^0.5 -> 0 | P43: ='PTRM input'!P201*(1+rvanilla10)^0.5 -> 0
C44: =Asset34 -> 0 | G44: ='PTRM input'!G202*(1+rvanilla01)^0.5 -> 0 | H44: ='PTRM input'!H202*(1+rvanilla02)^0.5 -> 0 | I44: ='PTRM input'!I202*(1+rvanilla03)^0.5 -> 0 | J44: ='PTRM input'!J202*(1+rvanilla04)^0.5 -> 0 | K44: ='PTRM input'!K202*(1+rvanilla05)^0.5 -> 0 | L44: ='PTRM input'!L202*(1+rvanilla06)^0.5 -> 0 | M44: ='PTRM input'!M202*(1+rvanilla07)^0.5 -> 0 | N44: ='PTRM input'!N202*(1+rvanilla08)^0.5 -> 0 | O44: ='PTRM input'!O202*(1+rvanilla09)^0.5 -> 0 | P44: ='PTRM input'!P202*(1+rvanilla10)^0.5 -> 0
C45: =Asset35 -> 0 | G45: ='PTRM input'!G203*(1+rvanilla01)^0.5 -> 0 | H45: ='PTRM input'!H203*(1+rvanilla02)^0.5 -> 0 | I45: ='PTRM input'!I203*(1+rvanilla03)^0.5 -> 0 | J45: ='PTRM input'!J203*(1+rvanilla04)^0.5 -> 0 | K45: ='PTRM input'!K203*(1+rvanilla05)^0.5 -> 0 | L45: ='PTRM input'!L203*(1+rvanilla06)^0.5 -> 0 | M45: ='PTRM input'!M203*(1+rvanilla07)^0.5 -> 0 | N45: ='PTRM input'!N203*(1+rvanilla08)^0.5 -> 0 | O45: ='PTRM input'!O203*(1+rvanilla09)^0.5 -> 0 | P45: ='PTRM input'!P203*(1+rvanilla10)^0.5 -> 0
C46: =Asset36 -> 0 | G46: ='PTRM input'!G204*(1+rvanilla01)^0.5 -> 0 | H46: ='PTRM input'!H204*(1+rvanilla02)^0.5 -> 0 | I46: ='PTRM input'!I204*(1+rvanilla03)^0.5 -> 0 | J46: ='PTRM input'!J204*(1+rvanilla04)^0.5 -> 0 | K46: ='PTRM input'!K204*(1+rvanilla05)^0.5 -> 0 | L46: ='PTRM input'!L204*(1+rvanilla06)^0.5 -> 0 | M46: ='PTRM input'!M204*(1+rvanilla07)^0.5 -> 0 | N46: ='PTRM input'!N204*(1+rvanilla08)^0.5 -> 0 | O46: ='PTRM input'!O204*(1+rvanilla09)^0.5 -> 0 | P46: ='PTRM input'!P204*(1+rvanilla10)^0.5 -> 0
C47: =Asset37 -> 0 | G47: ='PTRM input'!G205*(1+rvanilla01)^0.5 -> 0 | H47: ='PTRM input'!H205*(1+rvanilla02)^0.5 -> 0 | I47: ='PTRM input'!I205*(1+rvanilla03)^0.5 -> 0 | J47: ='PTRM input'!J205*(1+rvanilla04)^0.5 -> 0 | K47: ='PTRM input'!K205*(1+rvanilla05)^0.5 -> 0 | L47: ='PTRM input'!L205*(1+rvanilla06)^0.5 -> 0 | M47: ='PTRM input'!M205*(1+rvanilla07)^0.5 -> 0 | N47: ='PTRM input'!N205*(1+rvanilla08)^0.5 -> 0 | O47: ='PTRM input'!O205*(1+rvanilla09)^0.5 -> 0 | P47: ='PTRM input'!P205*(1+rvanilla10)^0.5 -> 0
C48: =Asset38 -> 0 | G48: ='PTRM input'!G206*(1+rvanilla01)^0.5 -> 0 | H48: ='PTRM input'!H206*(1+rvanilla02)^0.5 -> 0 | I48: ='PTRM input'!I206*(1+rvanilla03)^0.5 -> 0 | J48: ='PTRM input'!J206*(1+rvanilla04)^0.5 -> 0 | K48: ='PTRM input'!K206*(1+rvanilla05)^0.5 -> 0 | L48: ='PTRM input'!L206*(1+rvanilla06)^0.5 -> 0 | M48: ='PTRM input'!M206*(1+rvanilla07)^0.5 -> 0 | N48: ='PTRM input'!N206*(1+rvanilla08)^0.5 -> 0 | O48: ='PTRM input'!O206*(1+rvanilla09)^0.5 -> 0 | P48: ='PTRM input'!P206*(1+rvanilla10)^0.5 -> 0
C49: =Asset39 -> 0 | G49: ='PTRM input'!G207*(1+rvanilla01)^0.5 -> 0 | H49: ='PTRM input'!H207*(1+rvanilla02)^0.5 -> 0 | I49: ='PTRM input'!I207*(1+rvanilla03)^0.5 -> 0 | J49: ='PTRM input'!J207*(1+rvanilla04)^0.5 -> 0 | K49: ='PTRM input'!K207*(1+rvanilla05)^0.5 -> 0 | L49: ='PTRM input'!L207*(1+rvanilla06)^0.5 -> 0 | M49: ='PTRM input'!M207*(1+rvanilla07)^0.5 -> 0 | N49: ='PTRM input'!N207*(1+rvanilla08)^0.5 -> 0 | O49: ='PTRM input'!O207*(1+rvanilla09)^0.5 -> 0 | P49: ='PTRM input'!P207*(1+rvanilla10)^0.5 -> 0
C50: =Asset40 -> 0 | G50: ='PTRM input'!G208*(1+rvanilla01)^0.5 -> 0 | H50: ='PTRM input'!H208*(1+rvanilla02)^0.5 -> 0 | I50: ='PTRM input'!I208*(1+rvanilla03)^0.5 -> 0 | J50: ='PTRM input'!J208*(1+rvanilla04)^0.5 -> 0 | K50: ='PTRM input'!K208*(1+rvanilla05)^0.5 -> 0 | L50: ='PTRM input'!L208*(1+rvanilla06)^0.5 -> 0 | M50: ='PTRM input'!M208*(1+rvanilla07)^0.5 -> 0 | N50: ='PTRM input'!N208*(1+rvanilla08)^0.5 -> 0 | O50: ='PTRM input'!O208*(1+rvanilla09)^0.5 -> 0 | P50: ='PTRM input'!P208*(1+rvanilla10)^0.5 -> 0
C51: =Asset41 -> 0 | G51: ='PTRM input'!G209*(1+rvanilla01)^0.5 -> 0 | H51: ='PTRM input'!H209*(1+rvanilla02)^0.5 -> 0 | I51: ='PTRM input'!I209*(1+rvanilla03)^0.5 -> 0 | J51: ='PTRM input'!J209*(1+rvanilla04)^0.5 -> 0 | K51: ='PTRM input'!K209*(1+rvanilla05)^0.5 -> 0 | L51: ='PTRM input'!L209*(1+rvanilla06)^0.5 -> 0 | M51: ='PTRM input'!M209*(1+rvanilla07)^0.5 -> 0 | N51: ='PTRM input'!N209*(1+rvanilla08)^0.5 -> 0 | O51: ='PTRM input'!O209*(1+rvanilla09)^0.5 -> 0 | P51: ='PTRM input'!P209*(1+rvanilla10)^0.5 -> 0
C52: =Asset42 -> 0 | G52: ='PTRM input'!G210*(1+rvanilla01)^0.5 -> 0 | H52: ='PTRM input'!H210*(1+rvanilla02)^0.5 -> 0 | I52: ='PTRM input'!I210*(1+rvanilla03)^0.5 -> 0 | J52: ='PTRM input'!J210*(1+rvanilla04)^0.5 -> 0 | K52: ='PTRM input'!K210*(1+rvanilla05)^0.5 -> 0 | L52: ='PTRM input'!L210*(1+rvanilla06)^0.5 -> 0 | M52: ='PTRM input'!M210*(1+rvanilla07)^0.5 -> 0 | N52: ='PTRM input'!N210*(1+rvanilla08)^0.5 -> 0 | O52: ='PTRM input'!O210*(1+rvanilla09)^0.5 -> 0 | P52: ='PTRM input'!P210*(1+rvanilla10)^0.5 -> 0
C53: =Asset43 -> 0 | G53: ='PTRM input'!G211*(1+rvanilla01)^0.5 -> 0 | H53: ='PTRM input'!H211*(1+rvanilla02)^0.5 -> 0 | I53: ='PTRM input'!I211*(1+rvanilla03)^0.5 -> 0 | J53: ='PTRM input'!J211*(1+rvanilla04)^0.5 -> 0 | K53: ='PTRM input'!K211*(1+rvanilla05)^0.5 -> 0 | L53: ='PTRM input'!L211*(1+rvanilla06)^0.5 -> 0 | M53: ='PTRM input'!M211*(1+rvanilla07)^0.5 -> 0 | N53: ='PTRM input'!N211*(1+rvanilla08)^0.5 -> 0 | O53: ='PTRM input'!O211*(1+rvanilla09)^0.5 -> 0 | P53: ='PTRM input'!P211*(1+rvanilla10)^0.5 -> 0
C54: =Asset44 -> 0 | G54: ='PTRM input'!G212*(1+rvanilla01)^0.5 -> 0 | H54: ='PTRM input'!H212*(1+rvanilla02)^0.5 -> 0 | I54: ='PTRM input'!I212*(1+rvanilla03)^0.5 -> 0 | J54: ='PTRM input'!J212*(1+rvanilla04)^0.5 -> 0 | K54: ='PTRM input'!K212*(1+rvanilla05)^0.5 -> 0 | L54: ='PTRM input'!L212*(1+rvanilla06)^0.5 -> 0 | M54: ='PTRM input'!M212*(1+rvanilla07)^0.5 -> 0 | N54: ='PTRM input'!N212*(1+rvanilla08)^0.5 -> 0 | O54: ='PTRM input'!O212*(1+rvanilla09)^0.5 -> 0 | P54: ='PTRM input'!P212*(1+rvanilla10)^0.5 -> 0
C55: =Asset45 -> 0 | G55: ='PTRM input'!G213*(1+rvanilla01)^0.5 -> 0 | H55: ='PTRM input'!H213*(1+rvanilla02)^0.5 -> 0 | I55: ='PTRM input'!I213*(1+rvanilla03)^0.5 -> 0 | J55: ='PTRM input'!J213*(1+rvanilla04)^0.5 -> 0 | K55: ='PTRM input'!K213*(1+rvanilla05)^0.5 -> 0 | L55: ='PTRM input'!L213*(1+rvanilla06)^0.5 -> 0 | M55: ='PTRM input'!M213*(1+rvanilla07)^0.5 -> 0 | N55: ='PTRM input'!N213*(1+rvanilla08)^0.5 -> 0 | O55: ='PTRM input'!O213*(1+rvanilla09)^0.5 -> 0 | P55: ='PTRM input'!P213*(1+rvanilla10)^0.5 -> 0
C56: =Asset46 -> 0 | G56: ='PTRM input'!G214*(1+rvanilla01)^0.5 -> 0 | H56: ='PTRM input'!H214*(1+rvanilla02)^0.5 -> 0 | I56: ='PTRM input'!I214*(1+rvanilla03)^0.5 -> 0 | J56: ='PTRM input'!J214*(1+rvanilla04)^0.5 -> 0 | K56: ='PTRM input'!K214*(1+rvanilla05)^0.5 -> 0 | L56: ='PTRM input'!L214*(1+rvanilla06)^0.5 -> 0 | M56: ='PTRM input'!M214*(1+rvanilla07)^0.5 -> 0 | N56: ='PTRM input'!N214*(1+rvanilla08)^0.5 -> 0 | O56: ='PTRM input'!O214*(1+rvanilla09)^0.5 -> 0 | P56: ='PTRM input'!P214*(1+rvanilla10)^0.5 -> 0
C57: =Asset47 -> 0 | G57: ='PTRM input'!G215*(1+rvanilla01)^0.5 -> 0 | H57: ='PTRM input'!H215*(1+rvanilla02)^0.5 -> 0 | I57: ='PTRM input'!I215*(1+rvanilla03)^0.5 -> 0 | J57: ='PTRM input'!J215*(1+rvanilla04)^0.5 -> 0 | K57: ='PTRM input'!K215*(1+rvanilla05)^0.5 -> 0 | L57: ='PTRM input'!L215*(1+rvanilla06)^0.5 -> 0 | M57: ='PTRM input'!M215*(1+rvanilla07)^0.5 -> 0 | N57: ='PTRM input'!N215*(1+rvanilla08)^0.5 -> 0 | O57: ='PTRM input'!O215*(1+rvanilla09)^0.5 -> 0 | P57: ='PTRM input'!P215*(1+rvanilla10)^0.5 -> 0
C58: =Asset48 -> 0 | G58: ='PTRM input'!G216*(1+rvanilla01)^0.5 -> 0 | H58: ='PTRM input'!H216*(1+rvanilla02)^0.5 -> 0 | I58: ='PTRM input'!I216*(1+rvanilla03)^0.5 -> 0 | J58: ='PTRM input'!J216*(1+rvanilla04)^0.5 -> 0 | K58: ='PTRM input'!K216*(1+rvanilla05)^0.5 -> 0 | L58: ='PTRM input'!L216*(1+rvanilla06)^0.5 -> 0 | M58: ='PTRM input'!M216*(1+rvanilla07)^0.5 -> 0 | N58: ='PTRM input'!N216*(1+rvanilla08)^0.5 -> 0 | O58: ='PTRM input'!O216*(1+rvanilla09)^0.5 -> 0 | P58: ='PTRM input'!P216*(1+rvanilla10)^0.5 -> 0
C59: =Asset49 -> 0 | G59: ='PTRM input'!G217*(1+rvanilla01)^0.5 -> 0 | H59: ='PTRM input'!H217*(1+rvanilla02)^0.5 -> 0 | I59: ='PTRM input'!I217*(1+rvanilla03)^0.5 -> 0 | J59: ='PTRM input'!J217*(1+rvanilla04)^0.5 -> 0 | K59: ='PTRM input'!K217*(1+rvanilla05)^0.5 -> 0 | L59: ='PTRM input'!L217*(1+rvanilla06)^0.5 -> 0 | M59: ='PTRM input'!M217*(1+rvanilla07)^0.5 -> 0 | N59: ='PTRM input'!N217*(1+rvanilla08)^0.5 -> 0 | O59: ='PTRM input'!O217*(1+rvanilla09)^0.5 -> 0 | P59: ='PTRM input'!P217*(1+rvanilla10)^0.5 -> 0
C60: =Asset50 -> Equity raising costs | G60: ='PTRM input'!G218*(1+rvanilla01)^0.5 -> 0 | H60: ='PTRM input'!H218*(1+rvanilla02)^0.5 -> 0 | I60: ='PTRM input'!I218*(1+rvanilla03)^0.5 -> 0 | J60: ='PTRM input'!J218*(1+rvanilla04)^0.5 -> 0 | K60: ='PTRM input'!K218*(1+rvanilla05)^0.5 -> 0 | L60: ='PTRM input'!L218*(1+rvanilla06)^0.5 -> 0 | M60: ='PTRM input'!M218*(1+rvanilla07)^0.5 -> 0 | N60: ='PTRM input'!N218*(1+rvanilla08)^0.5 -> 0 | O60: ='PTRM input'!O218*(1+rvanilla09)^0.5 -> 0 | P60: ='PTRM input'!P218*(1+rvanilla10)^0.5 -> 0
B61: Nominal Net Capex | G61: =SUM(G62:G111) -> 38.09895073 | H61: =SUM(H62:H111) -> 61.48671375 | I61: 59.89480901 | J61: 41.81879443 | K61: 41.46089512 | L61: =SUM(L62:L111) -> 0 | M61: 0 | N61: 0 | O61: 0 | P61: 0
C62: =Asset1 -> Transmission Lines and Cables | G62: =G11*G$7 -> 0 | H62: =H11*H$7 -> 0 | I62: 0 | J62: 0 | K62: 0 | L62: =L11*L$7 -> 0 | M62: 0 | N62: 0 | O62: 0 | P62: 0
C63: =Asset2 -> Transmission Substations | G63: =G12*G$7 -> 0 | H63: 0 | I63: 0 | J63: 0 | K63: 0 | L63: =L12*L$7 -> 0 | M63: 0 | N63: 0 | O63: 0 | P63: 0
C64: =Asset3 -> Protection and Control | G64: =G13*G$7 -> 0 | H64: 0 | I64: 0 | J64: 0 | K64: =K13*K$7 -> 0 | L64: =L13*L$7 -> 0 | M64: 0 | N64: 0 | O64: 0 | P64: 0
C65: =Asset4 -> Refurbishment | G65: 0 | H65: 0 | I65: 0 | J65: 0 | K65: 0 | L65: 0 | M65: 0 | N65: 0 | O65: 0 | P65: 0
C66: =Asset5 -> Other | G66: 0 | H66: 0 | I66: 0 | J66: 0 | K66: 0 | L66: 0 | M66: 0 | N66: 0 | O66: 0 | P66: 0
C67: =Asset6 -> Other - IT | G67: 0 | H67: =H16*H$7 -> 0 | I67: 0 | J67: 0 | K67: 0 | L67: 0 | M67: 0 | N67: 0 | O67: 0 | P67: 0
C68: =Asset7 -> Other - General | G68: 0 | H68: 0 | I68: 0 | J68: 0 | K68: 0 | L68: 0 | M68: 0 | N68: 0 | O68: 0 | P68: 0
C69: =Asset8 -> Other - Buildings | G69: 0 | H69: 0 | I69: 0 | J69: 0 | K69: 0 | L69: 0 | M69: 0 | N69: 0 | O69: 0 | P69: 0
C70: =Asset9 -> Land and Easements | G70: 0 | H70: 0 | I70: 0 | J70: 0 | K70: 0 | L70: 0 | M70: 0 | N70: 0 | O70: 0 | P70: 0
C71: =Asset10 -> Transmission line assets - long life (60) | G71: 4.772648373 | H71: 3.675798081 | I71: 5.530594189 | J71: 4.821604589 | K71: 4.099074963 | L71: 0 | M71: 0 | N71: 0 | O71: 0 | P71: 0
C72: =Asset11 -> Transmission line assets - medium life (45) | G72: 4.192606905 | H72: 3.229061773 | I72: 4.85843615 | J72: 4.235613252 | K72: 3.600895907 | L72: 0 | M72: 0 | N72: 0 | O72: 0 | P72: 0
C73: =Asset12 -> Transmission line assets - short life (10) | G73: 0.5845809562 | H73: 0.4502325311 | I73: 0.677418445 | J73: 0.5905773904 | K73: 0.5020778767 | L73: 0 | M73: 0 | N73: 0 | O73: 0 | P73: 0
C74: =Asset13 -> Substation assets - long life (60) | G74: 1.405858185 | H74: 7.526507366 | I74: 6.233045647 | J74: 2.53394176 | K74: 2.635975993 | L74: 0 | M74: 0 | N74: 0 | O74: 0 | P74: 0
C75: =Asset14 -> Substation assets - medium life (45) | G75: 3.249522301 | H75: 17.16038485 | I75: 14.09011731 | J75: 5.92236127 | K75: 6.165135803 | L75: 0 | M75: 0 | N75: 0 | O75: 0 | P75: 0
C76: =Asset15 -> Substation assets - short life (15) | G76: 0.2192904664 | H76: 1.3842812 | I76: 1.050370456 | J76: 0.4625995089 | K76: 0.4810402028 | L76: 0 | M76: 0 | N76: 0 | O76: 0 | P76: 0
C77: =Asset16 -> Protection and control - short life (15) | G77: 10.02567534 | H77: 13.84084024 | I77: 12.82299316 | J77: 11.41042726 | K77: 11.49009815 | L77: 0 | M77: 0 | N77: 0 | O77: 0 | P77: 0
C78: =Asset17 -> Protection and control - short life (4) | G78: 0 | H78: 0 | I78: 0 | J78: 0 | K78: 0 | L78: 0 | M78: 0 | N78: 0 | O78: 0 | P78: 0
C79: =Asset18 -> Transmission operations - short life (10) | G79: 0 | H79: 0 | I79: 0 | J79: 0 | K79: 0 | L79: 0 | M79: 0 | N79: 0 | O79: 0 | P79: 0
C80: =Asset19 -> Transmission operations - short life (4) | G80: =G29*G$7 -> 0 | H80: 0 | I80: 0 | J80: 0 | K80: 0 | L80: 0 | M80: 0 | N80: 0 | O80: 0 | P80: 0
C81: =Asset20 -> Other - medium life (40) | G81: 1.188391175 | H81: 1.399511616 | I81: 0.6042044453 | J81: 0.4019415903 | K81: 0.1750074326 | L81: 0 | M81: 0 | N81: 0 | O81: 0 | P81: 0
C82: =Asset21 -> Other - short life (9) | G82: 0.8057722552 | H82: 1.46629367 | I82: 1.705601702 | J82: 1.0654354 | K82: 1.313518067 | L82: =L31*L$7 -> 0 | M82: 0 | N82: 0 | O82: 0 | P82: 0
C83: =Asset22 -> Other - short life (4) | G83: 4.273454609 | H83: 5.81649424 | I83: 4.321453785 | J83: 3.854166239 | K83: 3.023948251 | L83: =L32*L$7 -> 0 | M83: 0 | N83: 0 | O83: 0 | P83: 0
C84: =Asset23 -> Land and Easements | G84: 0.1371451936 | H84: 0.6654686227 | I84: 0.7870980228 | J84: 1.202451224 | K84: 0.8043560504 | L84: =L33*L$7 -> 0 | M84: 0 | N84: 0 | O84: 0 | P84: 0
C85: =Asset24 -> Communication assets - long life (45) | G85: 0.7458364032 | H85: 1.803883465 | I85: 2.28063311 | J85: 0.9399532619 | K85: 0.2341800015 | L85: =L34*L$7 -> 0 | M85: 0 | N85: 0 | O85: 0 | P85: 0
C86: =Asset25 -> Communication assets - medium life (10) | G86: 5.913275407 | H86: 2.738912044 | I86: 3.875163944 | J86: 3.527648594 | K86: 6.168702177 | L86: =L35*L$7 -> 0 | M86: 0 | N86: 0 | O86: 0 | P86: 0
C87: =Asset26 -> Communication assets - short life (5) | G87: 0.5848931657 | H87: 0.3290440538 | I87: 1.057678646 | J87: 0.8500730909 | K87: 0.7668842466 | L87: =L36*L$7 -> 0 | M87: 0 | N87: 0 | O87: 0 | P87: 0
C88: =Asset27 -> 0 | G88: 0 | H88: 0 | I88: 0 | J88: 0 | K88: 0 | L88: =L37*L$7 -> 0 | M88: 0 | N88: 0 | O88: 0 | P88: 0
C89: =Asset28 -> 0 | G89: 0 | H89: 0 | I89: 0 | J89: 0 | K89: 0 | L89: =L38*L$7 -> 0 | M89: 0 | N89: 0 | O89: 0 | P89: 0
C90: =Asset29 -> 0 | G90: 0 | H90: 0 | I90: 0 | J90: 0 | K90: 0 | L90: =L39*L$7 -> 0 | M90: 0 | N90: 0 | O90: 0 | P90: 0
C91: =Asset30 -> 0 | G91: 0 | H91: 0 | I91: 0 | J91: 0 | K91: 0 | L91: =L40*L$7 -> 0 | M91: 0 | N91: 0 | O91: 0 | P91: 0
C92: =Asset31 -> 0 | G92: 0 | H92: 0 | I92: 0 | J92: 0 | K92: 0 | L92: =L41*L$7 -> 0 | M92: 0 | N92: 0 | O92: 0 | P92: 0
C93: =Asset32 -> 0 | G93: 0 | H93: 0 | I93: 0 | J93: 0 | K93: 0 | L93: =L42*L$7 -> 0 | M93: 0 | N93: 0 | O93: 0 | P93: 0
C94: =Asset33 -> 0 | G94: 0 | H94: 0 | I94: 0 | J94: 0 | K94: 0 | L94: =L43*L$7 -> 0 | M94: 0 | N94: 0 | O94: 0 | P94: 0
C95: =Asset34 -> 0 | G95: 0 | H95: 0 | I95: 0 | J95: 0 | K95: 0 | L95: =L44*L$7 -> 0 | M95: 0 | N95: 0 | O95: 0 | P95: 0
C96: =Asset35 -> 0 | G96: =G45*G$7 -> 0 | H96: 0 | I96: 0 | J96: 0 | K96: 0 | L96: =L45*L$7 -> 0 | M96: 0 | N96: 0 | O96: 0 | P96: 0
C97: =Asset36 -> 0 | G97: 0 | H97: 0 | I97: 0 | J97: 0 | K97: 0 | L97: =L46*L$7 -> 0 | M97: 0 | N97: 0 | O97: 0 | P97: 0
C98: =Asset37 -> 0 | G98: 0 | H98: 0 | I98: 0 | J98: 0 | K98: 0 | L98: =L47*L$7 -> 0 | M98: 0 | N98: 0 | O98: 0 | P98: 0
C99: =Asset38 -> 0 | G99: 0 | H99: 0 | I99: 0 | J99: 0 | K99: 0 | L99: =L48*L$7 -> 0 | M99: 0 | N99: 0 | O99: 0 | P99: 0
C100: =Asset39 -> 0 | G100: 0 | H100: 0 | I100: 0 | J100: 0 | K100: 0 | L100: =L49*L$7 -> 0 | M100: 0 | N100: 0 | O100: 0 | P100: 0
C101: =Asset40 -> 0 | G101: 0 | H101: 0 | I101: 0 | J101: 0 | K101: 0 | L101: =L50*L$7 -> 0 | M101: 0 | N101: 0 | O101: 0 | P101: 0
C102: =Asset41 -> 0 | G102: 0 | H102: 0 | I102: 0 | J102: 0 | K102: 0 | L102: =L51*L$7 -> 0 | M102: 0 | N102: 0 | O102: 0 | P102: 0
C103: =Asset42 -> 0 | G103: 0 | H103: 0 | I103: 0 | J103: 0 | K103: 0 | L103: =L52*L$7 -> 0 | M103: =M52*M$7 -> 0 | N103: 0 | O103: 0 | P103: 0
C104: =Asset43 -> 0 | G104: 0 | H104: 0 | I104: 0 | J104: 0 | K104: 0 | L104: =L53*L$7 -> 0 | M104: 0 | N104: 0 | O104: 0 | P104: 0
C105: =Asset44 -> 0 | G105: 0 | H105: 0 | I105: 0 | J105: 0 | K105: 0 | L105: =L54*L$7 -> 0 | M105: 0 | N105: 0 | O105: 0 | P105: 0
C106: =Asset45 -> 0 | G106: 0 | H106: 0 | I106: 0 | J106: 0 | K106: 0 | L106: =L55*L$7 -> 0 | M106: 0 | N106: 0 | O106: 0 | P106: 0
C107: =Asset46 -> 0 | G107: 0 | H107: 0 | I107: 0 | J107: 0 | K107: 0 | L107: =L56*L$7 -> 0 | M107: 0 | N107: 0 | O107: 0 | P107: 0
C108: =Asset47 -> 0 | G108: 0 | H108: 0 | I108: 0 | J108: 0 | K108: 0 | L108: =L57*L$7 -> 0 | M108: 0 | N108: 0 | O108: 0 | P108: 0
C109: =Asset48 -> 0 | G109: 0 | H109: 0 | I109: 0 | J109: 0 | K109: 0 | L109: =L58*L$7 -> 0 | M109: 0 | N109: 0 | O109: 0 | P109: 0
C110: =Asset49 -> 0 | G110: 0 | H110: 0 | I110: 0 | J110: 0 | K110: 0 | L110: =L59*L$7 -> 0 | M110: 0 | N110: 0 | O110: 0 | P110: 0
C111: =Asset50 -> Equity raising costs | G111: 0 | H111: 0 | I111: 0 | J111: 0 | K111: 0 | L111: =L60*L$7 -> 0 | M111: 0 | N111: 0 | O111: 0 | P111: 0
B113: ="Asset Values ($m Real "&F4&")" -> Asset Values ($m Real 2018-19) | G113: =SUM(G116,G129,G142,G155,G168,G181,G194,G207,G220,G233,G246,G259,G272,G285,G298,G311,G324,G337,G350,G363,G376,G389,G402,G415,G428,G441,G753) -> 52.59449704 | H113: =SUM(H116,H129,H142,H155,H168,H181,H194,H207,H220,H233,H246,H259,H272,H285,H298,H311,H324,H337,H350,H363,H376,H389,H402,H415,H428,H441,H753) -> 52.84911532 | I113: 51.81441819 | J113: 50.40057841 | K113: 49.59534293 | L113: 49.38263711 | M113: 49.27300764 | N113: 48.32846922 | O113: 42.28718121 | P113: 37.52673816 | Q113: 36.31288865 | R113: 35.85831424 | S113: 35.36973169 | T113: 35.16604165 | U113: 34.37628054 | V113: 33.73008356 | W113: 33.73008356 | X113: 33.73008356 | Y113: 33.73008356 | Z113: 33.73008356 | AA113: 33.73008356 | AB113: 33.73008356 | AC113: 33.73008356 | AD113: 33.73008356 | AE113: 33.73008356 | AF113: 33.73008356 | AG113: 33.04582127 | AH113: 22.44069798 | AI113: 20.7913174 | AJ113: 13.25994753 | AK113: 13.25994753 | AL113: 13.17327797 | AM113: 12.4722872 | AN113: 12.46332634 | AO113: 12.46332634 | AP113: 12.46332634 | AQ113: 12.46332634 | AR113: 12.45861081 | AS113: 8.400491109 | AT113: 7.495180777 | AU113: 7.36195773 | AV113: 7.104759569 | AW113: 6.893935794 | AX113: 6.807727036 | AY113: 6.271751463 | AZ113: 5.776172921 | BA113: 5.776172921 | BB113: 5.776172921 | BC113: 5.776172921 | BD113: 5.776172921 | BE113: 5.776172921 | BF113: 5.776172921 | BG113: 5.417994668 | BH113: 1.047393762 | BI113: 1.008085939
B115: Real Straight-line Depreciation | G115: =G128+G141+G154+G167+G180+G193+G206+G219+G232+G245+G258+G271+G284+G297+G310+G323+G336+G349+G362+G375+G388+G401+G414+G427+G440+G453+G466+G479+G492+G505+G518+G531+G544+G557+G570+G583+G596+G609+G622+G635+G648+G661+G674+G687+G700+G713+G726+G739+G752+G765 -> 52.59449704 | H115: =H128+H141+H154+H167+H180+H193+H206+H219+H232+H245+H258+H271+H284+H297+H310+H323+H336+H349+H362+H375+H388+H401+H414+H427+H440+H453+H466+H479+H492+H505+H518+H531+H544+H557+H570+H583+H596+H609+H622+H635+H648+H661+H674+H687+H700+H713+H726+H739+H752+H765 -> 55.55075285 | I115: 57.25678512 | J115: 59.78884197 | K115: 61.69405924 | L115: =L128+L141+L154+L167+L180+L193+L206+L219+L232+L245+L258+L271+L284+L297+L310+L323+L336+L349+L362+L375+L388+L401+L414+L427+L440+L453+L466+L479+L492+L505+L518+L531+L544+L557+L570+L583+L596+L609+L622+L635+L648+L661+L674+L687+L700+L713+L726+L739+L752+L765 -> 62.94163137 | M115: 61.3324123 | N115: 59.32047903 | O115: 52.20784294 | P115: 46.62325773 | Q115: 45.19283476 | R115: 43.96459744 | S115: 42.97397687 | T115: 42.2278979 | U115: 40.92553136 | V115: 39.68225047 | W115: 39.09886687 | X115: 38.50854299 | Y115: 37.34864947 | Z115: 36.59139029 | AA115: 35.87235544 | AB115: 35.87235544 | AC115: 35.87235544 | AD115: 35.87235544 | AE115: 35.87235544 | AF115: 35.87235544 | AG115: 35.18809315 | AH115: 24.58296987 | AI115: 22.93358928 | AJ115: 15.40221942 | AK115: 15.40221942 | AL115: 15.31554985 | AM115: 14.61455908 | AN115: 14.60559822 | AO115: 14.60559822 | AP115: 14.60559822 | AQ115: 14.60559822 | AR115: 14.60088269 | AS115: 10.54276299 | AT115: 9.637452658 | AU115: 9.504229612 | AV115: 9.21803214 | AW115: 8.973873938 | AX115: 8.873618015 | AY115: 8.328521159 | AZ115: 7.829066135 | BA115: 7.705354385 | BB115: 7.551710765 | BC115: 6.859032401 | BD115: 6.582108159 | BE115: 6.417225095 | BF115: 6.417225095 | BG115: 6.059046843 | BH115: 1.688445936 | BI115: 1.649138114
B116: =C128 -> Transmission Lines and Cables | D116: Initial Asset Base | G116: 8.341491747 | H116: 8.341491747 | I116: 8.341491747 | J116: 8.341491747 | K116: 8.341491747 | L116: 8.341491747 | M116: 8.341491747 | N116: 8.341491747 | O116: 8.341491747 | P116: 8.341491747 | Q116: 8.341491747 | R116: 8.341491747 | S116: 8.341491747 | T116: 8.341491747 | U116: 8.341491747 | V116: 8.341491747 | W116: 8.341491747 | X116: 8.341491747 | Y116: 8.341491747 | Z116: 8.341491747 | AA116: 8.341491747 | AB116: 8.341491747 | AC116: 8.341491747 | AD116: 8.341491747 | AE116: 8.341491747 | AF116: 8.341491747 | AG116: 8.341491747 | AH116: 8.341491747 | AI116: 7.531369866 | AJ116: 0 | AK116: 0 | AL116: 0 | AM116: 0 | AN116: 0 | AO116: 0 | AP116: 0 | AQ116: 0 | AR116: 0 | AS116: 0 | AT116: 0 | AU116: 0 | AV116: 0 | AW116: 0 | AX116: 0 | AY116: 0 | AZ116: 0 | BA116: 0 | BB116: 0 | BC116: 0 | BD116: 0 | BE116: 0 | BF116: 0 | BG116: 0 | BH116: 0 | BI116: 0
D117: Capex in year | E117: 0
E118: 1 | H118: =IF(A1stdlife="n/a","n/a",IF(H$3>(A1stdlife+$E118),('PTRM input'!$G$331*(1+rvanilla01)^0.5)-SUM(G118:$G118),('PTRM input'!$G$331*(1+rvanilla01)^0.5)/A1stdlife)) -> n/a | I118: =IF(A1stdlife="n/a","n/a",IF(I$3>(A1stdlife+$E118),('PTRM input'!$G$331*(1+rvanilla01)^0.5)-SUM($G118:H118),('PTRM input'!$G$331*(1+rvanilla01)^0.5)/A1stdlife)) -> n/a | J118: =IF(A1stdlife="n/a","n/a",IF(J$3>(A1stdlife+$E118),('PTRM input'!$G$331*(1+rvanilla01)^0.5)-SUM($G118:I118),('PTRM input'!$G$331*(1+rvanilla01)^0.5)/A1stdlife)) -> n/a | K118: =IF(A1stdlife="n/a","n/a",IF(K$3>(A1stdlife+$E118),('PTRM input'!$G$331*(1+rvanilla01)^0.5)-SUM($G118:J118),('PTRM input'!$G$331*(1+rvanilla01)^0.5)/A1stdlife)) -> n/a | L118: =IF(A1stdlife="n/a","n/a",IF(L$3>(A1stdlife+$E118),('PTRM input'!$G$331*(1+rvanilla01)^0.5)-SUM($G118:K118),('PTRM input'!$G$331*(1+rvanilla01)^0.5)/A1stdlife)) -> n/a | M118: =IF(A1stdlife="n/a","n/a",IF(M$3>(A1stdlife+$E118),('PTRM input'!$G$331*(1+rvanilla01)^0.5)-SUM($G118:L118),('PTRM input'!$G$331*(1+rvanilla01)^0.5)/A1stdlife)) -> n/a | N118: =IF(A1stdlife="n/a","n/a",IF(N$3>(A1stdlife+$E118),('PTRM input'!$G$331*(1+rvanilla01)^0.5)-SUM($G118:M118),('PTRM input'!$G$331*(1+rvanilla01)^0.5)/A1stdlife)) -> n/a | O118: =IF(A1stdlife="n/a","n/a",IF(O$3>(A1stdlife+$E118),('PTRM input'!$G$331*(1+rvanilla01)^0.5)-SUM($G118:N118),('PTRM input'!$G$331*(1+rvanilla01)^0.5)/A1stdlife)) -> n/a | P118: =IF(A1stdlife="n/a","n/a",IF(P$3>(A1stdlife+$E118),('PTRM input'!$G$331*(1+rvanilla01)^0.5)-SUM($G118:O118),('PTRM input'!$G$331*(1+rvanilla01)^0.5)/A1stdlife)) -> n/a | Q118: =IF(A1stdlife="n/a","n/a",IF(Q$3>(A1stdlife+$E118),('PTRM input'!$G$331*(1+rvanilla01)^0.5)-SUM($G118:P118),('PTRM input'!$G$331*(1+rvanilla01)^0.5)/A1stdlife)) -> n/a | R118: =IF(A1stdlife="n/a","n/a",IF(R$3>(A1stdlife+$E118),('PTRM input'!$G$331*(1+rvanilla01)^0.5)-SUM($G118:Q118),('PTRM input'!$G$331*(1+rvanilla01)^0.5)/A1stdlife)) -> n/a | S118: =IF(A1stdlife="n/a","n/a",IF(S$3>(A1stdlife+$E118),('PTRM input'!$G$331*(1+rvanilla01)^0.5)-SUM($G118:R118),('PTRM input'!$G$331*(1+rvanilla01)^0.5)/A1stdlife)) -> n/a | T118: =IF(A1stdlife="n/a","n/a",IF(T$3>(A1stdlife+$E118),('PTRM input'!$G$331*(1+rvanilla01)^0.5)-SUM($G118:S118),('PTRM input'!$G$331*(1+rvanilla01)^0.5)/A1stdlife)) -> n/a | U118: =IF(A1stdlife="n/a","n/a",IF(U$3>(A1stdlife+$E118),('PTRM input'!$G$331*(1+rvanilla01)^0.5)-SUM($G118:T118),('PTRM input'!$G$331*(1+rvanilla01)^0.5)/A1stdlife)) -> n/a | V118: =IF(A1stdlife="n/a","n/a",IF(V$3>(A1stdlife+$E118),('PTRM input'!$G$331*(1+rvanilla01)^0.5)-SUM($G118:U118),('PTRM input'!$G$331*(1+rvanilla01)^0.5)/A1stdlife)) -> n/a | W118: =IF(A1stdlife="n/a","n/a",IF(W$3>(A1stdlife+$E118),('PTRM input'!$G$331*(1+rvanilla01)^0.5)-SUM($G118:V118),('PTRM input'!$G$331*(1+rvanilla01)^0.5)/A1stdlife)) -> n/a | X118: =IF(A1stdlife="n/a","n/a",IF(X$3>(A1stdlife+$E118),('PTRM input'!$G$331*(1+rvanilla01)^0.5)-SUM($G118:W118),('PTRM input'!$G$331*(1+rvanilla01)^0.5)/A1stdlife)) -> n/a | Y118: =IF(A1stdlife="n/a","n/a",IF(Y$3>(A1stdlife+$E118),('PTRM input'!$G$331*(1+rvanilla01)^0.5)-SUM($G118:X118),('PTRM input'!$G$331*(1+rvanilla01)^0.5)/A1stdlife)) -> n/a | Z118: =IF(A1stdlife="n/a","n/a",IF(Z$3>(A1stdlife+$E118),('PTRM input'!$G$331*(1+rvanilla01)^0.5)-SUM($G118:Y118),('PTRM input'!$G$331*(1+rvanilla01)^0.5)/A1stdlife)) -> n/a | AA118: =IF(A1stdlife="n/a","n/a",IF(AA$3>(A1stdlife+$E118),('PTRM input'!$G$331*(1+rvanilla01)^0.5)-SUM($G118:Z118),('PTRM input'!$G$331*(1+rvanilla01)^0.5)/A1stdlife)) -> n/a | AB118: =IF(A1stdlife="n/a","n/a",IF(AB$3>(A1stdlife+$E118),('PTRM input'!$G$331*(1+rvanilla01)^0.5)-SUM($G118:AA118),('PTRM input'!$G$331*(1+rvanilla01)^0.5)/A1stdlife)) -> n/a | AC118: =IF(A1stdlife="n/a","n/a",IF(AC$3>(A1stdlife+$E118),('PTRM input'!$G$331*(1+rvanilla01)^0.5)-SUM($G118:AB118),('PTRM input'!$G$331*(1+rvanilla01)^0.5)/A1stdlife)) -> n/a | AD118: =IF(A1stdlife="n/a","n/a",IF(AD$3>(A1stdlife+$E118),('PTRM input'!$G$331*(1+rvanilla01)^0.5)-SUM($G118:AC118),('PTRM input'!$G$331*(1+rvanilla01)^0.5)/A1stdlife)) -> n/a | AE118: =IF(A1stdlife="n/a","n/a",IF(AE$3>(A1stdlife+$E118),('PTRM input'!$G$331*(1+rvanilla01)^0.5)-SUM($G118:AD118),('PTRM input'!$G$331*(1+rvanilla01)^0.5)/A1stdlife)) -> n/a | AF118: =IF(A1stdlife="n/a","n/a",IF(AF$3>(A1stdlife+$E118),('PTRM input'!$G$331*(1+rvanilla01)^0.5)-SUM($G118:AE118),('PTRM input'!$G$331*(1+rvanilla01)^0.5)/A1stdlife)) -> n/a | AG118: =IF(A1stdlife="n/a","n/a",IF(AG$3>(A1stdlife+$E118),('PTRM input'!$G$331*(1+rvanilla01)^0.5)-SUM($G118:AF118),('PTRM input'!$G$331*(1+rvanilla01)^0.5)/A1stdlife)) -> n/a | AH118: =IF(A1stdlife="n/a","n/a",IF(AH$3>(A1stdlife+$E118),('PTRM input'!$G$331*(1+rvanilla01)^0.5)-SUM($G118:AG118),('PTRM input'!$G$331*(1+rvanilla01)^0.5)/A1stdlife)) -> n/a | AI118: =IF(A1stdlife="n/a","n/a",IF(AI$3>(A1stdlife+$E118),('PTRM input'!$G$331*(1+rvanilla01)^0.5)-SUM($G118:AH118),('PTRM input'!$G$331*(1+rvanilla01)^0.5)/A1stdlife)) -> n/a | AJ118: =IF(A1stdlife="n/a","n/a",IF(AJ$3>(A1stdlife+$E118),('PTRM input'!$G$331*(1+rvanilla01)^0.5)-SUM($G118:AI118),('PTRM input'!$G$331*(1+rvanilla01)^0.5)/A1stdlife)) -> n/a | AK118: =IF(A1stdlife="n/a","n/a",IF(AK$3>(A1stdlife+$E118),('PTRM input'!$G$331*(1+rvanilla01)^0.5)-SUM($G118:AJ118),('PTRM input'!$G$331*(1+rvanilla01)^0.5)/A1stdlife)) -> n/a | AL118: =IF(A1stdlife="n/a","n/a",IF(AL$3>(A1stdlife+$E118),('PTRM input'!$G$331*(1+rvanilla01)^0.5)-SUM($G118:AK118),('PTRM input'!$G$331*(1+rvanilla01)^0.5)/A1stdlife)) -> n/a | AM118: =IF(A1stdlife="n/a","n/a",IF(AM$3>(A1stdlife+$E118),('PTRM input'!$G$331*(1+rvanilla01)^0.5)-SUM($G118:AL118),('PTRM input'!$G$331*(1+rvanilla01)^0.5)/A1stdlife)) -> n/a | AN118: =IF(A1stdlife="n/a","n/a",IF(AN$3>(A1stdlife+$E118),('PTRM input'!$G$331*(1+rvanilla01)^0.5)-SUM($G118:AM118),('PTRM input'!$G$331*(1+rvanilla01)^0.5)/A1stdlife)) -> n/a | AO118: =IF(A1stdlife="n/a","n/a",IF(AO$3>(A1stdlife+$E118),('PTRM input'!$G$331*(1+rvanilla01)^0.5)-SUM($G118:AN118),('PTRM input'!$G$331*(1+rvanilla01)^0.5)/A1stdlife)) -> n/a | AP118: =IF(A1stdlife="n/a","n/a",IF(AP$3>(A1stdlife+$E118),('PTRM input'!$G$331*(1+rvanilla01)^0.5)-SUM($G118:AO118),('PTRM input'!$G$331*(1+rvanilla01)^0.5)/A1stdlife)) -> n/a | AQ118: =IF(A1stdlife="n/a","n/a",IF(AQ$3>(A1stdlife+$E118),('PTRM input'!$G$331*(1+rvanilla01)^0.5)-SUM($G118:AP118),('PTRM input'!$G$331*(1+rvanilla01)^0.5)/A1stdlife)) -> n/a | AR118: =IF(A1stdlife="n/a","n/a",IF(AR$3>(A1stdlife+$E118),('PTRM input'!$G$331*(1+rvanilla01)^0.5)-SUM($G118:AQ118),('PTRM input'!$G$331*(1+rvanilla01)^0.5)/A1stdlife)) -> n/a | AS118: =IF(A1stdlife="n/a","n/a",IF(AS$3>(A1stdlife+$E118),('PTRM input'!$G$331*(1+rvanilla01)^0.5)-SUM($G118:AR118),('PTRM input'!$G$331*(1+rvanilla01)^0.5)/A1stdlife)) -> n/a | AT118: =IF(A1stdlife="n/a","n/a",IF(AT$3>(A1stdlife+$E118),('PTRM input'!$G$331*(1+rvanilla01)^0.5)-SUM($G118:AS118),('PTRM input'!$G$331*(1+rvanilla01)^0.5)/A1stdlife)) -> n/a | AU118: =IF(A1stdlife="n/a","n/a",IF(AU$3>(A1stdlife+$E118),('PTRM input'!$G$331*(1+rvanilla01)^0.5)-SUM($G118:AT118),('PTRM input'!$G$331*(1+rvanilla01)^0.5)/A1stdlife)) -> n/a | AV118: =IF(A1stdlife="n/a","n/a",IF(AV$3>(A1stdlife+$E118),('PTRM input'!$G$331*(1+rvanilla01)^0.5)-SUM($G118:AU118),('PTRM input'!$G$331*(1+rvanilla01)^0.5)/A1stdlife)) -> n/a | AW118: =IF(A1stdlife="n/a","n/a",IF(AW$3>(A1stdlife+$E118),('PTRM input'!$G$331*(1+rvanilla01)^0.5)-SUM($G118:AV118),('PTRM input'!$G$331*(1+rvanilla01)^0.5)/A1stdlife)) -> n/a | AX118: =IF(A1stdlife="n/a","n/a",IF(AX$3>(A1stdlife+$E118),('PTRM input'!$G$331*(1+rvanilla01)^0.5)-SUM($G118:AW118),('PTRM input'!$G$331*(1+rvanilla01)^0.5)/A1stdlife)) -> n/a | AY118: =IF(A1stdlife="n/a","n/a",IF(AY$3>(A1stdlife+$E118),('PTRM input'!$G$331*(1+rvanilla01)^0.5)-SUM($G118:AX118),('PTRM input'!$G$331*(1+rvanilla01)^0.5)/A1stdlife)) -> n/a | AZ118: =IF(A1stdlife="n/a","n/a",IF(AZ$3>(A1stdlife+$E118),('PTRM input'!$G$331*(1+rvanilla01)^0.5)-SUM($G118:AY118),('PTRM input'!$G$331*(1+rvanilla01)^0.5)/A1stdlife)) -> n/a | BA118: =IF(A1stdlife="n/a","n/a",IF(BA$3>(A1stdlife+$E118),('PTRM input'!$G$331*(1+rvanilla01)^0.5)-SUM($G118:AZ118),('PTRM input'!$G$331*(1+rvanilla01)^0.5)/A1stdlife)) -> n/a | BB118: =IF(A1stdlife="n/a","n/a",IF(BB$3>(A1stdlife+$E118),('PTRM input'!$G$331*(1+rvanilla01)^0.5)-SUM($G118:BA118),('PTRM input'!$G$331*(1+rvanilla01)^0.5)/A1stdlife)) -> n/a | BC118: =IF(A1stdlife="n/a","n/a",IF(BC$3>(A1stdlife+$E118),('PTRM input'!$G$331*(1+rvanilla01)^0.5)-SUM($G118:BB118),('PTRM input'!$G$331*(1+rvanilla01)^0.5)/A1stdlife)) -> n/a | BD118: =IF(A1stdlife="n/a","n/a",IF(BD$3>(A1stdlife+$E118),('PTRM input'!$G$331*(1+rvanilla01)^0.5)-SUM($G118:BC118),('PTRM input'!$G$331*(1+rvanilla01)^0.5)/A1stdlife)) -> n/a | BE118: =IF(A1stdlife="n/a","n/a",IF(BE$3>(A1stdlife+$E118),('PTRM input'!$G$331*(1+rvanilla01)^0.5)-SUM($G118:BD118),('PTRM input'!$G$331*(1+rvanilla01)^0.5)/A1stdlife)) -> n/a | BF118: =IF(A1stdlife="n/a","n/a",IF(BF$3>(A1stdlife+$E118),('PTRM input'!$G$331*(1+rvanilla01)^0.5)-SUM($G118:BE118),('PTRM input'!$G$331*(1+rvanilla01)^0.5)/A1stdlife)) -> n/a | BG118: =IF(A1stdlife="n/a","n/a",IF(BG$3>(A1stdlife+$E118),('PTRM input'!$G$331*(1+rvanilla01)^0.5)-SUM($G118:BF118),('PTRM input'!$G$331*(1+rvanilla01)^0.5)/A1stdlife)) -> n/a | BH118: =IF(A1stdlife="n/a","n/a",IF(BH$3>(A1stdlife+$E118),('PTRM input'!$G$331*(1+rvanilla01)^0.5)-SUM($G118:BG118),('PTRM input'!$G$331*(1+rvanilla01)^0.5)/A1stdlife)) -> n/a | BI118: =IF(A1stdlife="n/a","n/a",IF(BI$3>(A1stdlife+$E118),('PTRM input'!$G$331*(1+rvanilla01)^0.5)-SUM($G118:BH118),('PTRM input'!$G$331*(1+rvanilla01)^0.5)/A1stdlife)) -> n/a
E119: 2 | I119: =IF(A1stdlife="n/a","n/a",IF(I$3>(A1stdlife+$E119),('PTRM input'!$H$331*(1+rvanilla02)^0.5)-SUM(H119:$H119),('PTRM input'!$H$331*(1+rvanilla02)^0.5)/A1stdlife)) -> n/a | J119: =IF(A1stdlife="n/a","n/a",IF(J$3>(A1stdlife+$E119),('PTRM input'!$H$331*(1+rvanilla02)^0.5)-SUM($H119:I119),('PTRM input'!$H$331*(1+rvanilla02)^0.5)/A1stdlife)) -> n/a | K119: =IF(A1stdlife="n/a","n/a",IF(K$3>(A1stdlife+$E119),('PTRM input'!$H$331*(1+rvanilla02)^0.5)-SUM($H119:J119),('PTRM input'!$H$331*(1+rvanilla02)^0.5)/A1stdlife)) -> n/a | L119: =IF(A1stdlife="n/a","n/a",IF(L$3>(A1stdlife+$E119),('PTRM input'!$H$331*(1+rvanilla02)^0.5)-SUM($H119:K119),('PTRM input'!$H$331*(1+rvanilla02)^0.5)/A1stdlife)) -> n/a | M119: =IF(A1stdlife="n/a","n/a",IF(M$3>(A1stdlife+$E119),('PTRM input'!$H$331*(1+rvanilla02)^0.5)-SUM($H119:L119),('PTRM input'!$H$331*(1+rvanilla02)^0.5)/A1stdlife)) -> n/a | N119: =IF(A1stdlife="n/a","n/a",IF(N$3>(A1stdlife+$E119),('PTRM input'!$H$331*(1+rvanilla02)^0.5)-SUM($H119:M119),('PTRM input'!$H$331*(1+rvanilla02)^0.5)/A1stdlife)) -> n/a | O119: =IF(A1stdlife="n/a","n/a",IF(O$3>(A1stdlife+$E119),('PTRM input'!$H$331*(1+rvanilla02)^0.5)-SUM($H119:N119),('PTRM input'!$H$331*(1+rvanilla02)^0.5)/A1stdlife)) -> n/a | P119: =IF(A1stdlife="n/a","n/a",IF(P$3>(A1stdlife+$E119),('PTRM input'!$H$331*(1+rvanilla02)^0.5)-SUM($H119:O119),('PTRM input'!$H$331*(1+rvanilla02)^0.5)/A1stdlife)) -> n/a | Q119: =IF(A1stdlife="n/a","n/a",IF(Q$3>(A1stdlife+$E119),('PTRM input'!$H$331*(1+rvanilla02)^0.5)-SUM($H119:P119),('PTRM input'!$H$331*(1+rvanilla02)^0.5)/A1stdlife)) -> n/a | R119: =IF(A1stdlife="n/a","n/a",IF(R$3>(A1stdlife+$E119),('PTRM input'!$H$331*(1+rvanilla02)^0.5)-SUM($H119:Q119),('PTRM input'!$H$331*(1+rvanilla02)^0.5)/A1stdlife)) -> n/a | S119: =IF(A1stdlife="n/a","n/a",IF(S$3>(A1stdlife+$E119),('PTRM input'!$H$331*(1+rvanilla02)^0.5)-SUM($H119:R119),('PTRM input'!$H$331*(1+rvanilla02)^0.5)/A1stdlife)) -> n/a | T119: =IF(A1stdlife="n/a","n/a",IF(T$3>(A1stdlife+$E119),('PTRM input'!$H$331*(1+rvanilla02)^0.5)-SUM($H119:S119),('PTRM input'!$H$331*(1+rvanilla02)^0.5)/A1stdlife)) -> n/a | U119: =IF(A1stdlife="n/a","n/a",IF(U$3>(A1stdlife+$E119),('PTRM input'!$H$331*(1+rvanilla02)^0.5)-SUM($H119:T119),('PTRM input'!$H$331*(1+rvanilla02)^0.5)/A1stdlife)) -> n/a | V119: =IF(A1stdlife="n/a","n/a",IF(V$3>(A1stdlife+$E119),('PTRM input'!$H$331*(1+rvanilla02)^0.5)-SUM($H119:U119),('PTRM input'!$H$331*(1+rvanilla02)^0.5)/A1stdlife)) -> n/a | W119: =IF(A1stdlife="n/a","n/a",IF(W$3>(A1stdlife+$E119),('PTRM input'!$H$331*(1+rvanilla02)^0.5)-SUM($H119:V119),('PTRM input'!$H$331*(1+rvanilla02)^0.5)/A1stdlife)) -> n/a | X119: =IF(A1stdlife="n/a","n/a",IF(X$3>(A1stdlife+$E119),('PTRM input'!$H$331*(1+rvanilla02)^0.5)-SUM($H119:W119),('PTRM input'!$H$331*(1+rvanilla02)^0.5)/A1stdlife)) -> n/a | Y119: =IF(A1stdlife="n/a","n/a",IF(Y$3>(A1stdlife+$E119),('PTRM input'!$H$331*(1+rvanilla02)^0.5)-SUM($H119:X119),('PTRM input'!$H$331*(1+rvanilla02)^0.5)/A1stdlife)) -> n/a | Z119: =IF(A1stdlife="n/a","n/a",IF(Z$3>(A1stdlife+$E119),('PTRM input'!$H$331*(1+rvanilla02)^0.5)-SUM($H119:Y119),('PTRM input'!$H$331*(1+rvanilla02)^0.5)/A1stdlife)) -> n/a | AA119: =IF(A1stdlife="n/a","n/a",IF(AA$3>(A1stdlife+$E119),('PTRM input'!$H$331*(1+rvanilla02)^0.5)-SUM($H119:Z119),('PTRM input'!$H$331*(1+rvanilla02)^0.5)/A1stdlife)) -> n/a | AB119: =IF(A1stdlife="n/a","n/a",IF(AB$3>(A1stdlife+$E119),('PTRM input'!$H$331*(1+rvanilla02)^0.5)-SUM($H119:AA119),('PTRM input'!$H$331*(1+rvanilla02)^0.5)/A1stdlife)) -> n/a | AC119: =IF(A1stdlife="n/a","n/a",IF(AC$3>(A1stdlife+$E119),('PTRM input'!$H$331*(1+rvanilla02)^0.5)-SUM($H119:AB119),('PTRM input'!$H$331*(1+rvanilla02)^0.5)/A1stdlife)) -> n/a | AD119: =IF(A1stdlife="n/a","n/a",IF(AD$3>(A1stdlife+$E119),('PTRM input'!$H$331*(1+rvanilla02)^0.5)-SUM($H119:AC119),('PTRM input'!$H$331*(1+rvanilla02)^0.5)/A1stdlife)) -> n/a | AE119: =IF(A1stdlife="n/a","n/a",IF(AE$3>(A1stdlife+$E119),('PTRM input'!$H$331*(1+rvanilla02)^0.5)-SUM($H119:AD119),('PTRM input'!$H$331*(1+rvanilla02)^0.5)/A1stdlife)) -> n/a | AF119: =IF(A1stdlife="n/a","n/a",IF(AF$3>(A1stdlife+$E119),('PTRM input'!$H$331*(1+rvanilla02)^0.5)-SUM($H119:AE119),('PTRM input'!$H$331*(1+rvanilla02)^0.5)/A1stdlife)) -> n/a | AG119: =IF(A1stdlife="n/a","n/a",IF(AG$3>(A1stdlife+$E119),('PTRM input'!$H$331*(1+rvanilla02)^0.5)-SUM($H119:AF119),('PTRM input'!$H$331*(1+rvanilla02)^0.5)/A1stdlife)) -> n/a | AH119: =IF(A1stdlife="n/a","n/a",IF(AH$3>(A1stdlife+$E119),('PTRM input'!$H$331*(1+rvanilla02)^0.5)-SUM($H119:AG119),('PTRM input'!$H$331*(1+rvanilla02)^0.5)/A1stdlife)) -> n/a | AI119: =IF(A1stdlife="n/a","n/a",IF(AI$3>(A1stdlife+$E119),('PTRM input'!$H$331*(1+rvanilla02)^0.5)-SUM($H119:AH119),('PTRM input'!$H$331*(1+rvanilla02)^0.5)/A1stdlife)) -> n/a | AJ119: =IF(A1stdlife="n/a","n/a",IF(AJ$3>(A1stdlife+$E119),('PTRM input'!$H$331*(1+rvanilla02)^0.5)-SUM($H119:AI119),('PTRM input'!$H$331*(1+rvanilla02)^0.5)/A1stdlife)) -> n/a | AK119: =IF(A1stdlife="n/a","n/a",IF(AK$3>(A1stdlife+$E119),('PTRM input'!$H$331*(1+rvanilla02)^0.5)-SUM($H119:AJ119),('PTRM input'!$H$331*(1+rvanilla02)^0.5)/A1stdlife)) -> n/a | AL119: =IF(A1stdlife="n/a","n/a",IF(AL$3>(A1stdlife+$E119),('PTRM input'!$H$331*(1+rvanilla02)^0.5)-SUM($H119:AK119),('PTRM input'!$H$331*(1+rvanilla02)^0.5)/A1stdlife)) -> n/a | AM119: =IF(A1stdlife="n/a","n/a",IF(AM$3>(A1stdlife+$E119),('PTRM input'!$H$331*(1+rvanilla02)^0.5)-SUM($H119:AL119),('PTRM input'!$H$331*(1+rvanilla02)^0.5)/A1stdlife)) -> n/a | AN119: =IF(A1stdlife="n/a","n/a",IF(AN$3>(A1stdlife+$E119),('PTRM input'!$H$331*(1+rvanilla02)^0.5)-SUM($H119:AM119),('PTRM input'!$H$331*(1+rvanilla02)^0.5)/A1stdlife)) -> n/a | AO119: =IF(A1stdlife="n/a","n/a",IF(AO$3>(A1stdlife+$E119),('PTRM input'!$H$331*(1+rvanilla02)^0.5)-SUM($H119:AN119),('PTRM input'!$H$331*(1+rvanilla02)^0.5)/A1stdlife)) -> n/a | AP119: =IF(A1stdlife="n/a","n/a",IF(AP$3>(A1stdlife+$E119),('PTRM input'!$H$331*(1+rvanilla02)^0.5)-SUM($H119:AO119),('PTRM input'!$H$331*(1+rvanilla02)^0.5)/A1stdlife)) -> n/a | AQ119: =IF(A1stdlife="n/a","n/a",IF(AQ$3>(A1stdlife+$E119),('PTRM input'!$H$331*(1+rvanilla02)^0.5)-SUM($H119:AP119),('PTRM input'!$H$331*(1+rvanilla02)^0.5)/A1stdlife)) -> n/a | AR119: =IF(A1stdlife="n/a","n/a",IF(AR$3>(A1stdlife+$E119),('PTRM input'!$H$331*(1+rvanilla02)^0.5)-SUM($H119:AQ119),('PTRM input'!$H$331*(1+rvanilla02)^0.5)/A1stdlife)) -> n/a | AS119: =IF(A1stdlife="n/a","n/a",IF(AS$3>(A1stdlife+$E119),('PTRM input'!$H$331*(1+rvanilla02)^0.5)-SUM($H119:AR119),('PTRM input'!$H$331*(1+rvanilla02)^0.5)/A1stdlife)) -> n/a | AT119: =IF(A1stdlife="n/a","n/a",IF(AT$3>(A1stdlife+$E119),('PTRM input'!$H$331*(1+rvanilla02)^0.5)-SUM($H119:AS119),('PTRM input'!$H$331*(1+rvanilla02)^0.5)/A1stdlife)) -> n/a | AU119: =IF(A1stdlife="n/a","n/a",IF(AU$3>(A1stdlife+$E119),('PTRM input'!$H$331*(1+rvanilla02)^0.5)-SUM($H119:AT119),('PTRM input'!$H$331*(1+rvanilla02)^0.5)/A1stdlife)) -> n/a | AV119: =IF(A1stdlife="n/a","n/a",IF(AV$3>(A1stdlife+$E119),('PTRM input'!$H$331*(1+rvanilla02)^0.5)-SUM($H119:AU119),('PTRM input'!$H$331*(1+rvanilla02)^0.5)/A1stdlife)) -> n/a | AW119: =IF(A1stdlife="n/a","n/a",IF(AW$3>(A1stdlife+$E119),('PTRM input'!$H$331*(1+rvanilla02)^0.5)-SUM($H119:AV119),('PTRM input'!$H$331*(1+rvanilla02)^0.5)/A1stdlife)) -> n/a | AX119: =IF(A1stdlife="n/a","n/a",IF(AX$3>(A1stdlife+$E119),('PTRM input'!$H$331*(1+rvanilla02)^0.5)-SUM($H119:AW119),('PTRM input'!$H$331*(1+rvanilla02)^0.5)/A1stdlife)) -> n/a | AY119: =IF(A1stdlife="n/a","n/a",IF(AY$3>(A1stdlife+$E119),('PTRM input'!$H$331*(1+rvanilla02)^0.5)-SUM($H119:AX119),('PTRM input'!$H$331*(1+rvanilla02)^0.5)/A1stdlife)) -> n/a | AZ119: =IF(A1stdlife="n/a","n/a",IF(AZ$3>(A1stdlife+$E119),('PTRM input'!$H$331*(1+rvanilla02)^0.5)-SUM($H119:AY119),('PTRM input'!$H$331*(1+rvanilla02)^0.5)/A1stdlife)) -> n/a | BA119: =IF(A1stdlife="n/a","n/a",IF(BA$3>(A1stdlife+$E119),('PTRM input'!$H$331*(1+rvanilla02)^0.5)-SUM($H119:AZ119),('PTRM input'!$H$331*(1+rvanilla02)^0.5)/A1stdlife)) -> n/a | BB119: =IF(A1stdlife="n/a","n/a",IF(BB$3>(A1stdlife+$E119),('PTRM input'!$H$331*(1+rvanilla02)^0.5)-SUM($H119:BA119),('PTRM input'!$H$331*(1+rvanilla02)^0.5)/A1stdlife)) -> n/a | BC119: =IF(A1stdlife="n/a","n/a",IF(BC$3>(A1stdlife+$E119),('PTRM input'!$H$331*(1+rvanilla02)^0.5)-SUM($H119:BB119),('PTRM input'!$H$331*(1+rvanilla02)^0.5)/A1stdlife)) -> n/a | BD119: =IF(A1stdlife="n/a","n/a",IF(BD$3>(A1stdlife+$E119),('PTRM input'!$H$331*(1+rvanilla02)^0.5)-SUM($H119:BC119),('PTRM input'!$H$331*(1+rvanilla02)^0.5)/A1stdlife)) -> n/a | BE119: =IF(A1stdlife="n/a","n/a",IF(BE$3>(A1stdlife+$E119),('PTRM input'!$H$331*(1+rvanilla02)^0.5)-SUM($H119:BD119),('PTRM input'!$H$331*(1+rvanilla02)^0.5)/A1stdlife)) -> n/a | BF119: =IF(A1stdlife="n/a","n/a",IF(BF$3>(A1stdlife+$E119),('PTRM input'!$H$331*(1+rvanilla02)^0.5)-SUM($H119:BE119),('PTRM input'!$H$331*(1+rvanilla02)^0.5)/A1stdlife)) -> n/a | BG119: =IF(A1stdlife="n/a","n/a",IF(BG$3>(A1stdlife+$E119),('PTRM input'!$H$331*(1+rvanilla02)^0.5)-SUM($H119:BF119),('PTRM input'!$H$331*(1+rvanilla02)^0.5)/A1stdlife)) -> n/a | BH119: =IF(A1stdlife="n/a","n/a",IF(BH$3>(A1stdlife+$E119),('PTRM input'!$H$331*(1+rvanilla02)^0.5)-SUM($H119:BG119),('PTRM input'!$H$331*(1+rvanilla02)^0.5)/A1stdlife)) -> n/a | BI119: =IF(A1stdlife="n/a","n/a",IF(BI$3>(A1stdlife+$E119),('PTRM input'!$H$331*(1+rvanilla02)^0.5)-SUM($H119:BH119),('PTRM input'!$H$331*(1+rvanilla02)^0.5)/A1stdlife)) -> n/a
E120: 3 | J120: =IF(A1stdlife="n/a","n/a",IF(J$3>(A1stdlife+$E120),('PTRM input'!$I$331*(1+rvanilla03)^0.5)-SUM(I120:$I120),('PTRM input'!$I$331*(1+rvanilla03)^0.5)/A1stdlife)) -> n/a | K120: =IF(A1stdlife="n/a","n/a",IF(K$3>(A1stdlife+$E120),('PTRM input'!$I$331*(1+rvanilla03)^0.5)-SUM($I120:J120),('PTRM input'!$I$331*(1+rvanilla03)^0.5)/A1stdlife)) -> n/a | L120: =IF(A1stdlife="n/a","n/a",IF(L$3>(A1stdlife+$E120),('PTRM input'!$I$331*(1+rvanilla03)^0.5)-SUM($I120:K120),('PTRM input'!$I$331*(1+rvanilla03)^0.5)/A1stdlife)) -> n/a | M120: =IF(A1stdlife="n/a","n/a",IF(M$3>(A1stdlife+$E120),('PTRM input'!$I$331*(1+rvanilla03)^0.5)-SUM($I120:L120),('PTRM input'!$I$331*(1+rvanilla03)^0.5)/A1stdlife)) -> n/a | N120: =IF(A1stdlife="n/a","n/a",IF(N$3>(A1stdlife+$E120),('PTRM input'!$I$331*(1+rvanilla03)^0.5)-SUM($I120:M120),('PTRM input'!$I$331*(1+rvanilla03)^0.5)/A1stdlife)) -> n/a | O120: =IF(A1stdlife="n/a","n/a",IF(O$3>(A1stdlife+$E120),('PTRM input'!$I$331*(1+rvanilla03)^0.5)-SUM($I120:N120),('PTRM input'!$I$331*(1+rvanilla03)^0.5)/A1stdlife)) -> n/a | P120: =IF(A1stdlife="n/a","n/a",IF(P$3>(A1stdlife+$E120),('PTRM input'!$I$331*(1+rvanilla03)^0.5)-SUM($I120:O120),('PTRM input'!$I$331*(1+rvanilla03)^0.5)/A1stdlife)) -> n/a | Q120: =IF(A1stdlife="n/a","n/a",IF(Q$3>(A1stdlife+$E120),('PTRM input'!$I$331*(1+rvanilla03)^0.5)-SUM($I120:P120),('PTRM input'!$I$331*(1+rvanilla03)^0.5)/A1stdlife)) -> n/a | R120: =IF(A1stdlife="n/a","n/a",IF(R$3>(A1stdlife+$E120),('PTRM input'!$I$331*(1+rvanilla03)^0.5)-SUM($I120:Q120),('PTRM input'!$I$331*(1+rvanilla03)^0.5)/A1stdlife)) -> n/a | S120: =IF(A1stdlife="n/a","n/a",IF(S$3>(A1stdlife+$E120),('PTRM input'!$I$331*(1+rvanilla03)^0.5)-SUM($I120:R120),('PTRM input'!$I$331*(1+rvanilla03)^0.5)/A1stdlife)) -> n/a | T120: =IF(A1stdlife="n/a","n/a",IF(T$3>(A1stdlife+$E120),('PTRM input'!$I$331*(1+rvanilla03)^0.5)-SUM($I120:S120),('PTRM input'!$I$331*(1+rvanilla03)^0.5)/A1stdlife)) -> n/a | U120: =IF(A1stdlife="n/a","n/a",IF(U$3>(A1stdlife+$E120),('PTRM input'!$I$331*(1+rvanilla03)^0.5)-SUM($I120:T120),('PTRM input'!$I$331*(1+rvanilla03)^0.5)/A1stdlife)) -> n/a | V120: =IF(A1stdlife="n/a","n/a",IF(V$3>(A1stdlife+$E120),('PTRM input'!$I$331*(1+rvanilla03)^0.5)-SUM($I120:U120),('PTRM input'!$I$331*(1+rvanilla03)^0.5)/A1stdlife)) -> n/a | W120: =IF(A1stdlife="n/a","n/a",IF(W$3>(A1stdlife+$E120),('PTRM input'!$I$331*(1+rvanilla03)^0.5)-SUM($I120:V120),('PTRM input'!$I$331*(1+rvanilla03)^0.5)/A1stdlife)) -> n/a | X120: =IF(A1stdlife="n/a","n/a",IF(X$3>(A1stdlife+$E120),('PTRM input'!$I$331*(1+rvanilla03)^0.5)-SUM($I120:W120),('PTRM input'!$I$331*(1+rvanilla03)^0.5)/A1stdlife)) -> n/a | Y120: =IF(A1stdlife="n/a","n/a",IF(Y$3>(A1stdlife+$E120),('PTRM input'!$I$331*(1+rvanilla03)^0.5)-SUM($I120:X120),('PTRM input'!$I$331*(1+rvanilla03)^0.5)/A1stdlife)) -> n/a | Z120: =IF(A1stdlife="n/a","n/a",IF(Z$3>(A1stdlife+$E120),('PTRM input'!$I$331*(1+rvanilla03)^0.5)-SUM($I120:Y120),('PTRM input'!$I$331*(1+rvanilla03)^0.5)/A1stdlife)) -> n/a | AA120: =IF(A1stdlife="n/a","n/a",IF(AA$3>(A1stdlife+$E120),('PTRM input'!$I$331*(1+rvanilla03)^0.5)-SUM($I120:Z120),('PTRM input'!$I$331*(1+rvanilla03)^0.5)/A1stdlife)) -> n/a | AB120: =IF(A1stdlife="n/a","n/a",IF(AB$3>(A1stdlife+$E120),('PTRM input'!$I$331*(1+rvanilla03)^0.5)-SUM($I120:AA120),('PTRM input'!$I$331*(1+rvanilla03)^0.5)/A1stdlife)) -> n/a | AC120: =IF(A1stdlife="n/a","n/a",IF(AC$3>(A1stdlife+$E120),('PTRM input'!$I$331*(1+rvanilla03)^0.5)-SUM($I120:AB120),('PTRM input'!$I$331*(1+rvanilla03)^0.5)/A1stdlife)) -> n/a | AD120: =IF(A1stdlife="n/a","n/a",IF(AD$3>(A1stdlife+$E120),('PTRM input'!$I$331*(1+rvanilla03)^0.5)-SUM($I120:AC120),('PTRM input'!$I$331*(1+rvanilla03)^0.5)/A1stdlife)) -> n/a | AE120: =IF(A1stdlife="n/a","n/a",IF(AE$3>(A1stdlife+$E120),('PTRM input'!$I$331*(1+rvanilla03)^0.5)-SUM($I120:AD120),('PTRM input'!$I$331*(1+rvanilla03)^0.5)/A1stdlife)) -> n/a | AF120: =IF(A1stdlife="n/a","n/a",IF(AF$3>(A1stdlife+$E120),('PTRM input'!$I$331*(1+rvanilla03)^0.5)-SUM($I120:AE120),('PTRM input'!$I$331*(1+rvanilla03)^0.5)/A1stdlife)) -> n/a | AG120: =IF(A1stdlife="n/a","n/a",IF(AG$3>(A1stdlife+$E120),('PTRM input'!$I$331*(1+rvanilla03)^0.5)-SUM($I120:AF120),('PTRM input'!$I$331*(1+rvanilla03)^0.5)/A1stdlife)) -> n/a | AH120: =IF(A1stdlife="n/a","n/a",IF(AH$3>(A1stdlife+$E120),('PTRM input'!$I$331*(1+rvanilla03)^0.5)-SUM($I120:AG120),('PTRM input'!$I$331*(1+rvanilla03)^0.5)/A1stdlife)) -> n/a | AI120: =IF(A1stdlife="n/a","n/a",IF(AI$3>(A1stdlife+$E120),('PTRM input'!$I$331*(1+rvanilla03)^0.5)-SUM($I120:AH120),('PTRM input'!$I$331*(1+rvanilla03)^0.5)/A1stdlife)) -> n/a | AJ120: =IF(A1stdlife="n/a","n/a",IF(AJ$3>(A1stdlife+$E120),('PTRM input'!$I$331*(1+rvanilla03)^0.5)-SUM($I120:AI120),('PTRM input'!$I$331*(1+rvanilla03)^0.5)/A1stdlife)) -> n/a | AK120: =IF(A1stdlife="n/a","n/a",IF(AK$3>(A1stdlife+$E120),('PTRM input'!$I$331*(1+rvanilla03)^0.5)-SUM($I120:AJ120),('PTRM input'!$I$331*(1+rvanilla03)^0.5)/A1stdlife)) -> n/a | AL120: =IF(A1stdlife="n/a","n/a",IF(AL$3>(A1stdlife+$E120),('PTRM input'!$I$331*(1+rvanilla03)^0.5)-SUM($I120:AK120),('PTRM input'!$I$331*(1+rvanilla03)^0.5)/A1stdlife)) -> n/a | AM120: =IF(A1stdlife="n/a","n/a",IF(AM$3>(A1stdlife+$E120),('PTRM input'!$I$331*(1+rvanilla03)^0.5)-SUM($I120:AL120),('PTRM input'!$I$331*(1+rvanilla03)^0.5)/A1stdlife)) -> n/a | AN120: =IF(A1stdlife="n/a","n/a",IF(AN$3>(A1stdlife+$E120),('PTRM input'!$I$331*(1+rvanilla03)^0.5)-SUM($I120:AM120),('PTRM input'!$I$331*(1+rvanilla03)^0.5)/A1stdlife)) -> n/a | AO120: =IF(A1stdlife="n/a","n/a",IF(AO$3>(A1stdlife+$E120),('PTRM input'!$I$331*(1+rvanilla03)^0.5)-SUM($I120:AN120),('PTRM input'!$I$331*(1+rvanilla03)^0.5)/A1stdlife)) -> n/a | AP120: =IF(A1stdlife="n/a","n/a",IF(AP$3>(A1stdlife+$E120),('PTRM input'!$I$331*(1+rvanilla03)^0.5)-SUM($I120:AO120),('PTRM input'!$I$331*(1+rvanilla03)^0.5)/A1stdlife)) -> n/a | AQ120: =IF(A1stdlife="n/a","n/a",IF(AQ$3>(A1stdlife+$E120),('PTRM input'!$I$331*(1+rvanilla03)^0.5)-SUM($I120:AP120),('PTRM input'!$I$331*(1+rvanilla03)^0.5)/A1stdlife)) -> n/a | AR120: =IF(A1stdlife="n/a","n/a",IF(AR$3>(A1stdlife+$E120),('PTRM input'!$I$331*(1+rvanilla03)^0.5)-SUM($I120:AQ120),('PTRM input'!$I$331*(1+rvanilla03)^0.5)/A1stdlife)) -> n/a | AS120: =IF(A1stdlife="n/a","n/a",IF(AS$3>(A1stdlife+$E120),('PTRM input'!$I$331*(1+rvanilla03)^0.5)-SUM($I120:AR120),('PTRM input'!$I$331*(1+rvanilla03)^0.5)/A1stdlife)) -> n/a | AT120: =IF(A1stdlife="n/a","n/a",IF(AT$3>(A1stdlife+$E120),('PTRM input'!$I$331*(1+rvanilla03)^0.5)-SUM($I120:AS120),('PTRM input'!$I$331*(1+rvanilla03)^0.5)/A1stdlife)) -> n/a | AU120: =IF(A1stdlife="n/a","n/a",IF(AU$3>(A1stdlife+$E120),('PTRM input'!$I$331*(1+rvanilla03)^0.5)-SUM($I120:AT120),('PTRM input'!$I$331*(1+rvanilla03)^0.5)/A1stdlife)) -> n/a | AV120: =IF(A1stdlife="n/a","n/a",IF(AV$3>(A1stdlife+$E120),('PTRM input'!$I$331*(1+rvanilla03)^0.5)-SUM($I120:AU120),('PTRM input'!$I$331*(1+rvanilla03)^0.5)/A1stdlife)) -> n/a | AW120: =IF(A1stdlife="n/a","n/a",IF(AW$3>(A1stdlife+$E120),('PTRM input'!$I$331*(1+rvanilla03)^0.5)-SUM($I120:AV120),('PTRM input'!$I$331*(1+rvanilla03)^0.5)/A1stdlife)) -> n/a | AX120: =IF(A1stdlife="n/a","n/a",IF(AX$3>(A1stdlife+$E120),('PTRM input'!$I$331*(1+rvanilla03)^0.5)-SUM($I120:AW120),('PTRM input'!$I$331*(1+rvanilla03)^0.5)/A1stdlife)) -> n/a | AY120: =IF(A1stdlife="n/a","n/a",IF(AY$3>(A1stdlife+$E120),('PTRM input'!$I$331*(1+rvanilla03)^0.5)-SUM($I120:AX120),('PTRM input'!$I$331*(1+rvanilla03)^0.5)/A1stdlife)) -> n/a | AZ120: =IF(A1stdlife="n/a","n/a",IF(AZ$3>(A1stdlife+$E120),('PTRM input'!$I$331*(1+rvanilla03)^0.5)-SUM($I120:AY120),('PTRM input'!$I$331*(1+rvanilla03)^0.5)/A1stdlife)) -> n/a | BA120: =IF(A1stdlife="n/a","n/a",IF(BA$3>(A1stdlife+$E120),('PTRM input'!$I$331*(1+rvanilla03)^0.5)-SUM($I120:AZ120),('PTRM input'!$I$331*(1+rvanilla03)^0.5)/A1stdlife)) -> n/a | BB120: =IF(A1stdlife="n/a","n/a",IF(BB$3>(A1stdlife+$E120),('PTRM input'!$I$331*(1+rvanilla03)^0.5)-SUM($I120:BA120),('PTRM input'!$I$331*(1+rvanilla03)^0.5)/A1stdlife)) -> n/a | BC120: =IF(A1stdlife="n/a","n/a",IF(BC$3>(A1stdlife+$E120),('PTRM input'!$I$331*(1+rvanilla03)^0.5)-SUM($I120:BB120),('PTRM input'!$I$331*(1+rvanilla03)^0.5)/A1stdlife)) -> n/a | BD120: =IF(A1stdlife="n/a","n/a",IF(BD$3>(A1stdlife+$E120),('PTRM input'!$I$331*(1+rvanilla03)^0.5)-SUM($I120:BC120),('PTRM input'!$I$331*(1+rvanilla03)^0.5)/A1stdlife)) -> n/a | BE120: =IF(A1stdlife="n/a","n/a",IF(BE$3>(A1stdlife+$E120),('PTRM input'!$I$331*(1+rvanilla03)^0.5)-SUM($I120:BD120),('PTRM input'!$I$331*(1+rvanilla03)^0.5)/A1stdlife)) -> n/a | BF120: =IF(A1stdlife="n/a","n/a",IF(BF$3>(A1stdlife+$E120),('PTRM input'!$I$331*(1+rvanilla03)^0.5)-SUM($I120:BE120),('PTRM input'!$I$331*(1+rvanilla03)^0.5)/A1stdlife)) -> n/a | BG120: =IF(A1stdlife="n/a","n/a",IF(BG$3>(A1stdlife+$E120),('PTRM input'!$I$331*(1+rvanilla03)^0.5)-SUM($I120:BF120),('PTRM input'!$I$331*(1+rvanilla03)^0.5)/A1stdlife)) -> n/a | BH120: =IF(A1stdlife="n/a","n/a",IF(BH$3>(A1stdlife+$E120),('PTRM input'!$I$331*(1+rvanilla03)^0.5)-SUM($I120:BG120),('PTRM input'!$I$331*(1+rvanilla03)^0.5)/A1stdlife)) -> n/a | BI120: =IF(A1stdlife="n/a","n/a",IF(BI$3>(A1stdlife+$E120),('PTRM input'!$I$331*(1+rvanilla03)^0.5)-SUM($I120:BH120),('PTRM input'!$I$331*(1+rvanilla03)^0.5)/A1stdlife)) -> n/a
E121: 4 | K121: =IF(A1stdlife="n/a","n/a",IF(K$3>(A1stdlife+$E121),('PTRM input'!$J$331*(1+rvanilla04)^0.5)-SUM(J121:$J121),('PTRM input'!$J$331*(1+rvanilla04)^0.5)/A1stdlife)) -> n/a | L121: =IF(A1stdlife="n/a","n/a",IF(L$3>(A1stdlife+$E121),('PTRM input'!$J$331*(1+rvanilla04)^0.5)-SUM($J121:K121),('PTRM input'!$J$331*(1+rvanilla04)^0.5)/A1stdlife)) -> n/a | M121: =IF(A1stdlife="n/a","n/a",IF(M$3>(A1stdlife+$E121),('PTRM input'!$J$331*(1+rvanilla04)^0.5)-SUM($J121:L121),('PTRM input'!$J$331*(1+rvanilla04)^0.5)/A1stdlife)) -> n/a | N121: =IF(A1stdlife="n/a","n/a",IF(N$3>(A1stdlife+$E121),('PTRM input'!$J$331*(1+rvanilla04)^0.5)-SUM($J121:M121),('PTRM input'!$J$331*(1+rvanilla04)^0.5)/A1stdlife)) -> n/a | O121: =IF(A1stdlife="n/a","n/a",IF(O$3>(A1stdlife+$E121),('PTRM input'!$J$331*(1+rvanilla04)^0.5)-SUM($J121:N121),('PTRM input'!$J$331*(1+rvanilla04)^0.5)/A1stdlife)) -> n/a | P121: =IF(A1stdlife="n/a","n/a",IF(P$3>(A1stdlife+$E121),('PTRM input'!$J$331*(1+rvanilla04)^0.5)-SUM($J121:O121),('PTRM input'!$J$331*(1+rvanilla04)^0.5)/A1stdlife)) -> n/a | Q121: =IF(A1stdlife="n/a","n/a",IF(Q$3>(A1stdlife+$E121),('PTRM input'!$J$331*(1+rvanilla04)^0.5)-SUM($J121:P121),('PTRM input'!$J$331*(1+rvanilla04)^0.5)/A1stdlife)) -> n/a | R121: =IF(A1stdlife="n/a","n/a",IF(R$3>(A1stdlife+$E121),('PTRM input'!$J$331*(1+rvanilla04)^0.5)-SUM($J121:Q121),('PTRM input'!$J$331*(1+rvanilla04)^0.5)/A1stdlife)) -> n/a | S121: =IF(A1stdlife="n/a","n/a",IF(S$3>(A1stdlife+$E121),('PTRM input'!$J$331*(1+rvanilla04)^0.5)-SUM($J121:R121),('PTRM input'!$J$331*(1+rvanilla04)^0.5)/A1stdlife)) -> n/a | T121: =IF(A1stdlife="n/a","n/a",IF(T$3>(A1stdlife+$E121),('PTRM input'!$J$331*(1+rvanilla04)^0.5)-SUM($J121:S121),('PTRM input'!$J$331*(1+rvanilla04)^0.5)/A1stdlife)) -> n/a | U121: =IF(A1stdlife="n/a","n/a",IF(U$3>(A1stdlife+$E121),('PTRM input'!$J$331*(1+rvanilla04)^0.5)-SUM($J121:T121),('PTRM input'!$J$331*(1+rvanilla04)^0.5)/A1stdlife)) -> n/a | V121: =IF(A1stdlife="n/a","n/a",IF(V$3>(A1stdlife+$E121),('PTRM input'!$J$331*(1+rvanilla04)^0.5)-SUM($J121:U121),('PTRM input'!$J$331*(1+rvanilla04)^0.5)/A1stdlife)) -> n/a | W121: =IF(A1stdlife="n/a","n/a",IF(W$3>(A1stdlife+$E121),('PTRM input'!$J$331*(1+rvanilla04)^0.5)-SUM($J121:V121),('PTRM input'!$J$331*(1+rvanilla04)^0.5)/A1stdlife)) -> n/a | X121: =IF(A1stdlife="n/a","n/a",IF(X$3>(A1stdlife+$E121),('PTRM input'!$J$331*(1+rvanilla04)^0.5)-SUM($J121:W121),('PTRM input'!$J$331*(1+rvanilla04)^0.5)/A1stdlife)) -> n/a | Y121: =IF(A1stdlife="n/a","n/a",IF(Y$3>(A1stdlife+$E121),('PTRM input'!$J$331*(1+rvanilla04)^0.5)-SUM($J121:X121),('PTRM input'!$J$331*(1+rvanilla04)^0.5)/A1stdlife)) -> n/a | Z121: =IF(A1stdlife="n/a","n/a",IF(Z$3>(A1stdlife+$E121),('PTRM input'!$J$331*(1+rvanilla04)^0.5)-SUM($J121:Y121),('PTRM input'!$J$331*(1+rvanilla04)^0.5)/A1stdlife)) -> n/a | AA121: =IF(A1stdlife="n/a","n/a",IF(AA$3>(A1stdlife+$E121),('PTRM input'!$J$331*(1+rvanilla04)^0.5)-SUM($J121:Z121),('PTRM input'!$J$331*(1+rvanilla04)^0.5)/A1stdlife)) -> n/a | AB121: =IF(A1stdlife="n/a","n/a",IF(AB$3>(A1stdlife+$E121),('PTRM input'!$J$331*(1+rvanilla04)^0.5)-SUM($J121:AA121),('PTRM input'!$J$331*(1+rvanilla04)^0.5)/A1stdlife)) -> n/a | AC121: =IF(A1stdlife="n/a","n/a",IF(AC$3>(A1stdlife+$E121),('PTRM input'!$J$331*(1+rvanilla04)^0.5)-SUM($J121:AB121),('PTRM input'!$J$331*(1+rvanilla04)^0.5)/A1stdlife)) -> n/a | AD121: =IF(A1stdlife="n/a","n/a",IF(AD$3>(A1stdlife+$E121),('PTRM input'!$J$331*(1+rvanilla04)^0.5)-SUM($J121:AC121),('PTRM input'!$J$331*(1+rvanilla04)^0.5)/A1stdlife)) -> n/a | AE121: =IF(A1stdlife="n/a","n/a",IF(AE$3>(A1stdlife+$E121),('PTRM input'!$J$331*(1+rvanilla04)^0.5)-SUM($J121:AD121),('PTRM input'!$J$331*(1+rvanilla04)^0.5)/A1stdlife)) -> n/a | AF121: =IF(A1stdlife="n/a","n/a",IF(AF$3>(A1stdlife+$E121),('PTRM input'!$J$331*(1+rvanilla04)^0.5)-SUM($J121:AE121),('PTRM input'!$J$331*(1+rvanilla04)^0.5)/A1stdlife)) -> n/a | AG121: =IF(A1stdlife="n/a","n/a",IF(AG$3>(A1stdlife+$E121),('PTRM input'!$J$331*(1+rvanilla04)^0.5)-SUM($J121:AF121),('PTRM input'!$J$331*(1+rvanilla04)^0.5)/A1stdlife)) -> n/a | AH121: =IF(A1stdlife="n/a","n/a",IF(AH$3>(A1stdlife+$E121),('PTRM input'!$J$331*(1+rvanilla04)^0.5)-SUM($J121:AG121),('PTRM input'!$J$331*(1+rvanilla04)^0.5)/A1stdlife)) -> n/a | AI121: =IF(A1stdlife="n/a","n/a",IF(AI$3>(A1stdlife+$E121),('PTRM input'!$J$331*(1+rvanilla04)^0.5)-SUM($J121:AH121),('PTRM input'!$J$331*(1+rvanilla04)^0.5)/A1stdlife)) -> n/a | AJ121: =IF(A1stdlife="n/a","n/a",IF(AJ$3>(A1stdlife+$E121),('PTRM input'!$J$331*(1+rvanilla04)^0.5)-SUM($J121:AI121),('PTRM input'!$J$331*(1+rvanilla04)^0.5)/A1stdlife)) -> n/a | AK121: =IF(A1stdlife="n/a","n/a",IF(AK$3>(A1stdlife+$E121),('PTRM input'!$J$331*(1+rvanilla04)^0.5)-SUM($J121:AJ121),('PTRM input'!$J$331*(1+rvanilla04)^0.5)/A1stdlife)) -> n/a | AL121: =IF(A1stdlife="n/a","n/a",IF(AL$3>(A1stdlife+$E121),('PTRM input'!$J$331*(1+rvanilla04)^0.5)-SUM($J121:AK121),('PTRM input'!$J$331*(1+rvanilla04)^0.5)/A1stdlife)) -> n/a | AM121: =IF(A1stdlife="n/a","n/a",IF(AM$3>(A1stdlife+$E121),('PTRM input'!$J$331*(1+rvanilla04)^0.5)-SUM($J121:AL121),('PTRM input'!$J$331*(1+rvanilla04)^0.5)/A1stdlife)) -> n/a | AN121: =IF(A1stdlife="n/a","n/a",IF(AN$3>(A1stdlife+$E121),('PTRM input'!$J$331*(1+rvanilla04)^0.5)-SUM($J121:AM121),('PTRM input'!$J$331*(1+rvanilla04)^0.5)/A1stdlife)) -> n/a | AO121: =IF(A1stdlife="n/a","n/a",IF(AO$3>(A1stdlife+$E121),('PTRM input'!$J$331*(1+rvanilla04)^0.5)-SUM($J121:AN121),('PTRM input'!$J$331*(1+rvanilla04)^0.5)/A1stdlife)) -> n/a | AP121: =IF(A1stdlife="n/a","n/a",IF(AP$3>(A1stdlife+$E121),('PTRM input'!$J$331*(1+rvanilla04)^0.5)-SUM($J121:AO121),('PTRM input'!$J$331*(1+rvanilla04)^0.5)/A1stdlife)) -> n/a | AQ121: =IF(A1stdlife="n/a","n/a",IF(AQ$3>(A1stdlife+$E121),('PTRM input'!$J$331*(1+rvanilla04)^0.5)-SUM($J121:AP121),('PTRM input'!$J$331*(1+rvanilla04)^0.5)/A1stdlife)) -> n/a | AR121: =IF(A1stdlife="n/a","n/a",IF(AR$3>(A1stdlife+$E121),('PTRM input'!$J$331*(1+rvanilla04)^0.5)-SUM($J121:AQ121),('PTRM input'!$J$331*(1+rvanilla04)^0.5)/A1stdlife)) -> n/a | AS121: =IF(A1stdlife="n/a","n/a",IF(AS$3>(A1stdlife+$E121),('PTRM input'!$J$331*(1+rvanilla04)^0.5)-SUM($J121:AR121),('PTRM input'!$J$331*(1+rvanilla04)^0.5)/A1stdlife)) -> n/a | AT121: =IF(A1stdlife="n/a","n/a",IF(AT$3>(A1stdlife+$E121),('PTRM input'!$J$331*(1+rvanilla04)^0.5)-SUM($J121:AS121),('PTRM input'!$J$331*(1+rvanilla04)^0.5)/A1stdlife)) -> n/a | AU121: =IF(A1stdlife="n/a","n/a",IF(AU$3>(A1stdlife+$E121),('PTRM input'!$J$331*(1+rvanilla04)^0.5)-SUM($J121:AT121),('PTRM input'!$J$331*(1+rvanilla04)^0.5)/A1stdlife)) -> n/a | AV121: =IF(A1stdlife="n/a","n/a",IF(AV$3>(A1stdlife+$E121),('PTRM input'!$J$331*(1+rvanilla04)^0.5)-SUM($J121:AU121),('PTRM input'!$J$331*(1+rvanilla04)^0.5)/A1stdlife)) -> n/a | AW121: =IF(A1stdlife="n/a","n/a",IF(AW$3>(A1stdlife+$E121),('PTRM input'!$J$331*(1+rvanilla04)^0.5)-SUM($J121:AV121),('PTRM input'!$J$331*(1+rvanilla04)^0.5)/A1stdlife)) -> n/a | AX121: =IF(A1stdlife="n/a","n/a",IF(AX$3>(A1stdlife+$E121),('PTRM input'!$J$331*(1+rvanilla04)^0.5)-SUM($J121:AW121),('PTRM input'!$J$331*(1+rvanilla04)^0.5)/A1stdlife)) -> n/a | AY121: =IF(A1stdlife="n/a","n/a",IF(AY$3>(A1stdlife+$E121),('PTRM input'!$J$331*(1+rvanilla04)^0.5)-SUM($J121:AX121),('PTRM input'!$J$331*(1+rvanilla04)^0.5)/A1stdlife)) -> n/a | AZ121: =IF(A1stdlife="n/a","n/a",IF(AZ$3>(A1stdlife+$E121),('PTRM input'!$J$331*(1+rvanilla04)^0.5)-SUM($J121:AY121),('PTRM input'!$J$331*(1+rvanilla04)^0.5)/A1stdlife)) -> n/a | BA121: =IF(A1stdlife="n/a","n/a",IF(BA$3>(A1stdlife+$E121),('PTRM input'!$J$331*(1+rvanilla04)^0.5)-SUM($J121:AZ121),('PTRM input'!$J$331*(1+rvanilla04)^0.5)/A1stdlife)) -> n/a | BB121: =IF(A1stdlife="n/a","n/a",IF(BB$3>(A1stdlife+$E121),('PTRM input'!$J$331*(1+rvanilla04)^0.5)-SUM($J121:BA121),('PTRM input'!$J$331*(1+rvanilla04)^0.5)/A1stdlife)) -> n/a | BC121: =IF(A1stdlife="n/a","n/a",IF(BC$3>(A1stdlife+$E121),('PTRM input'!$J$331*(1+rvanilla04)^0.5)-SUM($J121:BB121),('PTRM input'!$J$331*(1+rvanilla04)^0.5)/A1stdlife)) -> n/a | BD121: =IF(A1stdlife="n/a","n/a",IF(BD$3>(A1stdlife+$E121),('PTRM input'!$J$331*(1+rvanilla04)^0.5)-SUM($J121:BC121),('PTRM input'!$J$331*(1+rvanilla04)^0.5)/A1stdlife)) -> n/a | BE121: =IF(A1stdlife="n/a","n/a",IF(BE$3>(A1stdlife+$E121),('PTRM input'!$J$331*(1+rvanilla04)^0.5)-SUM($J121:BD121),('PTRM input'!$J$331*(1+rvanilla04)^0.5)/A1stdlife)) -> n/a | BF121: =IF(A1stdlife="n/a","n/a",IF(BF$3>(A1stdlife+$E121),('PTRM input'!$J$331*(1+rvanilla04)^0.5)-SUM($J121:BE121),('PTRM input'!$J$331*(1+rvanilla04)^0.5)/A1stdlife)) -> n/a | BG121: =IF(A1stdlife="n/a","n/a",IF(BG$3>(A1stdlife+$E121),('PTRM input'!$J$331*(1+rvanilla04)^0.5)-SUM($J121:BF121),('PTRM input'!$J$331*(1+rvanilla04)^0.5)/A1stdlife)) -> n/a | BH121: =IF(A1stdlife="n/a","n/a",IF(BH$3>(A1stdlife+$E121),('PTRM input'!$J$331*(1+rvanilla04)^0.5)-SUM($J121:BG121),('PTRM input'!$J$331*(1+rvanilla04)^0.5)/A1stdlife)) -> n/a | BI121: =IF(A1stdlife="n/a","n/a",IF(BI$3>(A1stdlife+$E121),('PTRM input'!$J$331*(1+rvanilla04)^0.5)-SUM($J121:BH121),('PTRM input'!$J$331*(1+rvanilla04)^0.5)/A1stdlife)) -> n/a
E122: 5 | L122: =IF(A1stdlife="n/a","n/a",IF(L$3>(A1stdlife+$E122),('PTRM input'!$K$331*(1+rvanilla05)^0.5)-SUM($K122:K122),('PTRM input'!$K$331*(1+rvanilla05)^0.5)/A1stdlife)) -> n/a | M122: =IF(A1stdlife="n/a","n/a",IF(M$3>(A1stdlife+$E122),('PTRM input'!$K$331*(1+rvanilla05)^0.5)-SUM($K122:L122),('PTRM input'!$K$331*(1+rvanilla05)^0.5)/A1stdlife)) -> n/a | N122: =IF(A1stdlife="n/a","n/a",IF(N$3>(A1stdlife+$E122),('PTRM input'!$K$331*(1+rvanilla05)^0.5)-SUM($K122:M122),('PTRM input'!$K$331*(1+rvanilla05)^0.5)/A1stdlife)) -> n/a | O122: =IF(A1stdlife="n/a","n/a",IF(O$3>(A1stdlife+$E122),('PTRM input'!$K$331*(1+rvanilla05)^0.5)-SUM($K122:N122),('PTRM input'!$K$331*(1+rvanilla05)^0.5)/A1stdlife)) -> n/a | P122: =IF(A1stdlife="n/a","n/a",IF(P$3>(A1stdlife+$E122),('PTRM input'!$K$331*(1+rvanilla05)^0.5)-SUM($K122:O122),('PTRM input'!$K$331*(1+rvanilla05)^0.5)/A1stdlife)) -> n/a | Q122: =IF(A1stdlife="n/a","n/a",IF(Q$3>(A1stdlife+$E122),('PTRM input'!$K$331*(1+rvanilla05)^0.5)-SUM($K122:P122),('PTRM input'!$K$331*(1+rvanilla05)^0.5)/A1stdlife)) -> n/a | R122: =IF(A1stdlife="n/a","n/a",IF(R$3>(A1stdlife+$E122),('PTRM input'!$K$331*(1+rvanilla05)^0.5)-SUM($K122:Q122),('PTRM input'!$K$331*(1+rvanilla05)^0.5)/A1stdlife)) -> n/a | S122: =IF(A1stdlife="n/a","n/a",IF(S$3>(A1stdlife+$E122),('PTRM input'!$K$331*(1+rvanilla05)^0.5)-SUM($K122:R122),('PTRM input'!$K$331*(1+rvanilla05)^0.5)/A1stdlife)) -> n/a | T122: =IF(A1stdlife="n/a","n/a",IF(T$3>(A1stdlife+$E122),('PTRM input'!$K$331*(1+rvanilla05)^0.5)-SUM($K122:S122),('PTRM input'!$K$331*(1+rvanilla05)^0.5)/A1stdlife)) -> n/a | U122: =IF(A1stdlife="n/a","n/a",IF(U$3>(A1stdlife+$E122),('PTRM input'!$K$331*(1+rvanilla05)^0.5)-SUM($K122:T122),('PTRM input'!$K$331*(1+rvanilla05)^0.5)/A1stdlife)) -> n/a | V122: =IF(A1stdlife="n/a","n/a",IF(V$3>(A1stdlife+$E122),('PTRM input'!$K$331*(1+rvanilla05)^0.5)-SUM($K122:U122),('PTRM input'!$K$331*(1+rvanilla05)^0.5)/A1stdlife)) -> n/a | W122: =IF(A1stdlife="n/a","n/a",IF(W$3>(A1stdlife+$E122),('PTRM input'!$K$331*(1+rvanilla05)^0.5)-SUM($K122:V122),('PTRM input'!$K$331*(1+rvanilla05)^0.5)/A1stdlife)) -> n/a | X122: =IF(A1stdlife="n/a","n/a",IF(X$3>(A1stdlife+$E122),('PTRM input'!$K$331*(1+rvanilla05)^0.5)-SUM($K122:W122),('PTRM input'!$K$331*(1+rvanilla05)^0.5)/A1stdlife)) -> n/a | Y122: =IF(A1stdlife="n/a","n/a",IF(Y$3>(A1stdlife+$E122),('PTRM input'!$K$331*(1+rvanilla05)^0.5)-SUM($K122:X122),('PTRM input'!$K$331*(1+rvanilla05)^0.5)/A1stdlife)) -> n/a | Z122: =IF(A1stdlife="n/a","n/a",IF(Z$3>(A1stdlife+$E122),('PTRM input'!$K$331*(1+rvanilla05)^0.5)-SUM($K122:Y122),('PTRM input'!$K$331*(1+rvanilla05)^0.5)/A1stdlife)) -> n/a | AA122: =IF(A1stdlife="n/a","n/a",IF(AA$3>(A1stdlife+$E122),('PTRM input'!$K$331*(1+rvanilla05)^0.5)-SUM($K122:Z122),('PTRM input'!$K$331*(1+rvanilla05)^0.5)/A1stdlife)) -> n/a | AB122: =IF(A1stdlife="n/a","n/a",IF(AB$3>(A1stdlife+$E122),('PTRM input'!$K$331*(1+rvanilla05)^0.5)-SUM($K122:AA122),('PTRM input'!$K$331*(1+rvanilla05)^0.5)/A1stdlife)) -> n/a | AC122: =IF(A1stdlife="n/a","n/a",IF(AC$3>(A1stdlife+$E122),('PTRM input'!$K$331*(1+rvanilla05)^0.5)-SUM($K122:AB122),('PTRM input'!$K$331*(1+rvanilla05)^0.5)/A1stdlife)) -> n/a | AD122: =IF(A1stdlife="n/a","n/a",IF(AD$3>(A1stdlife+$E122),('PTRM input'!$K$331*(1+rvanilla05)^0.5)-SUM($K122:AC122),('PTRM input'!$K$331*(1+rvanilla05)^0.5)/A1stdlife)) -> n/a | AE122: =IF(A1stdlife="n/a","n/a",IF(AE$3>(A1stdlife+$E122),('PTRM input'!$K$331*(1+rvanilla05)^0.5)-SUM($K122:AD122),('PTRM input'!$K$331*(1+rvanilla05)^0.5)/A1stdlife)) -> n/a | AF122: =IF(A1stdlife="n/a","n/a",IF(AF$3>(A1stdlife+$E122),('PTRM input'!$K$331*(1+rvanilla05)^0.5)-SUM($K122:AE122),('PTRM input'!$K$331*(1+rvanilla05)^0.5)/A1stdlife)) -> n/a | AG122: =IF(A1stdlife="n/a","n/a",IF(AG$3>(A1stdlife+$E122),('PTRM input'!$K$331*(1+rvanilla05)^0.5)-SUM($K122:AF122),('PTRM input'!$K$331*(1+rvanilla05)^0.5)/A1stdlife)) -> n/a | AH122: =IF(A1stdlife="n/a","n/a",IF(AH$3>(A1stdlife+$E122),('PTRM input'!$K$331*(1+rvanilla05)^0.5)-SUM($K122:AG122),('PTRM input'!$K$331*(1+rvanilla05)^0.5)/A1stdlife)) -> n/a | AI122: =IF(A1stdlife="n/a","n/a",IF(AI$3>(A1stdlife+$E122),('PTRM input'!$K$331*(1+rvanilla05)^0.5)-SUM($K122:AH122),('PTRM input'!$K$331*(1+rvanilla05)^0.5)/A1stdlife)) -> n/a | AJ122: =IF(A1stdlife="n/a","n/a",IF(AJ$3>(A1stdlife+$E122),('PTRM input'!$K$331*(1+rvanilla05)^0.5)-SUM($K122:AI122),('PTRM input'!$K$331*(1+rvanilla05)^0.5)/A1stdlife)) -> n/a | AK122: =IF(A1stdlife="n/a","n/a",IF(AK$3>(A1stdlife+$E122),('PTRM input'!$K$331*(1+rvanilla05)^0.5)-SUM($K122:AJ122),('PTRM input'!$K$331*(1+rvanilla05)^0.5)/A1stdlife)) -> n/a | AL122: =IF(A1stdlife="n/a","n/a",IF(AL$3>(A1stdlife+$E122),('PTRM input'!$K$331*(1+rvanilla05)^0.5)-SUM($K122:AK122),('PTRM input'!$K$331*(1+rvanilla05)^0.5)/A1stdlife)) -> n/a | AM122: =IF(A1stdlife="n/a","n/a",IF(AM$3>(A1stdlife+$E122),('PTRM input'!$K$331*(1+rvanilla05)^0.5)-SUM($K122:AL122),('PTRM input'!$K$331*(1+rvanilla05)^0.5)/A1stdlife)) -> n/a | AN122: =IF(A1stdlife="n/a","n/a",IF(AN$3>(A1stdlife+$E122),('PTRM input'!$K$331*(1+rvanilla05)^0.5)-SUM($K122:AM122),('PTRM input'!$K$331*(1+rvanilla05)^0.5)/A1stdlife)) -> n/a | AO122: =IF(A1stdlife="n/a","n/a",IF(AO$3>(A1stdlife+$E122),('PTRM input'!$K$331*(1+rvanilla05)^0.5)-SUM($K122:AN122),('PTRM input'!$K$331*(1+rvanilla05)^0.5)/A1stdlife)) -> n/a | AP122: =IF(A1stdlife="n/a","n/a",IF(AP$3>(A1stdlife+$E122),('PTRM input'!$K$331*(1+rvanilla05)^0.5)-SUM($K122:AO122),('PTRM input'!$K$331*(1+rvanilla05)^0.5)/A1stdlife)) -> n/a | AQ122: =IF(A1stdlife="n/a","n/a",IF(AQ$3>(A1stdlife+$E122),('PTRM input'!$K$331*(1+rvanilla05)^0.5)-SUM($K122:AP122),('PTRM input'!$K$331*(1+rvanilla05)^0.5)/A1stdlife)) -> n/a | AR122: =IF(A1stdlife="n/a","n/a",IF(AR$3>(A1stdlife+$E122),('PTRM input'!$K$331*(1+rvanilla05)^0.5)-SUM($K122:AQ122),('PTRM input'!$K$331*(1+rvanilla05)^0.5)/A1stdlife)) -> n/a | AS122: =IF(A1stdlife="n/a","n/a",IF(AS$3>(A1stdlife+$E122),('PTRM input'!$K$331*(1+rvanilla05)^0.5)-SUM($K122:AR122),('PTRM input'!$K$331*(1+rvanilla05)^0.5)/A1stdlife)) -> n/a | AT122: =IF(A1stdlife="n/a","n/a",IF(AT$3>(A1stdlife+$E122),('PTRM input'!$K$331*(1+rvanilla05)^0.5)-SUM($K122:AS122),('PTRM input'!$K$331*(1+rvanilla05)^0.5)/A1stdlife)) -> n/a | AU122: =IF(A1stdlife="n/a","n/a",IF(AU$3>(A1stdlife+$E122),('PTRM input'!$K$331*(1+rvanilla05)^0.5)-SUM($K122:AT122),('PTRM input'!$K$331*(1+rvanilla05)^0.5)/A1stdlife)) -> n/a | AV122: =IF(A1stdlife="n/a","n/a",IF(AV$3>(A1stdlife+$E122),('PTRM input'!$K$331*(1+rvanilla05)^0.5)-SUM($K122:AU122),('PTRM input'!$K$331*(1+rvanilla05)^0.5)/A1stdlife)) -> n/a | AW122: =IF(A1stdlife="n/a","n/a",IF(AW$3>(A1stdlife+$E122),('PTRM input'!$K$331*(1+rvanilla05)^0.5)-SUM($K122:AV122),('PTRM input'!$K$331*(1+rvanilla05)^0.5)/A1stdlife)) -> n/a | AX122: =IF(A1stdlife="n/a","n/a",IF(AX$3>(A1stdlife+$E122),('PTRM input'!$K$331*(1+rvanilla05)^0.5)-SUM($K122:AW122),('PTRM input'!$K$331*(1+rvanilla05)^0.5)/A1stdlife)) -> n/a | AY122: =IF(A1stdlife="n/a","n/a",IF(AY$3>(A1stdlife+$E122),('PTRM input'!$K$331*(1+rvanilla05)^0.5)-SUM($K122:AX122),('PTRM input'!$K$331*(1+rvanilla05)^0.5)/A1stdlife)) -> n/a | AZ122: =IF(A1stdlife="n/a","n/a",IF(AZ$3>(A1stdlife+$E122),('PTRM input'!$K$331*(1+rvanilla05)^0.5)-SUM($K122:AY122),('PTRM input'!$K$331*(1+rvanilla05)^0.5)/A1stdlife)) -> n/a | BA122: =IF(A1stdlife="n/a","n/a",IF(BA$3>(A1stdlife+$E122),('PTRM input'!$K$331*(1+rvanilla05)^0.5)-SUM($K122:AZ122),('PTRM input'!$K$331*(1+rvanilla05)^0.5)/A1stdlife)) -> n/a | BB122: =IF(A1stdlife="n/a","n/a",IF(BB$3>(A1stdlife+$E122),('PTRM input'!$K$331*(1+rvanilla05)^0.5)-SUM($K122:BA122),('PTRM input'!$K$331*(1+rvanilla05)^0.5)/A1stdlife)) -> n/a | BC122: =IF(A1stdlife="n/a","n/a",IF(BC$3>(A1stdlife+$E122),('PTRM input'!$K$331*(1+rvanilla05)^0.5)-SUM($K122:BB122),('PTRM input'!$K$331*(1+rvanilla05)^0.5)/A1stdlife)) -> n/a | BD122: =IF(A1stdlife="n/a","n/a",IF(BD$3>(A1stdlife+$E122),('PTRM input'!$K$331*(1+rvanilla05)^0.5)-SUM($K122:BC122),('PTRM input'!$K$331*(1+rvanilla05)^0.5)/A1stdlife)) -> n/a | BE122: =IF(A1stdlife="n/a","n/a",IF(BE$3>(A1stdlife+$E122),('PTRM input'!$K$331*(1+rvanilla05)^0.5)-SUM($K122:BD122),('PTRM input'!$K$331*(1+rvanilla05)^0.5)/A1stdlife)) -> n/a | BF122: =IF(A1stdlife="n/a","n/a",IF(BF$3>(A1stdlife+$E122),('PTRM input'!$K$331*(1+rvanilla05)^0.5)-SUM($K122:BE122),('PTRM input'!$K$331*(1+rvanilla05)^0.5)/A1stdlife)) -> n/a | BG122: =IF(A1stdlife="n/a","n/a",IF(BG$3>(A1stdlife+$E122),('PTRM input'!$K$331*(1+rvanilla05)^0.5)-SUM($K122:BF122),('PTRM input'!$K$331*(1+rvanilla05)^0.5)/A1stdlife)) -> n/a | BH122: =IF(A1stdlife="n/a","n/a",IF(BH$3>(A1stdlife+$E122),('PTRM input'!$K$331*(1+rvanilla05)^0.5)-SUM($K122:BG122),('PTRM input'!$K$331*(1+rvanilla05)^0.5)/A1stdlife)) -> n/a | BI122: =IF(A1stdlife="n/a","n/a",IF(BI$3>(A1stdlife+$E122),('PTRM input'!$K$331*(1+rvanilla05)^0.5)-SUM($K122:BH122),('PTRM input'!$K$331*(1+rvanilla05)^0.5)/A1stdlife)) -> n/a
E123: 6 | M123: =IF(A1stdlife="n/a","n/a",IF(M$3>(A1stdlife+$E123),('PTRM input'!$L$331*(1+rvanilla06)^0.5)-SUM($L123:L123),('PTRM input'!$L$331*(1+rvanilla06)^0.5)/A1stdlife)) -> n/a | N123: =IF(A1stdlife="n/a","n/a",IF(N$3>(A1stdlife+$E123),('PTRM input'!$L$331*(1+rvanilla06)^0.5)-SUM($L123:M123),('PTRM input'!$L$331*(1+rvanilla06)^0.5)/A1stdlife)) -> n/a | O123: =IF(A1stdlife="n/a","n/a",IF(O$3>(A1stdlife+$E123),('PTRM input'!$L$331*(1+rvanilla06)^0.5)-SUM($L123:N123),('PTRM input'!$L$331*(1+rvanilla06)^0.5)/A1stdlife)) -> n/a | P123: =IF(A1stdlife="n/a","n/a",IF(P$3>(A1stdlife+$E123),('PTRM input'!$L$331*(1+rvanilla06)^0.5)-SUM($L123:O123),('PTRM input'!$L$331*(1+rvanilla06)^0.5)/A1stdlife)) -> n/a | Q123: =IF(A1stdlife="n/a","n/a",IF(Q$3>(A1stdlife+$E123),('PTRM input'!$L$331*(1+rvanilla06)^0.5)-SUM($L123:P123),('PTRM input'!$L$331*(1+rvanilla06)^0.5)/A1stdlife)) -> n/a | R123: =IF(A1stdlife="n/a","n/a",IF(R$3>(A1stdlife+$E123),('PTRM input'!$L$331*(1+rvanilla06)^0.5)-SUM($L123:Q123),('PTRM input'!$L$331*(1+rvanilla06)^0.5)/A1stdlife)) -> n/a | S123: =IF(A1stdlife="n/a","n/a",IF(S$3>(A1stdlife+$E123),('PTRM input'!$L$331*(1+rvanilla06)^0.5)-SUM($L123:R123),('PTRM input'!$L$331*(1+rvanilla06)^0.5)/A1stdlife)) -> n/a | T123: =IF(A1stdlife="n/a","n/a",IF(T$3>(A1stdlife+$E123),('PTRM input'!$L$331*(1+rvanilla06)^0.5)-SUM($L123:S123),('PTRM input'!$L$331*(1+rvanilla06)^0.5)/A1stdlife)) -> n/a | U123: =IF(A1stdlife="n/a","n/a",IF(U$3>(A1stdlife+$E123),('PTRM input'!$L$331*(1+rvanilla06)^0.5)-SUM($L123:T123),('PTRM input'!$L$331*(1+rvanilla06)^0.5)/A1stdlife)) -> n/a | V123: =IF(A1stdlife="n/a","n/a",IF(V$3>(A1stdlife+$E123),('PTRM input'!$L$331*(1+rvanilla06)^0.5)-SUM($L123:U123),('PTRM input'!$L$331*(1+rvanilla06)^0.5)/A1stdlife)) -> n/a | W123: =IF(A1stdlife="n/a","n/a",IF(W$3>(A1stdlife+$E123),('PTRM input'!$L$331*(1+rvanilla06)^0.5)-SUM($L123:V123),('PTRM input'!$L$331*(1+rvanilla06)^0.5)/A1stdlife)) -> n/a | X123: =IF(A1stdlife="n/a","n/a",IF(X$3>(A1stdlife+$E123),('PTRM input'!$L$331*(1+rvanilla06)^0.5)-SUM($L123:W123),('PTRM input'!$L$331*(1+rvanilla06)^0.5)/A1stdlife)) -> n/a | Y123: =IF(A1stdlife="n/a","n/a",IF(Y$3>(A1stdlife+$E123),('PTRM input'!$L$331*(1+rvanilla06)^0.5)-SUM($L123:X123),('PTRM input'!$L$331*(1+rvanilla06)^0.5)/A1stdlife)) -> n/a | Z123: =IF(A1stdlife="n/a","n/a",IF(Z$3>(A1stdlife+$E123),('PTRM input'!$L$331*(1+rvanilla06)^0.5)-SUM($L123:Y123),('PTRM input'!$L$331*(1+rvanilla06)^0.5)/A1stdlife)) -> n/a | AA123: =IF(A1stdlife="n/a","n/a",IF(AA$3>(A1stdlife+$E123),('PTRM input'!$L$331*(1+rvanilla06)^0.5)-SUM($L123:Z123),('PTRM input'!$L$331*(1+rvanilla06)^0.5)/A1stdlife)) -> n/a | AB123: =IF(A1stdlife="n/a","n/a",IF(AB$3>(A1stdlife+$E123),('PTRM input'!$L$331*(1+rvanilla06)^0.5)-SUM($L123:AA123),('PTRM input'!$L$331*(1+rvanilla06)^0.5)/A1stdlife)) -> n/a | AC123: =IF(A1stdlife="n/a","n/a",IF(AC$3>(A1stdlife+$E123),('PTRM input'!$L$331*(1+rvanilla06)^0.5)-SUM($L123:AB123),('PTRM input'!$L$331*(1+rvanilla06)^0.5)/A1stdlife)) -> n/a | AD123: =IF(A1stdlife="n/a","n/a",IF(AD$3>(A1stdlife+$E123),('PTRM input'!$L$331*(1+rvanilla06)^0.5)-SUM($L123:AC123),('PTRM input'!$L$331*(1+rvanilla06)^0.5)/A1stdlife)) -> n/a | AE123: =IF(A1stdlife="n/a","n/a",IF(AE$3>(A1stdlife+$E123),('PTRM input'!$L$331*(1+rvanilla06)^0.5)-SUM($L123:AD123),('PTRM input'!$L$331*(1+rvanilla06)^0.5)/A1stdlife)) -> n/a | AF123: =IF(A1stdlife="n/a","n/a",IF(AF$3>(A1stdlife+$E123),('PTRM input'!$L$331*(1+rvanilla06)^0.5)-SUM($L123:AE123),('PTRM input'!$L$331*(1+rvanilla06)^0.5)/A1stdlife)) -> n/a | AG123: =IF(A1stdlife="n/a","n/a",IF(AG$3>(A1stdlife+$E123),('PTRM input'!$L$331*(1+rvanilla06)^0.5)-SUM($L123:AF123),('PTRM input'!$L$331*(1+rvanilla06)^0.5)/A1stdlife)) -> n/a | AH123: =IF(A1stdlife="n/a","n/a",IF(AH$3>(A1stdlife+$E123),('PTRM input'!$L$331*(1+rvanilla06)^0.5)-SUM($L123:AG123),('PTRM input'!$L$331*(1+rvanilla06)^0.5)/A1stdlife)) -> n/a | AI123: =IF(A1stdlife="n/a","n/a",IF(AI$3>(A1stdlife+$E123),('PTRM input'!$L$331*(1+rvanilla06)^0.5)-SUM($L123:AH123),('PTRM input'!$L$331*(1+rvanilla06)^0.5)/A1stdlife)) -> n/a | AJ123: =IF(A1stdlife="n/a","n/a",IF(AJ$3>(A1stdlife+$E123),('PTRM input'!$L$331*(1+rvanilla06)^0.5)-SUM($L123:AI123),('PTRM input'!$L$331*(1+rvanilla06)^0.5)/A1stdlife)) -> n/a | AK123: =IF(A1stdlife="n/a","n/a",IF(AK$3>(A1stdlife+$E123),('PTRM input'!$L$331*(1+rvanilla06)^0.5)-SUM($L123:AJ123),('PTRM input'!$L$331*(1+rvanilla06)^0.5)/A1stdlife)) -> n/a | AL123: =IF(A1stdlife="n/a","n/a",IF(AL$3>(A1stdlife+$E123),('PTRM input'!$L$331*(1+rvanilla06)^0.5)-SUM($L123:AK123),('PTRM input'!$L$331*(1+rvanilla06)^0.5)/A1stdlife)) -> n/a | AM123: =IF(A1stdlife="n/a","n/a",IF(AM$3>(A1stdlife+$E123),('PTRM input'!$L$331*(1+rvanilla06)^0.5)-SUM($L123:AL123),('PTRM input'!$L$331*(1+rvanilla06)^0.5)/A1stdlife)) -> n/a | AN123: =IF(A1stdlife="n/a","n/a",IF(AN$3>(A1stdlife+$E123),('PTRM input'!$L$331*(1+rvanilla06)^0.5)-SUM($L123:AM123),('PTRM input'!$L$331*(1+rvanilla06)^0.5)/A1stdlife)) -> n/a | AO123: =IF(A1stdlife="n/a","n/a",IF(AO$3>(A1stdlife+$E123),('PTRM input'!$L$331*(1+rvanilla06)^0.5)-SUM($L123:AN123),('PTRM input'!$L$331*(1+rvanilla06)^0.5)/A1stdlife)) -> n/a | AP123: =IF(A1stdlife="n/a","n/a",IF(AP$3>(A1stdlife+$E123),('PTRM input'!$L$331*(1+rvanilla06)^0.5)-SUM($L123:AO123),('PTRM input'!$L$331*(1+rvanilla06)^0.5)/A1stdlife)) -> n/a | AQ123: =IF(A1stdlife="n/a","n/a",IF(AQ$3>(A1stdlife+$E123),('PTRM input'!$L$331*(1+rvanilla06)^0.5)-SUM($L123:AP123),('PTRM input'!$L$331*(1+rvanilla06)^0.5)/A1stdlife)) -> n/a | AR123: =IF(A1stdlife="n/a","n/a",IF(AR$3>(A1stdlife+$E123),('PTRM input'!$L$331*(1+rvanilla06)^0.5)-SUM($L123:AQ123),('PTRM input'!$L$331*(1+rvanilla06)^0.5)/A1stdlife)) -> n/a | AS123: =IF(A1stdlife="n/a","n/a",IF(AS$3>(A1stdlife+$E123),('PTRM input'!$L$331*(1+rvanilla06)^0.5)-SUM($L123:AR123),('PTRM input'!$L$331*(1+rvanilla06)^0.5)/A1stdlife)) -> n/a | AT123: =IF(A1stdlife="n/a","n/a",IF(AT$3>(A1stdlife+$E123),('PTRM input'!$L$331*(1+rvanilla06)^0.5)-SUM($L123:AS123),('PTRM input'!$L$331*(1+rvanilla06)^0.5)/A1stdlife)) -> n/a | AU123: =IF(A1stdlife="n/a","n/a",IF(AU$3>(A1stdlife+$E123),('PTRM input'!$L$331*(1+rvanilla06)^0.5)-SUM($L123:AT123),('PTRM input'!$L$331*(1+rvanilla06)^0.5)/A1stdlife)) -> n/a | AV123: =IF(A1stdlife="n/a","n/a",IF(AV$3>(A1stdlife+$E123),('PTRM input'!$L$331*(1+rvanilla06)^0.5)-SUM($L123:AU123),('PTRM input'!$L$331*(1+rvanilla06)^0.5)/A1stdlife)) -> n/a | AW123: =IF(A1stdlife="n/a","n/a",IF(AW$3>(A1stdlife+$E123),('PTRM input'!$L$331*(1+rvanilla06)^0.5)-SUM($L123:AV123),('PTRM input'!$L$331*(1+rvanilla06)^0.5)/A1stdlife)) -> n/a | AX123: =IF(A1stdlife="n/a","n/a",IF(AX$3>(A1stdlife+$E123),('PTRM input'!$L$331*(1+rvanilla06)^0.5)-SUM($L123:AW123),('PTRM input'!$L$331*(1+rvanilla06)^0.5)/A1stdlife)) -> n/a | AY123: =IF(A1stdlife="n/a","n/a",IF(AY$3>(A1stdlife+$E123),('PTRM input'!$L$331*(1+rvanilla06)^0.5)-SUM($L123:AX123),('PTRM input'!$L$331*(1+rvanilla06)^0.5)/A1stdlife)) -> n/a | AZ123: =IF(A1stdlife="n/a","n/a",IF(AZ$3>(A1stdlife+$E123),('PTRM input'!$L$331*(1+rvanilla06)^0.5)-SUM($L123:AY123),('PTRM input'!$L$331*(1+rvanilla06)^0.5)/A1stdlife)) -> n/a | BA123: =IF(A1stdlife="n/a","n/a",IF(BA$3>(A1stdlife+$E123),('PTRM input'!$L$331*(1+rvanilla06)^0.5)-SUM($L123:AZ123),('PTRM input'!$L$331*(1+rvanilla06)^0.5)/A1stdlife)) -> n/a | BB123: =IF(A1stdlife="n/a","n/a",IF(BB$3>(A1stdlife+$E123),('PTRM input'!$L$331*(1+rvanilla06)^0.5)-SUM($L123:BA123),('PTRM input'!$L$331*(1+rvanilla06)^0.5)/A1stdlife)) -> n/a | BC123: =IF(A1stdlife="n/a","n/a",IF(BC$3>(A1stdlife+$E123),('PTRM input'!$L$331*(1+rvanilla06)^0.5)-SUM($L123:BB123),('PTRM input'!$L$331*(1+rvanilla06)^0.5)/A1stdlife)) -> n/a | BD123: =IF(A1stdlife="n/a","n/a",IF(BD$3>(A1stdlife+$E123),('PTRM input'!$L$331*(1+rvanilla06)^0.5)-SUM($L123:BC123),('PTRM input'!$L$331*(1+rvanilla06)^0.5)/A1stdlife)) -> n/a | BE123: =IF(A1stdlife="n/a","n/a",IF(BE$3>(A1stdlife+$E123),('PTRM input'!$L$331*(1+rvanilla06)^0.5)-SUM($L123:BD123),('PTRM input'!$L$331*(1+rvanilla06)^0.5)/A1stdlife)) -> n/a | BF123: =IF(A1stdlife="n/a","n/a",IF(BF$3>(A1stdlife+$E123),('PTRM input'!$L$331*(1+rvanilla06)^0.5)-SUM($L123:BE123),('PTRM input'!$L$331*(1+rvanilla06)^0.5)/A1stdlife)) -> n/a | BG123: =IF(A1stdlife="n/a","n/a",IF(BG$3>(A1stdlife+$E123),('PTRM input'!$L$331*(1+rvanilla06)^0.5)-SUM($L123:BF123),('PTRM input'!$L$331*(1+rvanilla06)^0.5)/A1stdlife)) -> n/a | BH123: =IF(A1stdlife="n/a","n/a",IF(BH$3>(A1stdlife+$E123),('PTRM input'!$L$331*(1+rvanilla06)^0.5)-SUM($L123:BG123),('PTRM input'!$L$331*(1+rvanilla06)^0.5)/A1stdlife)) -> n/a | BI123: =IF(A1stdlife="n/a","n/a",IF(BI$3>(A1stdlife+$E123),('PTRM input'!$L$331*(1+rvanilla06)^0.5)-SUM($L123:BH123),('PTRM input'!$L$331*(1+rvanilla06)^0.5)/A1stdlife)) -> n/a
E124: 7 | N124: =IF(A1stdlife="n/a","n/a",IF(N$3>(A1stdlife+$E124),('PTRM input'!$M$331*(1+rvanilla07)^0.5)-SUM($M124:M124),('PTRM input'!$M$331*(1+rvanilla07)^0.5)/A1stdlife)) -> n/a | O124: =IF(A1stdlife="n/a","n/a",IF(O$3>(A1stdlife+$E124),('PTRM input'!$M$331*(1+rvanilla07)^0.5)-SUM($M124:N124),('PTRM input'!$M$331*(1+rvanilla07)^0.5)/A1stdlife)) -> n/a | P124: =IF(A1stdlife="n/a","n/a",IF(P$3>(A1stdlife+$E124),('PTRM input'!$M$331*(1+rvanilla07)^0.5)-SUM($M124:O124),('PTRM input'!$M$331*(1+rvanilla07)^0.5)/A1stdlife)) -> n/a | Q124: =IF(A1stdlife="n/a","n/a",IF(Q$3>(A1stdlife+$E124),('PTRM input'!$M$331*(1+rvanilla07)^0.5)-SUM($M124:P124),('PTRM input'!$M$331*(1+rvanilla07)^0.5)/A1stdlife)) -> n/a | R124: =IF(A1stdlife="n/a","n/a",IF(R$3>(A1stdlife+$E124),('PTRM input'!$M$331*(1+rvanilla07)^0.5)-SUM($M124:Q124),('PTRM input'!$M$331*(1+rvanilla07)^0.5)/A1stdlife)) -> n/a | S124: =IF(A1stdlife="n/a","n/a",IF(S$3>(A1stdlife+$E124),('PTRM input'!$M$331*(1+rvanilla07)^0.5)-SUM($M124:R124),('PTRM input'!$M$331*(1+rvanilla07)^0.5)/A1stdlife)) -> n/a | T124: =IF(A1stdlife="n/a","n/a",IF(T$3>(A1stdlife+$E124),('PTRM input'!$M$331*(1+rvanilla07)^0.5)-SUM($M124:S124),('PTRM input'!$M$331*(1+rvanilla07)^0.5)/A1stdlife)) -> n/a | U124: =IF(A1stdlife="n/a","n/a",IF(U$3>(A1stdlife+$E124),('PTRM input'!$M$331*(1+rvanilla07)^0.5)-SUM($M124:T124),('PTRM input'!$M$331*(1+rvanilla07)^0.5)/A1stdlife)) -> n/a | V124: =IF(A1stdlife="n/a","n/a",IF(V$3>(A1stdlife+$E124),('PTRM input'!$M$331*(1+rvanilla07)^0.5)-SUM($M124:U124),('PTRM input'!$M$331*(1+rvanilla07)^0.5)/A1stdlife)) -> n/a | W124: =IF(A1stdlife="n/a","n/a",IF(W$3>(A1stdlife+$E124),('PTRM input'!$M$331*(1+rvanilla07)^0.5)-SUM($M124:V124),('PTRM input'!$M$331*(1+rvanilla07)^0.5)/A1stdlife)) -> n/a | X124: =IF(A1stdlife="n/a","n/a",IF(X$3>(A1stdlife+$E124),('PTRM input'!$M$331*(1+rvanilla07)^0.5)-SUM($M124:W124),('PTRM input'!$M$331*(1+rvanilla07)^0.5)/A1stdlife)) -> n/a | Y124: =IF(A1stdlife="n/a","n/a",IF(Y$3>(A1stdlife+$E124),('PTRM input'!$M$331*(1+rvanilla07)^0.5)-SUM($M124:X124),('PTRM input'!$M$331*(1+rvanilla07)^0.5)/A1stdlife)) -> n/a | Z124: =IF(A1stdlife="n/a","n/a",IF(Z$3>(A1stdlife+$E124),('PTRM input'!$M$331*(1+rvanilla07)^0.5)-SUM($M124:Y124),('PTRM input'!$M$331*(1+rvanilla07)^0.5)/A1stdlife)) -> n/a | AA124: =IF(A1stdlife="n/a","n/a",IF(AA$3>(A1stdlife+$E124),('PTRM input'!$M$331*(1+rvanilla07)^0.5)-SUM($M124:Z124),('PTRM input'!$M$331*(1+rvanilla07)^0.5)/A1stdlife)) -> n/a | AB124: =IF(A1stdlife="n/a","n/a",IF(AB$3>(A1stdlife+$E124),('PTRM input'!$M$331*(1+rvanilla07)^0.5)-SUM($M124:AA124),('PTRM input'!$M$331*(1+rvanilla07)^0.5)/A1stdlife)) -> n/a | AC124: =IF(A1stdlife="n/a","n/a",IF(AC$3>(A1stdlife+$E124),('PTRM input'!$M$331*(1+rvanilla07)^0.5)-SUM($M124:AB124),('PTRM input'!$M$331*(1+rvanilla07)^0.5)/A1stdlife)) -> n/a | AD124: =IF(A1stdlife="n/a","n/a",IF(AD$3>(A1stdlife+$E124),('PTRM input'!$M$331*(1+rvanilla07)^0.5)-SUM($M124:AC124),('PTRM input'!$M$331*(1+rvanilla07)^0.5)/A1stdlife)) -> n/a | AE124: =IF(A1stdlife="n/a","n/a",IF(AE$3>(A1stdlife+$E124),('PTRM input'!$M$331*(1+rvanilla07)^0.5)-SUM($M124:AD124),('PTRM input'!$M$331*(1+rvanilla07)^0.5)/A1stdlife)) -> n/a | AF124: =IF(A1stdlife="n/a","n/a",IF(AF$3>(A1stdlife+$E124),('PTRM input'!$M$331*(1+rvanilla07)^0.5)-SUM($M124:AE124),('PTRM input'!$M$331*(1+rvanilla07)^0.5)/A1stdlife)) -> n/a | AG124: =IF(A1stdlife="n/a","n/a",IF(AG$3>(A1stdlife+$E124),('PTRM input'!$M$331*(1+rvanilla07)^0.5)-SUM($M124:AF124),('PTRM input'!$M$331*(1+rvanilla07)^0.5)/A1stdlife)) -> n/a | AH124: =IF(A1stdlife="n/a","n/a",IF(AH$3>(A1stdlife+$E124),('PTRM input'!$M$331*(1+rvanilla07)^0.5)-SUM($M124:AG124),('PTRM input'!$M$331*(1+rvanilla07)^0.5)/A1stdlife)) -> n/a | AI124: =IF(A1stdlife="n/a","n/a",IF(AI$3>(A1stdlife+$E124),('PTRM input'!$M$331*(1+rvanilla07)^0.5)-SUM($M124:AH124),('PTRM input'!$M$331*(1+rvanilla07)^0.5)/A1stdlife)) -> n/a | AJ124: =IF(A1stdlife="n/a","n/a",IF(AJ$3>(A1stdlife+$E124),('PTRM input'!$M$331*(1+rvanilla07)^0.5)-SUM($M124:AI124),('PTRM input'!$M$331*(1+rvanilla07)^0.5)/A1stdlife)) -> n/a | AK124: =IF(A1stdlife="n/a","n/a",IF(AK$3>(A1stdlife+$E124),('PTRM input'!$M$331*(1+rvanilla07)^0.5)-SUM($M124:AJ124),('PTRM input'!$M$331*(1+rvanilla07)^0.5)/A1stdlife)) -> n/a | AL124: =IF(A1stdlife="n/a","n/a",IF(AL$3>(A1stdlife+$E124),('PTRM input'!$M$331*(1+rvanilla07)^0.5)-SUM($M124:AK124),('PTRM input'!$M$331*(1+rvanilla07)^0.5)/A1stdlife)) -> n/a | AM124: =IF(A1stdlife="n/a","n/a",IF(AM$3>(A1stdlife+$E124),('PTRM input'!$M$331*(1+rvanilla07)^0.5)-SUM($M124:AL124),('PTRM input'!$M$331*(1+rvanilla07)^0.5)/A1stdlife)) -> n/a | AN124: =IF(A1stdlife="n/a","n/a",IF(AN$3>(A1stdlife+$E124),('PTRM input'!$M$331*(1+rvanilla07)^0.5)-SUM($M124:AM124),('PTRM input'!$M$331*(1+rvanilla07)^0.5)/A1stdlife)) -> n/a | AO124: =IF(A1stdlife="n/a","n/a",IF(AO$3>(A1stdlife+$E124),('PTRM input'!$M$331*(1+rvanilla07)^0.5)-SUM($M124:AN124),('PTRM input'!$M$331*(1+rvanilla07)^0.5)/A1stdlife)) -> n/a | AP124: =IF(A1stdlife="n/a","n/a",IF(AP$3>(A1stdlife+$E124),('PTRM input'!$M$331*(1+rvanilla07)^0.5)-SUM($M124:AO124),('PTRM input'!$M$331*(1+rvanilla07)^0.5)/A1stdlife)) -> n/a | AQ124: =IF(A1stdlife="n/a","n/a",IF(AQ$3>(A1stdlife+$E124),('PTRM input'!$M$331*(1+rvanilla07)^0.5)-SUM($M124:AP124),('PTRM input'!$M$331*(1+rvanilla07)^0.5)/A1stdlife)) -> n/a | AR124: =IF(A1stdlife="n/a","n/a",IF(AR$3>(A1stdlife+$E124),('PTRM input'!$M$331*(1+rvanilla07)^0.5)-SUM($M124:AQ124),('PTRM input'!$M$331*(1+rvanilla07)^0.5)/A1stdlife)) -> n/a | AS124: =IF(A1stdlife="n/a","n/a",IF(AS$3>(A1stdlife+$E124),('PTRM input'!$M$331*(1+rvanilla07)^0.5)-SUM($M124:AR124),('PTRM input'!$M$331*(1+rvanilla07)^0.5)/A1stdlife)) -> n/a | AT124: =IF(A1stdlife="n/a","n/a",IF(AT$3>(A1stdlife+$E124),('PTRM input'!$M$331*(1+rvanilla07)^0.5)-SUM($M124:AS124),('PTRM input'!$M$331*(1+rvanilla07)^0.5)/A1stdlife)) -> n/a | AU124: =IF(A1stdlife="n/a","n/a",IF(AU$3>(A1stdlife+$E124),('PTRM input'!$M$331*(1+rvanilla07)^0.5)-SUM($M124:AT124),('PTRM input'!$M$331*(1+rvanilla07)^0.5)/A1stdlife)) -> n/a | AV124: =IF(A1stdlife="n/a","n/a",IF(AV$3>(A1stdlife+$E124),('PTRM input'!$M$331*(1+rvanilla07)^0.5)-SUM($M124:AU124),('PTRM input'!$M$331*(1+rvanilla07)^0.5)/A1stdlife)) -> n/a | AW124: =IF(A1stdlife="n/a","n/a",IF(AW$3>(A1stdlife+$E124),('PTRM input'!$M$331*(1+rvanilla07)^0.5)-SUM($M124:AV124),('PTRM input'!$M$331*(1+rvanilla07)^0.5)/A1stdlife)) -> n/a | AX124: =IF(A1stdlife="n/a","n/a",IF(AX$3>(A1stdlife+$E124),('PTRM input'!$M$331*(1+rvanilla07)^0.5)-SUM($M124:AW124),('PTRM input'!$M$331*(1+rvanilla07)^0.5)/A1stdlife)) -> n/a | AY124: =IF(A1stdlife="n/a","n/a",IF(AY$3>(A1stdlife+$E124),('PTRM input'!$M$331*(1+rvanilla07)^0.5)-SUM($M124:AX124),('PTRM input'!$M$331*(1+rvanilla07)^0.5)/A1stdlife)) -> n/a | AZ124: =IF(A1stdlife="n/a","n/a",IF(AZ$3>(A1stdlife+$E124),('PTRM input'!$M$331*(1+rvanilla07)^0.5)-SUM($M124:AY124),('PTRM input'!$M$331*(1+rvanilla07)^0.5)/A1stdlife)) -> n/a | BA124: =IF(A1stdlife="n/a","n/a",IF(BA$3>(A1stdlife+$E124),('PTRM input'!$M$331*(1+rvanilla07)^0.5)-SUM($M124:AZ124),('PTRM input'!$M$331*(1+rvanilla07)^0.5)/A1stdlife)) -> n/a | BB124: =IF(A1stdlife="n/a","n/a",IF(BB$3>(A1stdlife+$E124),('PTRM input'!$M$331*(1+rvanilla07)^0.5)-SUM($M124:BA124),('PTRM input'!$M$331*(1+rvanilla07)^0.5)/A1stdlife)) -> n/a | BC124: =IF(A1stdlife="n/a","n/a",IF(BC$3>(A1stdlife+$E124),('PTRM input'!$M$331*(1+rvanilla07)^0.5)-SUM($M124:BB124),('PTRM input'!$M$331*(1+rvanilla07)^0.5)/A1stdlife)) -> n/a | BD124: =IF(A1stdlife="n/a","n/a",IF(BD$3>(A1stdlife+$E124),('PTRM input'!$M$331*(1+rvanilla07)^0.5)-SUM($M124:BC124),('PTRM input'!$M$331*(1+rvanilla07)^0.5)/A1stdlife)) -> n/a | BE124: =IF(A1stdlife="n/a","n/a",IF(BE$3>(A1stdlife+$E124),('PTRM input'!$M$331*(1+rvanilla07)^0.5)-SUM($M124:BD124),('PTRM input'!$M$331*(1+rvanilla07)^0.5)/A1stdlife)) -> n/a | BF124: =IF(A1stdlife="n/a","n/a",IF(BF$3>(A1stdlife+$E124),('PTRM input'!$M$331*(1+rvanilla07)^0.5)-SUM($M124:BE124),('PTRM input'!$M$331*(1+rvanilla07)^0.5)/A1stdlife)) -> n/a | BG124: =IF(A1stdlife="n/a","n/a",IF(BG$3>(A1stdlife+$E124),('PTRM input'!$M$331*(1+rvanilla07)^0.5)-SUM($M124:BF124),('PTRM input'!$M$331*(1+rvanilla07)^0.5)/A1stdlife)) -> n/a | BH124: =IF(A1stdlife="n/a","n/a",IF(BH$3>(A1stdlife+$E124),('PTRM input'!$M$331*(1+rvanilla07)^0.5)-SUM($M124:BG124),('PTRM input'!$M$331*(1+rvanilla07)^0.5)/A1stdlife)) -> n/a | BI124: =IF(A1stdlife="n/a","n/a",IF(BI$3>(A1stdlife+$E124),('PTRM input'!$M$331*(1+rvanilla07)^0.5)-SUM($M124:BH124),('PTRM input'!$M$331*(1+rvanilla07)^0.5)/A1stdlife)) -> n/a
E125: 8 | O125: =IF(A1stdlife="n/a","n/a",IF(O$3>(A1stdlife+$E125),('PTRM input'!$N$331*(1+rvanilla08)^0.5)-SUM($N125:N125),('PTRM input'!$N$331*(1+rvanilla08)^0.5)/A1stdlife)) -> n/a | P125: =IF(A1stdlife="n/a","n/a",IF(P$3>(A1stdlife+$E125),('PTRM input'!$N$331*(1+rvanilla08)^0.5)-SUM($N125:O125),('PTRM input'!$N$331*(1+rvanilla08)^0.5)/A1stdlife)) -> n/a | Q125: =IF(A1stdlife="n/a","n/a",IF(Q$3>(A1stdlife+$E125),('PTRM input'!$N$331*(1+rvanilla08)^0.5)-SUM($N125:P125),('PTRM input'!$N$331*(1+rvanilla08)^0.5)/A1stdlife)) -> n/a | R125: =IF(A1stdlife="n/a","n/a",IF(R$3>(A1stdlife+$E125),('PTRM input'!$N$331*(1+rvanilla08)^0.5)-SUM($N125:Q125),('PTRM input'!$N$331*(1+rvanilla08)^0.5)/A1stdlife)) -> n/a | S125: =IF(A1stdlife="n/a","n/a",IF(S$3>(A1stdlife+$E125),('PTRM input'!$N$331*(1+rvanilla08)^0.5)-SUM($N125:R125),('PTRM input'!$N$331*(1+rvanilla08)^0.5)/A1stdlife)) -> n/a | T125: =IF(A1stdlife="n/a","n/a",IF(T$3>(A1stdlife+$E125),('PTRM input'!$N$331*(1+rvanilla08)^0.5)-SUM($N125:S125),('PTRM input'!$N$331*(1+rvanilla08)^0.5)/A1stdlife)) -> n/a | U125: =IF(A1stdlife="n/a","n/a",IF(U$3>(A1stdlife+$E125),('PTRM input'!$N$331*(1+rvanilla08)^0.5)-SUM($N125:T125),('PTRM input'!$N$331*(1+rvanilla08)^0.5)/A1stdlife)) -> n/a | V125: =IF(A1stdlife="n/a","n/a",IF(V$3>(A1stdlife+$E125),('PTRM input'!$N$331*(1+rvanilla08)^0.5)-SUM($N125:U125),('PTRM input'!$N$331*(1+rvanilla08)^0.5)/A1stdlife)) -> n/a | W125: =IF(A1stdlife="n/a","n/a",IF(W$3>(A1stdlife+$E125),('PTRM input'!$N$331*(1+rvanilla08)^0.5)-SUM($N125:V125),('PTRM input'!$N$331*(1+rvanilla08)^0.5)/A1stdlife)) -> n/a | X125: =IF(A1stdlife="n/a","n/a",IF(X$3>(A1stdlife+$E125),('PTRM input'!$N$331*(1+rvanilla08)^0.5)-SUM($N125:W125),('PTRM input'!$N$331*(1+rvanilla08)^0.5)/A1stdlife)) -> n/a | Y125: =IF(A1stdlife="n/a","n/a",IF(Y$3>(A1stdlife+$E125),('PTRM input'!$N$331*(1+rvanilla08)^0.5)-SUM($N125:X125),('PTRM input'!$N$331*(1+rvanilla08)^0.5)/A1stdlife)) -> n/a | Z125: =IF(A1stdlife="n/a","n/a",IF(Z$3>(A1stdlife+$E125),('PTRM input'!$N$331*(1+rvanilla08)^0.5)-SUM($N125:Y125),('PTRM input'!$N$331*(1+rvanilla08)^0.5)/A1stdlife)) -> n/a | AA125: =IF(A1stdlife="n/a","n/a",IF(AA$3>(A1stdlife+$E125),('PTRM input'!$N$331*(1+rvanilla08)^0.5)-SUM($N125:Z125),('PTRM input'!$N$331*(1+rvanilla08)^0.5)/A1stdlife)) -> n/a | AB125: =IF(A1stdlife="n/a","n/a",IF(AB$3>(A1stdlife+$E125),('PTRM input'!$N$331*(1+rvanilla08)^0.5)-SUM($N125:AA125),('PTRM input'!$N$331*(1+rvanilla08)^0.5)/A1stdlife)) -> n/a | AC125: =IF(A1stdlife="n/a","n/a",IF(AC$3>(A1stdlife+$E125),('PTRM input'!$N$331*(1+rvanilla08)^0.5)-SUM($N125:AB125),('PTRM input'!$N$331*(1+rvanilla08)^0.5)/A1stdlife)) -> n/a | AD125: =IF(A1stdlife="n/a","n/a",IF(AD$3>(A1stdlife+$E125),('PTRM input'!$N$331*(1+rvanilla08)^0.5)-SUM($N125:AC125),('PTRM input'!$N$331*(1+rvanilla08)^0.5)/A1stdlife)) -> n/a | AE125: =IF(A1stdlife="n/a","n/a",IF(AE$3>(A1stdlife+$E125),('PTRM input'!$N$331*(1+rvanilla08)^0.5)-SUM($N125:AD125),('PTRM input'!$N$331*(1+rvanilla08)^0.5)/A1stdlife)) -> n/a | AF125: =IF(A1stdlife="n/a","n/a",IF(AF$3>(A1stdlife+$E125),('PTRM input'!$N$331*(1+rvanilla08)^0.5)-SUM($N125:AE125),('PTRM input'!$N$331*(1+rvanilla08)^0.5)/A1stdlife)) -> n/a | AG125: =IF(A1stdlife="n/a","n/a",IF(AG$3>(A1stdlife+$E125),('PTRM input'!$N$331*(1+rvanilla08)^0.5)-SUM($N125:AF125),('PTRM input'!$N$331*(1+rvanilla08)^0.5)/A1stdlife)) -> n/a | AH125: =IF(A1stdlife="n/a","n/a",IF(AH$3>(A1stdlife+$E125),('PTRM input'!$N$331*(1+rvanilla08)^0.5)-SUM($N125:AG125),('PTRM input'!$N$331*(1+rvanilla08)^0.5)/A1stdlife)) -> n/a | AI125: =IF(A1stdlife="n/a","n/a",IF(AI$3>(A1stdlife+$E125),('PTRM input'!$N$331*(1+rvanilla08)^0.5)-SUM($N125:AH125),('PTRM input'!$N$331*(1+rvanilla08)^0.5)/A1stdlife)) -> n/a | AJ125: =IF(A1stdlife="n/a","n/a",IF(AJ$3>(A1stdlife+$E125),('PTRM input'!$N$331*(1+rvanilla08)^0.5)-SUM($N125:AI125),('PTRM input'!$N$331*(1+rvanilla08)^0.5)/A1stdlife)) -> n/a | AK125: =IF(A1stdlife="n/a","n/a",IF(AK$3>(A1stdlife+$E125),('PTRM input'!$N$331*(1+rvanilla08)^0.5)-SUM($N125:AJ125),('PTRM input'!$N$331*(1+rvanilla08)^0.5)/A1stdlife)) -> n/a | AL125: =IF(A1stdlife="n/a","n/a",IF(AL$3>(A1stdlife+$E125),('PTRM input'!$N$331*(1+rvanilla08)^0.5)-SUM($N125:AK125),('PTRM input'!$N$331*(1+rvanilla08)^0.5)/A1stdlife)) -> n/a | AM125: =IF(A1stdlife="n/a","n/a",IF(AM$3>(A1stdlife+$E125),('PTRM input'!$N$331*(1+rvanilla08)^0.5)-SUM($N125:AL125),('PTRM input'!$N$331*(1+rvanilla08)^0.5)/A1stdlife)) -> n/a | AN125: =IF(A1stdlife="n/a","n/a",IF(AN$3>(A1stdlife+$E125),('PTRM input'!$N$331*(1+rvanilla08)^0.5)-SUM($N125:AM125),('PTRM input'!$N$331*(1+rvanilla08)^0.5)/A1stdlife)) -> n/a | AO125: =IF(A1stdlife="n/a","n/a",IF(AO$3>(A1stdlife+$E125),('PTRM input'!$N$331*(1+rvanilla08)^0.5)-SUM($N125:AN125),('PTRM input'!$N$331*(1+rvanilla08)^0.5)/A1stdlife)) -> n/a | AP125: =IF(A1stdlife="n/a","n/a",IF(AP$3>(A1stdlife+$E125),('PTRM input'!$N$331*(1+rvanilla08)^0.5)-SUM($N125:AO125),('PTRM input'!$N$331*(1+rvanilla08)^0.5)/A1stdlife)) -> n/a | AQ125: =IF(A1stdlife="n/a","n/a",IF(AQ$3>(A1stdlife+$E125),('PTRM input'!$N$331*(1+rvanilla08)^0.5)-SUM($N125:AP125),('PTRM input'!$N$331*(1+rvanilla08)^0.5)/A1stdlife)) -> n/a | AR125: =IF(A1stdlife="n/a","n/a",IF(AR$3>(A1stdlife+$E125),('PTRM input'!$N$331*(1+rvanilla08)^0.5)-SUM($N125:AQ125),('PTRM input'!$N$331*(1+rvanilla08)^0.5)/A1stdlife)) -> n/a | AS125: =IF(A1stdlife="n/a","n/a",IF(AS$3>(A1stdlife+$E125),('PTRM input'!$N$331*(1+rvanilla08)^0.5)-SUM($N125:AR125),('PTRM input'!$N$331*(1+rvanilla08)^0.5)/A1stdlife)) -> n/a | AT125: =IF(A1stdlife="n/a","n/a",IF(AT$3>(A1stdlife+$E125),('PTRM input'!$N$331*(1+rvanilla08)^0.5)-SUM($N125:AS125),('PTRM input'!$N$331*(1+rvanilla08)^0.5)/A1stdlife)) -> n/a | AU125: =IF(A1stdlife="n/a","n/a",IF(AU$3>(A1stdlife+$E125),('PTRM input'!$N$331*(1+rvanilla08)^0.5)-SUM($N125:AT125),('PTRM input'!$N$331*(1+rvanilla08)^0.5)/A1stdlife)) -> n/a | AV125: =IF(A1stdlife="n/a","n/a",IF(AV$3>(A1stdlife+$E125),('PTRM input'!$N$331*(1+rvanilla08)^0.5)-SUM($N125:AU125),('PTRM input'!$N$331*(1+rvanilla08)^0.5)/A1stdlife)) -> n/a | AW125: =IF(A1stdlife="n/a","n/a",IF(AW$3>(A1stdlife+$E125),('PTRM input'!$N$331*(1+rvanilla08)^0.5)-SUM($N125:AV125),('PTRM input'!$N$331*(1+rvanilla08)^0.5)/A1stdlife)) -> n/a | AX125: =IF(A1stdlife="n/a","n/a",IF(AX$3>(A1stdlife+$E125),('PTRM input'!$N$331*(1+rvanilla08)^0.5)-SUM($N125:AW125),('PTRM input'!$N$331*(1+rvanilla08)^0.5)/A1stdlife)) -> n/a | AY125: =IF(A1stdlife="n/a","n/a",IF(AY$3>(A1stdlife+$E125),('PTRM input'!$N$331*(1+rvanilla08)^0.5)-SUM($N125:AX125),('PTRM input'!$N$331*(1+rvanilla08)^0.5)/A1stdlife)) -> n/a | AZ125: =IF(A1stdlife="n/a","n/a",IF(AZ$3>(A1stdlife+$E125),('PTRM input'!$N$331*(1+rvanilla08)^0.5)-SUM($N125:AY125),('PTRM input'!$N$331*(1+rvanilla08)^0.5)/A1stdlife)) -> n/a | BA125: =IF(A1stdlife="n/a","n/a",IF(BA$3>(A1stdlife+$E125),('PTRM input'!$N$331*(1+rvanilla08)^0.5)-SUM($N125:AZ125),('PTRM input'!$N$331*(1+rvanilla08)^0.5)/A1stdlife)) -> n/a | BB125: =IF(A1stdlife="n/a","n/a",IF(BB$3>(A1stdlife+$E125),('PTRM input'!$N$331*(1+rvanilla08)^0.5)-SUM($N125:BA125),('PTRM input'!$N$331*(1+rvanilla08)^0.5)/A1stdlife)) -> n/a | BC125: =IF(A1stdlife="n/a","n/a",IF(BC$3>(A1stdlife+$E125),('PTRM input'!$N$331*(1+rvanilla08)^0.5)-SUM($N125:BB125),('PTRM input'!$N$331*(1+rvanilla08)^0.5)/A1stdlife)) -> n/a | BD125: =IF(A1stdlife="n/a","n/a",IF(BD$3>(A1stdlife+$E125),('PTRM input'!$N$331*(1+rvanilla08)^0.5)-SUM($N125:BC125),('PTRM input'!$N$331*(1+rvanilla08)^0.5)/A1stdlife)) -> n/a | BE125: =IF(A1stdlife="n/a","n/a",IF(BE$3>(A1stdlife+$E125),('PTRM input'!$N$331*(1+rvanilla08)^0.5)-SUM($N125:BD125),('PTRM input'!$N$331*(1+rvanilla08)^0.5)/A1stdlife)) -> n/a | BF125: =IF(A1stdlife="n/a","n/a",IF(BF$3>(A1stdlife+$E125),('PTRM input'!$N$331*(1+rvanilla08)^0.5)-SUM($N125:BE125),('PTRM input'!$N$331*(1+rvanilla08)^0.5)/A1stdlife)) -> n/a | BG125: =IF(A1stdlife="n/a","n/a",IF(BG$3>(A1stdlife+$E125),('PTRM input'!$N$331*(1+rvanilla08)^0.5)-SUM($N125:BF125),('PTRM input'!$N$331*(1+rvanilla08)^0.5)/A1stdlife)) -> n/a | BH125: =IF(A1stdlife="n/a","n/a",IF(BH$3>(A1stdlife+$E125),('PTRM input'!$N$331*(1+rvanilla08)^0.5)-SUM($N125:BG125),('PTRM input'!$N$331*(1+rvanilla08)^0.5)/A1stdlife)) -> n/a | BI125: =IF(A1stdlife="n/a","n/a",IF(BI$3>(A1stdlife+$E125),('PTRM input'!$N$331*(1+rvanilla08)^0.5)-SUM($N125:BH125),('PTRM input'!$N$331*(1+rvanilla08)^0.5)/A1stdlife)) -> n/a
E126: 9 | P126: =IF(A1stdlife="n/a","n/a",IF(P$3>(A1stdlife+$E126),('PTRM input'!$O$331*(1+rvanilla09)^0.5)-SUM($O126:O126),('PTRM input'!$O$331*(1+rvanilla09)^0.5)/A1stdlife)) -> n/a | Q126: =IF(A1stdlife="n/a","n/a",IF(Q$3>(A1stdlife+$E126),('PTRM input'!$O$331*(1+rvanilla09)^0.5)-SUM($O126:P126),('PTRM input'!$O$331*(1+rvanilla09)^0.5)/A1stdlife)) -> n/a | R126: =IF(A1stdlife="n/a","n/a",IF(R$3>(A1stdlife+$E126),('PTRM input'!$O$331*(1+rvanilla09)^0.5)-SUM($O126:Q126),('PTRM input'!$O$331*(1+rvanilla09)^0.5)/A1stdlife)) -> n/a | S126: =IF(A1stdlife="n/a","n/a",IF(S$3>(A1stdlife+$E126),('PTRM input'!$O$331*(1+rvanilla09)^0.5)-SUM($O126:R126),('PTRM input'!$O$331*(1+rvanilla09)^0.5)/A1stdlife)) -> n/a | T126: =IF(A1stdlife="n/a","n/a",IF(T$3>(A1stdlife+$E126),('PTRM input'!$O$331*(1+rvanilla09)^0.5)-SUM($O126:S126),('PTRM input'!$O$331*(1+rvanilla09)^0.5)/A1stdlife)) -> n/a | U126: =IF(A1stdlife="n/a","n/a",IF(U$3>(A1stdlife+$E126),('PTRM input'!$O$331*(1+rvanilla09)^0.5)-SUM($O126:T126),('PTRM input'!$O$331*(1+rvanilla09)^0.5)/A1stdlife)) -> n/a | V126: =IF(A1stdlife="n/a","n/a",IF(V$3>(A1stdlife+$E126),('PTRM input'!$O$331*(1+rvanilla09)^0.5)-SUM($O126:U126),('PTRM input'!$O$331*(1+rvanilla09)^0.5)/A1stdlife)) -> n/a | W126: =IF(A1stdlife="n/a","n/a",IF(W$3>(A1stdlife+$E126),('PTRM input'!$O$331*(1+rvanilla09)^0.5)-SUM($O126:V126),('PTRM input'!$O$331*(1+rvanilla09)^0.5)/A1stdlife)) -> n/a | X126: =IF(A1stdlife="n/a","n/a",IF(X$3>(A1stdlife+$E126),('PTRM input'!$O$331*(1+rvanilla09)^0.5)-SUM($O126:W126),('PTRM input'!$O$331*(1+rvanilla09)^0.5)/A1stdlife)) -> n/a | Y126: =IF(A1stdlife="n/a","n/a",IF(Y$3>(A1stdlife+$E126),('PTRM input'!$O$331*(1+rvanilla09)^0.5)-SUM($O126:X126),('PTRM input'!$O$331*(1+rvanilla09)^0.5)/A1stdlife)) -> n/a | Z126: =IF(A1stdlife="n/a","n/a",IF(Z$3>(A1stdlife+$E126),('PTRM input'!$O$331*(1+rvanilla09)^0.5)-SUM($O126:Y126),('PTRM input'!$O$331*(1+rvanilla09)^0.5)/A1stdlife)) -> n/a | AA126: =IF(A1stdlife="n/a","n/a",IF(AA$3>(A1stdlife+$E126),('PTRM input'!$O$331*(1+rvanilla09)^0.5)-SUM($O126:Z126),('PTRM input'!$O$331*(1+rvanilla09)^0.5)/A1stdlife)) -> n/a | AB126: =IF(A1stdlife="n/a","n/a",IF(AB$3>(A1stdlife+$E126),('PTRM input'!$O$331*(1+rvanilla09)^0.5)-SUM($O126:AA126),('PTRM input'!$O$331*(1+rvanilla09)^0.5)/A1stdlife)) -> n/a | AC126: =IF(A1stdlife="n/a","n/a",IF(AC$3>(A1stdlife+$E126),('PTRM input'!$O$331*(1+rvanilla09)^0.5)-SUM($O126:AB126),('PTRM input'!$O$331*(1+rvanilla09)^0.5)/A1stdlife)) -> n/a | AD126: =IF(A1stdlife="n/a","n/a",IF(AD$3>(A1stdlife+$E126),('PTRM input'!$O$331*(1+rvanilla09)^0.5)-SUM($O126:AC126),('PTRM input'!$O$331*(1+rvanilla09)^0.5)/A1stdlife)) -> n/a | AE126: =IF(A1stdlife="n/a","n/a",IF(AE$3>(A1stdlife+$E126),('PTRM input'!$O$331*(1+rvanilla09)^0.5)-SUM($O126:AD126),('PTRM input'!$O$331*(1+rvanilla09)^0.5)/A1stdlife)) -> n/a | AF126: =IF(A1stdlife="n/a","n/a",IF(AF$3>(A1stdlife+$E126),('PTRM input'!$O$331*(1+rvanilla09)^0.5)-SUM($O126:AE126),('PTRM input'!$O$331*(1+rvanilla09)^0.5)/A1stdlife)) -> n/a | AG126: =IF(A1stdlife="n/a","n/a",IF(AG$3>(A1stdlife+$E126),('PTRM input'!$O$331*(1+rvanilla09)^0.5)-SUM($O126:AF126),('PTRM input'!$O$331*(1+rvanilla09)^0.5)/A1stdlife)) -> n/a | AH126: =IF(A1stdlife="n/a","n/a",IF(AH$3>(A1stdlife+$E126),('PTRM input'!$O$331*(1+rvanilla09)^0.5)-SUM($O126:AG126),('PTRM input'!$O$331*(1+rvanilla09)^0.5)/A1stdlife)) -> n/a | AI126: =IF(A1stdlife="n/a","n/a",IF(AI$3>(A1stdlife+$E126),('PTRM input'!$O$331*(1+rvanilla09)^0.5)-SUM($O126:AH126),('PTRM input'!$O$331*(1+rvanilla09)^0.5)/A1stdlife)) -> n/a | AJ126: =IF(A1stdlife="n/a","n/a",IF(AJ$3>(A1stdlife+$E126),('PTRM input'!$O$331*(1+rvanilla09)^0.5)-SUM($O126:AI126),('PTRM input'!$O$331*(1+rvanilla09)^0.5)/A1stdlife)) -> n/a | AK126: =IF(A1stdlife="n/a","n/a",IF(AK$3>(A1stdlife+$E126),('PTRM input'!$O$331*(1+rvanilla09)^0.5)-SUM($O126:AJ126),('PTRM input'!$O$331*(1+rvanilla09)^0.5)/A1stdlife)) -> n/a | AL126: =IF(A1stdlife="n/a","n/a",IF(AL$3>(A1stdlife+$E126),('PTRM input'!$O$331*(1+rvanilla09)^0.5)-SUM($O126:AK126),('PTRM input'!$O$331*(1+rvanilla09)^0.5)/A1stdlife)) -> n/a | AM126: =IF(A1stdlife="n/a","n/a",IF(AM$3>(A1stdlife+$E126),('PTRM input'!$O$331*(1+rvanilla09)^0.5)-SUM($O126:AL126),('PTRM input'!$O$331*(1+rvanilla09)^0.5)/A1stdlife)) -> n/a | AN126: =IF(A1stdlife="n/a","n/a",IF(AN$3>(A1stdlife+$E126),('PTRM input'!$O$331*(1+rvanilla09)^0.5)-SUM($O126:AM126),('PTRM input'!$O$331*(1+rvanilla09)^0.5)/A1stdlife)) -> n/a | AO126: =IF(A1stdlife="n/a","n/a",IF(AO$3>(A1stdlife+$E126),('PTRM input'!$O$331*(1+rvanilla09)^0.5)-SUM($O126:AN126),('PTRM input'!$O$331*(1+rvanilla09)^0.5)/A1stdlife)) -> n/a | AP126: =IF(A1stdlife="n/a","n/a",IF(AP$3>(A1stdlife+$E126),('PTRM input'!$O$331*(1+rvanilla09)^0.5)-SUM($O126:AO126),('PTRM input'!$O$331*(1+rvanilla09)^0.5)/A1stdlife)) -> n/a | AQ126: =IF(A1stdlife="n/a","n/a",IF(AQ$3>(A1stdlife+$E126),('PTRM input'!$O$331*(1+rvanilla09)^0.5)-SUM($O126:AP126),('PTRM input'!$O$331*(1+rvanilla09)^0.5)/A1stdlife)) -> n/a | AR126: =IF(A1stdlife="n/a","n/a",IF(AR$3>(A1stdlife+$E126),('PTRM input'!$O$331*(1+rvanilla09)^0.5)-SUM($O126:AQ126),('PTRM input'!$O$331*(1+rvanilla09)^0.5)/A1stdlife)) -> n/a | AS126: =IF(A1stdlife="n/a","n/a",IF(AS$3>(A1stdlife+$E126),('PTRM input'!$O$331*(1+rvanilla09)^0.5)-SUM($O126:AR126),('PTRM input'!$O$331*(1+rvanilla09)^0.5)/A1stdlife)) -> n/a | AT126: =IF(A1stdlife="n/a","n/a",IF(AT$3>(A1stdlife+$E126),('PTRM input'!$O$331*(1+rvanilla09)^0.5)-SUM($O126:AS126),('PTRM input'!$O$331*(1+rvanilla09)^0.5)/A1stdlife)) -> n/a | AU126: =IF(A1stdlife="n/a","n/a",IF(AU$3>(A1stdlife+$E126),('PTRM input'!$O$331*(1+rvanilla09)^0.5)-SUM($O126:AT126),('PTRM input'!$O$331*(1+rvanilla09)^0.5)/A1stdlife)) -> n/a | AV126: =IF(A1stdlife="n/a","n/a",IF(AV$3>(A1stdlife+$E126),('PTRM input'!$O$331*(1+rvanilla09)^0.5)-SUM($O126:AU126),('PTRM input'!$O$331*(1+rvanilla09)^0.5)/A1stdlife)) -> n/a | AW126: =IF(A1stdlife="n/a","n/a",IF(AW$3>(A1stdlife+$E126),('PTRM input'!$O$331*(1+rvanilla09)^0.5)-SUM($O126:AV126),('PTRM input'!$O$331*(1+rvanilla09)^0.5)/A1stdlife)) -> n/a | AX126: =IF(A1stdlife="n/a","n/a",IF(AX$3>(A1stdlife+$E126),('PTRM input'!$O$331*(1+rvanilla09)^0.5)-SUM($O126:AW126),('PTRM input'!$O$331*(1+rvanilla09)^0.5)/A1stdlife)) -> n/a | AY126: =IF(A1stdlife="n/a","n/a",IF(AY$3>(A1stdlife+$E126),('PTRM input'!$O$331*(1+rvanilla09)^0.5)-SUM($O126:AX126),('PTRM input'!$O$331*(1+rvanilla09)^0.5)/A1stdlife)) -> n/a | AZ126: =IF(A1stdlife="n/a","n/a",IF(AZ$3>(A1stdlife+$E126),('PTRM input'!$O$331*(1+rvanilla09)^0.5)-SUM($O126:AY126),('PTRM input'!$O$331*(1+rvanilla09)^0.5)/A1stdlife)) -> n/a | BA126: =IF(A1stdlife="n/a","n/a",IF(BA$3>(A1stdlife+$E126),('PTRM input'!$O$331*(1+rvanilla09)^0.5)-SUM($O126:AZ126),('PTRM input'!$O$331*(1+rvanilla09)^0.5)/A1stdlife)) -> n/a | BB126: =IF(A1stdlife="n/a","n/a",IF(BB$3>(A1stdlife+$E126),('PTRM input'!$O$331*(1+rvanilla09)^0.5)-SUM($O126:BA126),('PTRM input'!$O$331*(1+rvanilla09)^0.5)/A1stdlife)) -> n/a | BC126: =IF(A1stdlife="n/a","n/a",IF(BC$3>(A1stdlife+$E126),('PTRM input'!$O$331*(1+rvanilla09)^0.5)-SUM($O126:BB126),('PTRM input'!$O$331*(1+rvanilla09)^0.5)/A1stdlife)) -> n/a | BD126: =IF(A1stdlife="n/a","n/a",IF(BD$3>(A1stdlife+$E126),('PTRM input'!$O$331*(1+rvanilla09)^0.5)-SUM($O126:BC126),('PTRM input'!$O$331*(1+rvanilla09)^0.5)/A1stdlife)) -> n/a | BE126: =IF(A1stdlife="n/a","n/a",IF(BE$3>(A1stdlife+$E126),('PTRM input'!$O$331*(1+rvanilla09)^0.5)-SUM($O126:BD126),('PTRM input'!$O$331*(1+rvanilla09)^0.5)/A1stdlife)) -> n/a | BF126: =IF(A1stdlife="n/a","n/a",IF(BF$3>(A1stdlife+$E126),('PTRM input'!$O$331*(1+rvanilla09)^0.5)-SUM($O126:BE126),('PTRM input'!$O$331*(1+rvanilla09)^0.5)/A1stdlife)) -> n/a | BG126: =IF(A1stdlife="n/a","n/a",IF(BG$3>(A1stdlife+$E126),('PTRM input'!$O$331*(1+rvanilla09)^0.5)-SUM($O126:BF126),('PTRM input'!$O$331*(1+rvanilla09)^0.5)/A1stdlife)) -> n/a | BH126: =IF(A1stdlife="n/a","n/a",IF(BH$3>(A1stdlife+$E126),('PTRM input'!$O$331*(1+rvanilla09)^0.5)-SUM($O126:BG126),('PTRM input'!$O$331*(1+rvanilla09)^0.5)/A1stdlife)) -> n/a | BI126: =IF(A1stdlife="n/a","n/a",IF(BI$3>(A1stdlife+$E126),('PTRM input'!$O$331*(1+rvanilla09)^0.5)-SUM($O126:BH126),('PTRM input'!$O$331*(1+rvanilla09)^0.5)/A1stdlife)) -> n/a
E127: 10 | Q127: =IF(A1stdlife="n/a","n/a",IF(Q$3>(A1stdlife+$E127),('PTRM input'!$P$331*(1+rvanilla10)^0.5)-SUM($P127:P127),('PTRM input'!$P$331*(1+rvanilla10)^0.5)/A1stdlife)) -> n/a | R127: =IF(A1stdlife="n/a","n/a",IF(R$3>(A1stdlife+$E127),('PTRM input'!$P$331*(1+rvanilla10)^0.5)-SUM($P127:Q127),('PTRM input'!$P$331*(1+rvanilla10)^0.5)/A1stdlife)) -> n/a | S127: =IF(A1stdlife="n/a","n/a",IF(S$3>(A1stdlife+$E127),('PTRM input'!$P$331*(1+rvanilla10)^0.5)-SUM($P127:R127),('PTRM input'!$P$331*(1+rvanilla10)^0.5)/A1stdlife)) -> n/a | T127: =IF(A1stdlife="n/a","n/a",IF(T$3>(A1stdlife+$E127),('PTRM input'!$P$331*(1+rvanilla10)^0.5)-SUM($P127:S127),('PTRM input'!$P$331*(1+rvanilla10)^0.5)/A1stdlife)) -> n/a | U127: =IF(A1stdlife="n/a","n/a",IF(U$3>(A1stdlife+$E127),('PTRM input'!$P$331*(1+rvanilla10)^0.5)-SUM($P127:T127),('PTRM input'!$P$331*(1+rvanilla10)^0.5)/A1stdlife)) -> n/a | V127: =IF(A1stdlife="n/a","n/a",IF(V$3>(A1stdlife+$E127),('PTRM input'!$P$331*(1+rvanilla10)^0.5)-SUM($P127:U127),('PTRM input'!$P$331*(1+rvanilla10)^0.5)/A1stdlife)) -> n/a | W127: =IF(A1stdlife="n/a","n/a",IF(W$3>(A1stdlife+$E127),('PTRM input'!$P$331*(1+rvanilla10)^0.5)-SUM($P127:V127),('PTRM input'!$P$331*(1+rvanilla10)^0.5)/A1stdlife)) -> n/a | X127: =IF(A1stdlife="n/a","n/a",IF(X$3>(A1stdlife+$E127),('PTRM input'!$P$331*(1+rvanilla10)^0.5)-SUM($P127:W127),('PTRM input'!$P$331*(1+rvanilla10)^0.5)/A1stdlife)) -> n/a | Y127: =IF(A1stdlife="n/a","n/a",IF(Y$3>(A1stdlife+$E127),('PTRM input'!$P$331*(1+rvanilla10)^0.5)-SUM($P127:X127),('PTRM input'!$P$331*(1+rvanilla10)^0.5)/A1stdlife)) -> n/a | Z127: =IF(A1stdlife="n/a","n/a",IF(Z$3>(A1stdlife+$E127),('PTRM input'!$P$331*(1+rvanilla10)^0.5)-SUM($P127:Y127),('PTRM input'!$P$331*(1+rvanilla10)^0.5)/A1stdlife)) -> n/a | AA127: =IF(A1stdlife="n/a","n/a",IF(AA$3>(A1stdlife+$E127),('PTRM input'!$P$331*(1+rvanilla10)^0.5)-SUM($P127:Z127),('PTRM input'!$P$331*(1+rvanilla10)^0.5)/A1stdlife)) -> n/a | AB127: =IF(A1stdlife="n/a","n/a",IF(AB$3>(A1stdlife+$E127),('PTRM input'!$P$331*(1+rvanilla10)^0.5)-SUM($P127:AA127),('PTRM input'!$P$331*(1+rvanilla10)^0.5)/A1stdlife)) -> n/a | AC127: =IF(A1stdlife="n/a","n/a",IF(AC$3>(A1stdlife+$E127),('PTRM input'!$P$331*(1+rvanilla10)^0.5)-SUM($P127:AB127),('PTRM input'!$P$331*(1+rvanilla10)^0.5)/A1stdlife)) -> n/a | AD127: =IF(A1stdlife="n/a","n/a",IF(AD$3>(A1stdlife+$E127),('PTRM input'!$P$331*(1+rvanilla10)^0.5)-SUM($P127:AC127),('PTRM input'!$P$331*(1+rvanilla10)^0.5)/A1stdlife)) -> n/a | AE127: =IF(A1stdlife="n/a","n/a",IF(AE$3>(A1stdlife+$E127),('PTRM input'!$P$331*(1+rvanilla10)^0.5)-SUM($P127:AD127),('PTRM input'!$P$331*(1+rvanilla10)^0.5)/A1stdlife)) -> n/a | AF127: =IF(A1stdlife="n/a","n/a",IF(AF$3>(A1stdlife+$E127),('PTRM input'!$P$331*(1+rvanilla10)^0.5)-SUM($P127:AE127),('PTRM input'!$P$331*(1+rvanilla10)^0.5)/A1stdlife)) -> n/a | AG127: =IF(A1stdlife="n/a","n/a",IF(AG$3>(A1stdlife+$E127),('PTRM input'!$P$331*(1+rvanilla10)^0.5)-SUM($P127:AF127),('PTRM input'!$P$331*(1+rvanilla10)^0.5)/A1stdlife)) -> n/a | AH127: =IF(A1stdlife="n/a","n/a",IF(AH$3>(A1stdlife+$E127),('PTRM input'!$P$331*(1+rvanilla10)^0.5)-SUM($P127:AG127),('PTRM input'!$P$331*(1+rvanilla10)^0.5)/A1stdlife)) -> n/a | AI127: =IF(A1stdlife="n/a","n/a",IF(AI$3>(A1stdlife+$E127),('PTRM input'!$P$331*(1+rvanilla10)^0.5)-SUM($P127:AH127),('PTRM input'!$P$331*(1+rvanilla10)^0.5)/A1stdlife)) -> n/a | AJ127: =IF(A1stdlife="n/a","n/a",IF(AJ$3>(A1stdlife+$E127),('PTRM input'!$P$331*(1+rvanilla10)^0.5)-SUM($P127:AI127),('PTRM input'!$P$331*(1+rvanilla10)^0.5)/A1stdlife)) -> n/a | AK127: =IF(A1stdlife="n/a","n/a",IF(AK$3>(A1stdlife+$E127),('PTRM input'!$P$331*(1+rvanilla10)^0.5)-SUM($P127:AJ127),('PTRM input'!$P$331*(1+rvanilla10)^0.5)/A1stdlife)) -> n/a | AL127: =IF(A1stdlife="n/a","n/a",IF(AL$3>(A1stdlife+$E127),('PTRM input'!$P$331*(1+rvanilla10)^0.5)-SUM($P127:AK127),('PTRM input'!$P$331*(1+rvanilla10)^0.5)/A1stdlife)) -> n/a | AM127: =IF(A1stdlife="n/a","n/a",IF(AM$3>(A1stdlife+$E127),('PTRM input'!$P$331*(1+rvanilla10)^0.5)-SUM($P127:AL127),('PTRM input'!$P$331*(1+rvanilla10)^0.5)/A1stdlife)) -> n/a | AN127: =IF(A1stdlife="n/a","n/a",IF(AN$3>(A1stdlife+$E127),('PTRM input'!$P$331*(1+rvanilla10)^0.5)-SUM($P127:AM127),('PTRM input'!$P$331*(1+rvanilla10)^0.5)/A1stdlife)) -> n/a | AO127: =IF(A1stdlife="n/a","n/a",IF(AO$3>(A1stdlife+$E127),('PTRM input'!$P$331*(1+rvanilla10)^0.5)-SUM($P127:AN127),('PTRM input'!$P$331*(1+rvanilla10)^0.5)/A1stdlife)) -> n/a | AP127: =IF(A1stdlife="n/a","n/a",IF(AP$3>(A1stdlife+$E127),('PTRM input'!$P$331*(1+rvanilla10)^0.5)-SUM($P127:AO127),('PTRM input'!$P$331*(1+rvanilla10)^0.5)/A1stdlife)) -> n/a | AQ127: =IF(A1stdlife="n/a","n/a",IF(AQ$3>(A1stdlife+$E127),('PTRM input'!$P$331*(1+rvanilla10)^0.5)-SUM($P127:AP127),('PTRM input'!$P$331*(1+rvanilla10)^0.5)/A1stdlife)) -> n/a | AR127: =IF(A1stdlife="n/a","n/a",IF(AR$3>(A1stdlife+$E127),('PTRM input'!$P$331*(1+rvanilla10)^0.5)-SUM($P127:AQ127),('PTRM input'!$P$331*(1+rvanilla10)^0.5)/A1stdlife)) -> n/a | AS127: =IF(A1stdlife="n/a","n/a",IF(AS$3>(A1stdlife+$E127),('PTRM input'!$P$331*(1+rvanilla10)^0.5)-SUM($P127:AR127),('PTRM input'!$P$331*(1+rvanilla10)^0.5)/A1stdlife)) -> n/a | AT127: =IF(A1stdlife="n/a","n/a",IF(AT$3>(A1stdlife+$E127),('PTRM input'!$P$331*(1+rvanilla10)^0.5)-SUM($P127:AS127),('PTRM input'!$P$331*(1+rvanilla10)^0.5)/A1stdlife)) -> n/a | AU127: =IF(A1stdlife="n/a","n/a",IF(AU$3>(A1stdlife+$E127),('PTRM input'!$P$331*(1+rvanilla10)^0.5)-SUM($P127:AT127),('PTRM input'!$P$331*(1+rvanilla10)^0.5)/A1stdlife)) -> n/a | AV127: =IF(A1stdlife="n/a","n/a",IF(AV$3>(A1stdlife+$E127),('PTRM input'!$P$331*(1+rvanilla10)^0.5)-SUM($P127:AU127),('PTRM input'!$P$331*(1+rvanilla10)^0.5)/A1stdlife)) -> n/a | AW127: =IF(A1stdlife="n/a","n/a",IF(AW$3>(A1stdlife+$E127),('PTRM input'!$P$331*(1+rvanilla10)^0.5)-SUM($P127:AV127),('PTRM input'!$P$331*(1+rvanilla10)^0.5)/A1stdlife)) -> n/a | AX127: =IF(A1stdlife="n/a","n/a",IF(AX$3>(A1stdlife+$E127),('PTRM input'!$P$331*(1+rvanilla10)^0.5)-SUM($P127:AW127),('PTRM input'!$P$331*(1+rvanilla10)^0.5)/A1stdlife)) -> n/a | AY127: =IF(A1stdlife="n/a","n/a",IF(AY$3>(A1stdlife+$E127),('PTRM input'!$P$331*(1+rvanilla10)^0.5)-SUM($P127:AX127),('PTRM input'!$P$331*(1+rvanilla10)^0.5)/A1stdlife)) -> n/a | AZ127: =IF(A1stdlife="n/a","n/a",IF(AZ$3>(A1stdlife+$E127),('PTRM input'!$P$331*(1+rvanilla10)^0.5)-SUM($P127:AY127),('PTRM input'!$P$331*(1+rvanilla10)^0.5)/A1stdlife)) -> n/a | BA127: =IF(A1stdlife="n/a","n/a",IF(BA$3>(A1stdlife+$E127),('PTRM input'!$P$331*(1+rvanilla10)^0.5)-SUM($P127:AZ127),('PTRM input'!$P$331*(1+rvanilla10)^0.5)/A1stdlife)) -> n/a | BB127: =IF(A1stdlife="n/a","n/a",IF(BB$3>(A1stdlife+$E127),('PTRM input'!$P$331*(1+rvanilla10)^0.5)-SUM($P127:BA127),('PTRM input'!$P$331*(1+rvanilla10)^0.5)/A1stdlife)) -> n/a | BC127: =IF(A1stdlife="n/a","n/a",IF(BC$3>(A1stdlife+$E127),('PTRM input'!$P$331*(1+rvanilla10)^0.5)-SUM($P127:BB127),('PTRM input'!$P$331*(1+rvanilla10)^0.5)/A1stdlife)) -> n/a | BD127: =IF(A1stdlife="n/a","n/a",IF(BD$3>(A1stdlife+$E127),('PTRM input'!$P$331*(1+rvanilla10)^0.5)-SUM($P127:BC127),('PTRM input'!$P$331*(1+rvanilla10)^0.5)/A1stdlife)) -> n/a | BE127: =IF(A1stdlife="n/a","n/a",IF(BE$3>(A1stdlife+$E127),('PTRM input'!$P$331*(1+rvanilla10)^0.5)-SUM($P127:BD127),('PTRM input'!$P$331*(1+rvanilla10)^0.5)/A1stdlife)) -> n/a | BF127: =IF(A1stdlife="n/a","n/a",IF(BF$3>(A1stdlife+$E127),('PTRM input'!$P$331*(1+rvanilla10)^0.5)-SUM($P127:BE127),('PTRM input'!$P$331*(1+rvanilla10)^0.5)/A1stdlife)) -> n/a | BG127: =IF(A1stdlife="n/a","n/a",IF(BG$3>(A1stdlife+$E127),('PTRM input'!$P$331*(1+rvanilla10)^0.5)-SUM($P127:BF127),('PTRM input'!$P$331*(1+rvanilla10)^0.5)/A1stdlife)) -> n/a | BH127: =IF(A1stdlife="n/a","n/a",IF(BH$3>(A1stdlife+$E127),('PTRM input'!$P$331*(1+rvanilla10)^0.5)-SUM($P127:BG127),('PTRM input'!$P$331*(1+rvanilla10)^0.5)/A1stdlife)) -> n/a | BI127: =IF(A1stdlife="n/a","n/a",IF(BI$3>(A1stdlife+$E127),('PTRM input'!$P$331*(1+rvanilla10)^0.5)-SUM($P127:BH127),('PTRM input'!$P$331*(1+rvanilla10)^0.5)/A1stdlife)) -> n/a
C128: =Asset1 -> Transmission Lines and Cables | G128: =SUM(G116:G127) -> 8.341491747 | H128: =SUM(H116:H127) -> 8.341491747 | I128: 8.341491747 | J128: 8.341491747 | K128: 8.341491747 | L128: =SUM(L116:L127) -> 8.341491747 | M128: 8.341491747 | N128: 8.341491747 | O128: 8.341491747 | P128: 8.341491747 | Q128: 8.341491747 | R128: 8.341491747 | S128: 8.341491747 | T128: 8.341491747 | U128: 8.341491747 | V128: 8.341491747 | W128: 8.341491747 | X128: 8.341491747 | Y128: 8.341491747 | Z128: 8.341491747 | AA128: 8.341491747 | AB128: 8.341491747 | AC128: 8.341491747 | AD128: 8.341491747 | AE128: 8.341491747 | AF128: 8.341491747 | AG128: 8.341491747 | AH128: 8.341491747 | AI128: 7.531369866 | AJ128: 0 | AK128: 0 | AL128: 0 | AM128: 0 | AN128: 0 | AO128: 0 | AP128: 0 | AQ128: 0 | AR128: 0 | AS128: 0 | AT128: 0 | AU128: 0 | AV128: 0 | AW128: 0 | AX128: 0 | AY128: 0 | AZ128: 0 | BA128: 0 | BB128: 0 | BC128: 0 | BD128: 0 | BE128: 0 | BF128: 0 | BG128: 0 | BH128: 0 | BI128: 0
B129: =C141 -> Transmission Substations | D129: Initial Asset Base | G129: 11.22678136 | H129: 11.22678136 | I129: 11.22678136 | J129: 11.22678136 | K129: 11.22678136 | L129: 11.22678136 | M129: 11.22678136 | N129: 11.22678136 | O129: 11.22678136 | P129: 11.22678136 | Q129: 11.22678136 | R129: 11.22678136 | S129: 11.22678136 | T129: 11.22678136 | U129: 11.22678136 | V129: 11.22678136 | W129: 11.22678136 | X129: 11.22678136 | Y129: 11.22678136 | Z129: 11.22678136 | AA129: 11.22678136 | AB129: 11.22678136 | AC129: 11.22678136 | AD129: 11.22678136 | AE129: 11.22678136 | AF129: 11.22678136 | AG129: 11.22678136 | AH129: 0.8392587023 | AI129: 0 | AJ129: 0 | AK129: 0 | AL129: 0 | AM129: 0 | AN129: 0 | AO129: 0 | AP129: 0 | AQ129: 0 | AR129: 0 | AS129: 0 | AT129: 0 | AU129: 0 | AV129: 0 | AW129: 0 | AX129: 0 | AY129: 0 | AZ129: 0 | BA129: 0 | BB129: 0 | BC129: 0 | BD129: 0 | BE129: 0 | BF129: 0 | BG129: 0 | BH129: 0 | BI129: 0
D130: Capex in year | E130: 0
E131: 1 | H131: =IF(A2stdlife="n/a","n/a",IF(H$3>(A2stdlife+$E131),('PTRM input'!$G$332*(1+rvanilla01)^0.5)-SUM(G131:$G131),('PTRM input'!$G$332*(1+rvanilla01)^0.5)/A2stdlife)) -> n/a | I131: =IF(A2stdlife="n/a","n/a",IF(I$3>(A2stdlife+$E131),('PTRM input'!$G$332*(1+rvanilla01)^0.5)-SUM($G131:H131),('PTRM input'!$G$332*(1+rvanilla01)^0.5)/A2stdlife)) -> n/a | J131: =IF(A2stdlife="n/a","n/a",IF(J$3>(A2stdlife+$E131),('PTRM input'!$G$332*(1+rvanilla01)^0.5)-SUM($G131:I131),('PTRM input'!$G$332*(1+rvanilla01)^0.5)/A2stdlife)) -> n/a | K131: =IF(A2stdlife="n/a","n/a",IF(K$3>(A2stdlife+$E131),('PTRM input'!$G$332*(1+rvanilla01)^0.5)-SUM($G131:J131),('PTRM input'!$G$332*(1+rvanilla01)^0.5)/A2stdlife)) -> n/a | L131: =IF(A2stdlife="n/a","n/a",IF(L$3>(A2stdlife+$E131),('PTRM input'!$G$332*(1+rvanilla01)^0.5)-SUM($G131:K131),('PTRM input'!$G$332*(1+rvanilla01)^0.5)/A2stdlife)) -> n/a | M131: =IF(A2stdlife="n/a","n/a",IF(M$3>(A2stdlife+$E131),('PTRM input'!$G$332*(1+rvanilla01)^0.5)-SUM($G131:L131),('PTRM input'!$G$332*(1+rvanilla01)^0.5)/A2stdlife)) -> n/a | N131: =IF(A2stdlife="n/a","n/a",IF(N$3>(A2stdlife+$E131),('PTRM input'!$G$332*(1+rvanilla01)^0.5)-SUM($G131:M131),('PTRM input'!$G$332*(1+rvanilla01)^0.5)/A2stdlife)) -> n/a | O131: =IF(A2stdlife="n/a","n/a",IF(O$3>(A2stdlife+$E131),('PTRM input'!$G$332*(1+rvanilla01)^0.5)-SUM($G131:N131),('PTRM input'!$G$332*(1+rvanilla01)^0.5)/A2stdlife)) -> n/a | P131: =IF(A2stdlife="n/a","n/a",IF(P$3>(A2stdlife+$E131),('PTRM input'!$G$332*(1+rvanilla01)^0.5)-SUM($G131:O131),('PTRM input'!$G$332*(1+rvanilla01)^0.5)/A2stdlife)) -> n/a | Q131: =IF(A2stdlife="n/a","n/a",IF(Q$3>(A2stdlife+$E131),('PTRM input'!$G$332*(1+rvanilla01)^0.5)-SUM($G131:P131),('PTRM input'!$G$332*(1+rvanilla01)^0.5)/A2stdlife)) -> n/a | R131: =IF(A2stdlife="n/a","n/a",IF(R$3>(A2stdlife+$E131),('PTRM input'!$G$332*(1+rvanilla01)^0.5)-SUM($G131:Q131),('PTRM input'!$G$332*(1+rvanilla01)^0.5)/A2stdlife)) -> n/a | S131: =IF(A2stdlife="n/a","n/a",IF(S$3>(A2stdlife+$E131),('PTRM input'!$G$332*(1+rvanilla01)^0.5)-SUM($G131:R131),('PTRM input'!$G$332*(1+rvanilla01)^0.5)/A2stdlife)) -> n/a | T131: =IF(A2stdlife="n/a","n/a",IF(T$3>(A2stdlife+$E131),('PTRM input'!$G$332*(1+rvanilla01)^0.5)-SUM($G131:S131),('PTRM input'!$G$332*(1+rvanilla01)^0.5)/A2stdlife)) -> n/a | U131: =IF(A2stdlife="n/a","n/a",IF(U$3>(A2stdlife+$E131),('PTRM input'!$G$332*(1+rvanilla01)^0.5)-SUM($G131:T131),('PTRM input'!$G$332*(1+rvanilla01)^0.5)/A2stdlife)) -> n/a | V131: =IF(A2stdlife="n/a","n/a",IF(V$3>(A2stdlife+$E131),('PTRM input'!$G$332*(1+rvanilla01)^0.5)-SUM($G131:U131),('PTRM input'!$G$332*(1+rvanilla01)^0.5)/A2stdlife)) -> n/a | W131: =IF(A2stdlife="n/a","n/a",IF(W$3>(A2stdlife+$E131),('PTRM input'!$G$332*(1+rvanilla01)^0.5)-SUM($G131:V131),('PTRM input'!$G$332*(1+rvanilla01)^0.5)/A2stdlife)) -> n/a | X131: =IF(A2stdlife="n/a","n/a",IF(X$3>(A2stdlife+$E131),('PTRM input'!$G$332*(1+rvanilla01)^0.5)-SUM($G131:W131),('PTRM input'!$G$332*(1+rvanilla01)^0.5)/A2stdlife)) -> n/a | Y131: =IF(A2stdlife="n/a","n/a",IF(Y$3>(A2stdlife+$E131),('PTRM input'!$G$332*(1+rvanilla01)^0.5)-SUM($G131:X131),('PTRM input'!$G$332*(1+rvanilla01)^0.5)/A2stdlife)) -> n/a | Z131: =IF(A2stdlife="n/a","n/a",IF(Z$3>(A2stdlife+$E131),('PTRM input'!$G$332*(1+rvanilla01)^0.5)-SUM($G131:Y131),('PTRM input'!$G$332*(1+rvanilla01)^0.5)/A2stdlife)) -> n/a | AA131: =IF(A2stdlife="n/a","n/a",IF(AA$3>(A2stdlife+$E131),('PTRM input'!$G$332*(1+rvanilla01)^0.5)-SUM($G131:Z131),('PTRM input'!$G$332*(1+rvanilla01)^0.5)/A2stdlife)) -> n/a | AB131: =IF(A2stdlife="n/a","n/a",IF(AB$3>(A2stdlife+$E131),('PTRM input'!$G$332*(1+rvanilla01)^0.5)-SUM($G131:AA131),('PTRM input'!$G$332*(1+rvanilla01)^0.5)/A2stdlife)) -> n/a | AC131: =IF(A2stdlife="n/a","n/a",IF(AC$3>(A2stdlife+$E131),('PTRM input'!$G$332*(1+rvanilla01)^0.5)-SUM($G131:AB131),('PTRM input'!$G$332*(1+rvanilla01)^0.5)/A2stdlife)) -> n/a | AD131: =IF(A2stdlife="n/a","n/a",IF(AD$3>(A2stdlife+$E131),('PTRM input'!$G$332*(1+rvanilla01)^0.5)-SUM($G131:AC131),('PTRM input'!$G$332*(1+rvanilla01)^0.5)/A2stdlife)) -> n/a | AE131: =IF(A2stdlife="n/a","n/a",IF(AE$3>(A2stdlife+$E131),('PTRM input'!$G$332*(1+rvanilla01)^0.5)-SUM($G131:AD131),('PTRM input'!$G$332*(1+rvanilla01)^0.5)/A2stdlife)) -> n/a | AF131: =IF(A2stdlife="n/a","n/a",IF(AF$3>(A2stdlife+$E131),('PTRM input'!$G$332*(1+rvanilla01)^0.5)-SUM($G131:AE131),('PTRM input'!$G$332*(1+rvanilla01)^0.5)/A2stdlife)) -> n/a | AG131: =IF(A2stdlife="n/a","n/a",IF(AG$3>(A2stdlife+$E131),('PTRM input'!$G$332*(1+rvanilla01)^0.5)-SUM($G131:AF131),('PTRM input'!$G$332*(1+rvanilla01)^0.5)/A2stdlife)) -> n/a | AH131: =IF(A2stdlife="n/a","n/a",IF(AH$3>(A2stdlife+$E131),('PTRM input'!$G$332*(1+rvanilla01)^0.5)-SUM($G131:AG131),('PTRM input'!$G$332*(1+rvanilla01)^0.5)/A2stdlife)) -> n/a | AI131: =IF(A2stdlife="n/a","n/a",IF(AI$3>(A2stdlife+$E131),('PTRM input'!$G$332*(1+rvanilla01)^0.5)-SUM($G131:AH131),('PTRM input'!$G$332*(1+rvanilla01)^0.5)/A2stdlife)) -> n/a | AJ131: =IF(A2stdlife="n/a","n/a",IF(AJ$3>(A2stdlife+$E131),('PTRM input'!$G$332*(1+rvanilla01)^0.5)-SUM($G131:AI131),('PTRM input'!$G$332*(1+rvanilla01)^0.5)/A2stdlife)) -> n/a | AK131: =IF(A2stdlife="n/a","n/a",IF(AK$3>(A2stdlife+$E131),('PTRM input'!$G$332*(1+rvanilla01)^0.5)-SUM($G131:AJ131),('PTRM input'!$G$332*(1+rvanilla01)^0.5)/A2stdlife)) -> n/a | AL131: =IF(A2stdlife="n/a","n/a",IF(AL$3>(A2stdlife+$E131),('PTRM input'!$G$332*(1+rvanilla01)^0.5)-SUM($G131:AK131),('PTRM input'!$G$332*(1+rvanilla01)^0.5)/A2stdlife)) -> n/a | AM131: =IF(A2stdlife="n/a","n/a",IF(AM$3>(A2stdlife+$E131),('PTRM input'!$G$332*(1+rvanilla01)^0.5)-SUM($G131:AL131),('PTRM input'!$G$332*(1+rvanilla01)^0.5)/A2stdlife)) -> n/a | AN131: =IF(A2stdlife="n/a","n/a",IF(AN$3>(A2stdlife+$E131),('PTRM input'!$G$332*(1+rvanilla01)^0.5)-SUM($G131:AM131),('PTRM input'!$G$332*(1+rvanilla01)^0.5)/A2stdlife)) -> n/a | AO131: =IF(A2stdlife="n/a","n/a",IF(AO$3>(A2stdlife+$E131),('PTRM input'!$G$332*(1+rvanilla01)^0.5)-SUM($G131:AN131),('PTRM input'!$G$332*(1+rvanilla01)^0.5)/A2stdlife)) -> n/a | AP131: =IF(A2stdlife="n/a","n/a",IF(AP$3>(A2stdlife+$E131),('PTRM input'!$G$332*(1+rvanilla01)^0.5)-SUM($G131:AO131),('PTRM input'!$G$332*(1+rvanilla01)^0.5)/A2stdlife)) -> n/a | AQ131: =IF(A2stdlife="n/a","n/a",IF(AQ$3>(A2stdlife+$E131),('PTRM input'!$G$332*(1+rvanilla01)^0.5)-SUM($G131:AP131),('PTRM input'!$G$332*(1+rvanilla01)^0.5)/A2stdlife)) -> n/a | AR131: =IF(A2stdlife="n/a","n/a",IF(AR$3>(A2stdlife+$E131),('PTRM input'!$G$332*(1+rvanilla01)^0.5)-SUM($G131:AQ131),('PTRM input'!$G$332*(1+rvanilla01)^0.5)/A2stdlife)) -> n/a | AS131: =IF(A2stdlife="n/a","n/a",IF(AS$3>(A2stdlife+$E131),('PTRM input'!$G$332*(1+rvanilla01)^0.5)-SUM($G131:AR131),('PTRM input'!$G$332*(1+rvanilla01)^0.5)/A2stdlife)) -> n/a | AT131: =IF(A2stdlife="n/a","n/a",IF(AT$3>(A2stdlife+$E131),('PTRM input'!$G$332*(1+rvanilla01)^0.5)-SUM($G131:AS131),('PTRM input'!$G$332*(1+rvanilla01)^0.5)/A2stdlife)) -> n/a | AU131: =IF(A2stdlife="n/a","n/a",IF(AU$3>(A2stdlife+$E131),('PTRM input'!$G$332*(1+rvanilla01)^0.5)-SUM($G131:AT131),('PTRM input'!$G$332*(1+rvanilla01)^0.5)/A2stdlife)) -> n/a | AV131: =IF(A2stdlife="n/a","n/a",IF(AV$3>(A2stdlife+$E131),('PTRM input'!$G$332*(1+rvanilla01)^0.5)-SUM($G131:AU131),('PTRM input'!$G$332*(1+rvanilla01)^0.5)/A2stdlife)) -> n/a | AW131: =IF(A2stdlife="n/a","n/a",IF(AW$3>(A2stdlife+$E131),('PTRM input'!$G$332*(1+rvanilla01)^0.5)-SUM($G131:AV131),('PTRM input'!$G$332*(1+rvanilla01)^0.5)/A2stdlife)) -> n/a | AX131: =IF(A2stdlife="n/a","n/a",IF(AX$3>(A2stdlife+$E131),('PTRM input'!$G$332*(1+rvanilla01)^0.5)-SUM($G131:AW131),('PTRM input'!$G$332*(1+rvanilla01)^0.5)/A2stdlife)) -> n/a | AY131: =IF(A2stdlife="n/a","n/a",IF(AY$3>(A2stdlife+$E131),('PTRM input'!$G$332*(1+rvanilla01)^0.5)-SUM($G131:AX131),('PTRM input'!$G$332*(1+rvanilla01)^0.5)/A2stdlife)) -> n/a | AZ131: =IF(A2stdlife="n/a","n/a",IF(AZ$3>(A2stdlife+$E131),('PTRM input'!$G$332*(1+rvanilla01)^0.5)-SUM($G131:AY131),('PTRM input'!$G$332*(1+rvanilla01)^0.5)/A2stdlife)) -> n/a | BA131: =IF(A2stdlife="n/a","n/a",IF(BA$3>(A2stdlife+$E131),('PTRM input'!$G$332*(1+rvanilla01)^0.5)-SUM($G131:AZ131),('PTRM input'!$G$332*(1+rvanilla01)^0.5)/A2stdlife)) -> n/a | BB131: =IF(A2stdlife="n/a","n/a",IF(BB$3>(A2stdlife+$E131),('PTRM input'!$G$332*(1+rvanilla01)^0.5)-SUM($G131:BA131),('PTRM input'!$G$332*(1+rvanilla01)^0.5)/A2stdlife)) -> n/a | BC131: =IF(A2stdlife="n/a","n/a",IF(BC$3>(A2stdlife+$E131),('PTRM input'!$G$332*(1+rvanilla01)^0.5)-SUM($G131:BB131),('PTRM input'!$G$332*(1+rvanilla01)^0.5)/A2stdlife)) -> n/a | BD131: =IF(A2stdlife="n/a","n/a",IF(BD$3>(A2stdlife+$E131),('PTRM input'!$G$332*(1+rvanilla01)^0.5)-SUM($G131:BC131),('PTRM input'!$G$332*(1+rvanilla01)^0.5)/A2stdlife)) -> n/a | BE131: =IF(A2stdlife="n/a","n/a",IF(BE$3>(A2stdlife+$E131),('PTRM input'!$G$332*(1+rvanilla01)^0.5)-SUM($G131:BD131),('PTRM input'!$G$332*(1+rvanilla01)^0.5)/A2stdlife)) -> n/a | BF131: =IF(A2stdlife="n/a","n/a",IF(BF$3>(A2stdlife+$E131),('PTRM input'!$G$332*(1+rvanilla01)^0.5)-SUM($G131:BE131),('PTRM input'!$G$332*(1+rvanilla01)^0.5)/A2stdlife)) -> n/a | BG131: =IF(A2stdlife="n/a","n/a",IF(BG$3>(A2stdlife+$E131),('PTRM input'!$G$332*(1+rvanilla01)^0.5)-SUM($G131:BF131),('PTRM input'!$G$332*(1+rvanilla01)^0.5)/A2stdlife)) -> n/a | BH131: =IF(A2stdlife="n/a","n/a",IF(BH$3>(A2stdlife+$E131),('PTRM input'!$G$332*(1+rvanilla01)^0.5)-SUM($G131:BG131),('PTRM input'!$G$332*(1+rvanilla01)^0.5)/A2stdlife)) -> n/a | BI131: =IF(A2stdlife="n/a","n/a",IF(BI$3>(A2stdlife+$E131),('PTRM input'!$G$332*(1+rvanilla01)^0.5)-SUM($G131:BH131),('PTRM input'!$G$332*(1+rvanilla01)^0.5)/A2stdlife)) -> n/a
E132: 2 | I132: =IF(A2stdlife="n/a","n/a",IF(I$3>(A2stdlife+$E132),('PTRM input'!$H$332*(1+rvanilla02)^0.5)-SUM(H132:$H132),('PTRM input'!$H$332*(1+rvanilla02)^0.5)/A2stdlife)) -> n/a | J132: =IF(A2stdlife="n/a","n/a",IF(J$3>(A2stdlife+$E132),('PTRM input'!$H$332*(1+rvanilla02)^0.5)-SUM($H132:I132),('PTRM input'!$H$332*(1+rvanilla02)^0.5)/A2stdlife)) -> n/a | K132: =IF(A2stdlife="n/a","n/a",IF(K$3>(A2stdlife+$E132),('PTRM input'!$H$332*(1+rvanilla02)^0.5)-SUM($H132:J132),('PTRM input'!$H$332*(1+rvanilla02)^0.5)/A2stdlife)) -> n/a | L132: =IF(A2stdlife="n/a","n/a",IF(L$3>(A2stdlife+$E132),('PTRM input'!$H$332*(1+rvanilla02)^0.5)-SUM($H132:K132),('PTRM input'!$H$332*(1+rvanilla02)^0.5)/A2stdlife)) -> n/a | M132: =IF(A2stdlife="n/a","n/a",IF(M$3>(A2stdlife+$E132),('PTRM input'!$H$332*(1+rvanilla02)^0.5)-SUM($H132:L132),('PTRM input'!$H$332*(1+rvanilla02)^0.5)/A2stdlife)) -> n/a | N132: =IF(A2stdlife="n/a","n/a",IF(N$3>(A2stdlife+$E132),('PTRM input'!$H$332*(1+rvanilla02)^0.5)-SUM($H132:M132),('PTRM input'!$H$332*(1+rvanilla02)^0.5)/A2stdlife)) -> n/a | O132: =IF(A2stdlife="n/a","n/a",IF(O$3>(A2stdlife+$E132),('PTRM input'!$H$332*(1+rvanilla02)^0.5)-SUM($H132:N132),('PTRM input'!$H$332*(1+rvanilla02)^0.5)/A2stdlife)) -> n/a | P132: =IF(A2stdlife="n/a","n/a",IF(P$3>(A2stdlife+$E132),('PTRM input'!$H$332*(1+rvanilla02)^0.5)-SUM($H132:O132),('PTRM input'!$H$332*(1+rvanilla02)^0.5)/A2stdlife)) -> n/a | Q132: =IF(A2stdlife="n/a","n/a",IF(Q$3>(A2stdlife+$E132),('PTRM input'!$H$332*(1+rvanilla02)^0.5)-SUM($H132:P132),('PTRM input'!$H$332*(1+rvanilla02)^0.5)/A2stdlife)) -> n/a | R132: =IF(A2stdlife="n/a","n/a",IF(R$3>(A2stdlife+$E132),('PTRM input'!$H$332*(1+rvanilla02)^0.5)-SUM($H132:Q132),('PTRM input'!$H$332*(1+rvanilla02)^0.5)/A2stdlife)) -> n/a | S132: =IF(A2stdlife="n/a","n/a",IF(S$3>(A2stdlife+$E132),('PTRM input'!$H$332*(1+rvanilla02)^0.5)-SUM($H132:R132),('PTRM input'!$H$332*(1+rvanilla02)^0.5)/A2stdlife)) -> n/a | T132: =IF(A2stdlife="n/a","n/a",IF(T$3>(A2stdlife+$E132),('PTRM input'!$H$332*(1+rvanilla02)^0.5)-SUM($H132:S132),('PTRM input'!$H$332*(1+rvanilla02)^0.5)/A2stdlife)) -> n/a | U132: =IF(A2stdlife="n/a","n/a",IF(U$3>(A2stdlife+$E132),('PTRM input'!$H$332*(1+rvanilla02)^0.5)-SUM($H132:T132),('PTRM input'!$H$332*(1+rvanilla02)^0.5)/A2stdlife)) -> n/a | V132: =IF(A2stdlife="n/a","n/a",IF(V$3>(A2stdlife+$E132),('PTRM input'!$H$332*(1+rvanilla02)^0.5)-SUM($H132:U132),('PTRM input'!$H$332*(1+rvanilla02)^0.5)/A2stdlife)) -> n/a | W132: =IF(A2stdlife="n/a","n/a",IF(W$3>(A2stdlife+$E132),('PTRM input'!$H$332*(1+rvanilla02)^0.5)-SUM($H132:V132),('PTRM input'!$H$332*(1+rvanilla02)^0.5)/A2stdlife)) -> n/a | X132: =IF(A2stdlife="n/a","n/a",IF(X$3>(A2stdlife+$E132),('PTRM input'!$H$332*(1+rvanilla02)^0.5)-SUM($H132:W132),('PTRM input'!$H$332*(1+rvanilla02)^0.5)/A2stdlife)) -> n/a | Y132: =IF(A2stdlife="n/a","n/a",IF(Y$3>(A2stdlife+$E132),('PTRM input'!$H$332*(1+rvanilla02)^0.5)-SUM($H132:X132),('PTRM input'!$H$332*(1+rvanilla02)^0.5)/A2stdlife)) -> n/a | Z132: =IF(A2stdlife="n/a","n/a",IF(Z$3>(A2stdlife+$E132),('PTRM input'!$H$332*(1+rvanilla02)^0.5)-SUM($H132:Y132),('PTRM input'!$H$332*(1+rvanilla02)^0.5)/A2stdlife)) -> n/a | AA132: =IF(A2stdlife="n/a","n/a",IF(AA$3>(A2stdlife+$E132),('PTRM input'!$H$332*(1+rvanilla02)^0.5)-SUM($H132:Z132),('PTRM input'!$H$332*(1+rvanilla02)^0.5)/A2stdlife)) -> n/a | AB132: =IF(A2stdlife="n/a","n/a",IF(AB$3>(A2stdlife+$E132),('PTRM input'!$H$332*(1+rvanilla02)^0.5)-SUM($H132:AA132),('PTRM input'!$H$332*(1+rvanilla02)^0.5)/A2stdlife)) -> n/a | AC132: =IF(A2stdlife="n/a","n/a",IF(AC$3>(A2stdlife+$E132),('PTRM input'!$H$332*(1+rvanilla02)^0.5)-SUM($H132:AB132),('PTRM input'!$H$332*(1+rvanilla02)^0.5)/A2stdlife)) -> n/a | AD132: =IF(A2stdlife="n/a","n/a",IF(AD$3>(A2stdlife+$E132),('PTRM input'!$H$332*(1+rvanilla02)^0.5)-SUM($H132:AC132),('PTRM input'!$H$332*(1+rvanilla02)^0.5)/A2stdlife)) -> n/a | AE132: =IF(A2stdlife="n/a","n/a",IF(AE$3>(A2stdlife+$E132),('PTRM input'!$H$332*(1+rvanilla02)^0.5)-SUM($H132:AD132),('PTRM input'!$H$332*(1+rvanilla02)^0.5)/A2stdlife)) -> n/a | AF132: =IF(A2stdlife="n/a","n/a",IF(AF$3>(A2stdlife+$E132),('PTRM input'!$H$332*(1+rvanilla02)^0.5)-SUM($H132:AE132),('PTRM input'!$H$332*(1+rvanilla02)^0.5)/A2stdlife)) -> n/a | AG132: =IF(A2stdlife="n/a","n/a",IF(AG$3>(A2stdlife+$E132),('PTRM input'!$H$332*(1+rvanilla02)^0.5)-SUM($H132:AF132),('PTRM input'!$H$332*(1+rvanilla02)^0.5)/A2stdlife)) -> n/a | AH132: =IF(A2stdlife="n/a","n/a",IF(AH$3>(A2stdlife+$E132),('PTRM input'!$H$332*(1+rvanilla02)^0.5)-SUM($H132:AG132),('PTRM input'!$H$332*(1+rvanilla02)^0.5)/A2stdlife)) -> n/a | AI132: =IF(A2stdlife="n/a","n/a",IF(AI$3>(A2stdlife+$E132),('PTRM input'!$H$332*(1+rvanilla02)^0.5)-SUM($H132:AH132),('PTRM input'!$H$332*(1+rvanilla02)^0.5)/A2stdlife)) -> n/a | AJ132: =IF(A2stdlife="n/a","n/a",IF(AJ$3>(A2stdlife+$E132),('PTRM input'!$H$332*(1+rvanilla02)^0.5)-SUM($H132:AI132),('PTRM input'!$H$332*(1+rvanilla02)^0.5)/A2stdlife)) -> n/a | AK132: =IF(A2stdlife="n/a","n/a",IF(AK$3>(A2stdlife+$E132),('PTRM input'!$H$332*(1+rvanilla02)^0.5)-SUM($H132:AJ132),('PTRM input'!$H$332*(1+rvanilla02)^0.5)/A2stdlife)) -> n/a | AL132: =IF(A2stdlife="n/a","n/a",IF(AL$3>(A2stdlife+$E132),('PTRM input'!$H$332*(1+rvanilla02)^0.5)-SUM($H132:AK132),('PTRM input'!$H$332*(1+rvanilla02)^0.5)/A2stdlife)) -> n/a | AM132: =IF(A2stdlife="n/a","n/a",IF(AM$3>(A2stdlife+$E132),('PTRM input'!$H$332*(1+rvanilla02)^0.5)-SUM($H132:AL132),('PTRM input'!$H$332*(1+rvanilla02)^0.5)/A2stdlife)) -> n/a | AN132: =IF(A2stdlife="n/a","n/a",IF(AN$3>(A2stdlife+$E132),('PTRM input'!$H$332*(1+rvanilla02)^0.5)-SUM($H132:AM132),('PTRM input'!$H$332*(1+rvanilla02)^0.5)/A2stdlife)) -> n/a | AO132: =IF(A2stdlife="n/a","n/a",IF(AO$3>(A2stdlife+$E132),('PTRM input'!$H$332*(1+rvanilla02)^0.5)-SUM($H132:AN132),('PTRM input'!$H$332*(1+rvanilla02)^0.5)/A2stdlife)) -> n/a | AP132: =IF(A2stdlife="n/a","n/a",IF(AP$3>(A2stdlife+$E132),('PTRM input'!$H$332*(1+rvanilla02)^0.5)-SUM($H132:AO132),('PTRM input'!$H$332*(1+rvanilla02)^0.5)/A2stdlife)) -> n/a | AQ132: =IF(A2stdlife="n/a","n/a",IF(AQ$3>(A2stdlife+$E132),('PTRM input'!$H$332*(1+rvanilla02)^0.5)-SUM($H132:AP132),('PTRM input'!$H$332*(1+rvanilla02)^0.5)/A2stdlife)) -> n/a | AR132: =IF(A2stdlife="n/a","n/a",IF(AR$3>(A2stdlife+$E132),('PTRM input'!$H$332*(1+rvanilla02)^0.5)-SUM($H132:AQ132),('PTRM input'!$H$332*(1+rvanilla02)^0.5)/A2stdlife)) -> n/a | AS132: =IF(A2stdlife="n/a","n/a",IF(AS$3>(A2stdlife+$E132),('PTRM input'!$H$332*(1+rvanilla02)^0.5)-SUM($H132:AR132),('PTRM input'!$H$332*(1+rvanilla02)^0.5)/A2stdlife)) -> n/a | AT132: =IF(A2stdlife="n/a","n/a",IF(AT$3>(A2stdlife+$E132),('PTRM input'!$H$332*(1+rvanilla02)^0.5)-SUM($H132:AS132),('PTRM input'!$H$332*(1+rvanilla02)^0.5)/A2stdlife)) -> n/a | AU132: =IF(A2stdlife="n/a","n/a",IF(AU$3>(A2stdlife+$E132),('PTRM input'!$H$332*(1+rvanilla02)^0.5)-SUM($H132:AT132),('PTRM input'!$H$332*(1+rvanilla02)^0.5)/A2stdlife)) -> n/a | AV132: =IF(A2stdlife="n/a","n/a",IF(AV$3>(A2stdlife+$E132),('PTRM input'!$H$332*(1+rvanilla02)^0.5)-SUM($H132:AU132),('PTRM input'!$H$332*(1+rvanilla02)^0.5)/A2stdlife)) -> n/a | AW132: =IF(A2stdlife="n/a","n/a",IF(AW$3>(A2stdlife+$E132),('PTRM input'!$H$332*(1+rvanilla02)^0.5)-SUM($H132:AV132),('PTRM input'!$H$332*(1+rvanilla02)^0.5)/A2stdlife)) -> n/a | AX132: =IF(A2stdlife="n/a","n/a",IF(AX$3>(A2stdlife+$E132),('PTRM input'!$H$332*(1+rvanilla02)^0.5)-SUM($H132:AW132),('PTRM input'!$H$332*(1+rvanilla02)^0.5)/A2stdlife)) -> n/a | AY132: =IF(A2stdlife="n/a","n/a",IF(AY$3>(A2stdlife+$E132),('PTRM input'!$H$332*(1+rvanilla02)^0.5)-SUM($H132:AX132),('PTRM input'!$H$332*(1+rvanilla02)^0.5)/A2stdlife)) -> n/a | AZ132: =IF(A2stdlife="n/a","n/a",IF(AZ$3>(A2stdlife+$E132),('PTRM input'!$H$332*(1+rvanilla02)^0.5)-SUM($H132:AY132),('PTRM input'!$H$332*(1+rvanilla02)^0.5)/A2stdlife)) -> n/a | BA132: =IF(A2stdlife="n/a","n/a",IF(BA$3>(A2stdlife+$E132),('PTRM input'!$H$332*(1+rvanilla02)^0.5)-SUM($H132:AZ132),('PTRM input'!$H$332*(1+rvanilla02)^0.5)/A2stdlife)) -> n/a | BB132: =IF(A2stdlife="n/a","n/a",IF(BB$3>(A2stdlife+$E132),('PTRM input'!$H$332*(1+rvanilla02)^0.5)-SUM($H132:BA132),('PTRM input'!$H$332*(1+rvanilla02)^0.5)/A2stdlife)) -> n/a | BC132: =IF(A2stdlife="n/a","n/a",IF(BC$3>(A2stdlife+$E132),('PTRM input'!$H$332*(1+rvanilla02)^0.5)-SUM($H132:BB132),('PTRM input'!$H$332*(1+rvanilla02)^0.5)/A2stdlife)) -> n/a | BD132: =IF(A2stdlife="n/a","n/a",IF(BD$3>(A2stdlife+$E132),('PTRM input'!$H$332*(1+rvanilla02)^0.5)-SUM($H132:BC132),('PTRM input'!$H$332*(1+rvanilla02)^0.5)/A2stdlife)) -> n/a | BE132: =IF(A2stdlife="n/a","n/a",IF(BE$3>(A2stdlife+$E132),('PTRM input'!$H$332*(1+rvanilla02)^0.5)-SUM($H132:BD132),('PTRM input'!$H$332*(1+rvanilla02)^0.5)/A2stdlife)) -> n/a | BF132: =IF(A2stdlife="n/a","n/a",IF(BF$3>(A2stdlife+$E132),('PTRM input'!$H$332*(1+rvanilla02)^0.5)-SUM($H132:BE132),('PTRM input'!$H$332*(1+rvanilla02)^0.5)/A2stdlife)) -> n/a | BG132: =IF(A2stdlife="n/a","n/a",IF(BG$3>(A2stdlife+$E132),('PTRM input'!$H$332*(1+rvanilla02)^0.5)-SUM($H132:BF132),('PTRM input'!$H$332*(1+rvanilla02)^0.5)/A2stdlife)) -> n/a | BH132: =IF(A2stdlife="n/a","n/a",IF(BH$3>(A2stdlife+$E132),('PTRM input'!$H$332*(1+rvanilla02)^0.5)-SUM($H132:BG132),('PTRM input'!$H$332*(1+rvanilla02)^0.5)/A2stdlife)) -> n/a | BI132: =IF(A2stdlife="n/a","n/a",IF(BI$3>(A2stdlife+$E132),('PTRM input'!$H$332*(1+rvanilla02)^0.5)-SUM($H132:BH132),('PTRM input'!$H$332*(1+rvanilla02)^0.5)/A2stdlife)) -> n/a
E133: 3 | J133: =IF(A2stdlife="n/a","n/a",IF(J$3>(A2stdlife+$E133),('PTRM input'!$I$332*(1+rvanilla03)^0.5)-SUM(I133:$I133),('PTRM input'!$I$332*(1+rvanilla03)^0.5)/A2stdlife)) -> n/a | K133: =IF(A2stdlife="n/a","n/a",IF(K$3>(A2stdlife+$E133),('PTRM input'!$I$332*(1+rvanilla03)^0.5)-SUM($I133:J133),('PTRM input'!$I$332*(1+rvanilla03)^0.5)/A2stdlife)) -> n/a | L133: =IF(A2stdlife="n/a","n/a",IF(L$3>(A2stdlife+$E133),('PTRM input'!$I$332*(1+rvanilla03)^0.5)-SUM($I133:K133),('PTRM input'!$I$332*(1+rvanilla03)^0.5)/A2stdlife)) -> n/a | M133: =IF(A2stdlife="n/a","n/a",IF(M$3>(A2stdlife+$E133),('PTRM input'!$I$332*(1+rvanilla03)^0.5)-SUM($I133:L133),('PTRM input'!$I$332*(1+rvanilla03)^0.5)/A2stdlife)) -> n/a | N133: =IF(A2stdlife="n/a","n/a",IF(N$3>(A2stdlife+$E133),('PTRM input'!$I$332*(1+rvanilla03)^0.5)-SUM($I133:M133),('PTRM input'!$I$332*(1+rvanilla03)^0.5)/A2stdlife)) -> n/a | O133: =IF(A2stdlife="n/a","n/a",IF(O$3>(A2stdlife+$E133),('PTRM input'!$I$332*(1+rvanilla03)^0.5)-SUM($I133:N133),('PTRM input'!$I$332*(1+rvanilla03)^0.5)/A2stdlife)) -> n/a | P133: =IF(A2stdlife="n/a","n/a",IF(P$3>(A2stdlife+$E133),('PTRM input'!$I$332*(1+rvanilla03)^0.5)-SUM($I133:O133),('PTRM input'!$I$332*(1+rvanilla03)^0.5)/A2stdlife)) -> n/a | Q133: =IF(A2stdlife="n/a","n/a",IF(Q$3>(A2stdlife+$E133),('PTRM input'!$I$332*(1+rvanilla03)^0.5)-SUM($I133:P133),('PTRM input'!$I$332*(1+rvanilla03)^0.5)/A2stdlife)) -> n/a | R133: =IF(A2stdlife="n/a","n/a",IF(R$3>(A2stdlife+$E133),('PTRM input'!$I$332*(1+rvanilla03)^0.5)-SUM($I133:Q133),('PTRM input'!$I$332*(1+rvanilla03)^0.5)/A2stdlife)) -> n/a | S133: =IF(A2stdlife="n/a","n/a",IF(S$3>(A2stdlife+$E133),('PTRM input'!$I$332*(1+rvanilla03)^0.5)-SUM($I133:R133),('PTRM input'!$I$332*(1+rvanilla03)^0.5)/A2stdlife)) -> n/a | T133: =IF(A2stdlife="n/a","n/a",IF(T$3>(A2stdlife+$E133),('PTRM input'!$I$332*(1+rvanilla03)^0.5)-SUM($I133:S133),('PTRM input'!$I$332*(1+rvanilla03)^0.5)/A2stdlife)) -> n/a | U133: =IF(A2stdlife="n/a","n/a",IF(U$3>(A2stdlife+$E133),('PTRM input'!$I$332*(1+rvanilla03)^0.5)-SUM($I133:T133),('PTRM input'!$I$332*(1+rvanilla03)^0.5)/A2stdlife)) -> n/a | V133: =IF(A2stdlife="n/a","n/a",IF(V$3>(A2stdlife+$E133),('PTRM input'!$I$332*(1+rvanilla03)^0.5)-SUM($I133:U133),('PTRM input'!$I$332*(1+rvanilla03)^0.5)/A2stdlife)) -> n/a | W133: =IF(A2stdlife="n/a","n/a",IF(W$3>(A2stdlife+$E133),('PTRM input'!$I$332*(1+rvanilla03)^0.5)-SUM($I133:V133),('PTRM input'!$I$332*(1+rvanilla03)^0.5)/A2stdlife)) -> n/a | X133: =IF(A2stdlife="n/a","n/a",IF(X$3>(A2stdlife+$E133),('PTRM input'!$I$332*(1+rvanilla03)^0.5)-SUM($I133:W133),('PTRM input'!$I$332*(1+rvanilla03)^0.5)/A2stdlife)) -> n/a | Y133: =IF(A2stdlife="n/a","n/a",IF(Y$3>(A2stdlife+$E133),('PTRM input'!$I$332*(1+rvanilla03)^0.5)-SUM($I133:X133),('PTRM input'!$I$332*(1+rvanilla03)^0.5)/A2stdlife)) -> n/a | Z133: =IF(A2stdlife="n/a","n/a",IF(Z$3>(A2stdlife+$E133),('PTRM input'!$I$332*(1+rvanilla03)^0.5)-SUM($I133:Y133),('PTRM input'!$I$332*(1+rvanilla03)^0.5)/A2stdlife)) -> n/a | AA133: =IF(A2stdlife="n/a","n/a",IF(AA$3>(A2stdlife+$E133),('PTRM input'!$I$332*(1+rvanilla03)^0.5)-SUM($I133:Z133),('PTRM input'!$I$332*(1+rvanilla03)^0.5)/A2stdlife)) -> n/a | AB133: =IF(A2stdlife="n/a","n/a",IF(AB$3>(A2stdlife+$E133),('PTRM input'!$I$332*(1+rvanilla03)^0.5)-SUM($I133:AA133),('PTRM input'!$I$332*(1+rvanilla03)^0.5)/A2stdlife)) -> n/a | AC133: =IF(A2stdlife="n/a","n/a",IF(AC$3>(A2stdlife+$E133),('PTRM input'!$I$332*(1+rvanilla03)^0.5)-SUM($I133:AB133),('PTRM input'!$I$332*(1+rvanilla03)^0.5)/A2stdlife)) -> n/a | AD133: =IF(A2stdlife="n/a","n/a",IF(AD$3>(A2stdlife+$E133),('PTRM input'!$I$332*(1+rvanilla03)^0.5)-SUM($I133:AC133),('PTRM input'!$I$332*(1+rvanilla03)^0.5)/A2stdlife)) -> n/a | AE133: =IF(A2stdlife="n/a","n/a",IF(AE$3>(A2stdlife+$E133),('PTRM input'!$I$332*(1+rvanilla03)^0.5)-SUM($I133:AD133),('PTRM input'!$I$332*(1+rvanilla03)^0.5)/A2stdlife)) -> n/a | AF133: =IF(A2stdlife="n/a","n/a",IF(AF$3>(A2stdlife+$E133),('PTRM input'!$I$332*(1+rvanilla03)^0.5)-SUM($I133:AE133),('PTRM input'!$I$332*(1+rvanilla03)^0.5)/A2stdlife)) -> n/a | AG133: =IF(A2stdlife="n/a","n/a",IF(AG$3>(A2stdlife+$E133),('PTRM input'!$I$332*(1+rvanilla03)^0.5)-SUM($I133:AF133),('PTRM input'!$I$332*(1+rvanilla03)^0.5)/A2stdlife)) -> n/a | AH133: =IF(A2stdlife="n/a","n/a",IF(AH$3>(A2stdlife+$E133),('PTRM input'!$I$332*(1+rvanilla03)^0.5)-SUM($I133:AG133),('PTRM input'!$I$332*(1+rvanilla03)^0.5)/A2stdlife)) -> n/a | AI133: =IF(A2stdlife="n/a","n/a",IF(AI$3>(A2stdlife+$E133),('PTRM input'!$I$332*(1+rvanilla03)^0.5)-SUM($I133:AH133),('PTRM input'!$I$332*(1+rvanilla03)^0.5)/A2stdlife)) -> n/a | AJ133: =IF(A2stdlife="n/a","n/a",IF(AJ$3>(A2stdlife+$E133),('PTRM input'!$I$332*(1+rvanilla03)^0.5)-SUM($I133:AI133),('PTRM input'!$I$332*(1+rvanilla03)^0.5)/A2stdlife)) -> n/a | AK133: =IF(A2stdlife="n/a","n/a",IF(AK$3>(A2stdlife+$E133),('PTRM input'!$I$332*(1+rvanilla03)^0.5)-SUM($I133:AJ133),('PTRM input'!$I$332*(1+rvanilla03)^0.5)/A2stdlife)) -> n/a | AL133: =IF(A2stdlife="n/a","n/a",IF(AL$3>(A2stdlife+$E133),('PTRM input'!$I$332*(1+rvanilla03)^0.5)-SUM($I133:AK133),('PTRM input'!$I$332*(1+rvanilla03)^0.5)/A2stdlife)) -> n/a | AM133: =IF(A2stdlife="n/a","n/a",IF(AM$3>(A2stdlife+$E133),('PTRM input'!$I$332*(1+rvanilla03)^0.5)-SUM($I133:AL133),('PTRM input'!$I$332*(1+rvanilla03)^0.5)/A2stdlife)) -> n/a | AN133: =IF(A2stdlife="n/a","n/a",IF(AN$3>(A2stdlife+$E133),('PTRM input'!$I$332*(1+rvanilla03)^0.5)-SUM($I133:AM133),('PTRM input'!$I$332*(1+rvanilla03)^0.5)/A2stdlife)) -> n/a | AO133: =IF(A2stdlife="n/a","n/a",IF(AO$3>(A2stdlife+$E133),('PTRM input'!$I$332*(1+rvanilla03)^0.5)-SUM($I133:AN133),('PTRM input'!$I$332*(1+rvanilla03)^0.5)/A2stdlife)) -> n/a | AP133: =IF(A2stdlife="n/a","n/a",IF(AP$3>(A2stdlife+$E133),('PTRM input'!$I$332*(1+rvanilla03)^0.5)-SUM($I133:AO133),('PTRM input'!$I$332*(1+rvanilla03)^0.5)/A2stdlife)) -> n/a | AQ133: =IF(A2stdlife="n/a","n/a",IF(AQ$3>(A2stdlife+$E133),('PTRM input'!$I$332*(1+rvanilla03)^0.5)-SUM($I133:AP133),('PTRM input'!$I$332*(1+rvanilla03)^0.5)/A2stdlife)) -> n/a | AR133: =IF(A2stdlife="n/a","n/a",IF(AR$3>(A2stdlife+$E133),('PTRM input'!$I$332*(1+rvanilla03)^0.5)-SUM($I133:AQ133),('PTRM input'!$I$332*(1+rvanilla03)^0.5)/A2stdlife)) -> n/a | AS133: =IF(A2stdlife="n/a","n/a",IF(AS$3>(A2stdlife+$E133),('PTRM input'!$I$332*(1+rvanilla03)^0.5)-SUM($I133:AR133),('PTRM input'!$I$332*(1+rvanilla03)^0.5)/A2stdlife)) -> n/a | AT133: =IF(A2stdlife="n/a","n/a",IF(AT$3>(A2stdlife+$E133),('PTRM input'!$I$332*(1+rvanilla03)^0.5)-SUM($I133:AS133),('PTRM input'!$I$332*(1+rvanilla03)^0.5)/A2stdlife)) -> n/a | AU133: =IF(A2stdlife="n/a","n/a",IF(AU$3>(A2stdlife+$E133),('PTRM input'!$I$332*(1+rvanilla03)^0.5)-SUM($I133:AT133),('PTRM input'!$I$332*(1+rvanilla03)^0.5)/A2stdlife)) -> n/a | AV133: =IF(A2stdlife="n/a","n/a",IF(AV$3>(A2stdlife+$E133),('PTRM input'!$I$332*(1+rvanilla03)^0.5)-SUM($I133:AU133),('PTRM input'!$I$332*(1+rvanilla03)^0.5)/A2stdlife)) -> n/a | AW133: =IF(A2stdlife="n/a","n/a",IF(AW$3>(A2stdlife+$E133),('PTRM input'!$I$332*(1+rvanilla03)^0.5)-SUM($I133:AV133),('PTRM input'!$I$332*(1+rvanilla03)^0.5)/A2stdlife)) -> n/a | AX133: =IF(A2stdlife="n/a","n/a",IF(AX$3>(A2stdlife+$E133),('PTRM input'!$I$332*(1+rvanilla03)^0.5)-SUM($I133:AW133),('PTRM input'!$I$332*(1+rvanilla03)^0.5)/A2stdlife)) -> n/a | AY133: =IF(A2stdlife="n/a","n/a",IF(AY$3>(A2stdlife+$E133),('PTRM input'!$I$332*(1+rvanilla03)^0.5)-SUM($I133:AX133),('PTRM input'!$I$332*(1+rvanilla03)^0.5)/A2stdlife)) -> n/a | AZ133: =IF(A2stdlife="n/a","n/a",IF(AZ$3>(A2stdlife+$E133),('PTRM input'!$I$332*(1+rvanilla03)^0.5)-SUM($I133:AY133),('PTRM input'!$I$332*(1+rvanilla03)^0.5)/A2stdlife)) -> n/a | BA133: =IF(A2stdlife="n/a","n/a",IF(BA$3>(A2stdlife+$E133),('PTRM input'!$I$332*(1+rvanilla03)^0.5)-SUM($I133:AZ133),('PTRM input'!$I$332*(1+rvanilla03)^0.5)/A2stdlife)) -> n/a | BB133: =IF(A2stdlife="n/a","n/a",IF(BB$3>(A2stdlife+$E133),('PTRM input'!$I$332*(1+rvanilla03)^0.5)-SUM($I133:BA133),('PTRM input'!$I$332*(1+rvanilla03)^0.5)/A2stdlife)) -> n/a | BC133: =IF(A2stdlife="n/a","n/a",IF(BC$3>(A2stdlife+$E133),('PTRM input'!$I$332*(1+rvanilla03)^0.5)-SUM($I133:BB133),('PTRM input'!$I$332*(1+rvanilla03)^0.5)/A2stdlife)) -> n/a | BD133: =IF(A2stdlife="n/a","n/a",IF(BD$3>(A2stdlife+$E133),('PTRM input'!$I$332*(1+rvanilla03)^0.5)-SUM($I133:BC133),('PTRM input'!$I$332*(1+rvanilla03)^0.5)/A2stdlife)) -> n/a | BE133: =IF(A2stdlife="n/a","n/a",IF(BE$3>(A2stdlife+$E133),('PTRM input'!$I$332*(1+rvanilla03)^0.5)-SUM($I133:BD133),('PTRM input'!$I$332*(1+rvanilla03)^0.5)/A2stdlife)) -> n/a | BF133: =IF(A2stdlife="n/a","n/a",IF(BF$3>(A2stdlife+$E133),('PTRM input'!$I$332*(1+rvanilla03)^0.5)-SUM($I133:BE133),('PTRM input'!$I$332*(1+rvanilla03)^0.5)/A2stdlife)) -> n/a | BG133: =IF(A2stdlife="n/a","n/a",IF(BG$3>(A2stdlife+$E133),('PTRM input'!$I$332*(1+rvanilla03)^0.5)-SUM($I133:BF133),('PTRM input'!$I$332*(1+rvanilla03)^0.5)/A2stdlife)) -> n/a | BH133: =IF(A2stdlife="n/a","n/a",IF(BH$3>(A2stdlife+$E133),('PTRM input'!$I$332*(1+rvanilla03)^0.5)-SUM($I133:BG133),('PTRM input'!$I$332*(1+rvanilla03)^0.5)/A2stdlife)) -> n/a | BI133: =IF(A2stdlife="n/a","n/a",IF(BI$3>(A2stdlife+$E133),('PTRM input'!$I$332*(1+rvanilla03)^0.5)-SUM($I133:BH133),('PTRM input'!$I$332*(1+rvanilla03)^0.5)/A2stdlife)) -> n/a
E134: 4 | K134: =IF(A2stdlife="n/a","n/a",IF(K$3>(A2stdlife+$E134),('PTRM input'!$J$332*(1+rvanilla04)^0.5)-SUM(J134:$J134),('PTRM input'!$J$332*(1+rvanilla04)^0.5)/A2stdlife)) -> n/a | L134: =IF(A2stdlife="n/a","n/a",IF(L$3>(A2stdlife+$E134),('PTRM input'!$J$332*(1+rvanilla04)^0.5)-SUM($J134:K134),('PTRM input'!$J$332*(1+rvanilla04)^0.5)/A2stdlife)) -> n/a | M134: =IF(A2stdlife="n/a","n/a",IF(M$3>(A2stdlife+$E134),('PTRM input'!$J$332*(1+rvanilla04)^0.5)-SUM($J134:L134),('PTRM input'!$J$332*(1+rvanilla04)^0.5)/A2stdlife)) -> n/a | N134: =IF(A2stdlife="n/a","n/a",IF(N$3>(A2stdlife+$E134),('PTRM input'!$J$332*(1+rvanilla04)^0.5)-SUM($J134:M134),('PTRM input'!$J$332*(1+rvanilla04)^0.5)/A2stdlife)) -> n/a | O134: =IF(A2stdlife="n/a","n/a",IF(O$3>(A2stdlife+$E134),('PTRM input'!$J$332*(1+rvanilla04)^0.5)-SUM($J134:N134),('PTRM input'!$J$332*(1+rvanilla04)^0.5)/A2stdlife)) -> n/a | P134: =IF(A2stdlife="n/a","n/a",IF(P$3>(A2stdlife+$E134),('PTRM input'!$J$332*(1+rvanilla04)^0.5)-SUM($J134:O134),('PTRM input'!$J$332*(1+rvanilla04)^0.5)/A2stdlife)) -> n/a | Q134: =IF(A2stdlife="n/a","n/a",IF(Q$3>(A2stdlife+$E134),('PTRM input'!$J$332*(1+rvanilla04)^0.5)-SUM($J134:P134),('PTRM input'!$J$332*(1+rvanilla04)^0.5)/A2stdlife)) -> n/a | R134: =IF(A2stdlife="n/a","n/a",IF(R$3>(A2stdlife+$E134),('PTRM input'!$J$332*(1+rvanilla04)^0.5)-SUM($J134:Q134),('PTRM input'!$J$332*(1+rvanilla04)^0.5)/A2stdlife)) -> n/a | S134: =IF(A2stdlife="n/a","n/a",IF(S$3>(A2stdlife+$E134),('PTRM input'!$J$332*(1+rvanilla04)^0.5)-SUM($J134:R134),('PTRM input'!$J$332*(1+rvanilla04)^0.5)/A2stdlife)) -> n/a | T134: =IF(A2stdlife="n/a","n/a",IF(T$3>(A2stdlife+$E134),('PTRM input'!$J$332*(1+rvanilla04)^0.5)-SUM($J134:S134),('PTRM input'!$J$332*(1+rvanilla04)^0.5)/A2stdlife)) -> n/a | U134: =IF(A2stdlife="n/a","n/a",IF(U$3>(A2stdlife+$E134),('PTRM input'!$J$332*(1+rvanilla04)^0.5)-SUM($J134:T134),('PTRM input'!$J$332*(1+rvanilla04)^0.5)/A2stdlife)) -> n/a | V134: =IF(A2stdlife="n/a","n/a",IF(V$3>(A2stdlife+$E134),('PTRM input'!$J$332*(1+rvanilla04)^0.5)-SUM($J134:U134),('PTRM input'!$J$332*(1+rvanilla04)^0.5)/A2stdlife)) -> n/a | W134: =IF(A2stdlife="n/a","n/a",IF(W$3>(A2stdlife+$E134),('PTRM input'!$J$332*(1+rvanilla04)^0.5)-SUM($J134:V134),('PTRM input'!$J$332*(1+rvanilla04)^0.5)/A2stdlife)) -> n/a | X134: =IF(A2stdlife="n/a","n/a",IF(X$3>(A2stdlife+$E134),('PTRM input'!$J$332*(1+rvanilla04)^0.5)-SUM($J134:W134),('PTRM input'!$J$332*(1+rvanilla04)^0.5)/A2stdlife)) -> n/a | Y134: =IF(A2stdlife="n/a","n/a",IF(Y$3>(A2stdlife+$E134),('PTRM input'!$J$332*(1+rvanilla04)^0.5)-SUM($J134:X134),('PTRM input'!$J$332*(1+rvanilla04)^0.5)/A2stdlife)) -> n/a | Z134: =IF(A2stdlife="n/a","n/a",IF(Z$3>(A2stdlife+$E134),('PTRM input'!$J$332*(1+rvanilla04)^0.5)-SUM($J134:Y134),('PTRM input'!$J$332*(1+rvanilla04)^0.5)/A2stdlife)) -> n/a | AA134: =IF(A2stdlife="n/a","n/a",IF(AA$3>(A2stdlife+$E134),('PTRM input'!$J$332*(1+rvanilla04)^0.5)-SUM($J134:Z134),('PTRM input'!$J$332*(1+rvanilla04)^0.5)/A2stdlife)) -> n/a | AB134: =IF(A2stdlife="n/a","n/a",IF(AB$3>(A2stdlife+$E134),('PTRM input'!$J$332*(1+rvanilla04)^0.5)-SUM($J134:AA134),('PTRM input'!$J$332*(1+rvanilla04)^0.5)/A2stdlife)) -> n/a | AC134: =IF(A2stdlife="n/a","n/a",IF(AC$3>(A2stdlife+$E134),('PTRM input'!$J$332*(1+rvanilla04)^0.5)-SUM($J134:AB134),('PTRM input'!$J$332*(1+rvanilla04)^0.5)/A2stdlife)) -> n/a | AD134: =IF(A2stdlife="n/a","n/a",IF(AD$3>(A2stdlife+$E134),('PTRM input'!$J$332*(1+rvanilla04)^0.5)-SUM($J134:AC134),('PTRM input'!$J$332*(1+rvanilla04)^0.5)/A2stdlife)) -> n/a | AE134: =IF(A2stdlife="n/a","n/a",IF(AE$3>(A2stdlife+$E134),('PTRM input'!$J$332*(1+rvanilla04)^0.5)-SUM($J134:AD134),('PTRM input'!$J$332*(1+rvanilla04)^0.5)/A2stdlife)) -> n/a | AF134: =IF(A2stdlife="n/a","n/a",IF(AF$3>(A2stdlife+$E134),('PTRM input'!$J$332*(1+rvanilla04)^0.5)-SUM($J134:AE134),('PTRM input'!$J$332*(1+rvanilla04)^0.5)/A2stdlife)) -> n/a | AG134: =IF(A2stdlife="n/a","n/a",IF(AG$3>(A2stdlife+$E134),('PTRM input'!$J$332*(1+rvanilla04)^0.5)-SUM($J134:AF134),('PTRM input'!$J$332*(1+rvanilla04)^0.5)/A2stdlife)) -> n/a | AH134: =IF(A2stdlife="n/a","n/a",IF(AH$3>(A2stdlife+$E134),('PTRM input'!$J$332*(1+rvanilla04)^0.5)-SUM($J134:AG134),('PTRM input'!$J$332*(1+rvanilla04)^0.5)/A2stdlife)) -> n/a | AI134: =IF(A2stdlife="n/a","n/a",IF(AI$3>(A2stdlife+$E134),('PTRM input'!$J$332*(1+rvanilla04)^0.5)-SUM($J134:AH134),('PTRM input'!$J$332*(1+rvanilla04)^0.5)/A2stdlife)) -> n/a | AJ134: =IF(A2stdlife="n/a","n/a",IF(AJ$3>(A2stdlife+$E134),('PTRM input'!$J$332*(1+rvanilla04)^0.5)-SUM($J134:AI134),('PTRM input'!$J$332*(1+rvanilla04)^0.5)/A2stdlife)) -> n/a | AK134: =IF(A2stdlife="n/a","n/a",IF(AK$3>(A2stdlife+$E134),('PTRM input'!$J$332*(1+rvanilla04)^0.5)-SUM($J134:AJ134),('PTRM input'!$J$332*(1+rvanilla04)^0.5)/A2stdlife)) -> n/a | AL134: =IF(A2stdlife="n/a","n/a",IF(AL$3>(A2stdlife+$E134),('PTRM input'!$J$332*(1+rvanilla04)^0.5)-SUM($J134:AK134),('PTRM input'!$J$332*(1+rvanilla04)^0.5)/A2stdlife)) -> n/a | AM134: =IF(A2stdlife="n/a","n/a",IF(AM$3>(A2stdlife+$E134),('PTRM input'!$J$332*(1+rvanilla04)^0.5)-SUM($J134:AL134),('PTRM input'!$J$332*(1+rvanilla04)^0.5)/A2stdlife)) -> n/a | AN134: =IF(A2stdlife="n/a","n/a",IF(AN$3>(A2stdlife+$E134),('PTRM input'!$J$332*(1+rvanilla04)^0.5)-SUM($J134:AM134),('PTRM input'!$J$332*(1+rvanilla04)^0.5)/A2stdlife)) -> n/a | AO134: =IF(A2stdlife="n/a","n/a",IF(AO$3>(A2stdlife+$E134),('PTRM input'!$J$332*(1+rvanilla04)^0.5)-SUM($J134:AN134),('PTRM input'!$J$332*(1+rvanilla04)^0.5)/A2stdlife)) -> n/a | AP134: =IF(A2stdlife="n/a","n/a",IF(AP$3>(A2stdlife+$E134),('PTRM input'!$J$332*(1+rvanilla04)^0.5)-SUM($J134:AO134),('PTRM input'!$J$332*(1+rvanilla04)^0.5)/A2stdlife)) -> n/a | AQ134: =IF(A2stdlife="n/a","n/a",IF(AQ$3>(A2stdlife+$E134),('PTRM input'!$J$332*(1+rvanilla04)^0.5)-SUM($J134:AP134),('PTRM input'!$J$332*(1+rvanilla04)^0.5)/A2stdlife)) -> n/a | AR134: =IF(A2stdlife="n/a","n/a",IF(AR$3>(A2stdlife+$E134),('PTRM input'!$J$332*(1+rvanilla04)^0.5)-SUM($J134:AQ134),('PTRM input'!$J$332*(1+rvanilla04)^0.5)/A2stdlife)) -> n/a | AS134: =IF(A2stdlife="n/a","n/a",IF(AS$3>(A2stdlife+$E134),('PTRM input'!$J$332*(1+rvanilla04)^0.5)-SUM($J134:AR134),('PTRM input'!$J$332*(1+rvanilla04)^0.5)/A2stdlife)) -> n/a | AT134: =IF(A2stdlife="n/a","n/a",IF(AT$3>(A2stdlife+$E134),('PTRM input'!$J$332*(1+rvanilla04)^0.5)-SUM($J134:AS134),('PTRM input'!$J$332*(1+rvanilla04)^0.5)/A2stdlife)) -> n/a | AU134: =IF(A2stdlife="n/a","n/a",IF(AU$3>(A2stdlife+$E134),('PTRM input'!$J$332*(1+rvanilla04)^0.5)-SUM($J134:AT134),('PTRM input'!$J$332*(1+rvanilla04)^0.5)/A2stdlife)) -> n/a | AV134: =IF(A2stdlife="n/a","n/a",IF(AV$3>(A2stdlife+$E134),('PTRM input'!$J$332*(1+rvanilla04)^0.5)-SUM($J134:AU134),('PTRM input'!$J$332*(1+rvanilla04)^0.5)/A2stdlife)) -> n/a | AW134: =IF(A2stdlife="n/a","n/a",IF(AW$3>(A2stdlife+$E134),('PTRM input'!$J$332*(1+rvanilla04)^0.5)-SUM($J134:AV134),('PTRM input'!$J$332*(1+rvanilla04)^0.5)/A2stdlife)) -> n/a | AX134: =IF(A2stdlife="n/a","n/a",IF(AX$3>(A2stdlife+$E134),('PTRM input'!$J$332*(1+rvanilla04)^0.5)-SUM($J134:AW134),('PTRM input'!$J$332*(1+rvanilla04)^0.5)/A2stdlife)) -> n/a | AY134: =IF(A2stdlife="n/a","n/a",IF(AY$3>(A2stdlife+$E134),('PTRM input'!$J$332*(1+rvanilla04)^0.5)-SUM($J134:AX134),('PTRM input'!$J$332*(1+rvanilla04)^0.5)/A2stdlife)) -> n/a | AZ134: =IF(A2stdlife="n/a","n/a",IF(AZ$3>(A2stdlife+$E134),('PTRM input'!$J$332*(1+rvanilla04)^0.5)-SUM($J134:AY134),('PTRM input'!$J$332*(1+rvanilla04)^0.5)/A2stdlife)) -> n/a | BA134: =IF(A2stdlife="n/a","n/a",IF(BA$3>(A2stdlife+$E134),('PTRM input'!$J$332*(1+rvanilla04)^0.5)-SUM($J134:AZ134),('PTRM input'!$J$332*(1+rvanilla04)^0.5)/A2stdlife)) -> n/a | BB134: =IF(A2stdlife="n/a","n/a",IF(BB$3>(A2stdlife+$E134),('PTRM input'!$J$332*(1+rvanilla04)^0.5)-SUM($J134:BA134),('PTRM input'!$J$332*(1+rvanilla04)^0.5)/A2stdlife)) -> n/a | BC134: =IF(A2stdlife="n/a","n/a",IF(BC$3>(A2stdlife+$E134),('PTRM input'!$J$332*(1+rvanilla04)^0.5)-SUM($J134:BB134),('PTRM input'!$J$332*(1+rvanilla04)^0.5)/A2stdlife)) -> n/a | BD134: =IF(A2stdlife="n/a","n/a",IF(BD$3>(A2stdlife+$E134),('PTRM input'!$J$332*(1+rvanilla04)^0.5)-SUM($J134:BC134),('PTRM input'!$J$332*(1+rvanilla04)^0.5)/A2stdlife)) -> n/a | BE134: =IF(A2stdlife="n/a","n/a",IF(BE$3>(A2stdlife+$E134),('PTRM input'!$J$332*(1+rvanilla04)^0.5)-SUM($J134:BD134),('PTRM input'!$J$332*(1+rvanilla04)^0.5)/A2stdlife)) -> n/a | BF134: =IF(A2stdlife="n/a","n/a",IF(BF$3>(A2stdlife+$E134),('PTRM input'!$J$332*(1+rvanilla04)^0.5)-SUM($J134:BE134),('PTRM input'!$J$332*(1+rvanilla04)^0.5)/A2stdlife)) -> n/a | BG134: =IF(A2stdlife="n/a","n/a",IF(BG$3>(A2stdlife+$E134),('PTRM input'!$J$332*(1+rvanilla04)^0.5)-SUM($J134:BF134),('PTRM input'!$J$332*(1+rvanilla04)^0.5)/A2stdlife)) -> n/a | BH134: =IF(A2stdlife="n/a","n/a",IF(BH$3>(A2stdlife+$E134),('PTRM input'!$J$332*(1+rvanilla04)^0.5)-SUM($J134:BG134),('PTRM input'!$J$332*(1+rvanilla04)^0.5)/A2stdlife)) -> n/a | BI134: =IF(A2stdlife="n/a","n/a",IF(BI$3>(A2stdlife+$E134),('PTRM input'!$J$332*(1+rvanilla04)^0.5)-SUM($J134:BH134),('PTRM input'!$J$332*(1+rvanilla04)^0.5)/A2stdlife)) -> n/a
E135: 5 | L135: =IF(A2stdlife="n/a","n/a",IF(L$3>(A2stdlife+$E135),('PTRM input'!$K$332*(1+rvanilla05)^0.5)-SUM($K135:K135),('PTRM input'!$K$332*(1+rvanilla05)^0.5)/A2stdlife)) -> n/a | M135: =IF(A2stdlife="n/a","n/a",IF(M$3>(A2stdlife+$E135),('PTRM input'!$K$332*(1+rvanilla05)^0.5)-SUM($K135:L135),('PTRM input'!$K$332*(1+rvanilla05)^0.5)/A2stdlife)) -> n/a | N135: =IF(A2stdlife="n/a","n/a",IF(N$3>(A2stdlife+$E135),('PTRM input'!$K$332*(1+rvanilla05)^0.5)-SUM($K135:M135),('PTRM input'!$K$332*(1+rvanilla05)^0.5)/A2stdlife)) -> n/a | O135: =IF(A2stdlife="n/a","n/a",IF(O$3>(A2stdlife+$E135),('PTRM input'!$K$332*(1+rvanilla05)^0.5)-SUM($K135:N135),('PTRM input'!$K$332*(1+rvanilla05)^0.5)/A2stdlife)) -> n/a | P135: =IF(A2stdlife="n/a","n/a",IF(P$3>(A2stdlife+$E135),('PTRM input'!$K$332*(1+rvanilla05)^0.5)-SUM($K135:O135),('PTRM input'!$K$332*(1+rvanilla05)^0.5)/A2stdlife)) -> n/a | Q135: =IF(A2stdlife="n/a","n/a",IF(Q$3>(A2stdlife+$E135),('PTRM input'!$K$332*(1+rvanilla05)^0.5)-SUM($K135:P135),('PTRM input'!$K$332*(1+rvanilla05)^0.5)/A2stdlife)) -> n/a | R135: =IF(A2stdlife="n/a","n/a",IF(R$3>(A2stdlife+$E135),('PTRM input'!$K$332*(1+rvanilla05)^0.5)-SUM($K135:Q135),('PTRM input'!$K$332*(1+rvanilla05)^0.5)/A2stdlife)) -> n/a | S135: =IF(A2stdlife="n/a","n/a",IF(S$3>(A2stdlife+$E135),('PTRM input'!$K$332*(1+rvanilla05)^0.5)-SUM($K135:R135),('PTRM input'!$K$332*(1+rvanilla05)^0.5)/A2stdlife)) -> n/a | T135: =IF(A2stdlife="n/a","n/a",IF(T$3>(A2stdlife+$E135),('PTRM input'!$K$332*(1+rvanilla05)^0.5)-SUM($K135:S135),('PTRM input'!$K$332*(1+rvanilla05)^0.5)/A2stdlife)) -> n/a | U135: =IF(A2stdlife="n/a","n/a",IF(U$3>(A2stdlife+$E135),('PTRM input'!$K$332*(1+rvanilla05)^0.5)-SUM($K135:T135),('PTRM input'!$K$332*(1+rvanilla05)^0.5)/A2stdlife)) -> n/a | V135: =IF(A2stdlife="n/a","n/a",IF(V$3>(A2stdlife+$E135),('PTRM input'!$K$332*(1+rvanilla05)^0.5)-SUM($K135:U135),('PTRM input'!$K$332*(1+rvanilla05)^0.5)/A2stdlife)) -> n/a | W135: =IF(A2stdlife="n/a","n/a",IF(W$3>(A2stdlife+$E135),('PTRM input'!$K$332*(1+rvanilla05)^0.5)-SUM($K135:V135),('PTRM input'!$K$332*(1+rvanilla05)^0.5)/A2stdlife)) -> n/a | X135: =IF(A2stdlife="n/a","n/a",IF(X$3>(A2stdlife+$E135),('PTRM input'!$K$332*(1+rvanilla05)^0.5)-SUM($K135:W135),('PTRM input'!$K$332*(1+rvanilla05)^0.5)/A2stdlife)) -> n/a | Y135: =IF(A2stdlife="n/a","n/a",IF(Y$3>(A2stdlife+$E135),('PTRM input'!$K$332*(1+rvanilla05)^0.5)-SUM($K135:X135),('PTRM input'!$K$332*(1+rvanilla05)^0.5)/A2stdlife)) -> n/a | Z135: =IF(A2stdlife="n/a","n/a",IF(Z$3>(A2stdlife+$E135),('PTRM input'!$K$332*(1+rvanilla05)^0.5)-SUM($K135:Y135),('PTRM input'!$K$332*(1+rvanilla05)^0.5)/A2stdlife)) -> n/a | AA135: =IF(A2stdlife="n/a","n/a",IF(AA$3>(A2stdlife+$E135),('PTRM input'!$K$332*(1+rvanilla05)^0.5)-SUM($K135:Z135),('PTRM input'!$K$332*(1+rvanilla05)^0.5)/A2stdlife)) -> n/a | AB135: =IF(A2stdlife="n/a","n/a",IF(AB$3>(A2stdlife+$E135),('PTRM input'!$K$332*(1+rvanilla05)^0.5)-SUM($K135:AA135),('PTRM input'!$K$332*(1+rvanilla05)^0.5)/A2stdlife)) -> n/a | AC135: =IF(A2stdlife="n/a","n/a",IF(AC$3>(A2stdlife+$E135),('PTRM input'!$K$332*(1+rvanilla05)^0.5)-SUM($K135:AB135),('PTRM input'!$K$332*(1+rvanilla05)^0.5)/A2stdlife)) -> n/a | AD135: =IF(A2stdlife="n/a","n/a",IF(AD$3>(A2stdlife+$E135),('PTRM input'!$K$332*(1+rvanilla05)^0.5)-SUM($K135:AC135),('PTRM input'!$K$332*(1+rvanilla05)^0.5)/A2stdlife)) -> n/a | AE135: =IF(A2stdlife="n/a","n/a",IF(AE$3>(A2stdlife+$E135),('PTRM input'!$K$332*(1+rvanilla05)^0.5)-SUM($K135:AD135),('PTRM input'!$K$332*(1+rvanilla05)^0.5)/A2stdlife)) -> n/a | AF135: =IF(A2stdlife="n/a","n/a",IF(AF$3>(A2stdlife+$E135),('PTRM input'!$K$332*(1+rvanilla05)^0.5)-SUM($K135:AE135),('PTRM input'!$K$332*(1+rvanilla05)^0.5)/A2stdlife)) -> n/a | AG135: =IF(A2stdlife="n/a","n/a",IF(AG$3>(A2stdlife+$E135),('PTRM input'!$K$332*(1+rvanilla05)^0.5)-SUM($K135:AF135),('PTRM input'!$K$332*(1+rvanilla05)^0.5)/A2stdlife)) -> n/a | AH135: =IF(A2stdlife="n/a","n/a",IF(AH$3>(A2stdlife+$E135),('PTRM input'!$K$332*(1+rvanilla05)^0.5)-SUM($K135:AG135),('PTRM input'!$K$332*(1+rvanilla05)^0.5)/A2stdlife)) -> n/a | AI135: =IF(A2stdlife="n/a","n/a",IF(AI$3>(A2stdlife+$E135),('PTRM input'!$K$332*(1+rvanilla05)^0.5)-SUM($K135:AH135),('PTRM input'!$K$332*(1+rvanilla05)^0.5)/A2stdlife)) -> n/a | AJ135: =IF(A2stdlife="n/a","n/a",IF(AJ$3>(A2stdlife+$E135),('PTRM input'!$K$332*(1+rvanilla05)^0.5)-SUM($K135:AI135),('PTRM input'!$K$332*(1+rvanilla05)^0.5)/A2stdlife)) -> n/a | AK135: =IF(A2stdlife="n/a","n/a",IF(AK$3>(A2stdlife+$E135),('PTRM input'!$K$332*(1+rvanilla05)^0.5)-SUM($K135:AJ135),('PTRM input'!$K$332*(1+rvanilla05)^0.5)/A2stdlife)) -> n/a | AL135: =IF(A2stdlife="n/a","n/a",IF(AL$3>(A2stdlife+$E135),('PTRM input'!$K$332*(1+rvanilla05)^0.5)-SUM($K135:AK135),('PTRM input'!$K$332*(1+rvanilla05)^0.5)/A2stdlife)) -> n/a | AM135: =IF(A2stdlife="n/a","n/a",IF(AM$3>(A2stdlife+$E135),('PTRM input'!$K$332*(1+rvanilla05)^0.5)-SUM($K135:AL135),('PTRM input'!$K$332*(1+rvanilla05)^0.5)/A2stdlife)) -> n/a | AN135: =IF(A2stdlife="n/a","n/a",IF(AN$3>(A2stdlife+$E135),('PTRM input'!$K$332*(1+rvanilla05)^0.5)-SUM($K135:AM135),('PTRM input'!$K$332*(1+rvanilla05)^0.5)/A2stdlife)) -> n/a | AO135: =IF(A2stdlife="n/a","n/a",IF(AO$3>(A2stdlife+$E135),('PTRM input'!$K$332*(1+rvanilla05)^0.5)-SUM($K135:AN135),('PTRM input'!$K$332*(1+rvanilla05)^0.5)/A2stdlife)) -> n/a | AP135: =IF(A2stdlife="n/a","n/a",IF(AP$3>(A2stdlife+$E135),('PTRM input'!$K$332*(1+rvanilla05)^0.5)-SUM($K135:AO135),('PTRM input'!$K$332*(1+rvanilla05)^0.5)/A2stdlife)) -> n/a | AQ135: =IF(A2stdlife="n/a","n/a",IF(AQ$3>(A2stdlife+$E135),('PTRM input'!$K$332*(1+rvanilla05)^0.5)-SUM($K135:AP135),('PTRM input'!$K$332*(1+rvanilla05)^0.5)/A2stdlife)) -> n/a | AR135: =IF(A2stdlife="n/a","n/a",IF(AR$3>(A2stdlife+$E135),('PTRM input'!$K$332*(1+rvanilla05)^0.5)-SUM($K135:AQ135),('PTRM input'!$K$332*(1+rvanilla05)^0.5)/A2stdlife)) -> n/a | AS135: =IF(A2stdlife="n/a","n/a",IF(AS$3>(A2stdlife+$E135),('PTRM input'!$K$332*(1+rvanilla05)^0.5)-SUM($K135:AR135),('PTRM input'!$K$332*(1+rvanilla05)^0.5)/A2stdlife)) -> n/a | AT135: =IF(A2stdlife="n/a","n/a",IF(AT$3>(A2stdlife+$E135),('PTRM input'!$K$332*(1+rvanilla05)^0.5)-SUM($K135:AS135),('PTRM input'!$K$332*(1+rvanilla05)^0.5)/A2stdlife)) -> n/a | AU135: =IF(A2stdlife="n/a","n/a",IF(AU$3>(A2stdlife+$E135),('PTRM input'!$K$332*(1+rvanilla05)^0.5)-SUM($K135:AT135),('PTRM input'!$K$332*(1+rvanilla05)^0.5)/A2stdlife)) -> n/a | AV135: =IF(A2stdlife="n/a","n/a",IF(AV$3>(A2stdlife+$E135),('PTRM input'!$K$332*(1+rvanilla05)^0.5)-SUM($K135:AU135),('PTRM input'!$K$332*(1+rvanilla05)^0.5)/A2stdlife)) -> n/a | AW135: =IF(A2stdlife="n/a","n/a",IF(AW$3>(A2stdlife+$E135),('PTRM input'!$K$332*(1+rvanilla05)^0.5)-SUM($K135:AV135),('PTRM input'!$K$332*(1+rvanilla05)^0.5)/A2stdlife)) -> n/a | AX135: =IF(A2stdlife="n/a","n/a",IF(AX$3>(A2stdlife+$E135),('PTRM input'!$K$332*(1+rvanilla05)^0.5)-SUM($K135:AW135),('PTRM input'!$K$332*(1+rvanilla05)^0.5)/A2stdlife)) -> n/a | AY135: =IF(A2stdlife="n/a","n/a",IF(AY$3>(A2stdlife+$E135),('PTRM input'!$K$332*(1+rvanilla05)^0.5)-SUM($K135:AX135),('PTRM input'!$K$332*(1+rvanilla05)^0.5)/A2stdlife)) -> n/a | AZ135: =IF(A2stdlife="n/a","n/a",IF(AZ$3>(A2stdlife+$E135),('PTRM input'!$K$332*(1+rvanilla05)^0.5)-SUM($K135:AY135),('PTRM input'!$K$332*(1+rvanilla05)^0.5)/A2stdlife)) -> n/a | BA135: =IF(A2stdlife="n/a","n/a",IF(BA$3>(A2stdlife+$E135),('PTRM input'!$K$332*(1+rvanilla05)^0.5)-SUM($K135:AZ135),('PTRM input'!$K$332*(1+rvanilla05)^0.5)/A2stdlife)) -> n/a | BB135: =IF(A2stdlife="n/a","n/a",IF(BB$3>(A2stdlife+$E135),('PTRM input'!$K$332*(1+rvanilla05)^0.5)-SUM($K135:BA135),('PTRM input'!$K$332*(1+rvanilla05)^0.5)/A2stdlife)) -> n/a | BC135: =IF(A2stdlife="n/a","n/a",IF(BC$3>(A2stdlife+$E135),('PTRM input'!$K$332*(1+rvanilla05)^0.5)-SUM($K135:BB135),('PTRM input'!$K$332*(1+rvanilla05)^0.5)/A2stdlife)) -> n/a | BD135: =IF(A2stdlife="n/a","n/a",IF(BD$3>(A2stdlife+$E135),('PTRM input'!$K$332*(1+rvanilla05)^0.5)-SUM($K135:BC135),('PTRM input'!$K$332*(1+rvanilla05)^0.5)/A2stdlife)) -> n/a | BE135: =IF(A2stdlife="n/a","n/a",IF(BE$3>(A2stdlife+$E135),('PTRM input'!$K$332*(1+rvanilla05)^0.5)-SUM($K135:BD135),('PTRM input'!$K$332*(1+rvanilla05)^0.5)/A2stdlife)) -> n/a | BF135: =IF(A2stdlife="n/a","n/a",IF(BF$3>(A2stdlife+$E135),('PTRM input'!$K$332*(1+rvanilla05)^0.5)-SUM($K135:BE135),('PTRM input'!$K$332*(1+rvanilla05)^0.5)/A2stdlife)) -> n/a | BG135: =IF(A2stdlife="n/a","n/a",IF(BG$3>(A2stdlife+$E135),('PTRM input'!$K$332*(1+rvanilla05)^0.5)-SUM($K135:BF135),('PTRM input'!$K$332*(1+rvanilla05)^0.5)/A2stdlife)) -> n/a | BH135: =IF(A2stdlife="n/a","n/a",IF(BH$3>(A2stdlife+$E135),('PTRM input'!$K$332*(1+rvanilla05)^0.5)-SUM($K135:BG135),('PTRM input'!$K$332*(1+rvanilla05)^0.5)/A2stdlife)) -> n/a | BI135: =IF(A2stdlife="n/a","n/a",IF(BI$3>(A2stdlife+$E135),('PTRM input'!$K$332*(1+rvanilla05)^0.5)-SUM($K135:BH135),('PTRM input'!$K$332*(1+rvanilla05)^0.5)/A2stdlife)) -> n/a
E136: 6 | M136: =IF(A2stdlife="n/a","n/a",IF(M$3>(A2stdlife+$E136),('PTRM input'!$L$332*(1+rvanilla06)^0.5)-SUM($L136:L136),('PTRM input'!$L$332*(1+rvanilla06)^0.5)/A2stdlife)) -> n/a | N136: =IF(A2stdlife="n/a","n/a",IF(N$3>(A2stdlife+$E136),('PTRM input'!$L$332*(1+rvanilla06)^0.5)-SUM($L136:M136),('PTRM input'!$L$332*(1+rvanilla06)^0.5)/A2stdlife)) -> n/a | O136: =IF(A2stdlife="n/a","n/a",IF(O$3>(A2stdlife+$E136),('PTRM input'!$L$332*(1+rvanilla06)^0.5)-SUM($L136:N136),('PTRM input'!$L$332*(1+rvanilla06)^0.5)/A2stdlife)) -> n/a | P136: =IF(A2stdlife="n/a","n/a",IF(P$3>(A2stdlife+$E136),('PTRM input'!$L$332*(1+rvanilla06)^0.5)-SUM($L136:O136),('PTRM input'!$L$332*(1+rvanilla06)^0.5)/A2stdlife)) -> n/a | Q136: =IF(A2stdlife="n/a","n/a",IF(Q$3>(A2stdlife+$E136),('PTRM input'!$L$332*(1+rvanilla06)^0.5)-SUM($L136:P136),('PTRM input'!$L$332*(1+rvanilla06)^0.5)/A2stdlife)) -> n/a | R136: =IF(A2stdlife="n/a","n/a",IF(R$3>(A2stdlife+$E136),('PTRM input'!$L$332*(1+rvanilla06)^0.5)-SUM($L136:Q136),('PTRM input'!$L$332*(1+rvanilla06)^0.5)/A2stdlife)) -> n/a | S136: =IF(A2stdlife="n/a","n/a",IF(S$3>(A2stdlife+$E136),('PTRM input'!$L$332*(1+rvanilla06)^0.5)-SUM($L136:R136),('PTRM input'!$L$332*(1+rvanilla06)^0.5)/A2stdlife)) -> n/a | T136: =IF(A2stdlife="n/a","n/a",IF(T$3>(A2stdlife+$E136),('PTRM input'!$L$332*(1+rvanilla06)^0.5)-SUM($L136:S136),('PTRM input'!$L$332*(1+rvanilla06)^0.5)/A2stdlife)) -> n/a | U136: =IF(A2stdlife="n/a","n/a",IF(U$3>(A2stdlife+$E136),('PTRM input'!$L$332*(1+rvanilla06)^0.5)-SUM($L136:T136),('PTRM input'!$L$332*(1+rvanilla06)^0.5)/A2stdlife)) -> n/a | V136: =IF(A2stdlife="n/a","n/a",IF(V$3>(A2stdlife+$E136),('PTRM input'!$L$332*(1+rvanilla06)^0.5)-SUM($L136:U136),('PTRM input'!$L$332*(1+rvanilla06)^0.5)/A2stdlife)) -> n/a | W136: =IF(A2stdlife="n/a","n/a",IF(W$3>(A2stdlife+$E136),('PTRM input'!$L$332*(1+rvanilla06)^0.5)-SUM($L136:V136),('PTRM input'!$L$332*(1+rvanilla06)^0.5)/A2stdlife)) -> n/a | X136: =IF(A2stdlife="n/a","n/a",IF(X$3>(A2stdlife+$E136),('PTRM input'!$L$332*(1+rvanilla06)^0.5)-SUM($L136:W136),('PTRM input'!$L$332*(1+rvanilla06)^0.5)/A2stdlife)) -> n/a | Y136: =IF(A2stdlife="n/a","n/a",IF(Y$3>(A2stdlife+$E136),('PTRM input'!$L$332*(1+rvanilla06)^0.5)-SUM($L136:X136),('PTRM input'!$L$332*(1+rvanilla06)^0.5)/A2stdlife)) -> n/a | Z136: =IF(A2stdlife="n/a","n/a",IF(Z$3>(A2stdlife+$E136),('PTRM input'!$L$332*(1+rvanilla06)^0.5)-SUM($L136:Y136),('PTRM input'!$L$332*(1+rvanilla06)^0.5)/A2stdlife)) -> n/a | AA136: =IF(A2stdlife="n/a","n/a",IF(AA$3>(A2stdlife+$E136),('PTRM input'!$L$332*(1+rvanilla06)^0.5)-SUM($L136:Z136),('PTRM input'!$L$332*(1+rvanilla06)^0.5)/A2stdlife)) -> n/a | AB136: =IF(A2stdlife="n/a","n/a",IF(AB$3>(A2stdlife+$E136),('PTRM input'!$L$332*(1+rvanilla06)^0.5)-SUM($L136:AA136),('PTRM input'!$L$332*(1+rvanilla06)^0.5)/A2stdlife)) -> n/a | AC136: =IF(A2stdlife="n/a","n/a",IF(AC$3>(A2stdlife+$E136),('PTRM input'!$L$332*(1+rvanilla06)^0.5)-SUM($L136:AB136),('PTRM input'!$L$332*(1+rvanilla06)^0.5)/A2stdlife)) -> n/a | AD136: =IF(A2stdlife="n/a","n/a",IF(AD$3>(A2stdlife+$E136),('PTRM input'!$L$332*(1+rvanilla06)^0.5)-SUM($L136:AC136),('PTRM input'!$L$332*(1+rvanilla06)^0.5)/A2stdlife)) -> n/a | AE136: =IF(A2stdlife="n/a","n/a",IF(AE$3>(A2stdlife+$E136),('PTRM input'!$L$332*(1+rvanilla06)^0.5)-SUM($L136:AD136),('PTRM input'!$L$332*(1+rvanilla06)^0.5)/A2stdlife)) -> n/a | AF136: =IF(A2stdlife="n/a","n/a",IF(AF$3>(A2stdlife+$E136),('PTRM input'!$L$332*(1+rvanilla06)^0.5)-SUM($L136:AE136),('PTRM input'!$L$332*(1+rvanilla06)^0.5)/A2stdlife)) -> n/a | AG136: =IF(A2stdlife="n/a","n/a",IF(AG$3>(A2stdlife+$E136),('PTRM input'!$L$332*(1+rvanilla06)^0.5)-SUM($L136:AF136),('PTRM input'!$L$332*(1+rvanilla06)^0.5)/A2stdlife)) -> n/a | AH136: =IF(A2stdlife="n/a","n/a",IF(AH$3>(A2stdlife+$E136),('PTRM input'!$L$332*(1+rvanilla06)^0.5)-SUM($L136:AG136),('PTRM input'!$L$332*(1+rvanilla06)^0.5)/A2stdlife)) -> n/a | AI136: =IF(A2stdlife="n/a","n/a",IF(AI$3>(A2stdlife+$E136),('PTRM input'!$L$332*(1+rvanilla06)^0.5)-SUM($L136:AH136),('PTRM input'!$L$332*(1+rvanilla06)^0.5)/A2stdlife)) -> n/a | AJ136: =IF(A2stdlife="n/a","n/a",IF(AJ$3>(A2stdlife+$E136),('PTRM input'!$L$332*(1+rvanilla06)^0.5)-SUM($L136:AI136),('PTRM input'!$L$332*(1+rvanilla06)^0.5)/A2stdlife)) -> n/a | AK136: =IF(A2stdlife="n/a","n/a",IF(AK$3>(A2stdlife+$E136),('PTRM input'!$L$332*(1+rvanilla06)^0.5)-SUM($L136:AJ136),('PTRM input'!$L$332*(1+rvanilla06)^0.5)/A2stdlife)) -> n/a | AL136: =IF(A2stdlife="n/a","n/a",IF(AL$3>(A2stdlife+$E136),('PTRM input'!$L$332*(1+rvanilla06)^0.5)-SUM($L136:AK136),('PTRM input'!$L$332*(1+rvanilla06)^0.5)/A2stdlife)) -> n/a | AM136: =IF(A2stdlife="n/a","n/a",IF(AM$3>(A2stdlife+$E136),('PTRM input'!$L$332*(1+rvanilla06)^0.5)-SUM($L136:AL136),('PTRM input'!$L$332*(1+rvanilla06)^0.5)/A2stdlife)) -> n/a | AN136: =IF(A2stdlife="n/a","n/a",IF(AN$3>(A2stdlife+$E136),('PTRM input'!$L$332*(1+rvanilla06)^0.5)-SUM($L136:AM136),('PTRM input'!$L$332*(1+rvanilla06)^0.5)/A2stdlife)) -> n/a | AO136: =IF(A2stdlife="n/a","n/a",IF(AO$3>(A2stdlife+$E136),('PTRM input'!$L$332*(1+rvanilla06)^0.5)-SUM($L136:AN136),('PTRM input'!$L$332*(1+rvanilla06)^0.5)/A2stdlife)) -> n/a | AP136: =IF(A2stdlife="n/a","n/a",IF(AP$3>(A2stdlife+$E136),('PTRM input'!$L$332*(1+rvanilla06)^0.5)-SUM($L136:AO136),('PTRM input'!$L$332*(1+rvanilla06)^0.5)/A2stdlife)) -> n/a | AQ136: =IF(A2stdlife="n/a","n/a",IF(AQ$3>(A2stdlife+$E136),('PTRM input'!$L$332*(1+rvanilla06)^0.5)-SUM($L136:AP136),('PTRM input'!$L$332*(1+rvanilla06)^0.5)/A2stdlife)) -> n/a | AR136: =IF(A2stdlife="n/a","n/a",IF(AR$3>(A2stdlife+$E136),('PTRM input'!$L$332*(1+rvanilla06)^0.5)-SUM($L136:AQ136),('PTRM input'!$L$332*(1+rvanilla06)^0.5)/A2stdlife)) -> n/a | AS136: =IF(A2stdlife="n/a","n/a",IF(AS$3>(A2stdlife+$E136),('PTRM input'!$L$332*(1+rvanilla06)^0.5)-SUM($L136:AR136),('PTRM input'!$L$332*(1+rvanilla06)^0.5)/A2stdlife)) -> n/a | AT136: =IF(A2stdlife="n/a","n/a",IF(AT$3>(A2stdlife+$E136),('PTRM input'!$L$332*(1+rvanilla06)^0.5)-SUM($L136:AS136),('PTRM input'!$L$332*(1+rvanilla06)^0.5)/A2stdlife)) -> n/a | AU136: =IF(A2stdlife="n/a","n/a",IF(AU$3>(A2stdlife+$E136),('PTRM input'!$L$332*(1+rvanilla06)^0.5)-SUM($L136:AT136),('PTRM input'!$L$332*(1+rvanilla06)^0.5)/A2stdlife)) -> n/a | AV136: =IF(A2stdlife="n/a","n/a",IF(AV$3>(A2stdlife+$E136),('PTRM input'!$L$332*(1+rvanilla06)^0.5)-SUM($L136:AU136),('PTRM input'!$L$332*(1+rvanilla06)^0.5)/A2stdlife)) -> n/a | AW136: =IF(A2stdlife="n/a","n/a",IF(AW$3>(A2stdlife+$E136),('PTRM input'!$L$332*(1+rvanilla06)^0.5)-SUM($L136:AV136),('PTRM input'!$L$332*(1+rvanilla06)^0.5)/A2stdlife)) -> n/a | AX136: =IF(A2stdlife="n/a","n/a",IF(AX$3>(A2stdlife+$E136),('PTRM input'!$L$332*(1+rvanilla06)^0.5)-SUM($L136:AW136),('PTRM input'!$L$332*(1+rvanilla06)^0.5)/A2stdlife)) -> n/a | AY136: =IF(A2stdlife="n/a","n/a",IF(AY$3>(A2stdlife+$E136),('PTRM input'!$L$332*(1+rvanilla06)^0.5)-SUM($L136:AX136),('PTRM input'!$L$332*(1+rvanilla06)^0.5)/A2stdlife)) -> n/a | AZ136: =IF(A2stdlife="n/a","n/a",IF(AZ$3>(A2stdlife+$E136),('PTRM input'!$L$332*(1+rvanilla06)^0.5)-SUM($L136:AY136),('PTRM input'!$L$332*(1+rvanilla06)^0.5)/A2stdlife)) -> n/a | BA136: =IF(A2stdlife="n/a","n/a",IF(BA$3>(A2stdlife+$E136),('PTRM input'!$L$332*(1+rvanilla06)^0.5)-SUM($L136:AZ136),('PTRM input'!$L$332*(1+rvanilla06)^0.5)/A2stdlife)) -> n/a | BB136: =IF(A2stdlife="n/a","n/a",IF(BB$3>(A2stdlife+$E136),('PTRM input'!$L$332*(1+rvanilla06)^0.5)-SUM($L136:BA136),('PTRM input'!$L$332*(1+rvanilla06)^0.5)/A2stdlife)) -> n/a | BC136: =IF(A2stdlife="n/a","n/a",IF(BC$3>(A2stdlife+$E136),('PTRM input'!$L$332*(1+rvanilla06)^0.5)-SUM($L136:BB136),('PTRM input'!$L$332*(1+rvanilla06)^0.5)/A2stdlife)) -> n/a | BD136: =IF(A2stdlife="n/a","n/a",IF(BD$3>(A2stdlife+$E136),('PTRM input'!$L$332*(1+rvanilla06)^0.5)-SUM($L136:BC136),('PTRM input'!$L$332*(1+rvanilla06)^0.5)/A2stdlife)) -> n/a | BE136: =IF(A2stdlife="n/a","n/a",IF(BE$3>(A2stdlife+$E136),('PTRM input'!$L$332*(1+rvanilla06)^0.5)-SUM($L136:BD136),('PTRM input'!$L$332*(1+rvanilla06)^0.5)/A2stdlife)) -> n/a | BF136: =IF(A2stdlife="n/a","n/a",IF(BF$3>(A2stdlife+$E136),('PTRM input'!$L$332*(1+rvanilla06)^0.5)-SUM($L136:BE136),('PTRM input'!$L$332*(1+rvanilla06)^0.5)/A2stdlife)) -> n/a | BG136: =IF(A2stdlife="n/a","n/a",IF(BG$3>(A2stdlife+$E136),('PTRM input'!$L$332*(1+rvanilla06)^0.5)-SUM($L136:BF136),('PTRM input'!$L$332*(1+rvanilla06)^0.5)/A2stdlife)) -> n/a | BH136: =IF(A2stdlife="n/a","n/a",IF(BH$3>(A2stdlife+$E136),('PTRM input'!$L$332*(1+rvanilla06)^0.5)-SUM($L136:BG136),('PTRM input'!$L$332*(1+rvanilla06)^0.5)/A2stdlife)) -> n/a | BI136: =IF(A2stdlife="n/a","n/a",IF(BI$3>(A2stdlife+$E136),('PTRM input'!$L$332*(1+rvanilla06)^0.5)-SUM($L136:BH136),('PTRM input'!$L$332*(1+rvanilla06)^0.5)/A2stdlife)) -> n/a
E137: 7 | N137: =IF(A2stdlife="n/a","n/a",IF(N$3>(A2stdlife+$E137),('PTRM input'!$M$332*(1+rvanilla07)^0.5)-SUM($M137:M137),('PTRM input'!$M$332*(1+rvanilla07)^0.5)/A2stdlife)) -> n/a | O137: =IF(A2stdlife="n/a","n/a",IF(O$3>(A2stdlife+$E137),('PTRM input'!$M$332*(1+rvanilla07)^0.5)-SUM($M137:N137),('PTRM input'!$M$332*(1+rvanilla07)^0.5)/A2stdlife)) -> n/a | P137: =IF(A2stdlife="n/a","n/a",IF(P$3>(A2stdlife+$E137),('PTRM input'!$M$332*(1+rvanilla07)^0.5)-SUM($M137:O137),('PTRM input'!$M$332*(1+rvanilla07)^0.5)/A2stdlife)) -> n/a | Q137: =IF(A2stdlife="n/a","n/a",IF(Q$3>(A2stdlife+$E137),('PTRM input'!$M$332*(1+rvanilla07)^0.5)-SUM($M137:P137),('PTRM input'!$M$332*(1+rvanilla07)^0.5)/A2stdlife)) -> n/a | R137: =IF(A2stdlife="n/a","n/a",IF(R$3>(A2stdlife+$E137),('PTRM input'!$M$332*(1+rvanilla07)^0.5)-SUM($M137:Q137),('PTRM input'!$M$332*(1+rvanilla07)^0.5)/A2stdlife)) -> n/a | S137: =IF(A2stdlife="n/a","n/a",IF(S$3>(A2stdlife+$E137),('PTRM input'!$M$332*(1+rvanilla07)^0.5)-SUM($M137:R137),('PTRM input'!$M$332*(1+rvanilla07)^0.5)/A2stdlife)) -> n/a | T137: =IF(A2stdlife="n/a","n/a",IF(T$3>(A2stdlife+$E137),('PTRM input'!$M$332*(1+rvanilla07)^0.5)-SUM($M137:S137),('PTRM input'!$M$332*(1+rvanilla07)^0.5)/A2stdlife)) -> n/a | U137: =IF(A2stdlife="n/a","n/a",IF(U$3>(A2stdlife+$E137),('PTRM input'!$M$332*(1+rvanilla07)^0.5)-SUM($M137:T137),('PTRM input'!$M$332*(1+rvanilla07)^0.5)/A2stdlife)) -> n/a | V137: =IF(A2stdlife="n/a","n/a",IF(V$3>(A2stdlife+$E137),('PTRM input'!$M$332*(1+rvanilla07)^0.5)-SUM($M137:U137),('PTRM input'!$M$332*(1+rvanilla07)^0.5)/A2stdlife)) -> n/a | W137: =IF(A2stdlife="n/a","n/a",IF(W$3>(A2stdlife+$E137),('PTRM input'!$M$332*(1+rvanilla07)^0.5)-SUM($M137:V137),('PTRM input'!$M$332*(1+rvanilla07)^0.5)/A2stdlife)) -> n/a | X137: =IF(A2stdlife="n/a","n/a",IF(X$3>(A2stdlife+$E137),('PTRM input'!$M$332*(1+rvanilla07)^0.5)-SUM($M137:W137),('PTRM input'!$M$332*(1+rvanilla07)^0.5)/A2stdlife)) -> n/a | Y137: =IF(A2stdlife="n/a","n/a",IF(Y$3>(A2stdlife+$E137),('PTRM input'!$M$332*(1+rvanilla07)^0.5)-SUM($M137:X137),('PTRM input'!$M$332*(1+rvanilla07)^0.5)/A2stdlife)) -> n/a | Z137: =IF(A2stdlife="n/a","n/a",IF(Z$3>(A2stdlife+$E137),('PTRM input'!$M$332*(1+rvanilla07)^0.5)-SUM($M137:Y137),('PTRM input'!$M$332*(1+rvanilla07)^0.5)/A2stdlife)) -> n/a | AA137: =IF(A2stdlife="n/a","n/a",IF(AA$3>(A2stdlife+$E137),('PTRM input'!$M$332*(1+rvanilla07)^0.5)-SUM($M137:Z137),('PTRM input'!$M$332*(1+rvanilla07)^0.5)/A2stdlife)) -> n/a | AB137: =IF(A2stdlife="n/a","n/a",IF(AB$3>(A2stdlife+$E137),('PTRM input'!$M$332*(1+rvanilla07)^0.5)-SUM($M137:AA137),('PTRM input'!$M$332*(1+rvanilla07)^0.5)/A2stdlife)) -> n/a | AC137: =IF(A2stdlife="n/a","n/a",IF(AC$3>(A2stdlife+$E137),('PTRM input'!$M$332*(1+rvanilla07)^0.5)-SUM($M137:AB137),('PTRM input'!$M$332*(1+rvanilla07)^0.5)/A2stdlife)) -> n/a | AD137: =IF(A2stdlife="n/a","n/a",IF(AD$3>(A2stdlife+$E137),('PTRM input'!$M$332*(1+rvanilla07)^0.5)-SUM($M137:AC137),('PTRM input'!$M$332*(1+rvanilla07)^0.5)/A2stdlife)) -> n/a | AE137: =IF(A2stdlife="n/a","n/a",IF(AE$3>(A2stdlife+$E137),('PTRM input'!$M$332*(1+rvanilla07)^0.5)-SUM($M137:AD137),('PTRM input'!$M$332*(1+rvanilla07)^0.5)/A2stdlife)) -> n/a | AF137: =IF(A2stdlife="n/a","n/a",IF(AF$3>(A2stdlife+$E137),('PTRM input'!$M$332*(1+rvanilla07)^0.5)-SUM($M137:AE137),('PTRM input'!$M$332*(1+rvanilla07)^0.5)/A2stdlife)) -> n/a | AG137: =IF(A2stdlife="n/a","n/a",IF(AG$3>(A2stdlife+$E137),('PTRM input'!$M$332*(1+rvanilla07)^0.5)-SUM($M137:AF137),('PTRM input'!$M$332*(1+rvanilla07)^0.5)/A2stdlife)) -> n/a | AH137: =IF(A2stdlife="n/a","n/a",IF(AH$3>(A2stdlife+$E137),('PTRM input'!$M$332*(1+rvanilla07)^0.5)-SUM($M137:AG137),('PTRM input'!$M$332*(1+rvanilla07)^0.5)/A2stdlife)) -> n/a | AI137: =IF(A2stdlife="n/a","n/a",IF(AI$3>(A2stdlife+$E137),('PTRM input'!$M$332*(1+rvanilla07)^0.5)-SUM($M137:AH137),('PTRM input'!$M$332*(1+rvanilla07)^0.5)/A2stdlife)) -> n/a | AJ137: =IF(A2stdlife="n/a","n/a",IF(AJ$3>(A2stdlife+$E137),('PTRM input'!$M$332*(1+rvanilla07)^0.5)-SUM($M137:AI137),('PTRM input'!$M$332*(1+rvanilla07)^0.5)/A2stdlife)) -> n/a | AK137: =IF(A2stdlife="n/a","n/a",IF(AK$3>(A2stdlife+$E137),('PTRM input'!$M$332*(1+rvanilla07)^0.5)-SUM($M137:AJ137),('PTRM input'!$M$332*(1+rvanilla07)^0.5)/A2stdlife)) -> n/a | AL137: =IF(A2stdlife="n/a","n/a",IF(AL$3>(A2stdlife+$E137),('PTRM input'!$M$332*(1+rvanilla07)^0.5)-SUM($M137:AK137),('PTRM input'!$M$332*(1+rvanilla07)^0.5)/A2stdlife)) -> n/a | AM137: =IF(A2stdlife="n/a","n/a",IF(AM$3>(A2stdlife+$E137),('PTRM input'!$M$332*(1+rvanilla07)^0.5)-SUM($M137:AL137),('PTRM input'!$M$332*(1+rvanilla07)^0.5)/A2stdlife)) -> n/a | AN137: =IF(A2stdlife="n/a","n/a",IF(AN$3>(A2stdlife+$E137),('PTRM input'!$M$332*(1+rvanilla07)^0.5)-SUM($M137:AM137),('PTRM input'!$M$332*(1+rvanilla07)^0.5)/A2stdlife)) -> n/a | AO137: =IF(A2stdlife="n/a","n/a",IF(AO$3>(A2stdlife+$E137),('PTRM input'!$M$332*(1+rvanilla07)^0.5)-SUM($M137:AN137),('PTRM input'!$M$332*(1+rvanilla07)^0.5)/A2stdlife)) -> n/a | AP137: =IF(A2stdlife="n/a","n/a",IF(AP$3>(A2stdlife+$E137),('PTRM input'!$M$332*(1+rvanilla07)^0.5)-SUM($M137:AO137),('PTRM input'!$M$332*(1+rvanilla07)^0.5)/A2stdlife)) -> n/a | AQ137: =IF(A2stdlife="n/a","n/a",IF(AQ$3>(A2stdlife+$E137),('PTRM input'!$M$332*(1+rvanilla07)^0.5)-SUM($M137:AP137),('PTRM input'!$M$332*(1+rvanilla07)^0.5)/A2stdlife)) -> n/a | AR137: =IF(A2stdlife="n/a","n/a",IF(AR$3>(A2stdlife+$E137),('PTRM input'!$M$332*(1+rvanilla07)^0.5)-SUM($M137:AQ137),('PTRM input'!$M$332*(1+rvanilla07)^0.5)/A2stdlife)) -> n/a | AS137: =IF(A2stdlife="n/a","n/a",IF(AS$3>(A2stdlife+$E137),('PTRM input'!$M$332*(1+rvanilla07)^0.5)-SUM($M137:AR137),('PTRM input'!$M$332*(1+rvanilla07)^0.5)/A2stdlife)) -> n/a | AT137: =IF(A2stdlife="n/a","n/a",IF(AT$3>(A2stdlife+$E137),('PTRM input'!$M$332*(1+rvanilla07)^0.5)-SUM($M137:AS137),('PTRM input'!$M$332*(1+rvanilla07)^0.5)/A2stdlife)) -> n/a | AU137: =IF(A2stdlife="n/a","n/a",IF(AU$3>(A2stdlife+$E137),('PTRM input'!$M$332*(1+rvanilla07)^0.5)-SUM($M137:AT137),('PTRM input'!$M$332*(1+rvanilla07)^0.5)/A2stdlife)) -> n/a | AV137: =IF(A2stdlife="n/a","n/a",IF(AV$3>(A2stdlife+$E137),('PTRM input'!$M$332*(1+rvanilla07)^0.5)-SUM($M137:AU137),('PTRM input'!$M$332*(1+rvanilla07)^0.5)/A2stdlife)) -> n/a | AW137: =IF(A2stdlife="n/a","n/a",IF(AW$3>(A2stdlife+$E137),('PTRM input'!$M$332*(1+rvanilla07)^0.5)-SUM($M137:AV137),('PTRM input'!$M$332*(1+rvanilla07)^0.5)/A2stdlife)) -> n/a | AX137: =IF(A2stdlife="n/a","n/a",IF(AX$3>(A2stdlife+$E137),('PTRM input'!$M$332*(1+rvanilla07)^0.5)-SUM($M137:AW137),('PTRM input'!$M$332*(1+rvanilla07)^0.5)/A2stdlife)) -> n/a | AY137: =IF(A2stdlife="n/a","n/a",IF(AY$3>(A2stdlife+$E137),('PTRM input'!$M$332*(1+rvanilla07)^0.5)-SUM($M137:AX137),('PTRM input'!$M$332*(1+rvanilla07)^0.5)/A2stdlife)) -> n/a | AZ137: =IF(A2stdlife="n/a","n/a",IF(AZ$3>(A2stdlife+$E137),('PTRM input'!$M$332*(1+rvanilla07)^0.5)-SUM($M137:AY137),('PTRM input'!$M$332*(1+rvanilla07)^0.5)/A2stdlife)) -> n/a | BA137: =IF(A2stdlife="n/a","n/a",IF(BA$3>(A2stdlife+$E137),('PTRM input'!$M$332*(1+rvanilla07)^0.5)-SUM($M137:AZ137),('PTRM input'!$M$332*(1+rvanilla07)^0.5)/A2stdlife)) -> n/a | BB137: =IF(A2stdlife="n/a","n/a",IF(BB$3>(A2stdlife+$E137),('PTRM input'!$M$332*(1+rvanilla07)^0.5)-SUM($M137:BA137),('PTRM input'!$M$332*(1+rvanilla07)^0.5)/A2stdlife)) -> n/a | BC137: =IF(A2stdlife="n/a","n/a",IF(BC$3>(A2stdlife+$E137),('PTRM input'!$M$332*(1+rvanilla07)^0.5)-SUM($M137:BB137),('PTRM input'!$M$332*(1+rvanilla07)^0.5)/A2stdlife)) -> n/a | BD137: =IF(A2stdlife="n/a","n/a",IF(BD$3>(A2stdlife+$E137),('PTRM input'!$M$332*(1+rvanilla07)^0.5)-SUM($M137:BC137),('PTRM input'!$M$332*(1+rvanilla07)^0.5)/A2stdlife)) -> n/a | BE137: =IF(A2stdlife="n/a","n/a",IF(BE$3>(A2stdlife+$E137),('PTRM input'!$M$332*(1+rvanilla07)^0.5)-SUM($M137:BD137),('PTRM input'!$M$332*(1+rvanilla07)^0.5)/A2stdlife)) -> n/a | BF137: =IF(A2stdlife="n/a","n/a",IF(BF$3>(A2stdlife+$E137),('PTRM input'!$M$332*(1+rvanilla07)^0.5)-SUM($M137:BE137),('PTRM input'!$M$332*(1+rvanilla07)^0.5)/A2stdlife)) -> n/a | BG137: =IF(A2stdlife="n/a","n/a",IF(BG$3>(A2stdlife+$E137),('PTRM input'!$M$332*(1+rvanilla07)^0.5)-SUM($M137:BF137),('PTRM input'!$M$332*(1+rvanilla07)^0.5)/A2stdlife)) -> n/a | BH137: =IF(A2stdlife="n/a","n/a",IF(BH$3>(A2stdlife+$E137),('PTRM input'!$M$332*(1+rvanilla07)^0.5)-SUM($M137:BG137),('PTRM input'!$M$332*(1+rvanilla07)^0.5)/A2stdlife)) -> n/a | BI137: =IF(A2stdlife="n/a","n/a",IF(BI$3>(A2stdlife+$E137),('PTRM input'!$M$332*(1+rvanilla07)^0.5)-SUM($M137:BH137),('PTRM input'!$M$332*(1+rvanilla07)^0.5)/A2stdlife)) -> n/a
E138: 8 | O138: =IF(A2stdlife="n/a","n/a",IF(O$3>(A2stdlife+$E138),('PTRM input'!$N$332*(1+rvanilla08)^0.5)-SUM($N138:N138),('PTRM input'!$N$332*(1+rvanilla08)^0.5)/A2stdlife)) -> n/a | P138: =IF(A2stdlife="n/a","n/a",IF(P$3>(A2stdlife+$E138),('PTRM input'!$N$332*(1+rvanilla08)^0.5)-SUM($N138:O138),('PTRM input'!$N$332*(1+rvanilla08)^0.5)/A2stdlife)) -> n/a | Q138: =IF(A2stdlife="n/a","n/a",IF(Q$3>(A2stdlife+$E138),('PTRM input'!$N$332*(1+rvanilla08)^0.5)-SUM($N138:P138),('PTRM input'!$N$332*(1+rvanilla08)^0.5)/A2stdlife)) -> n/a | R138: =IF(A2stdlife="n/a","n/a",IF(R$3>(A2stdlife+$E138),('PTRM input'!$N$332*(1+rvanilla08)^0.5)-SUM($N138:Q138),('PTRM input'!$N$332*(1+rvanilla08)^0.5)/A2stdlife)) -> n/a | S138: =IF(A2stdlife="n/a","n/a",IF(S$3>(A2stdlife+$E138),('PTRM input'!$N$332*(1+rvanilla08)^0.5)-SUM($N138:R138),('PTRM input'!$N$332*(1+rvanilla08)^0.5)/A2stdlife)) -> n/a | T138: =IF(A2stdlife="n/a","n/a",IF(T$3>(A2stdlife+$E138),('PTRM input'!$N$332*(1+rvanilla08)^0.5)-SUM($N138:S138),('PTRM input'!$N$332*(1+rvanilla08)^0.5)/A2stdlife)) -> n/a | U138: =IF(A2stdlife="n/a","n/a",IF(U$3>(A2stdlife+$E138),('PTRM input'!$N$332*(1+rvanilla08)^0.5)-SUM($N138:T138),('PTRM input'!$N$332*(1+rvanilla08)^0.5)/A2stdlife)) -> n/a | V138: =IF(A2stdlife="n/a","n/a",IF(V$3>(A2stdlife+$E138),('PTRM input'!$N$332*(1+rvanilla08)^0.5)-SUM($N138:U138),('PTRM input'!$N$332*(1+rvanilla08)^0.5)/A2stdlife)) -> n/a | W138: =IF(A2stdlife="n/a","n/a",IF(W$3>(A2stdlife+$E138),('PTRM input'!$N$332*(1+rvanilla08)^0.5)-SUM($N138:V138),('PTRM input'!$N$332*(1+rvanilla08)^0.5)/A2stdlife)) -> n/a | X138: =IF(A2stdlife="n/a","n/a",IF(X$3>(A2stdlife+$E138),('PTRM input'!$N$332*(1+rvanilla08)^0.5)-SUM($N138:W138),('PTRM input'!$N$332*(1+rvanilla08)^0.5)/A2stdlife)) -> n/a | Y138: =IF(A2stdlife="n/a","n/a",IF(Y$3>(A2stdlife+$E138),('PTRM input'!$N$332*(1+rvanilla08)^0.5)-SUM($N138:X138),('PTRM input'!$N$332*(1+rvanilla08)^0.5)/A2stdlife)) -> n/a | Z138: =IF(A2stdlife="n/a","n/a",IF(Z$3>(A2stdlife+$E138),('PTRM input'!$N$332*(1+rvanilla08)^0.5)-SUM($N138:Y138),('PTRM input'!$N$332*(1+rvanilla08)^0.5)/A2stdlife)) -> n/a | AA138: =IF(A2stdlife="n/a","n/a",IF(AA$3>(A2stdlife+$E138),('PTRM input'!$N$332*(1+rvanilla08)^0.5)-SUM($N138:Z138),('PTRM input'!$N$332*(1+rvanilla08)^0.5)/A2stdlife)) -> n/a | AB138: =IF(A2stdlife="n/a","n/a",IF(AB$3>(A2stdlife+$E138),('PTRM input'!$N$332*(1+rvanilla08)^0.5)-SUM($N138:AA138),('PTRM input'!$N$332*(1+rvanilla08)^0.5)/A2stdlife)) -> n/a | AC138: =IF(A2stdlife="n/a","n/a",IF(AC$3>(A2stdlife+$E138),('PTRM input'!$N$332*(1+rvanilla08)^0.5)-SUM($N138:AB138),('PTRM input'!$N$332*(1+rvanilla08)^0.5)/A2stdlife)) -> n/a | AD138: =IF(A2stdlife="n/a","n/a",IF(AD$3>(A2stdlife+$E138),('PTRM input'!$N$332*(1+rvanilla08)^0.5)-SUM($N138:AC138),('PTRM input'!$N$332*(1+rvanilla08)^0.5)/A2stdlife)) -> n/a | AE138: =IF(A2stdlife="n/a","n/a",IF(AE$3>(A2stdlife+$E138),('PTRM input'!$N$332*(1+rvanilla08)^0.5)-SUM($N138:AD138),('PTRM input'!$N$332*(1+rvanilla08)^0.5)/A2stdlife)) -> n/a | AF138: =IF(A2stdlife="n/a","n/a",IF(AF$3>(A2stdlife+$E138),('PTRM input'!$N$332*(1+rvanilla08)^0.5)-SUM($N138:AE138),('PTRM input'!$N$332*(1+rvanilla08)^0.5)/A2stdlife)) -> n/a | AG138: =IF(A2stdlife="n/a","n/a",IF(AG$3>(A2stdlife+$E138),('PTRM input'!$N$332*(1+rvanilla08)^0.5)-SUM($N138:AF138),('PTRM input'!$N$332*(1+rvanilla08)^0.5)/A2stdlife)) -> n/a | AH138: =IF(A2stdlife="n/a","n/a",IF(AH$3>(A2stdlife+$E138),('PTRM input'!$N$332*(1+rvanilla08)^0.5)-SUM($N138:AG138),('PTRM input'!$N$332*(1+rvanilla08)^0.5)/A2stdlife)) -> n/a | AI138: =IF(A2stdlife="n/a","n/a",IF(AI$3>(A2stdlife+$E138),('PTRM input'!$N$332*(1+rvanilla08)^0.5)-SUM($N138:AH138),('PTRM input'!$N$332*(1+rvanilla08)^0.5)/A2stdlife)) -> n/a | AJ138: =IF(A2stdlife="n/a","n/a",IF(AJ$3>(A2stdlife+$E138),('PTRM input'!$N$332*(1+rvanilla08)^0.5)-SUM($N138:AI138),('PTRM input'!$N$332*(1+rvanilla08)^0.5)/A2stdlife)) -> n/a | AK138: =IF(A2stdlife="n/a","n/a",IF(AK$3>(A2stdlife+$E138),('PTRM input'!$N$332*(1+rvanilla08)^0.5)-SUM($N138:AJ138),('PTRM input'!$N$332*(1+rvanilla08)^0.5)/A2stdlife)) -> n/a | AL138: =IF(A2stdlife="n/a","n/a",IF(AL$3>(A2stdlife+$E138),('PTRM input'!$N$332*(1+rvanilla08)^0.5)-SUM($N138:AK138),('PTRM input'!$N$332*(1+rvanilla08)^0.5)/A2stdlife)) -> n/a | AM138: =IF(A2stdlife="n/a","n/a",IF(AM$3>(A2stdlife+$E138),('PTRM input'!$N$332*(1+rvanilla08)^0.5)-SUM($N138:AL138),('PTRM input'!$N$332*(1+rvanilla08)^0.5)/A2stdlife)) -> n/a | AN138: =IF(A2stdlife="n/a","n/a",IF(AN$3>(A2stdlife+$E138),('PTRM input'!$N$332*(1+rvanilla08)^0.5)-SUM($N138:AM138),('PTRM input'!$N$332*(1+rvanilla08)^0.5)/A2stdlife)) -> n/a | AO138: =IF(A2stdlife="n/a","n/a",IF(AO$3>(A2stdlife+$E138),('PTRM input'!$N$332*(1+rvanilla08)^0.5)-SUM($N138:AN138),('PTRM input'!$N$332*(1+rvanilla08)^0.5)/A2stdlife)) -> n/a | AP138: =IF(A2stdlife="n/a","n/a",IF(AP$3>(A2stdlife+$E138),('PTRM input'!$N$332*(1+rvanilla08)^0.5)-SUM($N138:AO138),('PTRM input'!$N$332*(1+rvanilla08)^0.5)/A2stdlife)) -> n/a | AQ138: =IF(A2stdlife="n/a","n/a",IF(AQ$3>(A2stdlife+$E138),('PTRM input'!$N$332*(1+rvanilla08)^0.5)-SUM($N138:AP138),('PTRM input'!$N$332*(1+rvanilla08)^0.5)/A2stdlife)) -> n/a | AR138: =IF(A2stdlife="n/a","n/a",IF(AR$3>(A2stdlife+$E138),('PTRM input'!$N$332*(1+rvanilla08)^0.5)-SUM($N138:AQ138),('PTRM input'!$N$332*(1+rvanilla08)^0.5)/A2stdlife)) -> n/a | AS138: =IF(A2stdlife="n/a","n/a",IF(AS$3>(A2stdlife+$E138),('PTRM input'!$N$332*(1+rvanilla08)^0.5)-SUM($N138:AR138),('PTRM input'!$N$332*(1+rvanilla08)^0.5)/A2stdlife)) -> n/a | AT138: =IF(A2stdlife="n/a","n/a",IF(AT$3>(A2stdlife+$E138),('PTRM input'!$N$332*(1+rvanilla08)^0.5)-SUM($N138:AS138),('PTRM input'!$N$332*(1+rvanilla08)^0.5)/A2stdlife)) -> n/a | AU138: =IF(A2stdlife="n/a","n/a",IF(AU$3>(A2stdlife+$E138),('PTRM input'!$N$332*(1+rvanilla08)^0.5)-SUM($N138:AT138),('PTRM input'!$N$332*(1+rvanilla08)^0.5)/A2stdlife)) -> n/a | AV138: =IF(A2stdlife="n/a","n/a",IF(AV$3>(A2stdlife+$E138),('PTRM input'!$N$332*(1+rvanilla08)^0.5)-SUM($N138:AU138),('PTRM input'!$N$332*(1+rvanilla08)^0.5)/A2stdlife)) -> n/a | AW138: =IF(A2stdlife="n/a","n/a",IF(AW$3>(A2stdlife+$E138),('PTRM input'!$N$332*(1+rvanilla08)^0.5)-SUM($N138:AV138),('PTRM input'!$N$332*(1+rvanilla08)^0.5)/A2stdlife)) -> n/a | AX138: =IF(A2stdlife="n/a","n/a",IF(AX$3>(A2stdlife+$E138),('PTRM input'!$N$332*(1+rvanilla08)^0.5)-SUM($N138:AW138),('PTRM input'!$N$332*(1+rvanilla08)^0.5)/A2stdlife)) -> n/a | AY138: =IF(A2stdlife="n/a","n/a",IF(AY$3>(A2stdlife+$E138),('PTRM input'!$N$332*(1+rvanilla08)^0.5)-SUM($N138:AX138),('PTRM input'!$N$332*(1+rvanilla08)^0.5)/A2stdlife)) -> n/a | AZ138: =IF(A2stdlife="n/a","n/a",IF(AZ$3>(A2stdlife+$E138),('PTRM input'!$N$332*(1+rvanilla08)^0.5)-SUM($N138:AY138),('PTRM input'!$N$332*(1+rvanilla08)^0.5)/A2stdlife)) -> n/a | BA138: =IF(A2stdlife="n/a","n/a",IF(BA$3>(A2stdlife+$E138),('PTRM input'!$N$332*(1+rvanilla08)^0.5)-SUM($N138:AZ138),('PTRM input'!$N$332*(1+rvanilla08)^0.5)/A2stdlife)) -> n/a | BB138: =IF(A2stdlife="n/a","n/a",IF(BB$3>(A2stdlife+$E138),('PTRM input'!$N$332*(1+rvanilla08)^0.5)-SUM($N138:BA138),('PTRM input'!$N$332*(1+rvanilla08)^0.5)/A2stdlife)) -> n/a | BC138: =IF(A2stdlife="n/a","n/a",IF(BC$3>(A2stdlife+$E138),('PTRM input'!$N$332*(1+rvanilla08)^0.5)-SUM($N138:BB138),('PTRM input'!$N$332*(1+rvanilla08)^0.5)/A2stdlife)) -> n/a | BD138: =IF(A2stdlife="n/a","n/a",IF(BD$3>(A2stdlife+$E138),('PTRM input'!$N$332*(1+rvanilla08)^0.5)-SUM($N138:BC138),('PTRM input'!$N$332*(1+rvanilla08)^0.5)/A2stdlife)) -> n/a | BE138: =IF(A2stdlife="n/a","n/a",IF(BE$3>(A2stdlife+$E138),('PTRM input'!$N$332*(1+rvanilla08)^0.5)-SUM($N138:BD138),('PTRM input'!$N$332*(1+rvanilla08)^0.5)/A2stdlife)) -> n/a | BF138: =IF(A2stdlife="n/a","n/a",IF(BF$3>(A2stdlife+$E138),('PTRM input'!$N$332*(1+rvanilla08)^0.5)-SUM($N138:BE138),('PTRM input'!$N$332*(1+rvanilla08)^0.5)/A2stdlife)) -> n/a | BG138: =IF(A2stdlife="n/a","n/a",IF(BG$3>(A2stdlife+$E138),('PTRM input'!$N$332*(1+rvanilla08)^0.5)-SUM($N138:BF138),('PTRM input'!$N$332*(1+rvanilla08)^0.5)/A2stdlife)) -> n/a | BH138: =IF(A2stdlife="n/a","n/a",IF(BH$3>(A2stdlife+$E138),('PTRM input'!$N$332*(1+rvanilla08)^0.5)-SUM($N138:BG138),('PTRM input'!$N$332*(1+rvanilla08)^0.5)/A2stdlife)) -> n/a | BI138: =IF(A2stdlife="n/a","n/a",IF(BI$3>(A2stdlife+$E138),('PTRM input'!$N$332*(1+rvanilla08)^0.5)-SUM($N138:BH138),('PTRM input'!$N$332*(1+rvanilla08)^0.5)/A2stdlife)) -> n/a
E139: 9 | P139: =IF(A2stdlife="n/a","n/a",IF(P$3>(A2stdlife+$E139),('PTRM input'!$O$332*(1+rvanilla09)^0.5)-SUM($O139:O139),('PTRM input'!$O$332*(1+rvanilla09)^0.5)/A2stdlife)) -> n/a | Q139: =IF(A2stdlife="n/a","n/a",IF(Q$3>(A2stdlife+$E139),('PTRM input'!$O$332*(1+rvanilla09)^0.5)-SUM($O139:P139),('PTRM input'!$O$332*(1+rvanilla09)^0.5)/A2stdlife)) -> n/a | R139: =IF(A2stdlife="n/a","n/a",IF(R$3>(A2stdlife+$E139),('PTRM input'!$O$332*(1+rvanilla09)^0.5)-SUM($O139:Q139),('PTRM input'!$O$332*(1+rvanilla09)^0.5)/A2stdlife)) -> n/a | S139: =IF(A2stdlife="n/a","n/a",IF(S$3>(A2stdlife+$E139),('PTRM input'!$O$332*(1+rvanilla09)^0.5)-SUM($O139:R139),('PTRM input'!$O$332*(1+rvanilla09)^0.5)/A2stdlife)) -> n/a | T139: =IF(A2stdlife="n/a","n/a",IF(T$3>(A2stdlife+$E139),('PTRM input'!$O$332*(1+rvanilla09)^0.5)-SUM($O139:S139),('PTRM input'!$O$332*(1+rvanilla09)^0.5)/A2stdlife)) -> n/a | U139: =IF(A2stdlife="n/a","n/a",IF(U$3>(A2stdlife+$E139),('PTRM input'!$O$332*(1+rvanilla09)^0.5)-SUM($O139:T139),('PTRM input'!$O$332*(1+rvanilla09)^0.5)/A2stdlife)) -> n/a | V139: =IF(A2stdlife="n/a","n/a",IF(V$3>(A2stdlife+$E139),('PTRM input'!$O$332*(1+rvanilla09)^0.5)-SUM($O139:U139),('PTRM input'!$O$332*(1+rvanilla09)^0.5)/A2stdlife)) -> n/a | W139: =IF(A2stdlife="n/a","n/a",IF(W$3>(A2stdlife+$E139),('PTRM input'!$O$332*(1+rvanilla09)^0.5)-SUM($O139:V139),('PTRM input'!$O$332*(1+rvanilla09)^0.5)/A2stdlife)) -> n/a | X139: =IF(A2stdlife="n/a","n/a",IF(X$3>(A2stdlife+$E139),('PTRM input'!$O$332*(1+rvanilla09)^0.5)-SUM($O139:W139),('PTRM input'!$O$332*(1+rvanilla09)^0.5)/A2stdlife)) -> n/a | Y139: =IF(A2stdlife="n/a","n/a",IF(Y$3>(A2stdlife+$E139),('PTRM input'!$O$332*(1+rvanilla09)^0.5)-SUM($O139:X139),('PTRM input'!$O$332*(1+rvanilla09)^0.5)/A2stdlife)) -> n/a | Z139: =IF(A2stdlife="n/a","n/a",IF(Z$3>(A2stdlife+$E139),('PTRM input'!$O$332*(1+rvanilla09)^0.5)-SUM($O139:Y139),('PTRM input'!$O$332*(1+rvanilla09)^0.5)/A2stdlife)) -> n/a | AA139: =IF(A2stdlife="n/a","n/a",IF(AA$3>(A2stdlife+$E139),('PTRM input'!$O$332*(1+rvanilla09)^0.5)-SUM($O139:Z139),('PTRM input'!$O$332*(1+rvanilla09)^0.5)/A2stdlife)) -> n/a | AB139: =IF(A2stdlife="n/a","n/a",IF(AB$3>(A2stdlife+$E139),('PTRM input'!$O$332*(1+rvanilla09)^0.5)-SUM($O139:AA139),('PTRM input'!$O$332*(1+rvanilla09)^0.5)/A2stdlife)) -> n/a | AC139: =IF(A2stdlife="n/a","n/a",IF(AC$3>(A2stdlife+$E139),('PTRM input'!$O$332*(1+rvanilla09)^0.5)-SUM($O139:AB139),('PTRM input'!$O$332*(1+rvanilla09)^0.5)/A2stdlife)) -> n/a | AD139: =IF(A2stdlife="n/a","n/a",IF(AD$3>(A2stdlife+$E139),('PTRM input'!$O$332*(1+rvanilla09)^0.5)-SUM($O139:AC139),('PTRM input'!$O$332*(1+rvanilla09)^0.5)/A2stdlife)) -> n/a | AE139: =IF(A2stdlife="n/a","n/a",IF(AE$3>(A2stdlife+$E139),('PTRM input'!$O$332*(1+rvanilla09)^0.5)-SUM($O139:AD139),('PTRM input'!$O$332*(1+rvanilla09)^0.5)/A2stdlife)) -> n/a | AF139: =IF(A2stdlife="n/a","n/a",IF(AF$3>(A2stdlife+$E139),('PTRM input'!$O$332*(1+rvanilla09)^0.5)-SUM($O139:AE139),('PTRM input'!$O$332*(1+rvanilla09)^0.5)/A2stdlife)) -> n/a | AG139: =IF(A2stdlife="n/a","n/a",IF(AG$3>(A2stdlife+$E139),('PTRM input'!$O$332*(1+rvanilla09)^0.5)-SUM($O139:AF139),('PTRM input'!$O$332*(1+rvanilla09)^0.5)/A2stdlife)) -> n/a | AH139: =IF(A2stdlife="n/a","n/a",IF(AH$3>(A2stdlife+$E139),('PTRM input'!$O$332*(1+rvanilla09)^0.5)-SUM($O139:AG139),('PTRM input'!$O$332*(1+rvanilla09)^0.5)/A2stdlife)) -> n/a | AI139: =IF(A2stdlife="n/a","n/a",IF(AI$3>(A2stdlife+$E139),('PTRM input'!$O$332*(1+rvanilla09)^0.5)-SUM($O139:AH139),('PTRM input'!$O$332*(1+rvanilla09)^0.5)/A2stdlife)) -> n/a | AJ139: =IF(A2stdlife="n/a","n/a",IF(AJ$3>(A2stdlife+$E139),('PTRM input'!$O$332*(1+rvanilla09)^0.5)-SUM($O139:AI139),('PTRM input'!$O$332*(1+rvanilla09)^0.5)/A2stdlife)) -> n/a | AK139: =IF(A2stdlife="n/a","n/a",IF(AK$3>(A2stdlife+$E139),('PTRM input'!$O$332*(1+rvanilla09)^0.5)-SUM($O139:AJ139),('PTRM input'!$O$332*(1+rvanilla09)^0.5)/A2stdlife)) -> n/a | AL139: =IF(A2stdlife="n/a","n/a",IF(AL$3>(A2stdlife+$E139),('PTRM input'!$O$332*(1+rvanilla09)^0.5)-SUM($O139:AK139),('PTRM input'!$O$332*(1+rvanilla09)^0.5)/A2stdlife)) -> n/a | AM139: =IF(A2stdlife="n/a","n/a",IF(AM$3>(A2stdlife+$E139),('PTRM input'!$O$332*(1+rvanilla09)^0.5)-SUM($O139:AL139),('PTRM input'!$O$332*(1+rvanilla09)^0.5)/A2stdlife)) -> n/a | AN139: =IF(A2stdlife="n/a","n/a",IF(AN$3>(A2stdlife+$E139),('PTRM input'!$O$332*(1+rvanilla09)^0.5)-SUM($O139:AM139),('PTRM input'!$O$332*(1+rvanilla09)^0.5)/A2stdlife)) -> n/a | AO139: =IF(A2stdlife="n/a","n/a",IF(AO$3>(A2stdlife+$E139),('PTRM input'!$O$332*(1+rvanilla09)^0.5)-SUM($O139:AN139),('PTRM input'!$O$332*(1+rvanilla09)^0.5)/A2stdlife)) -> n/a | AP139: =IF(A2stdlife="n/a","n/a",IF(AP$3>(A2stdlife+$E139),('PTRM input'!$O$332*(1+rvanilla09)^0.5)-SUM($O139:AO139),('PTRM input'!$O$332*(1+rvanilla09)^0.5)/A2stdlife)) -> n/a | AQ139: =IF(A2stdlife="n/a","n/a",IF(AQ$3>(A2stdlife+$E139),('PTRM input'!$O$332*(1+rvanilla09)^0.5)-SUM($O139:AP139),('PTRM input'!$O$332*(1+rvanilla09)^0.5)/A2stdlife)) -> n/a | AR139: =IF(A2stdlife="n/a","n/a",IF(AR$3>(A2stdlife+$E139),('PTRM input'!$O$332*(1+rvanilla09)^0.5)-SUM($O139:AQ139),('PTRM input'!$O$332*(1+rvanilla09)^0.5)/A2stdlife)) -> n/a | AS139: =IF(A2stdlife="n/a","n/a",IF(AS$3>(A2stdlife+$E139),('PTRM input'!$O$332*(1+rvanilla09)^0.5)-SUM($O139:AR139),('PTRM input'!$O$332*(1+rvanilla09)^0.5)/A2stdlife)) -> n/a | AT139: =IF(A2stdlife="n/a","n/a",IF(AT$3>(A2stdlife+$E139),('PTRM input'!$O$332*(1+rvanilla09)^0.5)-SUM($O139:AS139),('PTRM input'!$O$332*(1+rvanilla09)^0.5)/A2stdlife)) -> n/a | AU139: =IF(A2stdlife="n/a","n/a",IF(AU$3>(A2stdlife+$E139),('PTRM input'!$O$332*(1+rvanilla09)^0.5)-SUM($O139:AT139),('PTRM input'!$O$332*(1+rvanilla09)^0.5)/A2stdlife)) -> n/a | AV139: =IF(A2stdlife="n/a","n/a",IF(AV$3>(A2stdlife+$E139),('PTRM input'!$O$332*(1+rvanilla09)^0.5)-SUM($O139:AU139),('PTRM input'!$O$332*(1+rvanilla09)^0.5)/A2stdlife)) -> n/a | AW139: =IF(A2stdlife="n/a","n/a",IF(AW$3>(A2stdlife+$E139),('PTRM input'!$O$332*(1+rvanilla09)^0.5)-SUM($O139:AV139),('PTRM input'!$O$332*(1+rvanilla09)^0.5)/A2stdlife)) -> n/a | AX139: =IF(A2stdlife="n/a","n/a",IF(AX$3>(A2stdlife+$E139),('PTRM input'!$O$332*(1+rvanilla09)^0.5)-SUM($O139:AW139),('PTRM input'!$O$332*(1+rvanilla09)^0.5)/A2stdlife)) -> n/a | AY139: =IF(A2stdlife="n/a","n/a",IF(AY$3>(A2stdlife+$E139),('PTRM input'!$O$332*(1+rvanilla09)^0.5)-SUM($O139:AX139),('PTRM input'!$O$332*(1+rvanilla09)^0.5)/A2stdlife)) -> n/a | AZ139: =IF(A2stdlife="n/a","n/a",IF(AZ$3>(A2stdlife+$E139),('PTRM input'!$O$332*(1+rvanilla09)^0.5)-SUM($O139:AY139),('PTRM input'!$O$332*(1+rvanilla09)^0.5)/A2stdlife)) -> n/a | BA139: =IF(A2stdlife="n/a","n/a",IF(BA$3>(A2stdlife+$E139),('PTRM input'!$O$332*(1+rvanilla09)^0.5)-SUM($O139:AZ139),('PTRM input'!$O$332*(1+rvanilla09)^0.5)/A2stdlife)) -> n/a | BB139: =IF(A2stdlife="n/a","n/a",IF(BB$3>(A2stdlife+$E139),('PTRM input'!$O$332*(1+rvanilla09)^0.5)-SUM($O139:BA139),('PTRM input'!$O$332*(1+rvanilla09)^0.5)/A2stdlife)) -> n/a | BC139: =IF(A2stdlife="n/a","n/a",IF(BC$3>(A2stdlife+$E139),('PTRM input'!$O$332*(1+rvanilla09)^0.5)-SUM($O139:BB139),('PTRM input'!$O$332*(1+rvanilla09)^0.5)/A2stdlife)) -> n/a | BD139: =IF(A2stdlife="n/a","n/a",IF(BD$3>(A2stdlife+$E139),('PTRM input'!$O$332*(1+rvanilla09)^0.5)-SUM($O139:BC139),('PTRM input'!$O$332*(1+rvanilla09)^0.5)/A2stdlife)) -> n/a | BE139: =IF(A2stdlife="n/a","n/a",IF(BE$3>(A2stdlife+$E139),('PTRM input'!$O$332*(1+rvanilla09)^0.5)-SUM($O139:BD139),('PTRM input'!$O$332*(1+rvanilla09)^0.5)/A2stdlife)) -> n/a | BF139: =IF(A2stdlife="n/a","n/a",IF(BF$3>(A2stdlife+$E139),('PTRM input'!$O$332*(1+rvanilla09)^0.5)-SUM($O139:BE139),('PTRM input'!$O$332*(1+rvanilla09)^0.5)/A2stdlife)) -> n/a | BG139: =IF(A2stdlife="n/a","n/a",IF(BG$3>(A2stdlife+$E139),('PTRM input'!$O$332*(1+rvanilla09)^0.5)-SUM($O139:BF139),('PTRM input'!$O$332*(1+rvanilla09)^0.5)/A2stdlife)) -> n/a | BH139: =IF(A2stdlife="n/a","n/a",IF(BH$3>(A2stdlife+$E139),('PTRM input'!$O$332*(1+rvanilla09)^0.5)-SUM($O139:BG139),('PTRM input'!$O$332*(1+rvanilla09)^0.5)/A2stdlife)) -> n/a | BI139: =IF(A2stdlife="n/a","n/a",IF(BI$3>(A2stdlife+$E139),('PTRM input'!$O$332*(1+rvanilla09)^0.5)-SUM($O139:BH139),('PTRM input'!$O$332*(1+rvanilla09)^0.5)/A2stdlife)) -> n/a
E140: 10 | Q140: =IF(A2stdlife="n/a","n/a",IF(Q$3>(A2stdlife+$E140),('PTRM input'!$P$332*(1+rvanilla10)^0.5)-SUM($P140:P140),('PTRM input'!$P$332*(1+rvanilla10)^0.5)/A2stdlife)) -> n/a | R140: =IF(A2stdlife="n/a","n/a",IF(R$3>(A2stdlife+$E140),('PTRM input'!$P$332*(1+rvanilla10)^0.5)-SUM($P140:Q140),('PTRM input'!$P$332*(1+rvanilla10)^0.5)/A2stdlife)) -> n/a | S140: =IF(A2stdlife="n/a","n/a",IF(S$3>(A2stdlife+$E140),('PTRM input'!$P$332*(1+rvanilla10)^0.5)-SUM($P140:R140),('PTRM input'!$P$332*(1+rvanilla10)^0.5)/A2stdlife)) -> n/a | T140: =IF(A2stdlife="n/a","n/a",IF(T$3>(A2stdlife+$E140),('PTRM input'!$P$332*(1+rvanilla10)^0.5)-SUM($P140:S140),('PTRM input'!$P$332*(1+rvanilla10)^0.5)/A2stdlife)) -> n/a | U140: =IF(A2stdlife="n/a","n/a",IF(U$3>(A2stdlife+$E140),('PTRM input'!$P$332*(1+rvanilla10)^0.5)-SUM($P140:T140),('PTRM input'!$P$332*(1+rvanilla10)^0.5)/A2stdlife)) -> n/a | V140: =IF(A2stdlife="n/a","n/a",IF(V$3>(A2stdlife+$E140),('PTRM input'!$P$332*(1+rvanilla10)^0.5)-SUM($P140:U140),('PTRM input'!$P$332*(1+rvanilla10)^0.5)/A2stdlife)) -> n/a | W140: =IF(A2stdlife="n/a","n/a",IF(W$3>(A2stdlife+$E140),('PTRM input'!$P$332*(1+rvanilla10)^0.5)-SUM($P140:V140),('PTRM input'!$P$332*(1+rvanilla10)^0.5)/A2stdlife)) -> n/a | X140: =IF(A2stdlife="n/a","n/a",IF(X$3>(A2stdlife+$E140),('PTRM input'!$P$332*(1+rvanilla10)^0.5)-SUM($P140:W140),('PTRM input'!$P$332*(1+rvanilla10)^0.5)/A2stdlife)) -> n/a | Y140: =IF(A2stdlife="n/a","n/a",IF(Y$3>(A2stdlife+$E140),('PTRM input'!$P$332*(1+rvanilla10)^0.5)-SUM($P140:X140),('PTRM input'!$P$332*(1+rvanilla10)^0.5)/A2stdlife)) -> n/a | Z140: =IF(A2stdlife="n/a","n/a",IF(Z$3>(A2stdlife+$E140),('PTRM input'!$P$332*(1+rvanilla10)^0.5)-SUM($P140:Y140),('PTRM input'!$P$332*(1+rvanilla10)^0.5)/A2stdlife)) -> n/a | AA140: =IF(A2stdlife="n/a","n/a",IF(AA$3>(A2stdlife+$E140),('PTRM input'!$P$332*(1+rvanilla10)^0.5)-SUM($P140:Z140),('PTRM input'!$P$332*(1+rvanilla10)^0.5)/A2stdlife)) -> n/a | AB140: =IF(A2stdlife="n/a","n/a",IF(AB$3>(A2stdlife+$E140),('PTRM input'!$P$332*(1+rvanilla10)^0.5)-SUM($P140:AA140),('PTRM input'!$P$332*(1+rvanilla10)^0.5)/A2stdlife)) -> n/a | AC140: =IF(A2stdlife="n/a","n/a",IF(AC$3>(A2stdlife+$E140),('PTRM input'!$P$332*(1+rvanilla10)^0.5)-SUM($P140:AB140),('PTRM input'!$P$332*(1+rvanilla10)^0.5)/A2stdlife)) -> n/a | AD140: =IF(A2stdlife="n/a","n/a",IF(AD$3>(A2stdlife+$E140),('PTRM input'!$P$332*(1+rvanilla10)^0.5)-SUM($P140:AC140),('PTRM input'!$P$332*(1+rvanilla10)^0.5)/A2stdlife)) -> n/a | AE140: =IF(A2stdlife="n/a","n/a",IF(AE$3>(A2stdlife+$E140),('PTRM input'!$P$332*(1+rvanilla10)^0.5)-SUM($P140:AD140),('PTRM input'!$P$332*(1+rvanilla10)^0.5)/A2stdlife)) -> n/a | AF140: =IF(A2stdlife="n/a","n/a",IF(AF$3>(A2stdlife+$E140),('PTRM input'!$P$332*(1+rvanilla10)^0.5)-SUM($P140:AE140),('PTRM input'!$P$332*(1+rvanilla10)^0.5)/A2stdlife)) -> n/a | AG140: =IF(A2stdlife="n/a","n/a",IF(AG$3>(A2stdlife+$E140),('PTRM input'!$P$332*(1+rvanilla10)^0.5)-SUM($P140:AF140),('PTRM input'!$P$332*(1+rvanilla10)^0.5)/A2stdlife)) -> n/a | AH140: =IF(A2stdlife="n/a","n/a",IF(AH$3>(A2stdlife+$E140),('PTRM input'!$P$332*(1+rvanilla10)^0.5)-SUM($P140:AG140),('PTRM input'!$P$332*(1+rvanilla10)^0.5)/A2stdlife)) -> n/a | AI140: =IF(A2stdlife="n/a","n/a",IF(AI$3>(A2stdlife+$E140),('PTRM input'!$P$332*(1+rvanilla10)^0.5)-SUM($P140:AH140),('PTRM input'!$P$332*(1+rvanilla10)^0.5)/A2stdlife)) -> n/a | AJ140: =IF(A2stdlife="n/a","n/a",IF(AJ$3>(A2stdlife+$E140),('PTRM input'!$P$332*(1+rvanilla10)^0.5)-SUM($P140:AI140),('PTRM input'!$P$332*(1+rvanilla10)^0.5)/A2stdlife)) -> n/a | AK140: =IF(A2stdlife="n/a","n/a",IF(AK$3>(A2stdlife+$E140),('PTRM input'!$P$332*(1+rvanilla10)^0.5)-SUM($P140:AJ140),('PTRM input'!$P$332*(1+rvanilla10)^0.5)/A2stdlife)) -> n/a | AL140: =IF(A2stdlife="n/a","n/a",IF(AL$3>(A2stdlife+$E140),('PTRM input'!$P$332*(1+rvanilla10)^0.5)-SUM($P140:AK140),('PTRM input'!$P$332*(1+rvanilla10)^0.5)/A2stdlife)) -> n/a | AM140: =IF(A2stdlife="n/a","n/a",IF(AM$3>(A2stdlife+$E140),('PTRM input'!$P$332*(1+rvanilla10)^0.5)-SUM($P140:AL140),('PTRM input'!$P$332*(1+rvanilla10)^0.5)/A2stdlife)) -> n/a | AN140: =IF(A2stdlife="n/a","n/a",IF(AN$3>(A2stdlife+$E140),('PTRM input'!$P$332*(1+rvanilla10)^0.5)-SUM($P140:AM140),('PTRM input'!$P$332*(1+rvanilla10)^0.5)/A2stdlife)) -> n/a | AO140: =IF(A2stdlife="n/a","n/a",IF(AO$3>(A2stdlife+$E140),('PTRM input'!$P$332*(1+rvanilla10)^0.5)-SUM($P140:AN140),('PTRM input'!$P$332*(1+rvanilla10)^0.5)/A2stdlife)) -> n/a | AP140: =IF(A2stdlife="n/a","n/a",IF(AP$3>(A2stdlife+$E140),('PTRM input'!$P$332*(1+rvanilla10)^0.5)-SUM($P140:AO140),('PTRM input'!$P$332*(1+rvanilla10)^0.5)/A2stdlife)) -> n/a | AQ140: =IF(A2stdlife="n/a","n/a",IF(AQ$3>(A2stdlife+$E140),('PTRM input'!$P$332*(1+rvanilla10)^0.5)-SUM($P140:AP140),('PTRM input'!$P$332*(1+rvanilla10)^0.5)/A2stdlife)) -> n/a | AR140: =IF(A2stdlife="n/a","n/a",IF(AR$3>(A2stdlife+$E140),('PTRM input'!$P$332*(1+rvanilla10)^0.5)-SUM($P140:AQ140),('PTRM input'!$P$332*(1+rvanilla10)^0.5)/A2stdlife)) -> n/a | AS140: =IF(A2stdlife="n/a","n/a",IF(AS$3>(A2stdlife+$E140),('PTRM input'!$P$332*(1+rvanilla10)^0.5)-SUM($P140:AR140),('PTRM input'!$P$332*(1+rvanilla10)^0.5)/A2stdlife)) -> n/a | AT140: =IF(A2stdlife="n/a","n/a",IF(AT$3>(A2stdlife+$E140),('PTRM input'!$P$332*(1+rvanilla10)^0.5)-SUM($P140:AS140),('PTRM input'!$P$332*(1+rvanilla10)^0.5)/A2stdlife)) -> n/a | AU140: =IF(A2stdlife="n/a","n/a",IF(AU$3>(A2stdlife+$E140),('PTRM input'!$P$332*(1+rvanilla10)^0.5)-SUM($P140:AT140),('PTRM input'!$P$332*(1+rvanilla10)^0.5)/A2stdlife)) -> n/a | AV140: =IF(A2stdlife="n/a","n/a",IF(AV$3>(A2stdlife+$E140),('PTRM input'!$P$332*(1+rvanilla10)^0.5)-SUM($P140:AU140),('PTRM input'!$P$332*(1+rvanilla10)^0.5)/A2stdlife)) -> n/a | AW140: =IF(A2stdlife="n/a","n/a",IF(AW$3>(A2stdlife+$E140),('PTRM input'!$P$332*(1+rvanilla10)^0.5)-SUM($P140:AV140),('PTRM input'!$P$332*(1+rvanilla10)^0.5)/A2stdlife)) -> n/a | AX140: =IF(A2stdlife="n/a","n/a",IF(AX$3>(A2stdlife+$E140),('PTRM input'!$P$332*(1+rvanilla10)^0.5)-SUM($P140:AW140),('PTRM input'!$P$332*(1+rvanilla10)^0.5)/A2stdlife)) -> n/a | AY140: =IF(A2stdlife="n/a","n/a",IF(AY$3>(A2stdlife+$E140),('PTRM input'!$P$332*(1+rvanilla10)^0.5)-SUM($P140:AX140),('PTRM input'!$P$332*(1+rvanilla10)^0.5)/A2stdlife)) -> n/a | AZ140: =IF(A2stdlife="n/a","n/a",IF(AZ$3>(A2stdlife+$E140),('PTRM input'!$P$332*(1+rvanilla10)^0.5)-SUM($P140:AY140),('PTRM input'!$P$332*(1+rvanilla10)^0.5)/A2stdlife)) -> n/a | BA140: =IF(A2stdlife="n/a","n/a",IF(BA$3>(A2stdlife+$E140),('PTRM input'!$P$332*(1+rvanilla10)^0.5)-SUM($P140:AZ140),('PTRM input'!$P$332*(1+rvanilla10)^0.5)/A2stdlife)) -> n/a | BB140: =IF(A2stdlife="n/a","n/a",IF(BB$3>(A2stdlife+$E140),('PTRM input'!$P$332*(1+rvanilla10)^0.5)-SUM($P140:BA140),('PTRM input'!$P$332*(1+rvanilla10)^0.5)/A2stdlife)) -> n/a | BC140: =IF(A2stdlife="n/a","n/a",IF(BC$3>(A2stdlife+$E140),('PTRM input'!$P$332*(1+rvanilla10)^0.5)-SUM($P140:BB140),('PTRM input'!$P$332*(1+rvanilla10)^0.5)/A2stdlife)) -> n/a | BD140: =IF(A2stdlife="n/a","n/a",IF(BD$3>(A2stdlife+$E140),('PTRM input'!$P$332*(1+rvanilla10)^0.5)-SUM($P140:BC140),('PTRM input'!$P$332*(1+rvanilla10)^0.5)/A2stdlife)) -> n/a | BE140: =IF(A2stdlife="n/a","n/a",IF(BE$3>(A2stdlife+$E140),('PTRM input'!$P$332*(1+rvanilla10)^0.5)-SUM($P140:BD140),('PTRM input'!$P$332*(1+rvanilla10)^0.5)/A2stdlife)) -> n/a | BF140: =IF(A2stdlife="n/a","n/a",IF(BF$3>(A2stdlife+$E140),('PTRM input'!$P$332*(1+rvanilla10)^0.5)-SUM($P140:BE140),('PTRM input'!$P$332*(1+rvanilla10)^0.5)/A2stdlife)) -> n/a | BG140: =IF(A2stdlife="n/a","n/a",IF(BG$3>(A2stdlife+$E140),('PTRM input'!$P$332*(1+rvanilla10)^0.5)-SUM($P140:BF140),('PTRM input'!$P$332*(1+rvanilla10)^0.5)/A2stdlife)) -> n/a | BH140: =IF(A2stdlife="n/a","n/a",IF(BH$3>(A2stdlife+$E140),('PTRM input'!$P$332*(1+rvanilla10)^0.5)-SUM($P140:BG140),('PTRM input'!$P$332*(1+rvanilla10)^0.5)/A2stdlife)) -> n/a | BI140: =IF(A2stdlife="n/a","n/a",IF(BI$3>(A2stdlife+$E140),('PTRM input'!$P$332*(1+rvanilla10)^0.5)-SUM($P140:BH140),('PTRM input'!$P$332*(1+rvanilla10)^0.5)/A2stdlife)) -> n/a
C141: =Asset2 -> Transmission Substations | G141: =SUM(G129:G140) -> 11.22678136 | H141: =SUM(H129:H140) -> 11.22678136 | I141: 11.22678136 | J141: 11.22678136 | K141: 11.22678136 | L141: =SUM(L129:L140) -> 11.22678136 | M141: 11.22678136 | N141: 11.22678136 | O141: 11.22678136 | P141: 11.22678136 | Q141: 11.22678136 | R141: 11.22678136 | S141: 11.22678136 | T141: 11.22678136 | U141: 11.22678136 | V141: 11.22678136 | W141: 11.22678136 | X141: 11.22678136 | Y141: 11.22678136 | Z141: 11.22678136 | AA141: 11.22678136 | AB141: 11.22678136 | AC141: 11.22678136 | AD141: 11.22678136 | AE141: 11.22678136 | AF141: 11.22678136 | AG141: 11.22678136 | AH141: 0.8392587023 | AI141: 0 | AJ141: 0 | AK141: 0 | AL141: 0 | AM141: 0 | AN141: 0 | AO141: 0 | AP141: 0 | AQ141: 0 | AR141: 0 | AS141: 0 | AT141: 0 | AU141: 0 | AV141: 0 | AW141: 0 | AX141: 0 | AY141: 0 | AZ141: 0 | BA141: 0 | BB141: 0 | BC141: 0 | BD141: 0 | BE141: 0 | BF141: 0 | BG141: 0 | BH141: 0 | BI141: 0
B142: =C154 -> Protection and Control | D142: Initial Asset Base | G142: -0.2671468617 | H142: 0 | I142: 0 | J142: 0 | K142: 0 | L142: 0 | M142: 0 | N142: 0 | O142: 0 | P142: 0 | Q142: 0 | R142: 0 | S142: 0 | T142: 0 | U142: 0 | V142: 0 | W142: 0 | X142: 0 | Y142: 0 | Z142: 0 | AA142: 0 | AB142: 0 | AC142: 0 | AD142: 0 | AE142: 0 | AF142: 0 | AG142: 0 | AH142: 0 | AI142: 0 | AJ142: 0 | AK142: 0 | AL142: 0 | AM142: 0 | AN142: 0 | AO142: 0 | AP142: 0 | AQ142: 0 | AR142: 0 | AS142: 0 | AT142: 0 | AU142: 0 | AV142: 0 | AW142: 0 | AX142: 0 | AY142: 0 | AZ142: 0 | BA142: 0 | BB142: 0 | BC142: 0 | BD142: 0 | BE142: 0 | BF142: 0 | BG142: 0 | BH142: 0 | BI142: 0
D143: Capex in year | E143: 0
E144: 1 | H144: =IF(A3stdlife="n/a","n/a",IF(H$3>(A3stdlife+$E144),('PTRM input'!$G$333*(1+rvanilla01)^0.5)-SUM(G144:$G144),('PTRM input'!$G$333*(1+rvanilla01)^0.5)/A3stdlife)) -> n/a | I144: =IF(A3stdlife="n/a","n/a",IF(I$3>(A3stdlife+$E144),('PTRM input'!$G$333*(1+rvanilla01)^0.5)-SUM($G144:H144),('PTRM input'!$G$333*(1+rvanilla01)^0.5)/A3stdlife)) -> n/a | J144: =IF(A3stdlife="n/a","n/a",IF(J$3>(A3stdlife+$E144),('PTRM input'!$G$333*(1+rvanilla01)^0.5)-SUM($G144:I144),('PTRM input'!$G$333*(1+rvanilla01)^0.5)/A3stdlife)) -> n/a | K144: =IF(A3stdlife="n/a","n/a",IF(K$3>(A3stdlife+$E144),('PTRM input'!$G$333*(1+rvanilla01)^0.5)-SUM($G144:J144),('PTRM input'!$G$333*(1+rvanilla01)^0.5)/A3stdlife)) -> n/a | L144: =IF(A3stdlife="n/a","n/a",IF(L$3>(A3stdlife+$E144),('PTRM input'!$G$333*(1+rvanilla01)^0.5)-SUM($G144:K144),('PTRM input'!$G$333*(1+rvanilla01)^0.5)/A3stdlife)) -> n/a | M144: =IF(A3stdlife="n/a","n/a",IF(M$3>(A3stdlife+$E144),('PTRM input'!$G$333*(1+rvanilla01)^0.5)-SUM($G144:L144),('PTRM input'!$G$333*(1+rvanilla01)^0.5)/A3stdlife)) -> n/a | N144: =IF(A3stdlife="n/a","n/a",IF(N$3>(A3stdlife+$E144),('PTRM input'!$G$333*(1+rvanilla01)^0.5)-SUM($G144:M144),('PTRM input'!$G$333*(1+rvanilla01)^0.5)/A3stdlife)) -> n/a | O144: =IF(A3stdlife="n/a","n/a",IF(O$3>(A3stdlife+$E144),('PTRM input'!$G$333*(1+rvanilla01)^0.5)-SUM($G144:N144),('PTRM input'!$G$333*(1+rvanilla01)^0.5)/A3stdlife)) -> n/a | P144: =IF(A3stdlife="n/a","n/a",IF(P$3>(A3stdlife+$E144),('PTRM input'!$G$333*(1+rvanilla01)^0.5)-SUM($G144:O144),('PTRM input'!$G$333*(1+rvanilla01)^0.5)/A3stdlife)) -> n/a | Q144: =IF(A3stdlife="n/a","n/a",IF(Q$3>(A3stdlife+$E144),('PTRM input'!$G$333*(1+rvanilla01)^0.5)-SUM($G144:P144),('PTRM input'!$G$333*(1+rvanilla01)^0.5)/A3stdlife)) -> n/a | R144: =IF(A3stdlife="n/a","n/a",IF(R$3>(A3stdlife+$E144),('PTRM input'!$G$333*(1+rvanilla01)^0.5)-SUM($G144:Q144),('PTRM input'!$G$333*(1+rvanilla01)^0.5)/A3stdlife)) -> n/a | S144: =IF(A3stdlife="n/a","n/a",IF(S$3>(A3stdlife+$E144),('PTRM input'!$G$333*(1+rvanilla01)^0.5)-SUM($G144:R144),('PTRM input'!$G$333*(1+rvanilla01)^0.5)/A3stdlife)) -> n/a | T144: =IF(A3stdlife="n/a","n/a",IF(T$3>(A3stdlife+$E144),('PTRM input'!$G$333*(1+rvanilla01)^0.5)-SUM($G144:S144),('PTRM input'!$G$333*(1+rvanilla01)^0.5)/A3stdlife)) -> n/a | U144: =IF(A3stdlife="n/a","n/a",IF(U$3>(A3stdlife+$E144),('PTRM input'!$G$333*(1+rvanilla01)^0.5)-SUM($G144:T144),('PTRM input'!$G$333*(1+rvanilla01)^0.5)/A3stdlife)) -> n/a | V144: =IF(A3stdlife="n/a","n/a",IF(V$3>(A3stdlife+$E144),('PTRM input'!$G$333*(1+rvanilla01)^0.5)-SUM($G144:U144),('PTRM input'!$G$333*(1+rvanilla01)^0.5)/A3stdlife)) -> n/a | W144: =IF(A3stdlife="n/a","n/a",IF(W$3>(A3stdlife+$E144),('PTRM input'!$G$333*(1+rvanilla01)^0.5)-SUM($G144:V144),('PTRM input'!$G$333*(1+rvanilla01)^0.5)/A3stdlife)) -> n/a | X144: =IF(A3stdlife="n/a","n/a",IF(X$3>(A3stdlife+$E144),('PTRM input'!$G$333*(1+rvanilla01)^0.5)-SUM($G144:W144),('PTRM input'!$G$333*(1+rvanilla01)^0.5)/A3stdlife)) -> n/a | Y144: =IF(A3stdlife="n/a","n/a",IF(Y$3>(A3stdlife+$E144),('PTRM input'!$G$333*(1+rvanilla01)^0.5)-SUM($G144:X144),('PTRM input'!$G$333*(1+rvanilla01)^0.5)/A3stdlife)) -> n/a | Z144: =IF(A3stdlife="n/a","n/a",IF(Z$3>(A3stdlife+$E144),('PTRM input'!$G$333*(1+rvanilla01)^0.5)-SUM($G144:Y144),('PTRM input'!$G$333*(1+rvanilla01)^0.5)/A3stdlife)) -> n/a | AA144: =IF(A3stdlife="n/a","n/a",IF(AA$3>(A3stdlife+$E144),('PTRM input'!$G$333*(1+rvanilla01)^0.5)-SUM($G144:Z144),('PTRM input'!$G$333*(1+rvanilla01)^0.5)/A3stdlife)) -> n/a | AB144: =IF(A3stdlife="n/a","n/a",IF(AB$3>(A3stdlife+$E144),('PTRM input'!$G$333*(1+rvanilla01)^0.5)-SUM($G144:AA144),('PTRM input'!$G$333*(1+rvanilla01)^0.5)/A3stdlife)) -> n/a | AC144: =IF(A3stdlife="n/a","n/a",IF(AC$3>(A3stdlife+$E144),('PTRM input'!$G$333*(1+rvanilla01)^0.5)-SUM($G144:AB144),('PTRM input'!$G$333*(1+rvanilla01)^0.5)/A3stdlife)) -> n/a | AD144: =IF(A3stdlife="n/a","n/a",IF(AD$3>(A3stdlife+$E144),('PTRM input'!$G$333*(1+rvanilla01)^0.5)-SUM($G144:AC144),('PTRM input'!$G$333*(1+rvanilla01)^0.5)/A3stdlife)) -> n/a | AE144: =IF(A3stdlife="n/a","n/a",IF(AE$3>(A3stdlife+$E144),('PTRM input'!$G$333*(1+rvanilla01)^0.5)-SUM($G144:AD144),('PTRM input'!$G$333*(1+rvanilla01)^0.5)/A3stdlife)) -> n/a | AF144: =IF(A3stdlife="n/a","n/a",IF(AF$3>(A3stdlife+$E144),('PTRM input'!$G$333*(1+rvanilla01)^0.5)-SUM($G144:AE144),('PTRM input'!$G$333*(1+rvanilla01)^0.5)/A3stdlife)) -> n/a | AG144: =IF(A3stdlife="n/a","n/a",IF(AG$3>(A3stdlife+$E144),('PTRM input'!$G$333*(1+rvanilla01)^0.5)-SUM($G144:AF144),('PTRM input'!$G$333*(1+rvanilla01)^0.5)/A3stdlife)) -> n/a | AH144: =IF(A3stdlife="n/a","n/a",IF(AH$3>(A3stdlife+$E144),('PTRM input'!$G$333*(1+rvanilla01)^0.5)-SUM($G144:AG144),('PTRM input'!$G$333*(1+rvanilla01)^0.5)/A3stdlife)) -> n/a | AI144: =IF(A3stdlife="n/a","n/a",IF(AI$3>(A3stdlife+$E144),('PTRM input'!$G$333*(1+rvanilla01)^0.5)-SUM($G144:AH144),('PTRM input'!$G$333*(1+rvanilla01)^0.5)/A3stdlife)) -> n/a | AJ144: =IF(A3stdlife="n/a","n/a",IF(AJ$3>(A3stdlife+$E144),('PTRM input'!$G$333*(1+rvanilla01)^0.5)-SUM($G144:AI144),('PTRM input'!$G$333*(1+rvanilla01)^0.5)/A3stdlife)) -> n/a | AK144: =IF(A3stdlife="n/a","n/a",IF(AK$3>(A3stdlife+$E144),('PTRM input'!$G$333*(1+rvanilla01)^0.5)-SUM($G144:AJ144),('PTRM input'!$G$333*(1+rvanilla01)^0.5)/A3stdlife)) -> n/a | AL144: =IF(A3stdlife="n/a","n/a",IF(AL$3>(A3stdlife+$E144),('PTRM input'!$G$333*(1+rvanilla01)^0.5)-SUM($G144:AK144),('PTRM input'!$G$333*(1+rvanilla01)^0.5)/A3stdlife)) -> n/a | AM144: =IF(A3stdlife="n/a","n/a",IF(AM$3>(A3stdlife+$E144),('PTRM input'!$G$333*(1+rvanilla01)^0.5)-SUM($G144:AL144),('PTRM input'!$G$333*(1+rvanilla01)^0.5)/A3stdlife)) -> n/a | AN144: =IF(A3stdlife="n/a","n/a",IF(AN$3>(A3stdlife+$E144),('PTRM input'!$G$333*(1+rvanilla01)^0.5)-SUM($G144:AM144),('PTRM input'!$G$333*(1+rvanilla01)^0.5)/A3stdlife)) -> n/a | AO144: =IF(A3stdlife="n/a","n/a",IF(AO$3>(A3stdlife+$E144),('PTRM input'!$G$333*(1+rvanilla01)^0.5)-SUM($G144:AN144),('PTRM input'!$G$333*(1+rvanilla01)^0.5)/A3stdlife)) -> n/a | AP144: =IF(A3stdlife="n/a","n/a",IF(AP$3>(A3stdlife+$E144),('PTRM input'!$G$333*(1+rvanilla01)^0.5)-SUM($G144:AO144),('PTRM input'!$G$333*(1+rvanilla01)^0.5)/A3stdlife)) -> n/a | AQ144: =IF(A3stdlife="n/a","n/a",IF(AQ$3>(A3stdlife+$E144),('PTRM input'!$G$333*(1+rvanilla01)^0.5)-SUM($G144:AP144),('PTRM input'!$G$333*(1+rvanilla01)^0.5)/A3stdlife)) -> n/a | AR144: =IF(A3stdlife="n/a","n/a",IF(AR$3>(A3stdlife+$E144),('PTRM input'!$G$333*(1+rvanilla01)^0.5)-SUM($G144:AQ144),('PTRM input'!$G$333*(1+rvanilla01)^0.5)/A3stdlife)) -> n/a | AS144: =IF(A3stdlife="n/a","n/a",IF(AS$3>(A3stdlife+$E144),('PTRM input'!$G$333*(1+rvanilla01)^0.5)-SUM($G144:AR144),('PTRM input'!$G$333*(1+rvanilla01)^0.5)/A3stdlife)) -> n/a | AT144: =IF(A3stdlife="n/a","n/a",IF(AT$3>(A3stdlife+$E144),('PTRM input'!$G$333*(1+rvanilla01)^0.5)-SUM($G144:AS144),('PTRM input'!$G$333*(1+rvanilla01)^0.5)/A3stdlife)) -> n/a | AU144: =IF(A3stdlife="n/a","n/a",IF(AU$3>(A3stdlife+$E144),('PTRM input'!$G$333*(1+rvanilla01)^0.5)-SUM($G144:AT144),('PTRM input'!$G$333*(1+rvanilla01)^0.5)/A3stdlife)) -> n/a | AV144: =IF(A3stdlife="n/a","n/a",IF(AV$3>(A3stdlife+$E144),('PTRM input'!$G$333*(1+rvanilla01)^0.5)-SUM($G144:AU144),('PTRM input'!$G$333*(1+rvanilla01)^0.5)/A3stdlife)) -> n/a | AW144: =IF(A3stdlife="n/a","n/a",IF(AW$3>(A3stdlife+$E144),('PTRM input'!$G$333*(1+rvanilla01)^0.5)-SUM($G144:AV144),('PTRM input'!$G$333*(1+rvanilla01)^0.5)/A3stdlife)) -> n/a | AX144: =IF(A3stdlife="n/a","n/a",IF(AX$3>(A3stdlife+$E144),('PTRM input'!$G$333*(1+rvanilla01)^0.5)-SUM($G144:AW144),('PTRM input'!$G$333*(1+rvanilla01)^0.5)/A3stdlife)) -> n/a | AY144: =IF(A3stdlife="n/a","n/a",IF(AY$3>(A3stdlife+$E144),('PTRM input'!$G$333*(1+rvanilla01)^0.5)-SUM($G144:AX144),('PTRM input'!$G$333*(1+rvanilla01)^0.5)/A3stdlife)) -> n/a | AZ144: =IF(A3stdlife="n/a","n/a",IF(AZ$3>(A3stdlife+$E144),('PTRM input'!$G$333*(1+rvanilla01)^0.5)-SUM($G144:AY144),('PTRM input'!$G$333*(1+rvanilla01)^0.5)/A3stdlife)) -> n/a | BA144: =IF(A3stdlife="n/a","n/a",IF(BA$3>(A3stdlife+$E144),('PTRM input'!$G$333*(1+rvanilla01)^0.5)-SUM($G144:AZ144),('PTRM input'!$G$333*(1+rvanilla01)^0.5)/A3stdlife)) -> n/a | BB144: =IF(A3stdlife="n/a","n/a",IF(BB$3>(A3stdlife+$E144),('PTRM input'!$G$333*(1+rvanilla01)^0.5)-SUM($G144:BA144),('PTRM input'!$G$333*(1+rvanilla01)^0.5)/A3stdlife)) -> n/a | BC144: =IF(A3stdlife="n/a","n/a",IF(BC$3>(A3stdlife+$E144),('PTRM input'!$G$333*(1+rvanilla01)^0.5)-SUM($G144:BB144),('PTRM input'!$G$333*(1+rvanilla01)^0.5)/A3stdlife)) -> n/a | BD144: =IF(A3stdlife="n/a","n/a",IF(BD$3>(A3stdlife+$E144),('PTRM input'!$G$333*(1+rvanilla01)^0.5)-SUM($G144:BC144),('PTRM input'!$G$333*(1+rvanilla01)^0.5)/A3stdlife)) -> n/a | BE144: =IF(A3stdlife="n/a","n/a",IF(BE$3>(A3stdlife+$E144),('PTRM input'!$G$333*(1+rvanilla01)^0.5)-SUM($G144:BD144),('PTRM input'!$G$333*(1+rvanilla01)^0.5)/A3stdlife)) -> n/a | BF144: =IF(A3stdlife="n/a","n/a",IF(BF$3>(A3stdlife+$E144),('PTRM input'!$G$333*(1+rvanilla01)^0.5)-SUM($G144:BE144),('PTRM input'!$G$333*(1+rvanilla01)^0.5)/A3stdlife)) -> n/a | BG144: =IF(A3stdlife="n/a","n/a",IF(BG$3>(A3stdlife+$E144),('PTRM input'!$G$333*(1+rvanilla01)^0.5)-SUM($G144:BF144),('PTRM input'!$G$333*(1+rvanilla01)^0.5)/A3stdlife)) -> n/a | BH144: =IF(A3stdlife="n/a","n/a",IF(BH$3>(A3stdlife+$E144),('PTRM input'!$G$333*(1+rvanilla01)^0.5)-SUM($G144:BG144),('PTRM input'!$G$333*(1+rvanilla01)^0.5)/A3stdlife)) -> n/a | BI144: =IF(A3stdlife="n/a","n/a",IF(BI$3>(A3stdlife+$E144),('PTRM input'!$G$333*(1+rvanilla01)^0.5)-SUM($G144:BH144),('PTRM input'!$G$333*(1+rvanilla01)^0.5)/A3stdlife)) -> n/a
E145: 2 | I145: =IF(A3stdlife="n/a","n/a",IF(I$3>(A3stdlife+$E145),('PTRM input'!$H$333*(1+rvanilla02)^0.5)-SUM(H145:$H145),('PTRM input'!$H$333*(1+rvanilla02)^0.5)/A3stdlife)) -> n/a | J145: =IF(A3stdlife="n/a","n/a",IF(J$3>(A3stdlife+$E145),('PTRM input'!$H$333*(1+rvanilla02)^0.5)-SUM($H145:I145),('PTRM input'!$H$333*(1+rvanilla02)^0.5)/A3stdlife)) -> n/a | K145: =IF(A3stdlife="n/a","n/a",IF(K$3>(A3stdlife+$E145),('PTRM input'!$H$333*(1+rvanilla02)^0.5)-SUM($H145:J145),('PTRM input'!$H$333*(1+rvanilla02)^0.5)/A3stdlife)) -> n/a | L145: =IF(A3stdlife="n/a","n/a",IF(L$3>(A3stdlife+$E145),('PTRM input'!$H$333*(1+rvanilla02)^0.5)-SUM($H145:K145),('PTRM input'!$H$333*(1+rvanilla02)^0.5)/A3stdlife)) -> n/a | M145: =IF(A3stdlife="n/a","n/a",IF(M$3>(A3stdlife+$E145),('PTRM input'!$H$333*(1+rvanilla02)^0.5)-SUM($H145:L145),('PTRM input'!$H$333*(1+rvanilla02)^0.5)/A3stdlife)) -> n/a | N145: =IF(A3stdlife="n/a","n/a",IF(N$3>(A3stdlife+$E145),('PTRM input'!$H$333*(1+rvanilla02)^0.5)-SUM($H145:M145),('PTRM input'!$H$333*(1+rvanilla02)^0.5)/A3stdlife)) -> n/a | O145: =IF(A3stdlife="n/a","n/a",IF(O$3>(A3stdlife+$E145),('PTRM input'!$H$333*(1+rvanilla02)^0.5)-SUM($H145:N145),('PTRM input'!$H$333*(1+rvanilla02)^0.5)/A3stdlife)) -> n/a | P145: =IF(A3stdlife="n/a","n/a",IF(P$3>(A3stdlife+$E145),('PTRM input'!$H$333*(1+rvanilla02)^0.5)-SUM($H145:O145),('PTRM input'!$H$333*(1+rvanilla02)^0.5)/A3stdlife)) -> n/a | Q145: =IF(A3stdlife="n/a","n/a",IF(Q$3>(A3stdlife+$E145),('PTRM input'!$H$333*(1+rvanilla02)^0.5)-SUM($H145:P145),('PTRM input'!$H$333*(1+rvanilla02)^0.5)/A3stdlife)) -> n/a | R145: =IF(A3stdlife="n/a","n/a",IF(R$3>(A3stdlife+$E145),('PTRM input'!$H$333*(1+rvanilla02)^0.5)-SUM($H145:Q145),('PTRM input'!$H$333*(1+rvanilla02)^0.5)/A3stdlife)) -> n/a | S145: =IF(A3stdlife="n/a","n/a",IF(S$3>(A3stdlife+$E145),('PTRM input'!$H$333*(1+rvanilla02)^0.5)-SUM($H145:R145),('PTRM input'!$H$333*(1+rvanilla02)^0.5)/A3stdlife)) -> n/a | T145: =IF(A3stdlife="n/a","n/a",IF(T$3>(A3stdlife+$E145),('PTRM input'!$H$333*(1+rvanilla02)^0.5)-SUM($H145:S145),('PTRM input'!$H$333*(1+rvanilla02)^0.5)/A3stdlife)) -> n/a | U145: =IF(A3stdlife="n/a","n/a",IF(U$3>(A3stdlife+$E145),('PTRM input'!$H$333*(1+rvanilla02)^0.5)-SUM($H145:T145),('PTRM input'!$H$333*(1+rvanilla02)^0.5)/A3stdlife)) -> n/a | V145: =IF(A3stdlife="n/a","n/a",IF(V$3>(A3stdlife+$E145),('PTRM input'!$H$333*(1+rvanilla02)^0.5)-SUM($H145:U145),('PTRM input'!$H$333*(1+rvanilla02)^0.5)/A3stdlife)) -> n/a | W145: =IF(A3stdlife="n/a","n/a",IF(W$3>(A3stdlife+$E145),('PTRM input'!$H$333*(1+rvanilla02)^0.5)-SUM($H145:V145),('PTRM input'!$H$333*(1+rvanilla02)^0.5)/A3stdlife)) -> n/a | X145: =IF(A3stdlife="n/a","n/a",IF(X$3>(A3stdlife+$E145),('PTRM input'!$H$333*(1+rvanilla02)^0.5)-SUM($H145:W145),('PTRM input'!$H$333*(1+rvanilla02)^0.5)/A3stdlife)) -> n/a | Y145: =IF(A3stdlife="n/a","n/a",IF(Y$3>(A3stdlife+$E145),('PTRM input'!$H$333*(1+rvanilla02)^0.5)-SUM($H145:X145),('PTRM input'!$H$333*(1+rvanilla02)^0.5)/A3stdlife)) -> n/a | Z145: =IF(A3stdlife="n/a","n/a",IF(Z$3>(A3stdlife+$E145),('PTRM input'!$H$333*(1+rvanilla02)^0.5)-SUM($H145:Y145),('PTRM input'!$H$333*(1+rvanilla02)^0.5)/A3stdlife)) -> n/a | AA145: =IF(A3stdlife="n/a","n/a",IF(AA$3>(A3stdlife+$E145),('PTRM input'!$H$333*(1+rvanilla02)^0.5)-SUM($H145:Z145),('PTRM input'!$H$333*(1+rvanilla02)^0.5)/A3stdlife)) -> n/a | AB145: =IF(A3stdlife="n/a","n/a",IF(AB$3>(A3stdlife+$E145),('PTRM input'!$H$333*(1+rvanilla02)^0.5)-SUM($H145:AA145),('PTRM input'!$H$333*(1+rvanilla02)^0.5)/A3stdlife)) -> n/a | AC145: =IF(A3stdlife="n/a","n/a",IF(AC$3>(A3stdlife+$E145),('PTRM input'!$H$333*(1+rvanilla02)^0.5)-SUM($H145:AB145),('PTRM input'!$H$333*(1+rvanilla02)^0.5)/A3stdlife)) -> n/a | AD145: =IF(A3stdlife="n/a","n/a",IF(AD$3>(A3stdlife+$E145),('PTRM input'!$H$333*(1+rvanilla02)^0.5)-SUM($H145:AC145),('PTRM input'!$H$333*(1+rvanilla02)^0.5)/A3stdlife)) -> n/a | AE145: =IF(A3stdlife="n/a","n/a",IF(AE$3>(A3stdlife+$E145),('PTRM input'!$H$333*(1+rvanilla02)^0.5)-SUM($H145:AD145),('PTRM input'!$H$333*(1+rvanilla02)^0.5)/A3stdlife)) -> n/a | AF145: =IF(A3stdlife="n/a","n/a",IF(AF$3>(A3stdlife+$E145),('PTRM input'!$H$333*(1+rvanilla02)^0.5)-SUM($H145:AE145),('PTRM input'!$H$333*(1+rvanilla02)^0.5)/A3stdlife)) -> n/a | AG145: =IF(A3stdlife="n/a","n/a",IF(AG$3>(A3stdlife+$E145),('PTRM input'!$H$333*(1+rvanilla02)^0.5)-SUM($H145:AF145),('PTRM input'!$H$333*(1+rvanilla02)^0.5)/A3stdlife)) -> n/a | AH145: =IF(A3stdlife="n/a","n/a",IF(AH$3>(A3stdlife+$E145),('PTRM input'!$H$333*(1+rvanilla02)^0.5)-SUM($H145:AG145),('PTRM input'!$H$333*(1+rvanilla02)^0.5)/A3stdlife)) -> n/a | AI145: =IF(A3stdlife="n/a","n/a",IF(AI$3>(A3stdlife+$E145),('PTRM input'!$H$333*(1+rvanilla02)^0.5)-SUM($H145:AH145),('PTRM input'!$H$333*(1+rvanilla02)^0.5)/A3stdlife)) -> n/a | AJ145: =IF(A3stdlife="n/a","n/a",IF(AJ$3>(A3stdlife+$E145),('PTRM input'!$H$333*(1+rvanilla02)^0.5)-SUM($H145:AI145),('PTRM input'!$H$333*(1+rvanilla02)^0.5)/A3stdlife)) -> n/a | AK145: =IF(A3stdlife="n/a","n/a",IF(AK$3>(A3stdlife+$E145),('PTRM input'!$H$333*(1+rvanilla02)^0.5)-SUM($H145:AJ145),('PTRM input'!$H$333*(1+rvanilla02)^0.5)/A3stdlife)) -> n/a | AL145: =IF(A3stdlife="n/a","n/a",IF(AL$3>(A3stdlife+$E145),('PTRM input'!$H$333*(1+rvanilla02)^0.5)-SUM($H145:AK145),('PTRM input'!$H$333*(1+rvanilla02)^0.5)/A3stdlife)) -> n/a | AM145: =IF(A3stdlife="n/a","n/a",IF(AM$3>(A3stdlife+$E145),('PTRM input'!$H$333*(1+rvanilla02)^0.5)-SUM($H145:AL145),('PTRM input'!$H$333*(1+rvanilla02)^0.5)/A3stdlife)) -> n/a | AN145: =IF(A3stdlife="n/a","n/a",IF(AN$3>(A3stdlife+$E145),('PTRM input'!$H$333*(1+rvanilla02)^0.5)-SUM($H145:AM145),('PTRM input'!$H$333*(1+rvanilla02)^0.5)/A3stdlife)) -> n/a | AO145: =IF(A3stdlife="n/a","n/a",IF(AO$3>(A3stdlife+$E145),('PTRM input'!$H$333*(1+rvanilla02)^0.5)-SUM($H145:AN145),('PTRM input'!$H$333*(1+rvanilla02)^0.5)/A3stdlife)) -> n/a | AP145: =IF(A3stdlife="n/a","n/a",IF(AP$3>(A3stdlife+$E145),('PTRM input'!$H$333*(1+rvanilla02)^0.5)-SUM($H145:AO145),('PTRM input'!$H$333*(1+rvanilla02)^0.5)/A3stdlife)) -> n/a | AQ145: =IF(A3stdlife="n/a","n/a",IF(AQ$3>(A3stdlife+$E145),('PTRM input'!$H$333*(1+rvanilla02)^0.5)-SUM($H145:AP145),('PTRM input'!$H$333*(1+rvanilla02)^0.5)/A3stdlife)) -> n/a | AR145: =IF(A3stdlife="n/a","n/a",IF(AR$3>(A3stdlife+$E145),('PTRM input'!$H$333*(1+rvanilla02)^0.5)-SUM($H145:AQ145),('PTRM input'!$H$333*(1+rvanilla02)^0.5)/A3stdlife)) -> n/a | AS145: =IF(A3stdlife="n/a","n/a",IF(AS$3>(A3stdlife+$E145),('PTRM input'!$H$333*(1+rvanilla02)^0.5)-SUM($H145:AR145),('PTRM input'!$H$333*(1+rvanilla02)^0.5)/A3stdlife)) -> n/a | AT145: =IF(A3stdlife="n/a","n/a",IF(AT$3>(A3stdlife+$E145),('PTRM input'!$H$333*(1+rvanilla02)^0.5)-SUM($H145:AS145),('PTRM input'!$H$333*(1+rvanilla02)^0.5)/A3stdlife)) -> n/a | AU145: =IF(A3stdlife="n/a","n/a",IF(AU$3>(A3stdlife+$E145),('PTRM input'!$H$333*(1+rvanilla02)^0.5)-SUM($H145:AT145),('PTRM input'!$H$333*(1+rvanilla02)^0.5)/A3stdlife)) -> n/a | AV145: =IF(A3stdlife="n/a","n/a",IF(AV$3>(A3stdlife+$E145),('PTRM input'!$H$333*(1+rvanilla02)^0.5)-SUM($H145:AU145),('PTRM input'!$H$333*(1+rvanilla02)^0.5)/A3stdlife)) -> n/a | AW145: =IF(A3stdlife="n/a","n/a",IF(AW$3>(A3stdlife+$E145),('PTRM input'!$H$333*(1+rvanilla02)^0.5)-SUM($H145:AV145),('PTRM input'!$H$333*(1+rvanilla02)^0.5)/A3stdlife)) -> n/a | AX145: =IF(A3stdlife="n/a","n/a",IF(AX$3>(A3stdlife+$E145),('PTRM input'!$H$333*(1+rvanilla02)^0.5)-SUM($H145:AW145),('PTRM input'!$H$333*(1+rvanilla02)^0.5)/A3stdlife)) -> n/a | AY145: =IF(A3stdlife="n/a","n/a",IF(AY$3>(A3stdlife+$E145),('PTRM input'!$H$333*(1+rvanilla02)^0.5)-SUM($H145:AX145),('PTRM input'!$H$333*(1+rvanilla02)^0.5)/A3stdlife)) -> n/a | AZ145: =IF(A3stdlife="n/a","n/a",IF(AZ$3>(A3stdlife+$E145),('PTRM input'!$H$333*(1+rvanilla02)^0.5)-SUM($H145:AY145),('PTRM input'!$H$333*(1+rvanilla02)^0.5)/A3stdlife)) -> n/a | BA145: =IF(A3stdlife="n/a","n/a",IF(BA$3>(A3stdlife+$E145),('PTRM input'!$H$333*(1+rvanilla02)^0.5)-SUM($H145:AZ145),('PTRM input'!$H$333*(1+rvanilla02)^0.5)/A3stdlife)) -> n/a | BB145: =IF(A3stdlife="n/a","n/a",IF(BB$3>(A3stdlife+$E145),('PTRM input'!$H$333*(1+rvanilla02)^0.5)-SUM($H145:BA145),('PTRM input'!$H$333*(1+rvanilla02)^0.5)/A3stdlife)) -> n/a | BC145: =IF(A3stdlife="n/a","n/a",IF(BC$3>(A3stdlife+$E145),('PTRM input'!$H$333*(1+rvanilla02)^0.5)-SUM($H145:BB145),('PTRM input'!$H$333*(1+rvanilla02)^0.5)/A3stdlife)) -> n/a | BD145: =IF(A3stdlife="n/a","n/a",IF(BD$3>(A3stdlife+$E145),('PTRM input'!$H$333*(1+rvanilla02)^0.5)-SUM($H145:BC145),('PTRM input'!$H$333*(1+rvanilla02)^0.5)/A3stdlife)) -> n/a | BE145: =IF(A3stdlife="n/a","n/a",IF(BE$3>(A3stdlife+$E145),('PTRM input'!$H$333*(1+rvanilla02)^0.5)-SUM($H145:BD145),('PTRM input'!$H$333*(1+rvanilla02)^0.5)/A3stdlife)) -> n/a | BF145: =IF(A3stdlife="n/a","n/a",IF(BF$3>(A3stdlife+$E145),('PTRM input'!$H$333*(1+rvanilla02)^0.5)-SUM($H145:BE145),('PTRM input'!$H$333*(1+rvanilla02)^0.5)/A3stdlife)) -> n/a | BG145: =IF(A3stdlife="n/a","n/a",IF(BG$3>(A3stdlife+$E145),('PTRM input'!$H$333*(1+rvanilla02)^0.5)-SUM($H145:BF145),('PTRM input'!$H$333*(1+rvanilla02)^0.5)/A3stdlife)) -> n/a | BH145: =IF(A3stdlife="n/a","n/a",IF(BH$3>(A3stdlife+$E145),('PTRM input'!$H$333*(1+rvanilla02)^0.5)-SUM($H145:BG145),('PTRM input'!$H$333*(1+rvanilla02)^0.5)/A3stdlife)) -> n/a | BI145: =IF(A3stdlife="n/a","n/a",IF(BI$3>(A3stdlife+$E145),('PTRM input'!$H$333*(1+rvanilla02)^0.5)-SUM($H145:BH145),('PTRM input'!$H$333*(1+rvanilla02)^0.5)/A3stdlife)) -> n/a
E146: 3 | J146: =IF(A3stdlife="n/a","n/a",IF(J$3>(A3stdlife+$E146),('PTRM input'!$I$333*(1+rvanilla03)^0.5)-SUM(I146:$I146),('PTRM input'!$I$333*(1+rvanilla03)^0.5)/A3stdlife)) -> n/a | K146: =IF(A3stdlife="n/a","n/a",IF(K$3>(A3stdlife+$E146),('PTRM input'!$I$333*(1+rvanilla03)^0.5)-SUM($I146:J146),('PTRM input'!$I$333*(1+rvanilla03)^0.5)/A3stdlife)) -> n/a | L146: =IF(A3stdlife="n/a","n/a",IF(L$3>(A3stdlife+$E146),('PTRM input'!$I$333*(1+rvanilla03)^0.5)-SUM($I146:K146),('PTRM input'!$I$333*(1+rvanilla03)^0.5)/A3stdlife)) -> n/a | M146: =IF(A3stdlife="n/a","n/a",IF(M$3>(A3stdlife+$E146),('PTRM input'!$I$333*(1+rvanilla03)^0.5)-SUM($I146:L146),('PTRM input'!$I$333*(1+rvanilla03)^0.5)/A3stdlife)) -> n/a | N146: =IF(A3stdlife="n/a","n/a",IF(N$3>(A3stdlife+$E146),('PTRM input'!$I$333*(1+rvanilla03)^0.5)-SUM($I146:M146),('PTRM input'!$I$333*(1+rvanilla03)^0.5)/A3stdlife)) -> n/a | O146: =IF(A3stdlife="n/a","n/a",IF(O$3>(A3stdlife+$E146),('PTRM input'!$I$333*(1+rvanilla03)^0.5)-SUM($I146:N146),('PTRM input'!$I$333*(1+rvanilla03)^0.5)/A3stdlife)) -> n/a | P146: =IF(A3stdlife="n/a","n/a",IF(P$3>(A3stdlife+$E146),('PTRM input'!$I$333*(1+rvanilla03)^0.5)-SUM($I146:O146),('PTRM input'!$I$333*(1+rvanilla03)^0.5)/A3stdlife)) -> n/a | Q146: =IF(A3stdlife="n/a","n/a",IF(Q$3>(A3stdlife+$E146),('PTRM input'!$I$333*(1+rvanilla03)^0.5)-SUM($I146:P146),('PTRM input'!$I$333*(1+rvanilla03)^0.5)/A3stdlife)) -> n/a | R146: =IF(A3stdlife="n/a","n/a",IF(R$3>(A3stdlife+$E146),('PTRM input'!$I$333*(1+rvanilla03)^0.5)-SUM($I146:Q146),('PTRM input'!$I$333*(1+rvanilla03)^0.5)/A3stdlife)) -> n/a | S146: =IF(A3stdlife="n/a","n/a",IF(S$3>(A3stdlife+$E146),('PTRM input'!$I$333*(1+rvanilla03)^0.5)-SUM($I146:R146),('PTRM input'!$I$333*(1+rvanilla03)^0.5)/A3stdlife)) -> n/a | T146: =IF(A3stdlife="n/a","n/a",IF(T$3>(A3stdlife+$E146),('PTRM input'!$I$333*(1+rvanilla03)^0.5)-SUM($I146:S146),('PTRM input'!$I$333*(1+rvanilla03)^0.5)/A3stdlife)) -> n/a | U146: =IF(A3stdlife="n/a","n/a",IF(U$3>(A3stdlife+$E146),('PTRM input'!$I$333*(1+rvanilla03)^0.5)-SUM($I146:T146),('PTRM input'!$I$333*(1+rvanilla03)^0.5)/A3stdlife)) -> n/a | V146: =IF(A3stdlife="n/a","n/a",IF(V$3>(A3stdlife+$E146),('PTRM input'!$I$333*(1+rvanilla03)^0.5)-SUM($I146:U146),('PTRM input'!$I$333*(1+rvanilla03)^0.5)/A3stdlife)) -> n/a | W146: =IF(A3stdlife="n/a","n/a",IF(W$3>(A3stdlife+$E146),('PTRM input'!$I$333*(1+rvanilla03)^0.5)-SUM($I146:V146),('PTRM input'!$I$333*(1+rvanilla03)^0.5)/A3stdlife)) -> n/a | X146: =IF(A3stdlife="n/a","n/a",IF(X$3>(A3stdlife+$E146),('PTRM input'!$I$333*(1+rvanilla03)^0.5)-SUM($I146:W146),('PTRM input'!$I$333*(1+rvanilla03)^0.5)/A3stdlife)) -> n/a | Y146: =IF(A3stdlife="n/a","n/a",IF(Y$3>(A3stdlife+$E146),('PTRM input'!$I$333*(1+rvanilla03)^0.5)-SUM($I146:X146),('PTRM input'!$I$333*(1+rvanilla03)^0.5)/A3stdlife)) -> n/a | Z146: =IF(A3stdlife="n/a","n/a",IF(Z$3>(A3stdlife+$E146),('PTRM input'!$I$333*(1+rvanilla03)^0.5)-SUM($I146:Y146),('PTRM input'!$I$333*(1+rvanilla03)^0.5)/A3stdlife)) -> n/a | AA146: =IF(A3stdlife="n/a","n/a",IF(AA$3>(A3stdlife+$E146),('PTRM input'!$I$333*(1+rvanilla03)^0.5)-SUM($I146:Z146),('PTRM input'!$I$333*(1+rvanilla03)^0.5)/A3stdlife)) -> n/a | AB146: =IF(A3stdlife="n/a","n/a",IF(AB$3>(A3stdlife+$E146),('PTRM input'!$I$333*(1+rvanilla03)^0.5)-SUM($I146:AA146),('PTRM input'!$I$333*(1+rvanilla03)^0.5)/A3stdlife)) -> n/a | AC146: =IF(A3stdlife="n/a","n/a",IF(AC$3>(A3stdlife+$E146),('PTRM input'!$I$333*(1+rvanilla03)^0.5)-SUM($I146:AB146),('PTRM input'!$I$333*(1+rvanilla03)^0.5)/A3stdlife)) -> n/a | AD146: =IF(A3stdlife="n/a","n/a",IF(AD$3>(A3stdlife+$E146),('PTRM input'!$I$333*(1+rvanilla03)^0.5)-SUM($I146:AC146),('PTRM input'!$I$333*(1+rvanilla03)^0.5)/A3stdlife)) -> n/a | AE146: =IF(A3stdlife="n/a","n/a",IF(AE$3>(A3stdlife+$E146),('PTRM input'!$I$333*(1+rvanilla03)^0.5)-SUM($I146:AD146),('PTRM input'!$I$333*(1+rvanilla03)^0.5)/A3stdlife)) -> n/a | AF146: =IF(A3stdlife="n/a","n/a",IF(AF$3>(A3stdlife+$E146),('PTRM input'!$I$333*(1+rvanilla03)^0.5)-SUM($I146:AE146),('PTRM input'!$I$333*(1+rvanilla03)^0.5)/A3stdlife)) -> n/a | AG146: =IF(A3stdlife="n/a","n/a",IF(AG$3>(A3stdlife+$E146),('PTRM input'!$I$333*(1+rvanilla03)^0.5)-SUM($I146:AF146),('PTRM input'!$I$333*(1+rvanilla03)^0.5)/A3stdlife)) -> n/a | AH146: =IF(A3stdlife="n/a","n/a",IF(AH$3>(A3stdlife+$E146),('PTRM input'!$I$333*(1+rvanilla03)^0.5)-SUM($I146:AG146),('PTRM input'!$I$333*(1+rvanilla03)^0.5)/A3stdlife)) -> n/a | AI146: =IF(A3stdlife="n/a","n/a",IF(AI$3>(A3stdlife+$E146),('PTRM input'!$I$333*(1+rvanilla03)^0.5)-SUM($I146:AH146),('PTRM input'!$I$333*(1+rvanilla03)^0.5)/A3stdlife)) -> n/a | AJ146: =IF(A3stdlife="n/a","n/a",IF(AJ$3>(A3stdlife+$E146),('PTRM input'!$I$333*(1+rvanilla03)^0.5)-SUM($I146:AI146),('PTRM input'!$I$333*(1+rvanilla03)^0.5)/A3stdlife)) -> n/a | AK146: =IF(A3stdlife="n/a","n/a",IF(AK$3>(A3stdlife+$E146),('PTRM input'!$I$333*(1+rvanilla03)^0.5)-SUM($I146:AJ146),('PTRM input'!$I$333*(1+rvanilla03)^0.5)/A3stdlife)) -> n/a | AL146: =IF(A3stdlife="n/a","n/a",IF(AL$3>(A3stdlife+$E146),('PTRM input'!$I$333*(1+rvanilla03)^0.5)-SUM($I146:AK146),('PTRM input'!$I$333*(1+rvanilla03)^0.5)/A3stdlife)) -> n/a | AM146: =IF(A3stdlife="n/a","n/a",IF(AM$3>(A3stdlife+$E146),('PTRM input'!$I$333*(1+rvanilla03)^0.5)-SUM($I146:AL146),('PTRM input'!$I$333*(1+rvanilla03)^0.5)/A3stdlife)) -> n/a | AN146: =IF(A3stdlife="n/a","n/a",IF(AN$3>(A3stdlife+$E146),('PTRM input'!$I$333*(1+rvanilla03)^0.5)-SUM($I146:AM146),('PTRM input'!$I$333*(1+rvanilla03)^0.5)/A3stdlife)) -> n/a | AO146: =IF(A3stdlife="n/a","n/a",IF(AO$3>(A3stdlife+$E146),('PTRM input'!$I$333*(1+rvanilla03)^0.5)-SUM($I146:AN146),('PTRM input'!$I$333*(1+rvanilla03)^0.5)/A3stdlife)) -> n/a | AP146: =IF(A3stdlife="n/a","n/a",IF(AP$3>(A3stdlife+$E146),('PTRM input'!$I$333*(1+rvanilla03)^0.5)-SUM($I146:AO146),('PTRM input'!$I$333*(1+rvanilla03)^0.5)/A3stdlife)) -> n/a | AQ146: =IF(A3stdlife="n/a","n/a",IF(AQ$3>(A3stdlife+$E146),('PTRM input'!$I$333*(1+rvanilla03)^0.5)-SUM($I146:AP146),('PTRM input'!$I$333*(1+rvanilla03)^0.5)/A3stdlife)) -> n/a | AR146: =IF(A3stdlife="n/a","n/a",IF(AR$3>(A3stdlife+$E146),('PTRM input'!$I$333*(1+rvanilla03)^0.5)-SUM($I146:AQ146),('PTRM input'!$I$333*(1+rvanilla03)^0.5)/A3stdlife)) -> n/a | AS146: =IF(A3stdlife="n/a","n/a",IF(AS$3>(A3stdlife+$E146),('PTRM input'!$I$333*(1+rvanilla03)^0.5)-SUM($I146:AR146),('PTRM input'!$I$333*(1+rvanilla03)^0.5)/A3stdlife)) -> n/a | AT146: =IF(A3stdlife="n/a","n/a",IF(AT$3>(A3stdlife+$E146),('PTRM input'!$I$333*(1+rvanilla03)^0.5)-SUM($I146:AS146),('PTRM input'!$I$333*(1+rvanilla03)^0.5)/A3stdlife)) -> n/a | AU146: =IF(A3stdlife="n/a","n/a",IF(AU$3>(A3stdlife+$E146),('PTRM input'!$I$333*(1+rvanilla03)^0.5)-SUM($I146:AT146),('PTRM input'!$I$333*(1+rvanilla03)^0.5)/A3stdlife)) -> n/a | AV146: =IF(A3stdlife="n/a","n/a",IF(AV$3>(A3stdlife+$E146),('PTRM input'!$I$333*(1+rvanilla03)^0.5)-SUM($I146:AU146),('PTRM input'!$I$333*(1+rvanilla03)^0.5)/A3stdlife)) -> n/a | AW146: =IF(A3stdlife="n/a","n/a",IF(AW$3>(A3stdlife+$E146),('PTRM input'!$I$333*(1+rvanilla03)^0.5)-SUM($I146:AV146),('PTRM input'!$I$333*(1+rvanilla03)^0.5)/A3stdlife)) -> n/a | AX146: =IF(A3stdlife="n/a","n/a",IF(AX$3>(A3stdlife+$E146),('PTRM input'!$I$333*(1+rvanilla03)^0.5)-SUM($I146:AW146),('PTRM input'!$I$333*(1+rvanilla03)^0.5)/A3stdlife)) -> n/a | AY146: =IF(A3stdlife="n/a","n/a",IF(AY$3>(A3stdlife+$E146),('PTRM input'!$I$333*(1+rvanilla03)^0.5)-SUM($I146:AX146),('PTRM input'!$I$333*(1+rvanilla03)^0.5)/A3stdlife)) -> n/a | AZ146: =IF(A3stdlife="n/a","n/a",IF(AZ$3>(A3stdlife+$E146),('PTRM input'!$I$333*(1+rvanilla03)^0.5)-SUM($I146:AY146),('PTRM input'!$I$333*(1+rvanilla03)^0.5)/A3stdlife)) -> n/a | BA146: =IF(A3stdlife="n/a","n/a",IF(BA$3>(A3stdlife+$E146),('PTRM input'!$I$333*(1+rvanilla03)^0.5)-SUM($I146:AZ146),('PTRM input'!$I$333*(1+rvanilla03)^0.5)/A3stdlife)) -> n/a | BB146: =IF(A3stdlife="n/a","n/a",IF(BB$3>(A3stdlife+$E146),('PTRM input'!$I$333*(1+rvanilla03)^0.5)-SUM($I146:BA146),('PTRM input'!$I$333*(1+rvanilla03)^0.5)/A3stdlife)) -> n/a | BC146: =IF(A3stdlife="n/a","n/a",IF(BC$3>(A3stdlife+$E146),('PTRM input'!$I$333*(1+rvanilla03)^0.5)-SUM($I146:BB146),('PTRM input'!$I$333*(1+rvanilla03)^0.5)/A3stdlife)) -> n/a | BD146: =IF(A3stdlife="n/a","n/a",IF(BD$3>(A3stdlife+$E146),('PTRM input'!$I$333*(1+rvanilla03)^0.5)-SUM($I146:BC146),('PTRM input'!$I$333*(1+rvanilla03)^0.5)/A3stdlife)) -> n/a | BE146: =IF(A3stdlife="n/a","n/a",IF(BE$3>(A3stdlife+$E146),('PTRM input'!$I$333*(1+rvanilla03)^0.5)-SUM($I146:BD146),('PTRM input'!$I$333*(1+rvanilla03)^0.5)/A3stdlife)) -> n/a | BF146: =IF(A3stdlife="n/a","n/a",IF(BF$3>(A3stdlife+$E146),('PTRM input'!$I$333*(1+rvanilla03)^0.5)-SUM($I146:BE146),('PTRM input'!$I$333*(1+rvanilla03)^0.5)/A3stdlife)) -> n/a | BG146: =IF(A3stdlife="n/a","n/a",IF(BG$3>(A3stdlife+$E146),('PTRM input'!$I$333*(1+rvanilla03)^0.5)-SUM($I146:BF146),('PTRM input'!$I$333*(1+rvanilla03)^0.5)/A3stdlife)) -> n/a | BH146: =IF(A3stdlife="n/a","n/a",IF(BH$3>(A3stdlife+$E146),('PTRM input'!$I$333*(1+rvanilla03)^0.5)-SUM($I146:BG146),('PTRM input'!$I$333*(1+rvanilla03)^0.5)/A3stdlife)) -> n/a | BI146: =IF(A3stdlife="n/a","n/a",IF(BI$3>(A3stdlife+$E146),('PTRM input'!$I$333*(1+rvanilla03)^0.5)-SUM($I146:BH146),('PTRM input'!$I$333*(1+rvanilla03)^0.5)/A3stdlife)) -> n/a
E147: 4 | K147: =IF(A3stdlife="n/a","n/a",IF(K$3>(A3stdlife+$E147),('PTRM input'!$J$333*(1+rvanilla04)^0.5)-SUM(J147:$J147),('PTRM input'!$J$333*(1+rvanilla04)^0.5)/A3stdlife)) -> n/a | L147: =IF(A3stdlife="n/a","n/a",IF(L$3>(A3stdlife+$E147),('PTRM input'!$J$333*(1+rvanilla04)^0.5)-SUM($J147:K147),('PTRM input'!$J$333*(1+rvanilla04)^0.5)/A3stdlife)) -> n/a | M147: =IF(A3stdlife="n/a","n/a",IF(M$3>(A3stdlife+$E147),('PTRM input'!$J$333*(1+rvanilla04)^0.5)-SUM($J147:L147),('PTRM input'!$J$333*(1+rvanilla04)^0.5)/A3stdlife)) -> n/a | N147: =IF(A3stdlife="n/a","n/a",IF(N$3>(A3stdlife+$E147),('PTRM input'!$J$333*(1+rvanilla04)^0.5)-SUM($J147:M147),('PTRM input'!$J$333*(1+rvanilla04)^0.5)/A3stdlife)) -> n/a | O147: =IF(A3stdlife="n/a","n/a",IF(O$3>(A3stdlife+$E147),('PTRM input'!$J$333*(1+rvanilla04)^0.5)-SUM($J147:N147),('PTRM input'!$J$333*(1+rvanilla04)^0.5)/A3stdlife)) -> n/a | P147: =IF(A3stdlife="n/a","n/a",IF(P$3>(A3stdlife+$E147),('PTRM input'!$J$333*(1+rvanilla04)^0.5)-SUM($J147:O147),('PTRM input'!$J$333*(1+rvanilla04)^0.5)/A3stdlife)) -> n/a | Q147: =IF(A3stdlife="n/a","n/a",IF(Q$3>(A3stdlife+$E147),('PTRM input'!$J$333*(1+rvanilla04)^0.5)-SUM($J147:P147),('PTRM input'!$J$333*(1+rvanilla04)^0.5)/A3stdlife)) -> n/a | R147: =IF(A3stdlife="n/a","n/a",IF(R$3>(A3stdlife+$E147),('PTRM input'!$J$333*(1+rvanilla04)^0.5)-SUM($J147:Q147),('PTRM input'!$J$333*(1+rvanilla04)^0.5)/A3stdlife)) -> n/a | S147: =IF(A3stdlife="n/a","n/a",IF(S$3>(A3stdlife+$E147),('PTRM input'!$J$333*(1+rvanilla04)^0.5)-SUM($J147:R147),('PTRM input'!$J$333*(1+rvanilla04)^0.5)/A3stdlife)) -> n/a | T147: =IF(A3stdlife="n/a","n/a",IF(T$3>(A3stdlife+$E147),('PTRM input'!$J$333*(1+rvanilla04)^0.5)-SUM($J147:S147),('PTRM input'!$J$333*(1+rvanilla04)^0.5)/A3stdlife)) -> n/a | U147: =IF(A3stdlife="n/a","n/a",IF(U$3>(A3stdlife+$E147),('PTRM input'!$J$333*(1+rvanilla04)^0.5)-SUM($J147:T147),('PTRM input'!$J$333*(1+rvanilla04)^0.5)/A3stdlife)) -> n/a | V147: =IF(A3stdlife="n/a","n/a",IF(V$3>(A3stdlife+$E147),('PTRM input'!$J$333*(1+rvanilla04)^0.5)-SUM($J147:U147),('PTRM input'!$J$333*(1+rvanilla04)^0.5)/A3stdlife)) -> n/a | W147: =IF(A3stdlife="n/a","n/a",IF(W$3>(A3stdlife+$E147),('PTRM input'!$J$333*(1+rvanilla04)^0.5)-SUM($J147:V147),('PTRM input'!$J$333*(1+rvanilla04)^0.5)/A3stdlife)) -> n/a | X147: =IF(A3stdlife="n/a","n/a",IF(X$3>(A3stdlife+$E147),('PTRM input'!$J$333*(1+rvanilla04)^0.5)-SUM($J147:W147),('PTRM input'!$J$333*(1+rvanilla04)^0.5)/A3stdlife)) -> n/a | Y147: =IF(A3stdlife="n/a","n/a",IF(Y$3>(A3stdlife+$E147),('PTRM input'!$J$333*(1+rvanilla04)^0.5)-SUM($J147:X147),('PTRM input'!$J$333*(1+rvanilla04)^0.5)/A3stdlife)) -> n/a | Z147: =IF(A3stdlife="n/a","n/a",IF(Z$3>(A3stdlife+$E147),('PTRM input'!$J$333*(1+rvanilla04)^0.5)-SUM($J147:Y147),('PTRM input'!$J$333*(1+rvanilla04)^0.5)/A3stdlife)) -> n/a | AA147: =IF(A3stdlife="n/a","n/a",IF(AA$3>(A3stdlife+$E147),('PTRM input'!$J$333*(1+rvanilla04)^0.5)-SUM($J147:Z147),('PTRM input'!$J$333*(1+rvanilla04)^0.5)/A3stdlife)) -> n/a | AB147: =IF(A3stdlife="n/a","n/a",IF(AB$3>(A3stdlife+$E147),('PTRM input'!$J$333*(1+rvanilla04)^0.5)-SUM($J147:AA147),('PTRM input'!$J$333*(1+rvanilla04)^0.5)/A3stdlife)) -> n/a | AC147: =IF(A3stdlife="n/a","n/a",IF(AC$3>(A3stdlife+$E147),('PTRM input'!$J$333*(1+rvanilla04)^0.5)-SUM($J147:AB147),('PTRM input'!$J$333*(1+rvanilla04)^0.5)/A3stdlife)) -> n/a | AD147: =IF(A3stdlife="n/a","n/a",IF(AD$3>(A3stdlife+$E147),('PTRM input'!$J$333*(1+rvanilla04)^0.5)-SUM($J147:AC147),('PTRM input'!$J$333*(1+rvanilla04)^0.5)/A3stdlife)) -> n/a | AE147: =IF(A3stdlife="n/a","n/a",IF(AE$3>(A3stdlife+$E147),('PTRM input'!$J$333*(1+rvanilla04)^0.5)-SUM($J147:AD147),('PTRM input'!$J$333*(1+rvanilla04)^0.5)/A3stdlife)) -> n/a | AF147: =IF(A3stdlife="n/a","n/a",IF(AF$3>(A3stdlife+$E147),('PTRM input'!$J$333*(1+rvanilla04)^0.5)-SUM($J147:AE147),('PTRM input'!$J$333*(1+rvanilla04)^0.5)/A3stdlife)) -> n/a | AG147: =IF(A3stdlife="n/a","n/a",IF(AG$3>(A3stdlife+$E147),('PTRM input'!$J$333*(1+rvanilla04)^0.5)-SUM($J147:AF147),('PTRM input'!$J$333*(1+rvanilla04)^0.5)/A3stdlife)) -> n/a | AH147: =IF(A3stdlife="n/a","n/a",IF(AH$3>(A3stdlife+$E147),('PTRM input'!$J$333*(1+rvanilla04)^0.5)-SUM($J147:AG147),('PTRM input'!$J$333*(1+rvanilla04)^0.5)/A3stdlife)) -> n/a | AI147: =IF(A3stdlife="n/a","n/a",IF(AI$3>(A3stdlife+$E147),('PTRM input'!$J$333*(1+rvanilla04)^0.5)-SUM($J147:AH147),('PTRM input'!$J$333*(1+rvanilla04)^0.5)/A3stdlife)) -> n/a | AJ147: =IF(A3stdlife="n/a","n/a",IF(AJ$3>(A3stdlife+$E147),('PTRM input'!$J$333*(1+rvanilla04)^0.5)-SUM($J147:AI147),('PTRM input'!$J$333*(1+rvanilla04)^0.5)/A3stdlife)) -> n/a | AK147: =IF(A3stdlife="n/a","n/a",IF(AK$3>(A3stdlife+$E147),('PTRM input'!$J$333*(1+rvanilla04)^0.5)-SUM($J147:AJ147),('PTRM input'!$J$333*(1+rvanilla04)^0.5)/A3stdlife)) -> n/a | AL147: =IF(A3stdlife="n/a","n/a",IF(AL$3>(A3stdlife+$E147),('PTRM input'!$J$333*(1+rvanilla04)^0.5)-SUM($J147:AK147),('PTRM input'!$J$333*(1+rvanilla04)^0.5)/A3stdlife)) -> n/a | AM147: =IF(A3stdlife="n/a","n/a",IF(AM$3>(A3stdlife+$E147),('PTRM input'!$J$333*(1+rvanilla04)^0.5)-SUM($J147:AL147),('PTRM input'!$J$333*(1+rvanilla04)^0.5)/A3stdlife)) -> n/a | AN147: =IF(A3stdlife="n/a","n/a",IF(AN$3>(A3stdlife+$E147),('PTRM input'!$J$333*(1+rvanilla04)^0.5)-SUM($J147:AM147),('PTRM input'!$J$333*(1+rvanilla04)^0.5)/A3stdlife)) -> n/a | AO147: =IF(A3stdlife="n/a","n/a",IF(AO$3>(A3stdlife+$E147),('PTRM input'!$J$333*(1+rvanilla04)^0.5)-SUM($J147:AN147),('PTRM input'!$J$333*(1+rvanilla04)^0.5)/A3stdlife)) -> n/a | AP147: =IF(A3stdlife="n/a","n/a",IF(AP$3>(A3stdlife+$E147),('PTRM input'!$J$333*(1+rvanilla04)^0.5)-SUM($J147:AO147),('PTRM input'!$J$333*(1+rvanilla04)^0.5)/A3stdlife)) -> n/a | AQ147: =IF(A3stdlife="n/a","n/a",IF(AQ$3>(A3stdlife+$E147),('PTRM input'!$J$333*(1+rvanilla04)^0.5)-SUM($J147:AP147),('PTRM input'!$J$333*(1+rvanilla04)^0.5)/A3stdlife)) -> n/a | AR147: =IF(A3stdlife="n/a","n/a",IF(AR$3>(A3stdlife+$E147),('PTRM input'!$J$333*(1+rvanilla04)^0.5)-SUM($J147:AQ147),('PTRM input'!$J$333*(1+rvanilla04)^0.5)/A3stdlife)) -> n/a | AS147: =IF(A3stdlife="n/a","n/a",IF(AS$3>(A3stdlife+$E147),('PTRM input'!$J$333*(1+rvanilla04)^0.5)-SUM($J147:AR147),('PTRM input'!$J$333*(1+rvanilla04)^0.5)/A3stdlife)) -> n/a | AT147: =IF(A3stdlife="n/a","n/a",IF(AT$3>(A3stdlife+$E147),('PTRM input'!$J$333*(1+rvanilla04)^0.5)-SUM($J147:AS147),('PTRM input'!$J$333*(1+rvanilla04)^0.5)/A3stdlife)) -> n/a | AU147: =IF(A3stdlife="n/a","n/a",IF(AU$3>(A3stdlife+$E147),('PTRM input'!$J$333*(1+rvanilla04)^0.5)-SUM($J147:AT147),('PTRM input'!$J$333*(1+rvanilla04)^0.5)/A3stdlife)) -> n/a | AV147: =IF(A3stdlife="n/a","n/a",IF(AV$3>(A3stdlife+$E147),('PTRM input'!$J$333*(1+rvanilla04)^0.5)-SUM($J147:AU147),('PTRM input'!$J$333*(1+rvanilla04)^0.5)/A3stdlife)) -> n/a | AW147: =IF(A3stdlife="n/a","n/a",IF(AW$3>(A3stdlife+$E147),('PTRM input'!$J$333*(1+rvanilla04)^0.5)-SUM($J147:AV147),('PTRM input'!$J$333*(1+rvanilla04)^0.5)/A3stdlife)) -> n/a | AX147: =IF(A3stdlife="n/a","n/a",IF(AX$3>(A3stdlife+$E147),('PTRM input'!$J$333*(1+rvanilla04)^0.5)-SUM($J147:AW147),('PTRM input'!$J$333*(1+rvanilla04)^0.5)/A3stdlife)) -> n/a | AY147: =IF(A3stdlife="n/a","n/a",IF(AY$3>(A3stdlife+$E147),('PTRM input'!$J$333*(1+rvanilla04)^0.5)-SUM($J147:AX147),('PTRM input'!$J$333*(1+rvanilla04)^0.5)/A3stdlife)) -> n/a | AZ147: =IF(A3stdlife="n/a","n/a",IF(AZ$3>(A3stdlife+$E147),('PTRM input'!$J$333*(1+rvanilla04)^0.5)-SUM($J147:AY147),('PTRM input'!$J$333*(1+rvanilla04)^0.5)/A3stdlife)) -> n/a | BA147: =IF(A3stdlife="n/a","n/a",IF(BA$3>(A3stdlife+$E147),('PTRM input'!$J$333*(1+rvanilla04)^0.5)-SUM($J147:AZ147),('PTRM input'!$J$333*(1+rvanilla04)^0.5)/A3stdlife)) -> n/a | BB147: =IF(A3stdlife="n/a","n/a",IF(BB$3>(A3stdlife+$E147),('PTRM input'!$J$333*(1+rvanilla04)^0.5)-SUM($J147:BA147),('PTRM input'!$J$333*(1+rvanilla04)^0.5)/A3stdlife)) -> n/a | BC147: =IF(A3stdlife="n/a","n/a",IF(BC$3>(A3stdlife+$E147),('PTRM input'!$J$333*(1+rvanilla04)^0.5)-SUM($J147:BB147),('PTRM input'!$J$333*(1+rvanilla04)^0.5)/A3stdlife)) -> n/a | BD147: =IF(A3stdlife="n/a","n/a",IF(BD$3>(A3stdlife+$E147),('PTRM input'!$J$333*(1+rvanilla04)^0.5)-SUM($J147:BC147),('PTRM input'!$J$333*(1+rvanilla04)^0.5)/A3stdlife)) -> n/a | BE147: =IF(A3stdlife="n/a","n/a",IF(BE$3>(A3stdlife+$E147),('PTRM input'!$J$333*(1+rvanilla04)^0.5)-SUM($J147:BD147),('PTRM input'!$J$333*(1+rvanilla04)^0.5)/A3stdlife)) -> n/a | BF147: =IF(A3stdlife="n/a","n/a",IF(BF$3>(A3stdlife+$E147),('PTRM input'!$J$333*(1+rvanilla04)^0.5)-SUM($J147:BE147),('PTRM input'!$J$333*(1+rvanilla04)^0.5)/A3stdlife)) -> n/a | BG147: =IF(A3stdlife="n/a","n/a",IF(BG$3>(A3stdlife+$E147),('PTRM input'!$J$333*(1+rvanilla04)^0.5)-SUM($J147:BF147),('PTRM input'!$J$333*(1+rvanilla04)^0.5)/A3stdlife)) -> n/a | BH147: =IF(A3stdlife="n/a","n/a",IF(BH$3>(A3stdlife+$E147),('PTRM input'!$J$333*(1+rvanilla04)^0.5)-SUM($J147:BG147),('PTRM input'!$J$333*(1+rvanilla04)^0.5)/A3stdlife)) -> n/a | BI147: =IF(A3stdlife="n/a","n/a",IF(BI$3>(A3stdlife+$E147),('PTRM input'!$J$333*(1+rvanilla04)^0.5)-SUM($J147:BH147),('PTRM input'!$J$333*(1+rvanilla04)^0.5)/A3stdlife)) -> n/a
